Workbook

Sheet InputDATA (hidden)
A1: Stats Page
B2: Score | C2: Extra
A3: Strength
A4: Dexterity
A5: Constitution
A6: Intelligence
A7: Wisdom
A8: Charisma
A9: Race
A10: Sub-Race
A11: Favored Class
A12: Alignment
A13: Deity
A14: Size
A15: Type
A16: Level Adjust
A17: Name
A18: Player
A19: Eye Color
A20: Hair Color
A21: Skin
A22: Region
A23: Gender
A24: Height
A25: Weight
A26: Age
A27: Max Age
A28: Stats Data
A29: Point Buy Option
A30: Override class alignment restriction
A31: Override deity alignment restriction
A32: Override age ability modifiers

Sheet Options
C2: Ogres' Pathfinder RPG Character Creator
C3: Beta Release (version 1.2) - January 11, 2011
C5: SHEET INSTRUCTIONS
C9: TRAITS OPTION
D10: Show the Traits tab
B13: Pathfinder Sources | G13: Miscellaneous Options
D14: =Options_DATA!C5 -> Pathfinder Core Rulebook | I14: Show source & page number references on character sheet
D15: =Options_DATA!C6 -> Pathfinder Campaign Setting (3.5) | I15: Show check boxes for use-based abilities on character sheet
D16: =Options_DATA!C7 -> Pathfinder Bestiary | I16: Allow equipment weight to affect encumbrance
D17: =Options_DATA!C8 -> AP - Kingmaker | I17: Show Familiar tab, even if no familiar exists
D18: =Options_DATA!C9 -> AP - Council of Thieves | I18: Show Animal Companion tab, even if no companion exists
D19: =Options_DATA!C10 -> AP - Legacy of Fire (3.5)
D20: =Options_DATA!C11 -> AP - Second Darkness (3.5)
D21: =Options_DATA!C12 -> AP - Crimson Throne (3.5)
D22: =Options_DATA!C13 -> AP - Rise of the Runelords (3.5)
D23: =Options_DATA!C14 -> Dwarves of Golarion
D24: =Options_DATA!C15 -> Elves of Golarion (3.5)
D25: =Options_DATA!C16 -> Cheliax - Empire of Devils
D26: =Options_DATA!C17 -> Qadira - Gateway to the East
D27: =Options_DATA!C18 -> Andoran - Spirit of Liberty
D28: =Options_DATA!C19 -> Gods & Magic (3.5)
D29: =Options_DATA!C20 -> Pathfinder Advanced Player's Guide
C32: CONTACT INFORMATION
C38: LEGAL INFORMATION

Sheet Options_DATA (hidden)
B1: Sources Table | L1: Blank Cell
F2: =list_optionsDATA_sources | L2: =cell_blank
F3: Selected | H3: Short Source Names | L3: ="" -> 
C4: Source Name | D4: Label | E4: Selected | F4: Labels | H4: table_optionsDATA_shortsources
B5: 1 | C5: Pathfinder Core Rulebook | D5: Core | E5: TRUE | F5: =IF(E5=TRUE,D5,"") -> Core | H5: core | I5: =F5 -> Core
B6: 2 | C6: Pathfinder Campaign Setting (3.5) | D6: Campaign | E6: FALSE | F6: =IF(E6=TRUE,D6,"") ->  | H6: pfcs | I6: =F6 -> 
B7: 3 | C7: Pathfinder Bestiary | D7: Bestiary | E7: TRUE | F7: Bestiary | H7: best | I7: Bestiary
B8: 4 | C8: AP - Kingmaker | D8: Kingmaker | E8: TRUE | F8: Kingmaker | H8: ap-km | I8: Kingmaker
B9: 5 | C9: AP - Council of Thieves | D9: Council of Thieves | E9: TRUE | F9: Council of Thieves | H9: ap-cot | I9: Council of Thieves
B10: 6 | C10: AP - Legacy of Fire (3.5) | D10: Legacy of Fire | E10: FALSE | H10: ap-lof
B11: 7 | C11: AP - Second Darkness (3.5) | D11: Second Darkness | E11: FALSE | H11: ap-sd
B12: 8 | C12: AP - Crimson Throne (3.5) | D12: Crimson Throne | E12: TRUE | F12: Crimson Throne | H12: ap-ct | I12: Crimson Throne
B13: 9 | C13: AP - Rise of the Runelords (3.5) | D13: Runelords | E13: FALSE | H13: ap-rotr
B14: 10 | C14: Dwarves of Golarion | D14: Dwarves | E14: TRUE | F14: Dwarves | H14: dog | I14: Dwarves
B15: 11 | C15: Elves of Golarion (3.5) | D15: Elves | E15: TRUE | F15: Elves | H15: eog | I15: Elves
B16: 12 | C16: Cheliax - Empire of Devils | D16: Cheliax | E16: TRUE | F16: =IF(E16=TRUE,D16,"") -> Cheliax | H16: c-eod | I16: Cheliax
B17: 13 | C17: Qadira - Gateway to the East | D17: Qadira | E17: TRUE | F17: Qadira | H17: q-gtte | I17: Qadira
B18: 14 | C18: Andoran - Spirit of Liberty | D18: Andoran | E18: TRUE | F18: Andoran | H18: a-sol | I18: Andoran
B19: 15 | C19: Gods & Magic (3.5) | D19: Gods&Magic | E19: FALSE | H19: g&m
B20: 16 | C20: Pathfinder Advanced Player's Guide | D20: Advanced Guide | E20: TRUE | F20: APG | H20: apg | I20: APG
F21: Armory
F22: Custom
C25: TRUE | D25: cell_optionsDATA_showpage
C26: TRUE | D26: cell_optionsDATA_showboxes
C27: TRUE | D27: cell_optionsDATA_limitdomains
C28: TRUE | D28: cell_optionsDATA_limitmysteries
C29: TRUE | D29: cell_optionsDATA_includefamiliar
C30: TRUE | D30: cell_optionsDATA_traits
C31: TRUE | D31: cell_optionsDATA_weight
C32: FALSE | D32: cell_optionsDATA_showfamiliar
C33: FALSE | D33: cell_optionsDATA_showanimal
C34: FALSE | D34: cell_optionsDATA_showclasses

Sheet Stats
R2: Ability | Y2: Point | AH2: Level | AN2: Race | AT2: Age | AZ2: Bonus | BF2: Extra | BO2: Ability | BU2: Ability | CD2: CHARACTER INFORMATION | DO2: Point Buy
R4: Score | Y4: Cost | AH4: Mod. | AN4: Mod. | AT4: Mod. | AZ4: Mod. | BF4: Mod. | BO4: Score | BU4: Mod.
DO5: Score | DU5: Cost
C6: Strength | R6: 10 | Y6: =Stats_DATA!E22 -> 0 | AH6: =Stats_DATA!C160 -> 0 | AN6: =Stats_DATA!D160 -> 0 | AT6: =Stats_DATA!E160 -> 0 | AZ6: =Stats_DATA!F160 -> 0 | BO6: =IF(cell_statsDATA_noscores="yes","",Stats_DATA!K160) -> 10 | BU6: =IF(cell_statsDATA_noscores="yes","",Stats_DATA!L160) -> 0 | CD6: Name | CP6: Beren Inglorion
C9: Dexterity | R9: 13 | Y9: =Stats_DATA!E23 -> 3 | AH9: =Stats_DATA!C161 -> 0 | AN9: =Stats_DATA!D161 -> 2 | AT9: =Stats_DATA!E161 -> 0 | AZ9: =Stats_DATA!F161 -> 0 | BO9: =IF(cell_statsDATA_noscores="yes","",Stats_DATA!K161) -> 15 | BU9: =IF(cell_statsDATA_noscores="yes","",Stats_DATA!L161) -> 2 | CD9: Player | DO9: =Stats_DATA!A41 -> 7 | DU9: =Stats_DATA!B41 -> -4
C12: Constitution | R12: 13 | Y12: =Stats_DATA!E24 -> 3 | AH12: =Stats_DATA!C162 -> 0 | AN12: =Stats_DATA!D162 -> -2 | AT12: =Stats_DATA!E162 -> 0 | AZ12: =Stats_DATA!F162 -> 0 | BO12: =IF(cell_statsDATA_noscores="yes","",Stats_DATA!K162) -> 11 | BU12: =IF(cell_statsDATA_noscores="yes","",Stats_DATA!L162) -> 0 | CD12: Eye Color | DO12: =Stats_DATA!A42 -> 8 | DU12: =Stats_DATA!B42 -> -2
C15: Intelligence | R15: 16 | Y15: =Stats_DATA!E25 -> 10 | AH15: =Stats_DATA!C163 -> 0 | AN15: =Stats_DATA!D163 -> 2 | AT15: =Stats_DATA!E163 -> 0 | AZ15: =Stats_DATA!F163 -> 0 | BO15: =IF(cell_statsDATA_noscores="yes","",Stats_DATA!K163) -> 18 | BU15: =IF(cell_statsDATA_noscores="yes","",Stats_DATA!L163) -> 4 | CD15: Hair Color | DO15: =Stats_DATA!A43 -> 9 | DU15: =Stats_DATA!B43 -> -1
C18: Wisdom | R18: 14 | Y18: =Stats_DATA!E26 -> 5 | AH18: =Stats_DATA!C164 -> 0 | AN18: =Stats_DATA!D164 -> 0 | AT18: =Stats_DATA!E164 -> 0 | AZ18: =Stats_DATA!F164 -> 0 | BO18: =IF(cell_statsDATA_noscores="yes","",Stats_DATA!K164) -> 14 | BU18: =IF(cell_statsDATA_noscores="yes","",Stats_DATA!L164) -> 2 | CD18: Skin | DO18: =Stats_DATA!A44 -> 10 | DU18: =Stats_DATA!B44 -> 0
C21: Charisma | R21: 9 | Y21: =Stats_DATA!E27 -> -1 | AH21: =Stats_DATA!C165 -> 0 | AN21: =Stats_DATA!D165 -> 0 | AT21: =Stats_DATA!E165 -> 0 | AZ21: =Stats_DATA!F165 -> 0 | BO21: =IF(cell_statsDATA_noscores="yes","",Stats_DATA!K165) -> 9 | BU21: =IF(cell_statsDATA_noscores="yes","",Stats_DATA!L165) -> -1 | CD21: Region | DO21: =Stats_DATA!A45 -> 11 | DU21: =Stats_DATA!B45 -> 1
B24: =cell_statsDATA_flagpoints -> 1 | C24: =IF(cell_statsDATA_testpoints=TRUE,"Points (Spent / Max):","") -> Points (Spent / Max): | Y24: =IF(link_statsDATA_pointbuy=1,"",IF(cell_statsDATA_testpoints=TRUE,cell_statsDATA_points,"")) -> 20/20 | DO24: =Stats_DATA!A46 -> 12 | DU24: =Stats_DATA!B46 -> 2
DO27: =Stats_DATA!A47 -> 13 | DU27: =Stats_DATA!B47 -> 3
C30: Race | Q30: Elf | AX30: Gender | BM30: Male | DO30: =Stats_DATA!A48 -> 14 | DU30: =Stats_DATA!B48 -> 5
C31: Sub-Race | AX31: Height (inch) | BM31: 66 | BU31: =Stats_DATA!C141 -> Average Male Elf Height (53'' +2d6) | DO31: =Stats_DATA!A49 -> 15 | DU31: =Stats_DATA!B49 -> 7
B32: Favored Class | Q32: Wizard | AV32: =IF(ISERROR(MATCH("Multitalented",list_attributesDATA_summaryrace,0)),0,1) -> 0 | AX32: Weight (lbs) | BM32: 136 | BU32: =Stats_DATA!C144 -> Average Male Elf Weight (85 lbs + (13 x 1d6)) | DO32: =Stats_DATA!A50 -> 16 | DU32: =Stats_DATA!B50 -> 10
C33: Alignment | Q33: Neutral | AX33: Age | BM33: 133 | BU33: =Stats_DATA!A147 -> Average Elf Starting Age (110 +6d6) | DO33: =Stats_DATA!A51 -> 17 | DU33: =Stats_DATA!B51 -> 13
C34: Deity | AG34: Override | BU34: =Stats_DATA!D150 -> 114 - 174 | CF34: =Stats_DATA!B150 -> Elf Adult Age | DO34: =Stats_DATA!A52 -> 18 | DU34: =Stats_DATA!B52 -> 17
BU35: =Stats_DATA!D151 -> 175 - 262 | CF35: =Stats_DATA!B151 -> Elf Middle Age
C36: Size | Q36: =IF(cell_race="","",Races_DATA!E6) -> Medium
BU38: =Stats_DATA!D152 -> 263 - 349 | CF38: =Stats_DATA!B152 -> Elf Old Age
C39: Type | Q39: =IF(cell_race="","",cell_statsDATA_racialtype) -> Humanoid (Elf)
AY41: Max Age | BM41: 585 | BU41: =Stats_DATA!D153 -> 350 - 585 | CF41: =Stats_DATA!B153 -> Elf Venerable Age
C42: Level Adjust
AX46: Race Info | BD46: =cell_racesDATA_racedisplay -> Elf (Humanoid); Ability Mods (Dex +2, Con -2, Int +2); Size (Medium); Speed (30); Features (Low-Light Vision, Elven Immunities, Elven Magic, Keen Senses); Source (Core)
C48: Point Buy
F52: Override deity alignment restriction
F55: Override age ability modifiers | AX55: Deity Info | BD55: =cell_deitiesDATA_deitydisplay -> 

Sheet Stats_DATA (hidden)
A2: POINT BUY OPTIONS
A4: Point Buy Link
A5: =link_statsDATA_pointbuy
A6: 4
A8: Point Buy Table
B9: =index_statsDATA_pointbuy
A10: =table_statsDATA_pointbuy
A11: 1 | B11: (none) | C11: 0
A12: 2 | B12: Low Fantasy (10 points) | C12: 10
A13: 3 | B13: Standard Fantasy (15 points) | C13: 15
A14: 4 | B14: High Fantasy (20 points) | C14: 20
A15: 5 | B15: Epic Fantasy (25 points) | C15: 25
A17: Point Buy Amount
A18: =cell_statsDATA_pointbuy
A19: =IF(cell_statsDATA_testpoints=TRUE,VLOOKUP(link_statsDATA_pointbuy,table_statsDATA_pointbuy,3,0),"") -> 20
A21: Ability Score Chose / Points
A22: Strength | D22: =Stats!R6 -> 10 | E22: =IF(link_statsDATA_pointbuy=1,"",IF(D22>0,VLOOKUP(D22,table_statsDATA_pointvalues,2,0),0)) -> 0
A23: Dexterity | D23: =Stats!R9 -> 13 | E23: 3
A24: Constitution | D24: =Stats!R12 -> 13 | E24: 3
A25: Intelligence | D25: =Stats!R15 -> 16 | E25: 10
A26: Wisdom | D26: =Stats!R18 -> 14 | E26: 5
A27: Charisma | D27: =Stats!R21 -> 9 | E27: -1
A28: Total Points | E28: =IF(ISERROR(SUM(E22:E27)),0,SUM(E22:E27)) -> 20
A30: Points Available
A31: =cell_statsDATA_points
A32: =E28&"/"&A19 -> 20/20
A34: Points Available Display Flag
A35: =cell_statsDATA_flagpoints
A36: =IF(cell_statsDATA_testpoints=FALSE,0,IF(E28<=cell_statsDATA_pointbuy,1,2)) -> 1 | B36: 1 | C36: black text (default)
B37: 2 | C37: red text
A39: Point Buy Values
A40: =table_statsDATA_pointvalues
A41: 7 | B41: -4
A42: 8 | B42: -2
A43: 9 | B43: -1
A44: 10 | B44: 0
A45: 11 | B45: 1
A46: 12 | B46: 2
A47: 13 | B47: 3
A48: 14 | B48: 5
A49: 15 | B49: 7
A50: 16 | B50: 10
A51: 17 | B51: 13
A52: 18 | B52: 17
A54: Point Buy Used?
A55: =cell_statsDATA_testpoints
A56: =IF(link_statsDATA_pointbuy>1,TRUE,FALSE) -> TRUE
A58: Size Modifiers | P58: Size Mods
A59: =table_statsDATA_sizes | P59: =table_statsDATA_sizevariance
A60: =list_statsDATA_sizes | C60: AC | D60: Stealth (half for fly) | E60: CMB | F60: Load | G60: Weapon Cost | H60: Armor Cost | I60: Barding Cost | J60: Arms Weight | K60: Space | L60: Reach | M60: Size Benefits | Q60: Item HP Modifier
A61: Fine | B61: 1 | C61: 8 | D61: 16 | E61: -8 | F61: 0.125 | G61: 0.13 | H61: 0.5 | I61: 1 | J61: 0.1 | K61: 0.5 | L61: 0 | M61: ="Gain "&IF(C61>0,"+"&C61,C61)&" size modifier on attacks and AC, "&IF(D61>0,"+"&D61,D61)&" size modifier on Stealth checks, "&IF(E61>0,"+"&E61,E61)&" size modifer on CMB and CMD checks. You have a natural reach of "&L61&"' and you occupy a "&K61&"' space" -> Gain +8 size modifier on attacks and AC, +16 size modifier on Stealth checks, -8 size modifer on CMB and CMD checks. You have a natural reach of 0' and you occupy a 0.5' space | P61: -4 | Q61: =1/16 -> 0.0625
A62: Diminuative | B62: 2 | C62: 4 | D62: 12 | E62: -4 | F62: 0.25 | G62: 0.25 | H62: 0.5 | I62: 1 | J62: 0.1 | K62: 1 | L62: 0 | M62: ="Gain "&IF(C62>0,"+"&C62,C62)&" size modifier on attacks and AC, "&IF(D62>0,"+"&D62,D62)&" size modifier on Stealth checks, "&IF(E62>0,"+"&E62,E62)&" size modifer on CMB and CMD checks. You have a natural reach of "&L62&"' and you occupy a "&K62&"' space" -> Gain +4 size modifier on attacks and AC, +12 size modifier on Stealth checks, -4 size modifer on CMB and CMD checks. You have a natural reach of 0' and you occupy a 1' space | P62: -3 | Q62: =1/8 -> 0.125
A63: Tiny | B63: 3 | C63: 2 | D63: 8 | E63: -2 | F63: 0.5 | G63: 0.5 | H63: 0.5 | I63: 1 | J63: 0.1 | K63: 2.5 | L63: 0 | M63: ="Gain "&IF(C63>0,"+"&C63,C63)&" size modifier on attacks and AC, "&IF(D63>0,"+"&D63,D63)&" size modifier on Stealth checks, "&IF(E63>0,"+"&E63,E63)&" size modifer on CMB and CMD checks. You have a natural reach of "&L63&"' and you occupy a "&K63&"' space" -> Gain +2 size modifier on attacks and AC, +8 size modifier on Stealth checks, -2 size modifer on CMB and CMD checks. You have a natural reach of 0' and you occupy a 2.5' space | P63: -2 | Q63: 0.25
A64: Small | B64: 4 | C64: 1 | D64: 4 | E64: -1 | F64: 0.75 | G64: 1 | H64: 1 | I64: 2 | J64: 0.5 | K64: 5 | L64: 5 | M64: ="Gain "&IF(C64>0,"+"&C64,C64)&" size modifier on attacks and AC, "&IF(D64>0,"+"&D64,D64)&" size modifier on Stealth checks, "&IF(E64>0,"+"&E64,E64)&" size modifer on CMB and CMD checks. You have a natural reach of "&L64&"' and you occupy a "&K64&"' space" -> Gain +1 size modifier on attacks and AC, +4 size modifier on Stealth checks, -1 size modifer on CMB and CMD checks. You have a natural reach of 5' and you occupy a 5' space | P64: -1 | Q64: 0.5
A65: Medium | B65: 5 | C65: 0 | D65: 0 | E65: 0 | F65: 1 | G65: 1 | H65: 1 | I65: 2 | J65: 1 | K65: 5 | L65: 5 | M65: ="You have a natural reach of "&L65&"' and you occupy a "&K65&"' space" -> You have a natural reach of 5' and you occupy a 5' space | P65: 0 | Q65: 1
A66: Large | B66: 6 | C66: -1 | D66: -4 | E66: 1 | F66: 2 | G66: 2 | H66: 2 | I66: 4 | J66: 2 | K66: 10 | L66: 10 | M66: ="Gain "&IF(C66>0,"+"&C66,C66)&" size modifier on attacks and AC, "&IF(D66>0,"+"&D66,D66)&" size modifier on Stealth checks, "&IF(E66>0,"+"&E66,E66)&" size modifer on CMB and CMD checks. You have a natural reach of "&L66&"' and you occupy a "&K66&"' space" -> Gain -1 size modifier on attacks and AC, -4 size modifier on Stealth checks, +1 size modifer on CMB and CMD checks. You have a natural reach of 10' and you occupy a 10' space | P66: 1 | Q66: 2
A67: Huge | B67: 7 | C67: -2 | D67: -8 | E67: 2 | F67: 4 | G67: 4 | H67: 4 | I67: 8 | J67: 5 | K67: 15 | L67: 15 | M67: ="Gain "&IF(C67>0,"+"&C67,C67)&" size modifier on attacks and AC, "&IF(D67>0,"+"&D67,D67)&" size modifier on Stealth checks, "&IF(E67>0,"+"&E67,E67)&" size modifer on CMB and CMD checks. You have a natural reach of "&L67&"' and you occupy a "&K67&"' space" -> Gain -2 size modifier on attacks and AC, -8 size modifier on Stealth checks, +2 size modifer on CMB and CMD checks. You have a natural reach of 15' and you occupy a 15' space | P67: 2 | Q67: 4
A68: Gargantuan | B68: 8 | C68: -4 | D68: -12 | E68: 4 | F68: 8 | G68: 8 | H68: 8 | I68: 16 | J68: 8 | K68: 20 | L68: 20 | M68: ="Gain "&IF(C68>0,"+"&C68,C68)&" size modifier on attacks and AC, "&IF(D68>0,"+"&D68,D68)&" size modifier on Stealth checks, "&IF(E68>0,"+"&E68,E68)&" size modifer on CMB and CMD checks. You have a natural reach of "&L68&"' and you occupy a "&K68&"' space" -> Gain -4 size modifier on attacks and AC, -12 size modifier on Stealth checks, +4 size modifer on CMB and CMD checks. You have a natural reach of 20' and you occupy a 20' space | P68: 3 | Q68: 8
A69: Colossal | B69: 9 | C69: -8 | D69: -16 | E69: 8 | F69: 16 | G69: 16 | H69: 16 | I69: 32 | J69: 12 | K69: 30 | L69: 30 | M69: ="Gain "&IF(C69>0,"+"&C69,C69)&" size modifier on attacks and AC, "&IF(D69>0,"+"&D69,D69)&" size modifier on Stealth checks, "&IF(E69>0,"+"&E69,E69)&" size modifer on CMB and CMD checks. You have a natural reach of "&L69&"' and you occupy a "&K69&"' space" -> Gain -8 size modifier on attacks and AC, -16 size modifier on Stealth checks, +8 size modifer on CMB and CMD checks. You have a natural reach of 30' and you occupy a 30' space | P69: 4 | Q69: 16
A71: Race Size
A72: =cell_statsDATA_size
A73: =IF(Stats!AG36<>"",Stats!AG36,Races_DATA!E6) -> Medium
A75: Ability Increases
A76: =list_statsDATA_abilityup1
B77: =list_statsDATA_abilityup2
A78: Strength +1 | B78: Strength +2
A79: Dexterity +1 | B79: Dexterity +2
A80: Constitution +1 | B80: Constitution +2
A81: Intelligence +1 | B81: Intelligence +2
A82: Wisdom +1 | B82: Wisdom +2
A83: Charisma +1 | B83: Charisma +2
A85: Alignments | E85: Alignment | H85: Alignment
B86: =table_statsDATA_alignment | E86: Short Index | H86: Steps
B87: =list_statsDATA_alignment | E87: =index_statsDATA_shortalign | H87: =table_statsDATA_alignmentsteps
A88: 1 | B88: Lawful Good | C88: LG | E88: LG | F88: 1 | H88: =E88 -> LG | I88: LG#LN#CG#NN | J88: =B88 -> Lawful Good
A89: 2 | B89: Neutral Good | C89: NG | E89: NG | F89: 3 | H89: =E89 -> NG | I89: NG#LG#CG#NN | J89: =B89 -> Neutral Good
A90: 3 | B90: Chaotic Good | C90: CG | E90: CG | F90: 2 | H90: CG | I90: CG#NG#CN#NN | J90: Chaotic Good
A91: 4 | B91: Lawful Neutral | C91: LN | E91: LN | F91: 4 | H91: LN | I91: LN#LE#LG#NN | J91: Lawful Neutral
A92: 5 | B92: Neutral | C92: NN | E92: NN | F92: 6 | H92: NN | I92: NN#NG#NE#CN#LN | J92: Neutral
A93: 6 | B93: Chaotic Neutral | C93: CN | E93: CN | F93: 5 | H93: CN | I93: CN#NN#CG#CE | J93: Chaotic Neutral
A94: 7 | B94: Lawful Evil | C94: LE | E94: LE | F94: 7 | H94: LE | I94: LE#LN#CE#NN | J94: Lawful Evil
A95: 8 | B95: Neutral Evil | C95: NE | E95: NE | F95: 9 | H95: NE | I95: NE#LE#CE#NN | J95: Neutral Evil
A96: 9 | B96: Chaotic Evil | C96: CE | E96: CE | F96: 8 | H96: CE | I96: CE#NE#CN#NN | J96: Chaotic Evil
A99: OPTIONS
A100: Class Alignment Override | F100: FALSE | G100: =cell_statsDATA_overrideclassalign
A101: Deity Alignment Override | F101: FALSE | G101: =cell_statsDATA_overridedeityalign
A102: Age Ability Mods Override | G102: =cell_statsDATA_overrideagemods
A105: Listed Deity Selection
A106: =IF(ISERROR(MATCH(cell_statsDATA_deity,list_deitiesDATA_rawlist,0)),"custom","listed") -> custom | B106: =cell_statsDATA_listeddeity
A108: Listed Race Selection
A109: =IF(ISERROR(MATCH(cell_race,list_racesDATA_rawraces,0)),"custom","listed") -> listed | B109: =cell_statsDATA_listedrace
A111: Alignment Pre-requisites
B112: =table_statsDATA_alignprereq
D113: =table_statsDATA_alignmatch
D114: LG | E114: CG | F114: NG | G114: LN | H114: CN | I114: NN | J114: LE | K114: CE | L114: NE
A115: 1 | B115: Lawful Good | C115: =IF(cell_statsDATA_alignmentshort<>"",INDEX(table_statsDATA_alignmatch,A115+1,VLOOKUP(cell_statsDATA_alignmentshort,index_statsDATA_shortalign,2,0)),0) -> 0 | D115: 1
A116: 2 | B116: Neutral Good | C116: 0 | F116: 1
A117: 3 | B117: Chaotic Good | C117: 0 | E117: 1
A118: 4 | B118: Lawful Neutral | C118: 0 | G118: 1
A119: 5 | B119: Neutral | C119: 1 | I119: 1
A120: 6 | B120: Chaotic Neutral | C120: 0 | H120: 1
A121: 7 | B121: Lawful Evil | C121: 0 | J121: 1
A122: 8 | B122: Neutral Evil | C122: 0 | L122: 1
A123: 9 | B123: Chaotic Evil | C123: 0 | K123: 1
A124: 10 | B124: Any Lawful | C124: 0 | D124: 1 | G124: 1 | J124: 1
A125: 11 | B125: Any Chaotic | C125: 0 | E125: 1 | H125: 1 | K125: 1
... 138 more rows

Sheet Sheet1 (hidden)
A1: Dwarf | B1: Ancient enmity | C1: +1 on attacks vs elves | D1: Dwarven Hatred
A2: Dwarf | B2: Craftsman | C2: +2 on Craft or Profession checks for metal and stone crafting | D2: Greed
A3: Dwarf | B3: Deep warrior | D3: Defensive Training
A4: Dwarf | B4: Lorekeeper | D4: Greed
A5: Dwarf | B5: Magic resistant | D5: Hardy
A6: Dwarf | B6: Relentless | D6: Stability
A7: Dwarf | B7: Stonesinger | D7: Stonecutting
A8: Dwarf | B8: Stubborn | D8: Hardy
A13: DwarfBarbarian | B13: +1 rage round/day
A14: DwarfCleric | B14: +50% uses of a domain power | C14: list_domainsDATA_domainselected
A16: DwarfFighter | B16: +1 CMD to resist bull rush or trip
A17: DwarfOracle | B17: reduce a non-proficient weapon penalty by 1 | C17: ="[select a weapon]" -> [select a weapon]
A18: DwarfPaladin | B18: +1 to concentration checks to cast paladin spells
A19: DwarfRanger | B19: +50% bonus on wild empathy vs underground animals and beasts
A20: DwarfRogue | B20: +50% bonus on Disable Device checks and trap sense vs stone traps
A23: move favored class bonus to features… add 2 more features per level

Sheet Levels
AF1: Hit Points at 1st Level | DB1: Ability | DW1: Options
A2: Experience | O2: 0 | FG2: remember to change extra feats to 2
CQ3: Extra | CW3: Bonus | DC3: Mods | DI3: Feats | DO3: Base | DZ3: Override class alignment limit
BY5: Fort Save | CJ5: =cell_fort -> 0 | CW5: =Classes_DATA3!BM33 -> 0 | DC5: =Classes_DATA3!BM8 -> 0 | DO5: =Classes_DATA3!AI29 -> 0
DZ6: Override class prerequisites
A7: Experience Progression | AF7: Hit Point Progression | BY7: Ref Save | CJ7: =cell_ref -> 2 | CW7: =Classes_DATA3!BN33 -> 0 | DC7: =Classes_DATA3!BN8 -> 0 | DO7: =Classes_DATA3!AJ29 -> 0
BY9: Will Save | CJ9: =cell_will -> 4 | CW9: =Classes_DATA3!BO33 -> 0 | DC9: =Classes_DATA3!BO8 -> 0 | DO9: =Classes_DATA3!AK29 -> 2 | DZ9: Override feat prerequisites
BY11: Initiative | CJ11: =cell_initiative -> 6 | CW11: =Classes_DATA3!BH5 -> 0 | DC11: =Classes_DATA3!BH4 -> 2 | DI11: =Classes_DATA3!BH7 -> 4
DZ12: Show all divine domains
AF13: Class Selection | BY13: BAB | CJ13: =cell_statsDATA_BABshort -> 0 | DO13: =Classes_DATA3!AH29 -> 0
BY15: Hit Points | CJ15: =cell_hp -> 10 | DZ15: Show all oracle mysteries | FI15: Classes Selected | FK15: (Feats) | FL15: (Favored) | FM15: (HP) | FN15: Features Selected | FR15: Features Source
FI17: =table_levels_classesselected | FN17: =table_levels_featuresselected
A19: Character's Feats | AF19: ="LEVEL "&FH19 -> LEVEL 1 | AS19: =IF($FH25=1,"*** LEVEL UP ***","") ->  | FC19: Level Summary | FG19: Level | FH19: 1 | FI19: =FH19 -> 1 | FJ19: =IF(AU22=0,"",AU22) -> Wizard | FK19: =DE22 -> 0 | FL19: =CO22 -> +1 skill point | FM19: =BY22 -> 0
B20: =IF(Feats_DATA2!F5<>"",Feats_DATA2!F5,"") -> Alertness | AG20: Required | BY20: HP | CD20: HP | CO20: Favored Class | DE20: Extra | DK20: Class Prerequisites | FD20: 1 | FE20: =Classes_DATA3!E5 -> Wizard 1 | FG20: Favored Source | FH20: =INDEX(Classes_DATA3!Z$5:Z$24,FH19,1) -> list_classesDATA3_favored1
B21: =IF(Feats_DATA2!F6<>"",Feats_DATA2!F6,"") -> Improved initiative | AG21: Experience | AU21: Class | BT21: HD | BY21: Roll + Mods = HP | CO21: Bonus | DE21: Feats | DK21: =FH24 ->  | FD21: 2 | FE21: =Classes_DATA3!E6 ->  | FG21: HD | FH21: =INDEX(Classes_DATA3!X$5:X$24,FH19,1) -> 6
B22: =IF(Feats_DATA2!F7<>"",Feats_DATA2!F7,"") -> Scribe Scroll | AG22: =INDEX(Classes_DATA3!O$5:O$24,FH19,1) -> 0 | AU22: Wizard | BT22: =IF(AU22="","",FH21) -> 6 | CD22: =IF(AU22=0,"",FH22) -> 10 | CI22: =IF(AU22="","",FH23) -> 10 | CO22: +1 skill point | FD22: 3 | FE22: =Classes_DATA3!E7 ->  | FG22: HP Mods | FH22: =INDEX(Classes_DATA3!AR$5:AR$24,FH19,1) -> 10
B23: =IF(Feats_DATA2!F8<>"",Feats_DATA2!F8,"") ->  | FD23: 4 | FE23: =Classes_DATA3!E8 ->  | FG23: HP Total | FH23: =INDEX(Classes_DATA3!AT$5:AT$24,FH19,1) -> 10
B24: =IF(Feats_DATA2!F9<>"",Feats_DATA2!F9,"") ->  | AG24: Feature Type | BL24: Feature Selection | CQ24: Feature Selection | DV24: Feature Selection | FD24: 5 | FE24: =Classes_DATA3!E9 ->  | FG24: Class Prereqs | FH24: =IF(AU22=0,"",VLOOKUP(AU22,table_classesDATA_classesall,Classes_DATA!BJ$4,0)) -> 
B25: =IF(Feats_DATA2!F10<>"",Feats_DATA2!F10,"") ->  | AG25: =INDEX(list_levelsDATA_features,FN25,1) -> Level 1 bonus feat (any) | BL25: Improved initiative | FD25: 6 | FE25: =Classes_DATA3!E10 ->  | FG25: EXP Met Flag 1=yes | FH25: =INDEX(Classes_DATA3!R$5:R$24,FH19,1) -> 3 | FN25: 1 | FO25: =IF(BL25=0,"",BL25) -> Improved initiative | FP25: =IF(CQ25=0,"",CQ25) ->  | FQ25: =IF(DV25=0,"",DV25) ->  | FR25: =IF(INDEX(Levels_DATA!E$7:E$90,$FN25,1)=0,"",INDEX(Levels_DATA!E$7:E$90,$FN25,1)) -> list_featsDATA_feats | FS25: =IF(INDEX(list_levelsDATA_source2,$FN25,1)=0,"",INDEX(list_levelsDATA_source2,$FN25,1)) ->  | FT25: =IF(INDEX(list_levelsDATA_source3,$FN25,1)=0,"",INDEX(list_levelsDATA_source3,$FN25,1)) -> 
B26: =IF(Feats_DATA2!F11<>"",Feats_DATA2!F11,"") ->  | AG26: Arcane school | BL26: Conjuration | CQ26: Divination | DV26: Necromancy | FD26: 7 | FE26: =Classes_DATA3!E11 ->  | FG26: HP Roll Flag | FH26: =IF(cell_classesDATA2_HPprog=1,1,0) -> 1 | FN26: 2 | FO26: =IF(BL26=0,"",BL26) -> Conjuration | FP26: =IF(CQ26=0,"",CQ26) -> Divination | FQ26: =IF(DV26=0,"",DV26) -> Necromancy | FR26: =INDEX(Levels_DATA!E$7:E$90,$FN26,1) -> list_schoolsDATA_schools | FS26: list_schoolsDATA_wizardprohib | FT26: list_schoolsDATA_wizardprohib
B27: =IF(Feats_DATA2!F12<>"",Feats_DATA2!F12,"") ->  | AG27: Wizard arcane bond | BL27: Familiar | CQ27: Hawk | FD27: 8 | FE27: =Classes_DATA3!E12 ->  | FN27: 3 | FO27: Familiar | FP27: Hawk | FR27: =INDEX(Levels_DATA!E$7:E$90,$FN27,1) -> list_classesDATA2_arcanebonds | FS27: list_familiarsDATA_all
B28: =IF(Feats_DATA2!F13<>"",Feats_DATA2!F13,"") ->  | FD28: 9 | FE28: =Classes_DATA3!E13 ->  | FN28: 4 | FR28: =INDEX(Levels_DATA!E$7:E$90,$FN28,1) -> 
B29: =IF(Feats_DATA2!F14<>"",Feats_DATA2!F14,"") ->  | FD29: 10 | FE29: =Classes_DATA3!E14 ->  | FN29: 5 | FR29: =INDEX(Levels_DATA!E$7:E$90,$FN29,1) -> 
B30: =IF(Feats_DATA2!F15<>"",Feats_DATA2!F15,"") ->  | FD30: 11 | FE30: =Classes_DATA3!E15 ->  | FN30: 6 | FR30: =INDEX(Levels_DATA!E$7:E$90,$FN30,1) -> 
B31: =IF(Feats_DATA2!F16<>"",Feats_DATA2!F16,"") ->  | FD31: 12 | FE31: =Classes_DATA3!E16 ->  | FN31: 7 | FR31: =INDEX(Levels_DATA!E$7:E$90,$FN31,1) -> 
B32: =IF(Feats_DATA2!F17<>"",Feats_DATA2!F17,"") ->  | FD32: 13 | FE32: =Classes_DATA3!E17 ->  | FN32: 8 | FR32: =INDEX(Levels_DATA!E$7:E$90,$FN32,1) -> 
B33: =IF(Feats_DATA2!F18<>"",Feats_DATA2!F18,"") ->  | FD33: 14 | FE33: =Classes_DATA3!E18 -> 
B34: =IF(Feats_DATA2!F19<>"",Feats_DATA2!F19,"") ->  | FD34: 15 | FE34: =Classes_DATA3!E19 -> 
B35: =IF(Feats_DATA2!F20<>"",Feats_DATA2!F20,"") ->  | AF35: ="LEVEL "&FH35 -> LEVEL 2 | AS35: =IF($FH41=1,"*** LEVEL UP ***",IF($FH41=2,"** Experience Requirement Not Met **","")) ->  | FD35: 16 | FE35: =Classes_DATA3!E20 ->  | FG35: Level | FH35: 2 | FI35: =FH35 -> 2 | FJ35: =IF(AU38=0,"",AU38) ->  | FK35: =DE38 -> 0 | FL35: =CO38 -> 0 | FM35: =BY38 -> 0
B36: =IF(Feats_DATA2!F21<>"",Feats_DATA2!F21,"") ->  | AG36: Required | BY36: HP | CD36: HP | CO36: Favored Class | DE36: Extra | DK36: Class Prerequisites | FD36: 17 | FE36: =Classes_DATA3!E21 ->  | FG36: Favored Source | FH36: =INDEX(Classes_DATA3!Z$5:Z$24,FH35,1) -> cell_blank
B37: =IF(Feats_DATA2!F22<>"",Feats_DATA2!F22,"") ->  | AG37: Experience | AU37: Class | BT37: HD | BY37: Roll + Mods = HP | CO37: Bonus | DE37: Feats | DK37: =FH40 ->  | FD37: 18 | FE37: =Classes_DATA3!E22 ->  | FG37: HD | FH37: =INDEX(Classes_DATA3!X$5:X$24,FH35,1) -> 0
B38: =IF(Feats_DATA2!F23<>"",Feats_DATA2!F23,"") ->  | AG38: =INDEX(Classes_DATA3!O$5:O$24,FH35,1) -> 3000 | BT38: =IF(AU38="","",FH37) ->  | CD38: =IF(AU38=0,"",FH38) ->  | CI38: =IF(AU38="","",FH39) ->  | FD38: 19 | FE38: =Classes_DATA3!E23 ->  | FG38: HP Mods | FH38: =INDEX(Classes_DATA3!AR$5:AR$24,FH35,1) -> 0
B39: =IF(Feats_DATA2!F24<>"",Feats_DATA2!F24,"") ->  | FD39: 20 | FE39: =Classes_DATA3!E24 ->  | FG39: HP Total | FH39: =INDEX(Classes_DATA3!AT$5:AT$24,FH35,1) -> 0
B40: =IF(Feats_DATA2!F25<>"",Feats_DATA2!F25,"") ->  | AG40: Feature Type | BL40: Feature Selection | CQ40: Feature Selection | DV40: Feature Selection | FG40: Class Prereqs | FH40: =IF(AU38=0,"",VLOOKUP(AU38,table_classesDATA_classesall,Classes_DATA!BJ$4,0)) -> 
B41: =IF(Feats_DATA2!F26<>"",Feats_DATA2!F26,"") ->  | AG41: =INDEX(list_levelsDATA_features,FN41,1) ->  | FG41: EXP Met Flag 1=yes | FH41: =INDEX(Classes_DATA3!R$5:R$24,FH35,1) -> 0 | FN41: =FN32+1 -> 9 | FO41: =IF(BL41=0,"",BL41) ->  | FP41: =IF(CQ41=0,"",CQ41) ->  | FQ41: =IF(DV41=0,"",DV41) ->  | FR41: =IF(INDEX(Levels_DATA!E$7:E$90,$FN41,1)=0,"",INDEX(Levels_DATA!E$7:E$90,$FN41,1)) ->  | FS41: =IF(INDEX(list_levelsDATA_source2,$FN41,1)=0,"",INDEX(list_levelsDATA_source2,$FN41,1)) ->  | FT41: =IF(INDEX(list_levelsDATA_source3,$FN41,1)=0,"",INDEX(list_levelsDATA_source3,$FN41,1)) -> 
B42: =IF(Feats_DATA2!F27<>"",Feats_DATA2!F27,"") ->  | AG42: =INDEX(list_levelsDATA_features,FN42,1) ->  | FG42: HP Roll Flag | FH42: =IF(cell_classesDATA2_HPprog=1,1,0) -> 1 | FN42: =FN41+1 -> 10 | FO42: =IF(BL42=0,"",BL42) ->  | FP42: =IF(CQ42=0,"",CQ42) ->  | FQ42: =IF(DV42=0,"",DV42) ->  | FR42: =INDEX(Levels_DATA!E$7:E$90,$FN42,1) ->  | FS42: =IF(INDEX(list_levelsDATA_source2,$FN42,1)=0,"",INDEX(list_levelsDATA_source2,$FN42,1)) ->  | FT42: =IF(INDEX(list_levelsDATA_source3,$FN42,1)=0,"",INDEX(list_levelsDATA_source3,$FN42,1)) -> 
B43: =IF(Feats_DATA2!F28<>"",Feats_DATA2!F28,"") ->  | AG43: =INDEX(list_levelsDATA_features,FN43,1) ->  | FN43: =FN42+1 -> 11 | FO43: =IF(BL43=0,"",BL43) ->  | FP43: =IF(CQ43=0,"",CQ43) ->  | FQ43: =IF(DV43=0,"",DV43) ->  | FR43: =INDEX(Levels_DATA!E$7:E$90,$FN43,1) ->  | FS43: =IF(INDEX(list_levelsDATA_source2,$FN43,1)=0,"",INDEX(list_levelsDATA_source2,$FN43,1)) ->  | FT43: =IF(INDEX(list_levelsDATA_source3,$FN43,1)=0,"",INDEX(list_levelsDATA_source3,$FN43,1)) -> 
B44: =IF(Feats_DATA2!F29<>"",Feats_DATA2!F29,"") ->  | AG44: =INDEX(list_levelsDATA_features,FN44,1) ->  | FN44: =FN43+1 -> 12 | FO44: =IF(BL44=0,"",BL44) ->  | FP44: =IF(CQ44=0,"",CQ44) ->  | FQ44: =IF(DV44=0,"",DV44) ->  | FR44: =INDEX(Levels_DATA!E$7:E$90,$FN44,1) ->  | FS44: =IF(INDEX(list_levelsDATA_source2,$FN44,1)=0,"",INDEX(list_levelsDATA_source2,$FN44,1)) ->  | FT44: =IF(INDEX(list_levelsDATA_source3,$FN44,1)=0,"",INDEX(list_levelsDATA_source3,$FN44,1)) -> 
B45: =IF(Feats_DATA2!F30<>"",Feats_DATA2!F30,"") -> 
B46: =IF(Feats_DATA2!F31<>"",Feats_DATA2!F31,"") -> 
B47: =IF(Feats_DATA2!F32<>"",Feats_DATA2!F32,"") ->  | AF47: ="LEVEL "&FH47 -> LEVEL 3 | AS47: =IF($FH53=1,"*** LEVEL UP ***",IF($FH53=2,"** Experience Requirement Not Met **","")) ->  | FG47: Level | FH47: =FH35+1 -> 3 | FI47: =FH47 -> 3 | FJ47: =IF(AU50=0,"",AU50) ->  | FK47: =DE50 -> 0 | FL47: =CO50 -> 0 | FM47: =BY50 -> 0
B48: =IF(Feats_DATA2!F33<>"",Feats_DATA2!F33,"") ->  | AG48: Required | BY48: HP | CD48: HP | CO48: Favored Class | DE48: Extra | DK48: Class Prerequisites | FG48: Favored Source | FH48: =INDEX(Classes_DATA3!Z$5:Z$24,FH47,1) -> cell_blank
B49: =IF(Feats_DATA2!F34<>"",Feats_DATA2!F34,"") ->  | AG49: Experience | AU49: Class | BT49: HD | BY49: Roll + Mods = HP | CO49: Bonus | DE49: Feats | DK49: =FH52 ->  | FG49: HD | FH49: =INDEX(Classes_DATA3!X$5:X$24,FH47,1) -> 0
AG50: =INDEX(Classes_DATA3!O$5:O$24,FH47,1) -> 7500 | BT50: =IF(AU50="","",FH49) ->  | CD50: =IF(AU50=0,"",FH50) ->  | CI50: =IF(AU50="","",FH51) ->  | FG50: HP Mods | FH50: =INDEX(Classes_DATA3!AR$5:AR$24,FH47,1) -> 0
FG51: HP Total | FH51: =INDEX(Classes_DATA3!AT$5:AT$24,FH47,1) -> 0
AG52: Feature Type | BL52: Feature Selection | CQ52: Feature Selection | DV52: Feature Selection | FG52: Class Prereqs | FH52: =IF(AU50=0,"",VLOOKUP(AU50,table_classesDATA_classesall,Classes_DATA!BJ$4,0)) -> 
AG53: =INDEX(list_levelsDATA_features,FN53,1) ->  | FG53: EXP Met Flag 1=yes | FH53: =INDEX(Classes_DATA3!R$5:R$24,FH47,1) -> 0 | FN53: =FN44+1 -> 13 | FO53: =IF(BL53=0,"",BL53) ->  | FP53: =IF(CQ53=0,"",CQ53) ->  | FQ53: =IF(DV53=0,"",DV53) ->  | FR53: =IF(INDEX(Levels_DATA!E$7:E$90,$FN53,1)=0,"",INDEX(Levels_DATA!E$7:E$90,$FN53,1)) ->  | FS53: =IF(INDEX(list_levelsDATA_source2,$FN53,1)=0,"",INDEX(list_levelsDATA_source2,$FN53,1)) ->  | FT53: =IF(INDEX(list_levelsDATA_source3,$FN53,1)=0,"",INDEX(list_levelsDATA_source3,$FN53,1)) -> 
AG54: =INDEX(list_levelsDATA_features,FN54,1) ->  | FG54: HP Roll Flag | FH54: =IF(cell_classesDATA2_HPprog=1,1,0) -> 1 | FN54: =FN53+1 -> 14 | FO54: =IF(BL54=0,"",BL54) ->  | FP54: =IF(CQ54=0,"",CQ54) ->  | FQ54: =IF(DV54=0,"",DV54) ->  | FR54: =INDEX(Levels_DATA!E$7:E$90,$FN54,1) ->  | FS54: =IF(INDEX(list_levelsDATA_source2,$FN54,1)=0,"",INDEX(list_levelsDATA_source2,$FN54,1)) ->  | FT54: =IF(INDEX(list_levelsDATA_source3,$FN54,1)=0,"",INDEX(list_levelsDATA_source3,$FN54,1)) -> 
AG55: =INDEX(list_levelsDATA_features,FN55,1) ->  | FN55: =FN54+1 -> 15 | FO55: =IF(BL55=0,"",BL55) ->  | FP55: =IF(CQ55=0,"",CQ55) ->  | FQ55: =IF(DV55=0,"",DV55) ->  | FR55: =INDEX(Levels_DATA!E$7:E$90,$FN55,1) ->  | FS55: =IF(INDEX(list_levelsDATA_source2,$FN55,1)=0,"",INDEX(list_levelsDATA_source2,$FN55,1)) ->  | FT55: =IF(INDEX(list_levelsDATA_source3,$FN55,1)=0,"",INDEX(list_levelsDATA_source3,$FN55,1)) -> 
AG56: =INDEX(list_levelsDATA_features,FN56,1) ->  | FN56: =FN55+1 -> 16 | FO56: =IF(BL56=0,"",BL56) ->  | FP56: =IF(CQ56=0,"",CQ56) ->  | FQ56: =IF(DV56=0,"",DV56) ->  | FR56: =INDEX(Levels_DATA!E$7:E$90,$FN56,1) ->  | FS56: =IF(INDEX(list_levelsDATA_source2,$FN56,1)=0,"",INDEX(list_levelsDATA_source2,$FN56,1)) ->  | FT56: =IF(INDEX(list_levelsDATA_source3,$FN56,1)=0,"",INDEX(list_levelsDATA_source3,$FN56,1)) -> 
AF59: ="LEVEL "&FH59 -> LEVEL 4 | AS59: =IF($FH65=1,"*** LEVEL UP ***",IF($FH65=2,"** Experience Requirement Not Met **","")) ->  | FG59: Level | FH59: =FH47+1 -> 4 | FI59: =FH59 -> 4 | FJ59: =IF(AU62=0,"",AU62) ->  | FK59: =DE62 -> 0 | FL59: =CO62 -> 0 | FM59: =BY62 -> 0
AG60: Required | BY60: HP | CD60: HP | CO60: Favored Class | DE60: Extra | DK60: Class Prerequisites | FG60: Favored Source | FH60: =INDEX(Classes_DATA3!Z$5:Z$24,FH59,1) -> cell_blank
AG61: Experience | AU61: Class | BT61: HD | BY61: Roll + Mods = HP | CO61: Bonus | DE61: Feats | DK61: =FH64 ->  | FG61: HD | FH61: =INDEX(Classes_DATA3!X$5:X$24,FH59,1) -> 0
AG62: =INDEX(Classes_DATA3!O$5:O$24,FH59,1) -> 14000 | BT62: =IF(AU62="","",FH61) ->  | CD62: =IF(AU62=0,"",FH62) ->  | CI62: =IF(AU62="","",FH63) ->  | FG62: HP Mods | FH62: =INDEX(Classes_DATA3!AR$5:AR$24,FH59,1) -> 0
FG63: HP Total | FH63: =INDEX(Classes_DATA3!AT$5:AT$24,FH59,1) -> 0
AG64: Feature Type | BL64: Feature Selection | CQ64: Feature Selection | DV64: Feature Selection | FG64: Class Prereqs | FH64: =IF(AU62=0,"",VLOOKUP(AU62,table_classesDATA_classesall,Classes_DATA!BJ$4,0)) -> 
AG65: =INDEX(list_levelsDATA_features,FN65,1) ->  | FG65: EXP Met Flag 1=yes | FH65: =INDEX(Classes_DATA3!R$5:R$24,FH59,1) -> 0 | FN65: =FN56+1 -> 17 | FO65: =IF(BL65=0,"",BL65) ->  | FP65: =IF(CQ65=0,"",CQ65) ->  | FQ65: =IF(DV65=0,"",DV65) ->  | FR65: =IF(INDEX(Levels_DATA!E$7:E$90,$FN65,1)=0,"",INDEX(Levels_DATA!E$7:E$90,$FN65,1)) ->  | FS65: =IF(INDEX(list_levelsDATA_source2,$FN65,1)=0,"",INDEX(list_levelsDATA_source2,$FN65,1)) ->  | FT65: =IF(INDEX(list_levelsDATA_source3,$FN65,1)=0,"",INDEX(list_levelsDATA_source3,$FN65,1)) -> 
AG66: =INDEX(list_levelsDATA_features,FN66,1) ->  | FG66: HP Roll Flag | FH66: =IF(cell_classesDATA2_HPprog=1,1,0) -> 1 | FN66: =FN65+1 -> 18 | FO66: =IF(BL66=0,"",BL66) ->  | FP66: =IF(CQ66=0,"",CQ66) ->  | FQ66: =IF(DV66=0,"",DV66) ->  | FR66: =INDEX(Levels_DATA!E$7:E$90,$FN66,1) ->  | FS66: =IF(INDEX(list_levelsDATA_source2,$FN66,1)=0,"",INDEX(list_levelsDATA_source2,$FN66,1)) ->  | FT66: =IF(INDEX(list_levelsDATA_source3,$FN66,1)=0,"",INDEX(list_levelsDATA_source3,$FN66,1)) -> 
AG67: =INDEX(list_levelsDATA_features,FN67,1) ->  | FN67: =FN66+1 -> 19 | FO67: =IF(BL67=0,"",BL67) ->  | FP67: =IF(CQ67=0,"",CQ67) ->  | FQ67: =IF(DV67=0,"",DV67) ->  | FR67: =INDEX(Levels_DATA!E$7:E$90,$FN67,1) ->  | FS67: =IF(INDEX(list_levelsDATA_source2,$FN67,1)=0,"",INDEX(list_levelsDATA_source2,$FN67,1)) ->  | FT67: =IF(INDEX(list_levelsDATA_source3,$FN67,1)=0,"",INDEX(list_levelsDATA_source3,$FN67,1)) -> 
AG68: =INDEX(list_levelsDATA_features,FN68,1) ->  | FN68: =FN67+1 -> 20 | FO68: =IF(BL68=0,"",BL68) ->  | FP68: =IF(CQ68=0,"",CQ68) ->  | FQ68: =IF(DV68=0,"",DV68) ->  | FR68: =INDEX(Levels_DATA!E$7:E$90,$FN68,1) ->  | FS68: =IF(INDEX(list_levelsDATA_source2,$FN68,1)=0,"",INDEX(list_levelsDATA_source2,$FN68,1)) ->  | FT68: =IF(INDEX(list_levelsDATA_source3,$FN68,1)=0,"",INDEX(list_levelsDATA_source3,$FN68,1)) -> 
AF71: ="LEVEL "&FH71 -> LEVEL 5 | AS71: =IF($FH77=1,"*** LEVEL UP ***",IF($FH77=2,"** Experience Requirement Not Met **","")) ->  | FG71: Level | FH71: =FH59+1 -> 5 | FI71: =FH71 -> 5 | FJ71: =IF(AU74=0,"",AU74) ->  | FK71: =DE74 -> 0 | FL71: =CO74 -> 0 | FM71: =BY74 -> 0
AG72: Required | BY72: HP | CD72: HP | CO72: Favored Class | DE72: Extra | DK72: Class Prerequisites | FG72: Favored Source | FH72: =INDEX(Classes_DATA3!Z$5:Z$24,FH71,1) -> cell_blank
AG73: Experience | AU73: Class | BT73: HD | BY73: Roll + Mods = HP | CO73: Bonus | DE73: Feats | DK73: =FH76 ->  | FG73: HD | FH73: =INDEX(Classes_DATA3!X$5:X$24,FH71,1) -> 0
AG74: =INDEX(Classes_DATA3!O$5:O$24,FH71,1) -> 23000 | BT74: =IF(AU74="","",FH73) ->  | CD74: =IF(AU74=0,"",FH74) ->  | CI74: =IF(AU74="","",FH75) ->  | FG74: HP Mods | FH74: =INDEX(Classes_DATA3!AR$5:AR$24,FH71,1) -> 0
FG75: HP Total | FH75: =INDEX(Classes_DATA3!AT$5:AT$24,FH71,1) -> 0
AG76: Feature Type | BL76: Feature Selection | CQ76: Feature Selection | DV76: Feature Selection | FG76: Class Prereqs | FH76: =IF(AU74=0,"",VLOOKUP(AU74,table_classesDATA_classesall,Classes_DATA!BJ$4,0)) -> 
AG77: =INDEX(list_levelsDATA_features,FN77,1) ->  | FG77: EXP Met Flag 1=yes | FH77: =INDEX(Classes_DATA3!R$5:R$24,FH71,1) -> 0 | FN77: =FN68+1 -> 21 | FO77: =IF(BL77=0,"",BL77) ->  | FP77: =IF(CQ77=0,"",CQ77) ->  | FQ77: =IF(DV77=0,"",DV77) ->  | FR77: =IF(INDEX(Levels_DATA!E$7:E$90,$FN77,1)=0,"",INDEX(Levels_DATA!E$7:E$90,$FN77,1)) ->  | FS77: =IF(INDEX(list_levelsDATA_source2,$FN77,1)=0,"",INDEX(list_levelsDATA_source2,$FN77,1)) ->  | FT77: =IF(INDEX(list_levelsDATA_source3,$FN77,1)=0,"",INDEX(list_levelsDATA_source3,$FN77,1)) -> 
AG78: =INDEX(list_levelsDATA_features,FN78,1) ->  | FG78: HP Roll Flag | FH78: =IF(cell_classesDATA2_HPprog=1,1,0) -> 1 | FN78: =FN77+1 -> 22 | FO78: =IF(BL78=0,"",BL78) ->  | FP78: =IF(CQ78=0,"",CQ78) ->  | FQ78: =IF(DV78=0,"",DV78) ->  | FR78: =INDEX(Levels_DATA!E$7:E$90,$FN78,1) ->  | FS78: =IF(INDEX(list_levelsDATA_source2,$FN78,1)=0,"",INDEX(list_levelsDATA_source2,$FN78,1)) ->  | FT78: =IF(INDEX(list_levelsDATA_source3,$FN78,1)=0,"",INDEX(list_levelsDATA_source3,$FN78,1)) -> 
AG79: =INDEX(list_levelsDATA_features,FN79,1) ->  | FN79: =FN78+1 -> 23 | FO79: =IF(BL79=0,"",BL79) ->  | FP79: =IF(CQ79=0,"",CQ79) ->  | FQ79: =IF(DV79=0,"",DV79) ->  | FR79: =INDEX(Levels_DATA!E$7:E$90,$FN79,1) ->  | FS79: =IF(INDEX(list_levelsDATA_source2,$FN79,1)=0,"",INDEX(list_levelsDATA_source2,$FN79,1)) ->  | FT79: =IF(INDEX(list_levelsDATA_source3,$FN79,1)=0,"",INDEX(list_levelsDATA_source3,$FN79,1)) -> 
AG80: =INDEX(list_levelsDATA_features,FN80,1) ->  | FN80: =FN79+1 -> 24 | FO80: =IF(BL80=0,"",BL80) ->  | FP80: =IF(CQ80=0,"",CQ80) ->  | FQ80: =IF(DV80=0,"",DV80) ->  | FR80: =INDEX(Levels_DATA!E$7:E$90,$FN80,1) ->  | FS80: =IF(INDEX(list_levelsDATA_source2,$FN80,1)=0,"",INDEX(list_levelsDATA_source2,$FN80,1)) ->  | FT80: =IF(INDEX(list_levelsDATA_source3,$FN80,1)=0,"",INDEX(list_levelsDATA_source3,$FN80,1)) -> 
AF83: ="LEVEL "&FH83 -> LEVEL 6 | AS83: =IF($FH89=1,"*** LEVEL UP ***",IF($FH89=2,"** Experience Requirement Not Met **","")) ->  | FG83: Level | FH83: =FH71+1 -> 6 | FI83: =FH83 -> 6 | FJ83: =IF(AU86=0,"",AU86) ->  | FK83: =DE86 -> 0 | FL83: =CO86 -> 0 | FM83: =BY86 -> 0
AG84: Required | BY84: HP | CD84: HP | CO84: Favored Class | DE84: Extra | DK84: Class Prerequisites | FG84: Favored Source | FH84: =INDEX(Classes_DATA3!Z$5:Z$24,FH83,1) -> cell_blank
AG85: Experience | AU85: Class | BT85: HD | BY85: Roll + Mods = HP | CO85: Bonus | DE85: Feats | DK85: =FH88 ->  | FG85: HD | FH85: =INDEX(Classes_DATA3!X$5:X$24,FH83,1) -> 0
AG86: =INDEX(Classes_DATA3!O$5:O$24,FH83,1) -> 35000 | BT86: =IF(AU86="","",FH85) ->  | CD86: =IF(AU86=0,"",FH86) ->  | CI86: =IF(AU86="","",FH87) ->  | FG86: HP Mods | FH86: =INDEX(Classes_DATA3!AR$5:AR$24,FH83,1) -> 0
FG87: HP Total | FH87: =INDEX(Classes_DATA3!AT$5:AT$24,FH83,1) -> 0
AG88: Feature Type | BL88: Feature Selection | CQ88: Feature Selection | DV88: Feature Selection | FG88: Class Prereqs | FH88: =IF(AU86=0,"",VLOOKUP(AU86,table_classesDATA_classesall,Classes_DATA!BJ$4,0)) -> 
AG89: =INDEX(list_levelsDATA_features,FN89,1) ->  | FG89: EXP Met Flag 1=yes | FH89: =INDEX(Classes_DATA3!R$5:R$24,FH83,1) -> 0 | FN89: =FN80+1 -> 25 | FO89: =IF(BL89=0,"",BL89) ->  | FP89: =IF(CQ89=0,"",CQ89) ->  | FQ89: =IF(DV89=0,"",DV89) ->  | FR89: =IF(INDEX(Levels_DATA!E$7:E$90,$FN89,1)=0,"",INDEX(Levels_DATA!E$7:E$90,$FN89,1)) ->  | FS89: =IF(INDEX(list_levelsDATA_source2,$FN89,1)=0,"",INDEX(list_levelsDATA_source2,$FN89,1)) ->  | FT89: =IF(INDEX(list_levelsDATA_source3,$FN89,1)=0,"",INDEX(list_levelsDATA_source3,$FN89,1)) -> 
AG90: =INDEX(list_levelsDATA_features,FN90,1) ->  | FG90: HP Roll Flag | FH90: =IF(cell_classesDATA2_HPprog=1,1,0) -> 1 | FN90: =FN89+1 -> 26 | FO90: =IF(BL90=0,"",BL90) ->  | FP90: =IF(CQ90=0,"",CQ90) ->  | FQ90: =IF(DV90=0,"",DV90) ->  | FR90: =INDEX(Levels_DATA!E$7:E$90,$FN90,1) ->  | FS90: =IF(INDEX(list_levelsDATA_source2,$FN90,1)=0,"",INDEX(list_levelsDATA_source2,$FN90,1)) ->  | FT90: =IF(INDEX(list_levelsDATA_source3,$FN90,1)=0,"",INDEX(list_levelsDATA_source3,$FN90,1)) -> 
AG91: =INDEX(list_levelsDATA_features,FN91,1) ->  | FN91: =FN90+1 -> 27 | FO91: =IF(BL91=0,"",BL91) ->  | FP91: =IF(CQ91=0,"",CQ91) ->  | FQ91: =IF(DV91=0,"",DV91) ->  | FR91: =INDEX(Levels_DATA!E$7:E$90,$FN91,1) ->  | FS91: =IF(INDEX(list_levelsDATA_source2,$FN91,1)=0,"",INDEX(list_levelsDATA_source2,$FN91,1)) ->  | FT91: =IF(INDEX(list_levelsDATA_source3,$FN91,1)=0,"",INDEX(list_levelsDATA_source3,$FN91,1)) -> 
AG92: =INDEX(list_levelsDATA_features,FN92,1) ->  | FN92: =FN91+1 -> 28 | FO92: =IF(BL92=0,"",BL92) ->  | FP92: =IF(CQ92=0,"",CQ92) ->  | FQ92: =IF(DV92=0,"",DV92) ->  | FR92: =INDEX(Levels_DATA!E$7:E$90,$FN92,1) ->  | FS92: =IF(INDEX(list_levelsDATA_source2,$FN92,1)=0,"",INDEX(list_levelsDATA_source2,$FN92,1)) ->  | FT92: =IF(INDEX(list_levelsDATA_source3,$FN92,1)=0,"",INDEX(list_levelsDATA_source3,$FN92,1)) -> 
AF95: ="LEVEL "&FH95 -> LEVEL 7 | AS95: =IF($FH101=1,"*** LEVEL UP ***",IF($FH101=2,"** Experience Requirement Not Met **","")) ->  | FG95: Level | FH95: =FH83+1 -> 7 | FI95: =FH95 -> 7 | FJ95: =IF(AU98=0,"",AU98) ->  | FK95: =DE98 -> 0 | FL95: =CO98 -> 0 | FM95: =BY98 -> 0
AG96: Required | BY96: HP | CD96: HP | CO96: Favored Class | DE96: Extra | DK96: Class Prerequisites | FG96: Favored Source | FH96: =INDEX(Classes_DATA3!Z$5:Z$24,FH95,1) -> cell_blank
AG97: Experience | AU97: Class | BT97: HD | BY97: Roll + Mods = HP | CO97: Bonus | DE97: Feats | DK97: =FH100 ->  | FG97: HD | FH97: =INDEX(Classes_DATA3!X$5:X$24,FH95,1) -> 0
AG98: =INDEX(Classes_DATA3!O$5:O$24,FH95,1) -> 53000 | BT98: =IF(AU98="","",FH97) ->  | CD98: =IF(AU98=0,"",FH98) ->  | CI98: =IF(AU98="","",FH99) ->  | FG98: HP Mods | FH98: =INDEX(Classes_DATA3!AR$5:AR$24,FH95,1) -> 0
FG99: HP Total | FH99: =INDEX(Classes_DATA3!AT$5:AT$24,FH95,1) -> 0
AG100: Feature Type | BL100: Feature Selection | CQ100: Feature Selection | DV100: Feature Selection | FG100: Class Prereqs | FH100: =IF(AU98=0,"",VLOOKUP(AU98,table_classesDATA_classesall,Classes_DATA!BJ$4,0)) -> 
AG101: =INDEX(list_levelsDATA_features,FN101,1) ->  | FG101: EXP Met Flag 1=yes | FH101: =INDEX(Classes_DATA3!R$5:R$24,FH95,1) -> 0 | FN101: =FN92+1 -> 29 | FO101: =IF(BL101=0,"",BL101) ->  | FP101: =IF(CQ101=0,"",CQ101) ->  | FQ101: =IF(DV101=0,"",DV101) ->  | FR101: =IF(INDEX(Levels_DATA!E$7:E$90,$FN101,1)=0,"",INDEX(Levels_DATA!E$7:E$90,$FN101,1)) ->  | FS101: =IF(INDEX(list_levelsDATA_source2,$FN101,1)=0,"",INDEX(list_levelsDATA_source2,$FN101,1)) ->  | FT101: =IF(INDEX(list_levelsDATA_source3,$FN101,1)=0,"",INDEX(list_levelsDATA_source3,$FN101,1)) -> 
AG102: =INDEX(list_levelsDATA_features,FN102,1) ->  | FG102: HP Roll Flag | FH102: =IF(cell_classesDATA2_HPprog=1,1,0) -> 1 | FN102: =FN101+1 -> 30 | FO102: =IF(BL102=0,"",BL102) ->  | FP102: =IF(CQ102=0,"",CQ102) ->  | FQ102: =IF(DV102=0,"",DV102) ->  | FR102: =INDEX(Levels_DATA!E$7:E$90,$FN102,1) ->  | FS102: =IF(INDEX(list_levelsDATA_source2,$FN102,1)=0,"",INDEX(list_levelsDATA_source2,$FN102,1)) ->  | FT102: =IF(INDEX(list_levelsDATA_source3,$FN102,1)=0,"",INDEX(list_levelsDATA_source3,$FN102,1)) -> 
AG103: =INDEX(list_levelsDATA_features,FN103,1) ->  | FN103: =FN102+1 -> 31 | FO103: =IF(BL103=0,"",BL103) ->  | FP103: =IF(CQ103=0,"",CQ103) ->  | FQ103: =IF(DV103=0,"",DV103) ->  | FR103: =INDEX(Levels_DATA!E$7:E$90,$FN103,1) ->  | FS103: =IF(INDEX(list_levelsDATA_source2,$FN103,1)=0,"",INDEX(list_levelsDATA_source2,$FN103,1)) ->  | FT103: =IF(INDEX(list_levelsDATA_source3,$FN103,1)=0,"",INDEX(list_levelsDATA_source3,$FN103,1)) -> 
AG104: =INDEX(list_levelsDATA_features,FN104,1) ->  | FN104: =FN103+1 -> 32 | FO104: =IF(BL104=0,"",BL104) ->  | FP104: =IF(CQ104=0,"",CQ104) ->  | FQ104: =IF(DV104=0,"",DV104) ->  | FR104: =INDEX(Levels_DATA!E$7:E$90,$FN104,1) ->  | FS104: =IF(INDEX(list_levelsDATA_source2,$FN104,1)=0,"",INDEX(list_levelsDATA_source2,$FN104,1)) ->  | FT104: =IF(INDEX(list_levelsDATA_source3,$FN104,1)=0,"",INDEX(list_levelsDATA_source3,$FN104,1)) -> 
AF107: ="LEVEL "&FH107 -> LEVEL 8 | AS107: =IF($FH113=1,"*** LEVEL UP ***",IF($FH113=2,"** Experience Requirement Not Met **","")) ->  | FG107: Level | FH107: =FH95+1 -> 8 | FI107: =FH107 -> 8 | FJ107: =IF(AU110=0,"",AU110) ->  | FK107: =DE110 -> 0 | FL107: =CO110 -> 0 | FM107: =BY110 -> 0
AG108: Required | BY108: HP | CD108: HP | CO108: Favored Class | DE108: Extra | DK108: Class Prerequisites | FG108: Favored Source | FH108: =INDEX(Classes_DATA3!Z$5:Z$24,FH107,1) -> cell_blank
AG109: Experience | AU109: Class | BT109: HD | BY109: Roll + Mods = HP | CO109: Bonus | DE109: Feats | DK109: =FH112 ->  | FG109: HD | FH109: =INDEX(Classes_DATA3!X$5:X$24,FH107,1) -> 0
AG110: =INDEX(Classes_DATA3!O$5:O$24,FH107,1) -> 77000 | BT110: =IF(AU110="","",FH109) ->  | CD110: =IF(AU110=0,"",FH110) ->  | CI110: =IF(AU110="","",FH111) ->  | FG110: HP Mods | FH110: =INDEX(Classes_DATA3!AR$5:AR$24,FH107,1) -> 0
FG111: HP Total | FH111: =INDEX(Classes_DATA3!AT$5:AT$24,FH107,1) -> 0
AG112: Feature Type | BL112: Feature Selection | CQ112: Feature Selection | DV112: Feature Selection | FG112: Class Prereqs | FH112: =IF(AU110=0,"",VLOOKUP(AU110,table_classesDATA_classesall,Classes_DATA!BJ$4,0)) -> 
AG113: =INDEX(list_levelsDATA_features,FN113,1) ->  | FG113: EXP Met Flag 1=yes | FH113: =INDEX(Classes_DATA3!R$5:R$24,FH107,1) -> 0 | FN113: =FN104+1 -> 33 | FO113: =IF(BL113=0,"",BL113) ->  | FP113: =IF(CQ113=0,"",CQ113) ->  | FQ113: =IF(DV113=0,"",DV113) ->  | FR113: =IF(INDEX(Levels_DATA!E$7:E$90,$FN113,1)=0,"",INDEX(Levels_DATA!E$7:E$90,$FN113,1)) ->  | FS113: =IF(INDEX(list_levelsDATA_source2,$FN113,1)=0,"",INDEX(list_levelsDATA_source2,$FN113,1)) ->  | FT113: =IF(INDEX(list_levelsDATA_source3,$FN113,1)=0,"",INDEX(list_levelsDATA_source3,$FN113,1)) -> 
AG114: =INDEX(list_levelsDATA_features,FN114,1) ->  | FG114: HP Roll Flag | FH114: =IF(cell_classesDATA2_HPprog=1,1,0) -> 1 | FN114: =FN113+1 -> 34 | FO114: =IF(BL114=0,"",BL114) ->  | FP114: =IF(CQ114=0,"",CQ114) ->  | FQ114: =IF(DV114=0,"",DV114) ->  | FR114: =INDEX(Levels_DATA!E$7:E$90,$FN114,1) ->  | FS114: =IF(INDEX(list_levelsDATA_source2,$FN114,1)=0,"",INDEX(list_levelsDATA_source2,$FN114,1)) ->  | FT114: =IF(INDEX(list_levelsDATA_source3,$FN114,1)=0,"",INDEX(list_levelsDATA_source3,$FN114,1)) -> 
AG115: =INDEX(list_levelsDATA_features,FN115,1) ->  | FN115: =FN114+1 -> 35 | FO115: =IF(BL115=0,"",BL115) ->  | FP115: =IF(CQ115=0,"",CQ115) ->  | FQ115: =IF(DV115=0,"",DV115) ->  | FR115: =INDEX(Levels_DATA!E$7:E$90,$FN115,1) ->  | FS115: =IF(INDEX(list_levelsDATA_source2,$FN115,1)=0,"",INDEX(list_levelsDATA_source2,$FN115,1)) ->  | FT115: =IF(INDEX(list_levelsDATA_source3,$FN115,1)=0,"",INDEX(list_levelsDATA_source3,$FN115,1)) -> 
AG116: =INDEX(list_levelsDATA_features,FN116,1) ->  | FN116: =FN115+1 -> 36 | FO116: =IF(BL116=0,"",BL116) ->  | FP116: =IF(CQ116=0,"",CQ116) ->  | FQ116: =IF(DV116=0,"",DV116) ->  | FR116: =INDEX(Levels_DATA!E$7:E$90,$FN116,1) ->  | FS116: =IF(INDEX(list_levelsDATA_source2,$FN116,1)=0,"",INDEX(list_levelsDATA_source2,$FN116,1)) ->  | FT116: =IF(INDEX(list_levelsDATA_source3,$FN116,1)=0,"",INDEX(list_levelsDATA_source3,$FN116,1)) -> 
AF119: ="LEVEL "&FH119 -> LEVEL 9 | AS119: =IF($FH125=1,"*** LEVEL UP ***",IF($FH125=2,"** Experience Requirement Not Met **","")) ->  | FG119: Level | FH119: =FH107+1 -> 9 | FI119: =FH119 -> 9 | FJ119: =IF(AU122=0,"",AU122) ->  | FK119: =DE122 -> 0 | FL119: =CO122 -> 0 | FM119: =BY122 -> 0
AG120: Required | BY120: HP | CD120: HP | CO120: Favored Class | DE120: Extra | DK120: Class Prerequisites | FG120: Favored Source | FH120: =INDEX(Classes_DATA3!Z$5:Z$24,FH119,1) -> cell_blank
AG121: Experience | AU121: Class | BT121: HD | BY121: Roll + Mods = HP | CO121: Bonus | DE121: Feats | DK121: =FH124 ->  | FG121: HD | FH121: =INDEX(Classes_DATA3!X$5:X$24,FH119,1) -> 0
AG122: =INDEX(Classes_DATA3!O$5:O$24,FH119,1) -> 115000 | BT122: =IF(AU122="","",FH121) ->  | CD122: =IF(AU122=0,"",FH122) ->  | CI122: =IF(AU122="","",FH123) ->  | FG122: HP Mods | FH122: =INDEX(Classes_DATA3!AR$5:AR$24,FH119,1) -> 0
FG123: HP Total | FH123: =INDEX(Classes_DATA3!AT$5:AT$24,FH119,1) -> 0
AG124: Feature Type | BL124: Feature Selection | CQ124: Feature Selection | DV124: Feature Selection | FG124: Class Prereqs | FH124: =IF(AU122=0,"",VLOOKUP(AU122,table_classesDATA_classesall,Classes_DATA!BJ$4,0)) -> 
AG125: =INDEX(list_levelsDATA_features,FN125,1) ->  | FG125: EXP Met Flag 1=yes | FH125: =INDEX(Classes_DATA3!R$5:R$24,FH119,1) -> 0 | FN125: =FN116+1 -> 37 | FO125: =IF(BL125=0,"",BL125) ->  | FP125: =IF(CQ125=0,"",CQ125) ->  | FQ125: =IF(DV125=0,"",DV125) ->  | FR125: =IF(INDEX(Levels_DATA!E$7:E$90,$FN125,1)=0,"",INDEX(Levels_DATA!E$7:E$90,$FN125,1)) ->  | FS125: =IF(INDEX(list_levelsDATA_source2,$FN125,1)=0,"",INDEX(list_levelsDATA_source2,$FN125,1)) ->  | FT125: =IF(INDEX(list_levelsDATA_source3,$FN125,1)=0,"",INDEX(list_levelsDATA_source3,$FN125,1)) -> 
AG126: =INDEX(list_levelsDATA_features,FN126,1) ->  | FG126: HP Roll Flag | FH126: =IF(cell_classesDATA2_HPprog=1,1,0) -> 1 | FN126: =FN125+1 -> 38 | FO126: =IF(BL126=0,"",BL126) ->  | FP126: =IF(CQ126=0,"",CQ126) ->  | FQ126: =IF(DV126=0,"",DV126) ->  | FR126: =INDEX(Levels_DATA!E$7:E$90,$FN126,1) ->  | FS126: =IF(INDEX(list_levelsDATA_source2,$FN126,1)=0,"",INDEX(list_levelsDATA_source2,$FN126,1)) ->  | FT126: =IF(INDEX(list_levelsDATA_source3,$FN126,1)=0,"",INDEX(list_levelsDATA_source3,$FN126,1)) -> 
AG127: =INDEX(list_levelsDATA_features,FN127,1) ->  | FN127: =FN126+1 -> 39 | FO127: =IF(BL127=0,"",BL127) ->  | FP127: =IF(CQ127=0,"",CQ127) ->  | FQ127: =IF(DV127=0,"",DV127) ->  | FR127: =INDEX(Levels_DATA!E$7:E$90,$FN127,1) ->  | FS127: =IF(INDEX(list_levelsDATA_source2,$FN127,1)=0,"",INDEX(list_levelsDATA_source2,$FN127,1)) ->  | FT127: =IF(INDEX(list_levelsDATA_source3,$FN127,1)=0,"",INDEX(list_levelsDATA_source3,$FN127,1)) -> 
AG128: =INDEX(list_levelsDATA_features,FN128,1) ->  | FN128: =FN127+1 -> 40 | FO128: =IF(BL128=0,"",BL128) ->  | FP128: =IF(CQ128=0,"",CQ128) ->  | FQ128: =IF(DV128=0,"",DV128) ->  | FR128: =INDEX(Levels_DATA!E$7:E$90,$FN128,1) ->  | FS128: =IF(INDEX(list_levelsDATA_source2,$FN128,1)=0,"",INDEX(list_levelsDATA_source2,$FN128,1)) ->  | FT128: =IF(INDEX(list_levelsDATA_source3,$FN128,1)=0,"",INDEX(list_levelsDATA_source3,$FN128,1)) -> 
AF131: ="LEVEL "&FH131 -> LEVEL 10 | AS131: =IF($FH137=1,"*** LEVEL UP ***",IF($FH137=2,"** Experience Requirement Not Met **","")) ->  | FG131: Level | FH131: =FH119+1 -> 10 | FI131: =FH131 -> 10 | FJ131: =IF(AU134=0,"",AU134) ->  | FK131: =DE134 -> 0 | FL131: =CO134 -> 0 | FM131: =BY134 -> 0
AG132: Required | BY132: HP | CD132: HP | CO132: Favored Class | DE132: Extra | DK132: Class Prerequisites | FG132: Favored Source | FH132: =INDEX(Classes_DATA3!Z$5:Z$24,FH131,1) -> cell_blank
AG133: Experience | AU133: Class | BT133: HD | BY133: Roll + Mods = HP | CO133: Bonus | DE133: Feats | DK133: =FH136 ->  | FG133: HD | FH133: =INDEX(Classes_DATA3!X$5:X$24,FH131,1) -> 0
AG134: =INDEX(Classes_DATA3!O$5:O$24,FH131,1) -> 160000 | BT134: =IF(AU134="","",FH133) ->  | CD134: =IF(AU134=0,"",FH134) ->  | CI134: =IF(AU134="","",FH135) ->  | FG134: HP Mods | FH134: =INDEX(Classes_DATA3!AR$5:AR$24,FH131,1) -> 0
FG135: HP Total | FH135: =INDEX(Classes_DATA3!AT$5:AT$24,FH131,1) -> 0
AG136: Feature Type | BL136: Feature Selection | CQ136: Feature Selection | DV136: Feature Selection | FG136: Class Prereqs | FH136: =IF(AU134=0,"",VLOOKUP(AU134,table_classesDATA_classesall,Classes_DATA!BJ$4,0)) -> 
AG137: =INDEX(list_levelsDATA_features,FN137,1) ->  | FG137: EXP Met Flag 1=yes | FH137: =INDEX(Classes_DATA3!R$5:R$24,FH131,1) -> 0 | FN137: =FN128+1 -> 41 | FO137: =IF(BL137=0,"",BL137) ->  | FP137: =IF(CQ137=0,"",CQ137) ->  | FQ137: =IF(DV137=0,"",DV137) ->  | FR137: =IF(INDEX(Levels_DATA!E$7:E$90,$FN137,1)=0,"",INDEX(Levels_DATA!E$7:E$90,$FN137,1)) ->  | FS137: =IF(INDEX(list_levelsDATA_source2,$FN137,1)=0,"",INDEX(list_levelsDATA_source2,$FN137,1)) ->  | FT137: =IF(INDEX(list_levelsDATA_source3,$FN137,1)=0,"",INDEX(list_levelsDATA_source3,$FN137,1)) -> 
AG138: =INDEX(list_levelsDATA_features,FN138,1) ->  | FG138: HP Roll Flag | FH138: =IF(cell_classesDATA2_HPprog=1,1,0) -> 1 | FN138: =FN137+1 -> 42 | FO138: =IF(BL138=0,"",BL138) ->  | FP138: =IF(CQ138=0,"",CQ138) ->  | FQ138: =IF(DV138=0,"",DV138) ->  | FR138: =INDEX(Levels_DATA!E$7:E$90,$FN138,1) ->  | FS138: =IF(INDEX(list_levelsDATA_source2,$FN138,1)=0,"",INDEX(list_levelsDATA_source2,$FN138,1)) ->  | FT138: =IF(INDEX(list_levelsDATA_source3,$FN138,1)=0,"",INDEX(list_levelsDATA_source3,$FN138,1)) -> 
AG139: =INDEX(list_levelsDATA_features,FN139,1) ->  | FN139: =FN138+1 -> 43 | FO139: =IF(BL139=0,"",BL139) ->  | FP139: =IF(CQ139=0,"",CQ139) ->  | FQ139: =IF(DV139=0,"",DV139) ->  | FR139: =INDEX(Levels_DATA!E$7:E$90,$FN139,1) ->  | FS139: =IF(INDEX(list_levelsDATA_source2,$FN139,1)=0,"",INDEX(list_levelsDATA_source2,$FN139,1)) ->  | FT139: =IF(INDEX(list_levelsDATA_source3,$FN139,1)=0,"",INDEX(list_levelsDATA_source3,$FN139,1)) -> 
AG140: =INDEX(list_levelsDATA_features,FN140,1) ->  | FN140: =FN139+1 -> 44 | FO140: =IF(BL140=0,"",BL140) ->  | FP140: =IF(CQ140=0,"",CQ140) ->  | FQ140: =IF(DV140=0,"",DV140) ->  | FR140: =INDEX(Levels_DATA!E$7:E$90,$FN140,1) ->  | FS140: =IF(INDEX(list_levelsDATA_source2,$FN140,1)=0,"",INDEX(list_levelsDATA_source2,$FN140,1)) ->  | FT140: =IF(INDEX(list_levelsDATA_source3,$FN140,1)=0,"",INDEX(list_levelsDATA_source3,$FN140,1)) -> 
AF143: ="LEVEL "&FH143 -> LEVEL 11 | AS143: =IF($FH149=1,"*** LEVEL UP ***",IF($FH149=2,"** Experience Requirement Not Met **","")) ->  | FG143: Level | FH143: =FH131+1 -> 11 | FI143: =FH143 -> 11 | FJ143: =IF(AU146=0,"",AU146) ->  | FK143: =DE146 -> 0 | FL143: =CO146 -> 0 | FM143: =BY146 -> 0
AG144: Required | BY144: HP | CD144: HP | CO144: Favored Class | DE144: Extra | DK144: Class Prerequisites | FG144: Favored Source | FH144: =INDEX(Classes_DATA3!Z$5:Z$24,FH143,1) -> cell_blank
AG145: Experience | AU145: Class | BT145: HD | BY145: Roll + Mods = HP | CO145: Bonus | DE145: Feats | DK145: =FH148 ->  | FG145: HD | FH145: =INDEX(Classes_DATA3!X$5:X$24,FH143,1) -> 0
AG146: =INDEX(Classes_DATA3!O$5:O$24,FH143,1) -> 235000 | BT146: =IF(AU146="","",FH145) ->  | CD146: =IF(AU146=0,"",FH146) ->  | CI146: =IF(AU146="","",FH147) ->  | FG146: HP Mods | FH146: =INDEX(Classes_DATA3!AR$5:AR$24,FH143,1) -> 0
FG147: HP Total | FH147: =INDEX(Classes_DATA3!AT$5:AT$24,FH143,1) -> 0
AG148: Feature Type | BL148: Feature Selection | CQ148: Feature Selection | DV148: Feature Selection | FG148: Class Prereqs | FH148: =IF(AU146=0,"",VLOOKUP(AU146,table_classesDATA_classesall,Classes_DATA!BJ$4,0)) -> 
AG149: =INDEX(list_levelsDATA_features,FN149,1) ->  | FG149: EXP Met Flag 1=yes | FH149: =INDEX(Classes_DATA3!R$5:R$24,FH143,1) -> 0 | FN149: =FN140+1 -> 45 | FO149: =IF(BL149=0,"",BL149) ->  | FP149: =IF(CQ149=0,"",CQ149) ->  | FQ149: =IF(DV149=0,"",DV149) ->  | FR149: =IF(INDEX(Levels_DATA!E$7:E$90,$FN149,1)=0,"",INDEX(Levels_DATA!E$7:E$90,$FN149,1)) ->  | FS149: =IF(INDEX(list_levelsDATA_source2,$FN149,1)=0,"",INDEX(list_levelsDATA_source2,$FN149,1)) ->  | FT149: =IF(INDEX(list_levelsDATA_source3,$FN149,1)=0,"",INDEX(list_levelsDATA_source3,$FN149,1)) -> 
AG150: =INDEX(list_levelsDATA_features,FN150,1) ->  | FG150: HP Roll Flag | FH150: =IF(cell_classesDATA2_HPprog=1,1,0) -> 1 | FN150: =FN149+1 -> 46 | FO150: =IF(BL150=0,"",BL150) ->  | FP150: =IF(CQ150=0,"",CQ150) ->  | FQ150: =IF(DV150=0,"",DV150) ->  | FR150: =INDEX(Levels_DATA!E$7:E$90,$FN150,1) ->  | FS150: =IF(INDEX(list_levelsDATA_source2,$FN150,1)=0,"",INDEX(list_levelsDATA_source2,$FN150,1)) ->  | FT150: =IF(INDEX(list_levelsDATA_source3,$FN150,1)=0,"",INDEX(list_levelsDATA_source3,$FN150,1)) -> 
AG151: =INDEX(list_levelsDATA_features,FN151,1) ->  | FN151: =FN150+1 -> 47 | FO151: =IF(BL151=0,"",BL151) ->  | FP151: =IF(CQ151=0,"",CQ151) ->  | FQ151: =IF(DV151=0,"",DV151) ->  | FR151: =INDEX(Levels_DATA!E$7:E$90,$FN151,1) ->  | FS151: =IF(INDEX(list_levelsDATA_source2,$FN151,1)=0,"",INDEX(list_levelsDATA_source2,$FN151,1)) ->  | FT151: =IF(INDEX(list_levelsDATA_source3,$FN151,1)=0,"",INDEX(list_levelsDATA_source3,$FN151,1)) -> 
AG152: =INDEX(list_levelsDATA_features,FN152,1) ->  | FN152: =FN151+1 -> 48 | FO152: =IF(BL152=0,"",BL152) ->  | FP152: =IF(CQ152=0,"",CQ152) ->  | FQ152: =IF(DV152=0,"",DV152) ->  | FR152: =INDEX(Levels_DATA!E$7:E$90,$FN152,1) ->  | FS152: =IF(INDEX(list_levelsDATA_source2,$FN152,1)=0,"",INDEX(list_levelsDATA_source2,$FN152,1)) ->  | FT152: =IF(INDEX(list_levelsDATA_source3,$FN152,1)=0,"",INDEX(list_levelsDATA_source3,$FN152,1)) -> 
AF155: ="LEVEL "&FH155 -> LEVEL 12 | AS155: =IF($FH161=1,"*** LEVEL UP ***",IF($FH161=2,"** Experience Requirement Not Met **","")) ->  | FG155: Level | FH155: =FH143+1 -> 12 | FI155: =FH155 -> 12 | FJ155: =IF(AU158=0,"",AU158) ->  | FK155: =DE158 -> 0 | FL155: =CO158 -> 0 | FM155: =BY158 -> 0
AG156: Required | BY156: HP | CD156: HP | CO156: Favored Class | DE156: Extra | DK156: Class Prerequisites | FG156: Favored Source | FH156: =INDEX(Classes_DATA3!Z$5:Z$24,FH155,1) -> cell_blank
AG157: Experience | AU157: Class | BT157: HD | BY157: Roll + Mods = HP | CO157: Bonus | DE157: Feats | DK157: =FH160 ->  | FG157: HD | FH157: =INDEX(Classes_DATA3!X$5:X$24,FH155,1) -> 0
AG158: =INDEX(Classes_DATA3!O$5:O$24,FH155,1) -> 330000 | BT158: =IF(AU158="","",FH157) ->  | CD158: =IF(AU158=0,"",FH158) ->  | CI158: =IF(AU158="","",FH159) ->  | FG158: HP Mods | FH158: =INDEX(Classes_DATA3!AR$5:AR$24,FH155,1) -> 0
FG159: HP Total | FH159: =INDEX(Classes_DATA3!AT$5:AT$24,FH155,1) -> 0
AG160: Feature Type | BL160: Feature Selection | CQ160: Feature Selection | DV160: Feature Selection | FG160: Class Prereqs | FH160: =IF(AU158=0,"",VLOOKUP(AU158,table_classesDATA_classesall,Classes_DATA!BJ$4,0)) -> 
AG161: =INDEX(list_levelsDATA_features,FN161,1) ->  | FG161: EXP Met Flag 1=yes | FH161: =INDEX(Classes_DATA3!R$5:R$24,FH155,1) -> 0 | FN161: =FN152+1 -> 49 | FO161: =IF(BL161=0,"",BL161) ->  | FP161: =IF(CQ161=0,"",CQ161) ->  | FQ161: =IF(DV161=0,"",DV161) ->  | FR161: =IF(INDEX(Levels_DATA!E$7:E$90,$FN161,1)=0,"",INDEX(Levels_DATA!E$7:E$90,$FN161,1)) ->  | FS161: =IF(INDEX(list_levelsDATA_source2,$FN161,1)=0,"",INDEX(list_levelsDATA_source2,$FN161,1)) ->  | FT161: =IF(INDEX(list_levelsDATA_source3,$FN161,1)=0,"",INDEX(list_levelsDATA_source3,$FN161,1)) -> 
AG162: =INDEX(list_levelsDATA_features,FN162,1) ->  | FG162: HP Roll Flag | FH162: =IF(cell_classesDATA2_HPprog=1,1,0) -> 1 | FN162: =FN161+1 -> 50 | FO162: =IF(BL162=0,"",BL162) ->  | FP162: =IF(CQ162=0,"",CQ162) ->  | FQ162: =IF(DV162=0,"",DV162) ->  | FR162: =INDEX(Levels_DATA!E$7:E$90,$FN162,1) ->  | FS162: =IF(INDEX(list_levelsDATA_source2,$FN162,1)=0,"",INDEX(list_levelsDATA_source2,$FN162,1)) ->  | FT162: =IF(INDEX(list_levelsDATA_source3,$FN162,1)=0,"",INDEX(list_levelsDATA_source3,$FN162,1)) -> 
AG163: =INDEX(list_levelsDATA_features,FN163,1) ->  | FN163: =FN162+1 -> 51 | FO163: =IF(BL163=0,"",BL163) ->  | FP163: =IF(CQ163=0,"",CQ163) ->  | FQ163: =IF(DV163=0,"",DV163) ->  | FR163: =INDEX(Levels_DATA!E$7:E$90,$FN163,1) ->  | FS163: =IF(INDEX(list_levelsDATA_source2,$FN163,1)=0,"",INDEX(list_levelsDATA_source2,$FN163,1)) ->  | FT163: =IF(INDEX(list_levelsDATA_source3,$FN163,1)=0,"",INDEX(list_levelsDATA_source3,$FN163,1)) -> 
AG164: =INDEX(list_levelsDATA_features,FN164,1) ->  | FN164: =FN163+1 -> 52 | FO164: =IF(BL164=0,"",BL164) ->  | FP164: =IF(CQ164=0,"",CQ164) ->  | FQ164: =IF(DV164=0,"",DV164) ->  | FR164: =INDEX(Levels_DATA!E$7:E$90,$FN164,1) ->  | FS164: =IF(INDEX(list_levelsDATA_source2,$FN164,1)=0,"",INDEX(list_levelsDATA_source2,$FN164,1)) ->  | FT164: =IF(INDEX(list_levelsDATA_source3,$FN164,1)=0,"",INDEX(list_levelsDATA_source3,$FN164,1)) -> 
AF167: ="LEVEL "&FH167 -> LEVEL 13 | AS167: =IF($FH173=1,"*** LEVEL UP ***",IF($FH173=2,"** Experience Requirement Not Met **","")) ->  | FG167: Level | FH167: =FH155+1 -> 13 | FI167: =FH167 -> 13 | FJ167: =IF(AU170=0,"",AU170) ->  | FK167: =DE170 -> 0 | FL167: =CO170 -> 0 | FM167: =BY170 -> 0
AG168: Required | BY168: HP | CD168: HP | CO168: Favored Class | DE168: Extra | DK168: Class Prerequisites | FG168: Favored Source | FH168: =INDEX(Classes_DATA3!Z$5:Z$24,FH167,1) -> cell_blank
AG169: Experience | AU169: Class | BT169: HD | BY169: Roll + Mods = HP | CO169: Bonus | DE169: Feats | DK169: =FH172 ->  | FG169: HD | FH169: =INDEX(Classes_DATA3!X$5:X$24,FH167,1) -> 0
AG170: =INDEX(Classes_DATA3!O$5:O$24,FH167,1) -> 475000 | BT170: =IF(AU170="","",FH169) ->  | CD170: =IF(AU170=0,"",FH170) ->  | CI170: =IF(AU170="","",FH171) ->  | FG170: HP Mods | FH170: =INDEX(Classes_DATA3!AR$5:AR$24,FH167,1) -> 0
FG171: HP Total | FH171: =INDEX(Classes_DATA3!AT$5:AT$24,FH167,1) -> 0
AG172: Feature Type | BL172: Feature Selection | CQ172: Feature Selection | DV172: Feature Selection | FG172: Class Prereqs | FH172: =IF(AU170=0,"",VLOOKUP(AU170,table_classesDATA_classesall,Classes_DATA!BJ$4,0)) -> 
AG173: =INDEX(list_levelsDATA_features,FN173,1) ->  | FG173: EXP Met Flag 1=yes | FH173: =INDEX(Classes_DATA3!R$5:R$24,FH167,1) -> 0 | FN173: =FN164+1 -> 53 | FO173: =IF(BL173=0,"",BL173) ->  | FP173: =IF(CQ173=0,"",CQ173) ->  | FQ173: =IF(DV173=0,"",DV173) ->  | FR173: =IF(INDEX(Levels_DATA!E$7:E$90,$FN173,1)=0,"",INDEX(Levels_DATA!E$7:E$90,$FN173,1)) ->  | FS173: =IF(INDEX(list_levelsDATA_source2,$FN173,1)=0,"",INDEX(list_levelsDATA_source2,$FN173,1)) ->  | FT173: =IF(INDEX(list_levelsDATA_source3,$FN173,1)=0,"",INDEX(list_levelsDATA_source3,$FN173,1)) -> 
AG174: =INDEX(list_levelsDATA_features,FN174,1) ->  | FG174: HP Roll Flag | FH174: =IF(cell_classesDATA2_HPprog=1,1,0) -> 1 | FN174: =FN173+1 -> 54 | FO174: =IF(BL174=0,"",BL174) ->  | FP174: =IF(CQ174=0,"",CQ174) ->  | FQ174: =IF(DV174=0,"",DV174) ->  | FR174: =INDEX(Levels_DATA!E$7:E$90,$FN174,1) ->  | FS174: =IF(INDEX(list_levelsDATA_source2,$FN174,1)=0,"",INDEX(list_levelsDATA_source2,$FN174,1)) ->  | FT174: =IF(INDEX(list_levelsDATA_source3,$FN174,1)=0,"",INDEX(list_levelsDATA_source3,$FN174,1)) -> 
AG175: =INDEX(list_levelsDATA_features,FN175,1) ->  | FN175: =FN174+1 -> 55 | FO175: =IF(BL175=0,"",BL175) ->  | FP175: =IF(CQ175=0,"",CQ175) ->  | FQ175: =IF(DV175=0,"",DV175) ->  | FR175: =INDEX(Levels_DATA!E$7:E$90,$FN175,1) ->  | FS175: =IF(INDEX(list_levelsDATA_source2,$FN175,1)=0,"",INDEX(list_levelsDATA_source2,$FN175,1)) ->  | FT175: =IF(INDEX(list_levelsDATA_source3,$FN175,1)=0,"",INDEX(list_levelsDATA_source3,$FN175,1)) -> 
AG176: =INDEX(list_levelsDATA_features,FN176,1) ->  | FN176: =FN175+1 -> 56 | FO176: =IF(BL176=0,"",BL176) ->  | FP176: =IF(CQ176=0,"",CQ176) ->  | FQ176: =IF(DV176=0,"",DV176) ->  | FR176: =INDEX(Levels_DATA!E$7:E$90,$FN176,1) ->  | FS176: =IF(INDEX(list_levelsDATA_source2,$FN176,1)=0,"",INDEX(list_levelsDATA_source2,$FN176,1)) ->  | FT176: =IF(INDEX(list_levelsDATA_source3,$FN176,1)=0,"",INDEX(list_levelsDATA_source3,$FN176,1)) -> 
AF179: ="LEVEL "&FH179 -> LEVEL 14 | AS179: =IF($FH185=1,"*** LEVEL UP ***",IF($FH185=2,"** Experience Requirement Not Met **","")) ->  | FG179: Level | FH179: =FH167+1 -> 14 | FI179: =FH179 -> 14 | FJ179: =IF(AU182=0,"",AU182) ->  | FK179: =DE182 -> 0 | FL179: =CO182 -> 0 | FM179: =BY182 -> 0
AG180: Required | BY180: HP | CD180: HP | CO180: Favored Class | DE180: Extra | DK180: Class Prerequisites | FG180: Favored Source | FH180: =INDEX(Classes_DATA3!Z$5:Z$24,FH179,1) -> cell_blank
AG181: Experience | AU181: Class | BT181: HD | BY181: Roll + Mods = HP | CO181: Bonus | DE181: Feats | DK181: =FH184 ->  | FG181: HD | FH181: =INDEX(Classes_DATA3!X$5:X$24,FH179,1) -> 0
AG182: =INDEX(Classes_DATA3!O$5:O$24,FH179,1) -> 665000 | BT182: =IF(AU182="","",FH181) ->  | CD182: =IF(AU182=0,"",FH182) ->  | CI182: =IF(AU182="","",FH183) ->  | FG182: HP Mods | FH182: =INDEX(Classes_DATA3!AR$5:AR$24,FH179,1) -> 0
FG183: HP Total | FH183: =INDEX(Classes_DATA3!AT$5:AT$24,FH179,1) -> 0
AG184: Feature Type | BL184: Feature Selection | CQ184: Feature Selection | DV184: Feature Selection | FG184: Class Prereqs | FH184: =IF(AU182=0,"",VLOOKUP(AU182,table_classesDATA_classesall,Classes_DATA!BJ$4,0)) -> 
AG185: =INDEX(list_levelsDATA_features,FN185,1) ->  | FG185: EXP Met Flag 1=yes | FH185: =INDEX(Classes_DATA3!R$5:R$24,FH179,1) -> 0 | FN185: =FN176+1 -> 57 | FO185: =IF(BL185=0,"",BL185) ->  | FP185: =IF(CQ185=0,"",CQ185) ->  | FQ185: =IF(DV185=0,"",DV185) ->  | FR185: =IF(INDEX(Levels_DATA!E$7:E$90,$FN185,1)=0,"",INDEX(Levels_DATA!E$7:E$90,$FN185,1)) ->  | FS185: =IF(INDEX(list_levelsDATA_source2,$FN185,1)=0,"",INDEX(list_levelsDATA_source2,$FN185,1)) ->  | FT185: =IF(INDEX(list_levelsDATA_source3,$FN185,1)=0,"",INDEX(list_levelsDATA_source3,$FN185,1)) -> 
AG186: =INDEX(list_levelsDATA_features,FN186,1) ->  | FG186: HP Roll Flag | FH186: =IF(cell_classesDATA2_HPprog=1,1,0) -> 1 | FN186: =FN185+1 -> 58 | FO186: =IF(BL186=0,"",BL186) ->  | FP186: =IF(CQ186=0,"",CQ186) ->  | FQ186: =IF(DV186=0,"",DV186) ->  | FR186: =INDEX(Levels_DATA!E$7:E$90,$FN186,1) ->  | FS186: =IF(INDEX(list_levelsDATA_source2,$FN186,1)=0,"",INDEX(list_levelsDATA_source2,$FN186,1)) ->  | FT186: =IF(INDEX(list_levelsDATA_source3,$FN186,1)=0,"",INDEX(list_levelsDATA_source3,$FN186,1)) -> 
AG187: =INDEX(list_levelsDATA_features,FN187,1) ->  | FN187: =FN186+1 -> 59 | FO187: =IF(BL187=0,"",BL187) ->  | FP187: =IF(CQ187=0,"",CQ187) ->  | FQ187: =IF(DV187=0,"",DV187) ->  | FR187: =INDEX(Levels_DATA!E$7:E$90,$FN187,1) ->  | FS187: =IF(INDEX(list_levelsDATA_source2,$FN187,1)=0,"",INDEX(list_levelsDATA_source2,$FN187,1)) ->  | FT187: =IF(INDEX(list_levelsDATA_source3,$FN187,1)=0,"",INDEX(list_levelsDATA_source3,$FN187,1)) -> 
AG188: =INDEX(list_levelsDATA_features,FN188,1) ->  | FN188: =FN187+1 -> 60 | FO188: =IF(BL188=0,"",BL188) ->  | FP188: =IF(CQ188=0,"",CQ188) ->  | FQ188: =IF(DV188=0,"",DV188) ->  | FR188: =INDEX(Levels_DATA!E$7:E$90,$FN188,1) ->  | FS188: =IF(INDEX(list_levelsDATA_source2,$FN188,1)=0,"",INDEX(list_levelsDATA_source2,$FN188,1)) ->  | FT188: =IF(INDEX(list_levelsDATA_source3,$FN188,1)=0,"",INDEX(list_levelsDATA_source3,$FN188,1)) -> 
AF191: ="LEVEL "&FH191 -> LEVEL 15 | AS191: =IF($FH197=1,"*** LEVEL UP ***",IF($FH197=2,"** Experience Requirement Not Met **","")) ->  | FG191: Level | FH191: =FH179+1 -> 15 | FI191: =FH191 -> 15 | FJ191: =IF(AU194=0,"",AU194) ->  | FK191: =DE194 -> 0 | FL191: =CO194 -> 0 | FM191: =BY194 -> 0
AG192: Required | BY192: HP | CD192: HP | CO192: Favored Class | DE192: Extra | DK192: Class Prerequisites | FG192: Favored Source | FH192: =INDEX(Classes_DATA3!Z$5:Z$24,FH191,1) -> cell_blank
AG193: Experience | AU193: Class | BT193: HD | BY193: Roll + Mods = HP | CO193: Bonus | DE193: Feats | DK193: =FH196 ->  | FG193: HD | FH193: =INDEX(Classes_DATA3!X$5:X$24,FH191,1) -> 0
AG194: =INDEX(Classes_DATA3!O$5:O$24,FH191,1) -> 955000 | BT194: =IF(AU194="","",FH193) ->  | CD194: =IF(AU194=0,"",FH194) ->  | CI194: =IF(AU194="","",FH195) ->  | FG194: HP Mods | FH194: =INDEX(Classes_DATA3!AR$5:AR$24,FH191,1) -> 0
FG195: HP Total | FH195: =INDEX(Classes_DATA3!AT$5:AT$24,FH191,1) -> 0
AG196: Feature Type | BL196: Feature Selection | CQ196: Feature Selection | DV196: Feature Selection | FG196: Class Prereqs | FH196: =IF(AU194=0,"",VLOOKUP(AU194,table_classesDATA_classesall,Classes_DATA!BJ$4,0)) -> 
AG197: =INDEX(list_levelsDATA_features,FN197,1) ->  | FG197: EXP Met Flag 1=yes | FH197: =INDEX(Classes_DATA3!R$5:R$24,FH191,1) -> 0 | FN197: =FN188+1 -> 61 | FO197: =IF(BL197=0,"",BL197) ->  | FP197: =IF(CQ197=0,"",CQ197) ->  | FQ197: =IF(DV197=0,"",DV197) ->  | FR197: =IF(INDEX(Levels_DATA!E$7:E$90,$FN197,1)=0,"",INDEX(Levels_DATA!E$7:E$90,$FN197,1)) ->  | FS197: =IF(INDEX(list_levelsDATA_source2,$FN197,1)=0,"",INDEX(list_levelsDATA_source2,$FN197,1)) ->  | FT197: =IF(INDEX(list_levelsDATA_source3,$FN197,1)=0,"",INDEX(list_levelsDATA_source3,$FN197,1)) -> 
AG198: =INDEX(list_levelsDATA_features,FN198,1) ->  | FG198: HP Roll Flag | FH198: =IF(cell_classesDATA2_HPprog=1,1,0) -> 1 | FN198: =FN197+1 -> 62 | FO198: =IF(BL198=0,"",BL198) ->  | FP198: =IF(CQ198=0,"",CQ198) ->  | FQ198: =IF(DV198=0,"",DV198) ->  | FR198: =INDEX(Levels_DATA!E$7:E$90,$FN198,1) ->  | FS198: =IF(INDEX(list_levelsDATA_source2,$FN198,1)=0,"",INDEX(list_levelsDATA_source2,$FN198,1)) ->  | FT198: =IF(INDEX(list_levelsDATA_source3,$FN198,1)=0,"",INDEX(list_levelsDATA_source3,$FN198,1)) -> 
AG199: =INDEX(list_levelsDATA_features,FN199,1) ->  | FN199: =FN198+1 -> 63 | FO199: =IF(BL199=0,"",BL199) ->  | FP199: =IF(CQ199=0,"",CQ199) ->  | FQ199: =IF(DV199=0,"",DV199) ->  | FR199: =INDEX(Levels_DATA!E$7:E$90,$FN199,1) ->  | FS199: =IF(INDEX(list_levelsDATA_source2,$FN199,1)=0,"",INDEX(list_levelsDATA_source2,$FN199,1)) ->  | FT199: =IF(INDEX(list_levelsDATA_source3,$FN199,1)=0,"",INDEX(list_levelsDATA_source3,$FN199,1)) -> 
AG200: =INDEX(list_levelsDATA_features,FN200,1) ->  | FN200: =FN199+1 -> 64 | FO200: =IF(BL200=0,"",BL200) ->  | FP200: =IF(CQ200=0,"",CQ200) ->  | FQ200: =IF(DV200=0,"",DV200) ->  | FR200: =INDEX(Levels_DATA!E$7:E$90,$FN200,1) ->  | FS200: =IF(INDEX(list_levelsDATA_source2,$FN200,1)=0,"",INDEX(list_levelsDATA_source2,$FN200,1)) ->  | FT200: =IF(INDEX(list_levelsDATA_source3,$FN200,1)=0,"",INDEX(list_levelsDATA_source3,$FN200,1)) -> 
AF203: ="LEVEL "&FH203 -> LEVEL 16 | AS203: =IF($FH209=1,"*** LEVEL UP ***",IF($FH209=2,"** Experience Requirement Not Met **","")) ->  | FG203: Level | FH203: =FH191+1 -> 16 | FI203: =FH203 -> 16 | FJ203: =IF(AU206=0,"",AU206) ->  | FK203: =DE206 -> 0 | FL203: =CO206 -> 0 | FM203: =BY206 -> 0
AG204: Required | BY204: HP | CD204: HP | CO204: Favored Class | DE204: Extra | DK204: Class Prerequisites | FG204: Favored Source | FH204: =INDEX(Classes_DATA3!Z$5:Z$24,FH203,1) -> cell_blank
AG205: Experience | AU205: Class | BT205: HD | BY205: Roll + Mods = HP | CO205: Bonus | DE205: Feats | DK205: =FH208 ->  | FG205: HD | FH205: =INDEX(Classes_DATA3!X$5:X$24,FH203,1) -> 0
AG206: =INDEX(Classes_DATA3!O$5:O$24,FH203,1) -> 1350000 | BT206: =IF(AU206="","",FH205) ->  | CD206: =IF(AU206=0,"",FH206) ->  | CI206: =IF(AU206="","",FH207) ->  | FG206: HP Mods | FH206: =INDEX(Classes_DATA3!AR$5:AR$24,FH203,1) -> 0
FG207: HP Total | FH207: =INDEX(Classes_DATA3!AT$5:AT$24,FH203,1) -> 0
AG208: Feature Type | BL208: Feature Selection | CQ208: Feature Selection | DV208: Feature Selection | FG208: Class Prereqs | FH208: =IF(AU206=0,"",VLOOKUP(AU206,table_classesDATA_classesall,Classes_DATA!BJ$4,0)) -> 
AG209: =INDEX(list_levelsDATA_features,FN209,1) ->  | FG209: EXP Met Flag 1=yes | FH209: =INDEX(Classes_DATA3!R$5:R$24,FH203,1) -> 0 | FN209: =FN200+1 -> 65 | FO209: =IF(BL209=0,"",BL209) ->  | FP209: =IF(CQ209=0,"",CQ209) ->  | FQ209: =IF(DV209=0,"",DV209) ->  | FR209: =IF(INDEX(Levels_DATA!E$7:E$90,$FN209,1)=0,"",INDEX(Levels_DATA!E$7:E$90,$FN209,1)) ->  | FS209: =IF(INDEX(list_levelsDATA_source2,$FN209,1)=0,"",INDEX(list_levelsDATA_source2,$FN209,1)) ->  | FT209: =IF(INDEX(list_levelsDATA_source3,$FN209,1)=0,"",INDEX(list_levelsDATA_source3,$FN209,1)) -> 
AG210: =INDEX(list_levelsDATA_features,FN210,1) ->  | FG210: HP Roll Flag | FH210: =IF(cell_classesDATA2_HPprog=1,1,0) -> 1 | FN210: =FN209+1 -> 66 | FO210: =IF(BL210=0,"",BL210) ->  | FP210: =IF(CQ210=0,"",CQ210) ->  | FQ210: =IF(DV210=0,"",DV210) ->  | FR210: =INDEX(Levels_DATA!E$7:E$90,$FN210,1) ->  | FS210: =IF(INDEX(list_levelsDATA_source2,$FN210,1)=0,"",INDEX(list_levelsDATA_source2,$FN210,1)) ->  | FT210: =IF(INDEX(list_levelsDATA_source3,$FN210,1)=0,"",INDEX(list_levelsDATA_source3,$FN210,1)) -> 
AG211: =INDEX(list_levelsDATA_features,FN211,1) ->  | FN211: =FN210+1 -> 67 | FO211: =IF(BL211=0,"",BL211) ->  | FP211: =IF(CQ211=0,"",CQ211) ->  | FQ211: =IF(DV211=0,"",DV211) ->  | FR211: =INDEX(Levels_DATA!E$7:E$90,$FN211,1) ->  | FS211: =IF(INDEX(list_levelsDATA_source2,$FN211,1)=0,"",INDEX(list_levelsDATA_source2,$FN211,1)) ->  | FT211: =IF(INDEX(list_levelsDATA_source3,$FN211,1)=0,"",INDEX(list_levelsDATA_source3,$FN211,1)) -> 
AG212: =INDEX(list_levelsDATA_features,FN212,1) ->  | FN212: =FN211+1 -> 68 | FO212: =IF(BL212=0,"",BL212) ->  | FP212: =IF(CQ212=0,"",CQ212) ->  | FQ212: =IF(DV212=0,"",DV212) ->  | FR212: =INDEX(Levels_DATA!E$7:E$90,$FN212,1) ->  | FS212: =IF(INDEX(list_levelsDATA_source2,$FN212,1)=0,"",INDEX(list_levelsDATA_source2,$FN212,1)) ->  | FT212: =IF(INDEX(list_levelsDATA_source3,$FN212,1)=0,"",INDEX(list_levelsDATA_source3,$FN212,1)) -> 
AF215: ="LEVEL "&FH215 -> LEVEL 17 | AS215: =IF($FH221=1,"*** LEVEL UP ***",IF($FH221=2,"** Experience Requirement Not Met **","")) ->  | FG215: Level | FH215: =FH203+1 -> 17 | FI215: =FH215 -> 17 | FJ215: =IF(AU218=0,"",AU218) ->  | FK215: =DE218 -> 0 | FL215: =CO218 -> 0 | FM215: =BY218 -> 0
AG216: Required | BY216: HP | CD216: HP | CO216: Favored Class | DE216: Extra | DK216: Class Prerequisites | FG216: Favored Source | FH216: =INDEX(Classes_DATA3!Z$5:Z$24,FH215,1) -> cell_blank
AG217: Experience | AU217: Class | BT217: HD | BY217: Roll + Mods = HP | CO217: Bonus | DE217: Feats | DK217: =FH220 ->  | FG217: HD | FH217: =INDEX(Classes_DATA3!X$5:X$24,FH215,1) -> 0
AG218: =INDEX(Classes_DATA3!O$5:O$24,FH215,1) -> 1900000 | BT218: =IF(AU218="","",FH217) ->  | CD218: =IF(AU218=0,"",FH218) ->  | CI218: =IF(AU218="","",FH219) ->  | FG218: HP Mods | FH218: =INDEX(Classes_DATA3!AR$5:AR$24,FH215,1) -> 0
FG219: HP Total | FH219: =INDEX(Classes_DATA3!AT$5:AT$24,FH215,1) -> 0
AG220: Feature Type | BL220: Feature Selection | CQ220: Feature Selection | DV220: Feature Selection | FG220: Class Prereqs | FH220: =IF(AU218=0,"",VLOOKUP(AU218,table_classesDATA_classesall,Classes_DATA!BJ$4,0)) -> 
AG221: =INDEX(list_levelsDATA_features,FN221,1) ->  | FG221: EXP Met Flag 1=yes | FH221: =INDEX(Classes_DATA3!R$5:R$24,FH215,1) -> 0 | FN221: =FN212+1 -> 69 | FO221: =IF(BL221=0,"",BL221) ->  | FP221: =IF(CQ221=0,"",CQ221) ->  | FQ221: =IF(DV221=0,"",DV221) ->  | FR221: =IF(INDEX(Levels_DATA!E$7:E$90,$FN221,1)=0,"",INDEX(Levels_DATA!E$7:E$90,$FN221,1)) ->  | FS221: =IF(INDEX(list_levelsDATA_source2,$FN221,1)=0,"",INDEX(list_levelsDATA_source2,$FN221,1)) ->  | FT221: =IF(INDEX(list_levelsDATA_source3,$FN221,1)=0,"",INDEX(list_levelsDATA_source3,$FN221,1)) -> 
AG222: =INDEX(list_levelsDATA_features,FN222,1) ->  | FG222: HP Roll Flag | FH222: =IF(cell_classesDATA2_HPprog=1,1,0) -> 1 | FN222: =FN221+1 -> 70 | FO222: =IF(BL222=0,"",BL222) ->  | FP222: =IF(CQ222=0,"",CQ222) ->  | FQ222: =IF(DV222=0,"",DV222) ->  | FR222: =INDEX(Levels_DATA!E$7:E$90,$FN222,1) ->  | FS222: =IF(INDEX(list_levelsDATA_source2,$FN222,1)=0,"",INDEX(list_levelsDATA_source2,$FN222,1)) ->  | FT222: =IF(INDEX(list_levelsDATA_source3,$FN222,1)=0,"",INDEX(list_levelsDATA_source3,$FN222,1)) -> 
AG223: =INDEX(list_levelsDATA_features,FN223,1) ->  | FN223: =FN222+1 -> 71 | FO223: =IF(BL223=0,"",BL223) ->  | FP223: =IF(CQ223=0,"",CQ223) ->  | FQ223: =IF(DV223=0,"",DV223) ->  | FR223: =INDEX(Levels_DATA!E$7:E$90,$FN223,1) ->  | FS223: =IF(INDEX(list_levelsDATA_source2,$FN223,1)=0,"",INDEX(list_levelsDATA_source2,$FN223,1)) ->  | FT223: =IF(INDEX(list_levelsDATA_source3,$FN223,1)=0,"",INDEX(list_levelsDATA_source3,$FN223,1)) -> 
AG224: =INDEX(list_levelsDATA_features,FN224,1) ->  | FN224: =FN223+1 -> 72 | FO224: =IF(BL224=0,"",BL224) ->  | FP224: =IF(CQ224=0,"",CQ224) ->  | FQ224: =IF(DV224=0,"",DV224) ->  | FR224: =INDEX(Levels_DATA!E$7:E$90,$FN224,1) ->  | FS224: =IF(INDEX(list_levelsDATA_source2,$FN224,1)=0,"",INDEX(list_levelsDATA_source2,$FN224,1)) ->  | FT224: =IF(INDEX(list_levelsDATA_source3,$FN224,1)=0,"",INDEX(list_levelsDATA_source3,$FN224,1)) -> 
AF227: ="LEVEL "&FH227 -> LEVEL 18 | AS227: =IF($FH233=1,"*** LEVEL UP ***",IF($FH233=2,"** Experience Requirement Not Met **","")) ->  | FG227: Level | FH227: =FH215+1 -> 18 | FI227: =FH227 -> 18 | FJ227: =IF(AU230=0,"",AU230) ->  | FK227: =DE230 -> 0 | FL227: =CO230 -> 0 | FM227: =BY230 -> 0
AG228: Required | BY228: HP | CD228: HP | CO228: Favored Class | DE228: Extra | DK228: Class Prerequisites | FG228: Favored Source | FH228: =INDEX(Classes_DATA3!Z$5:Z$24,FH227,1) -> cell_blank
AG229: Experience | AU229: Class | BT229: HD | BY229: Roll + Mods = HP | CO229: Bonus | DE229: Feats | DK229: =FH232 ->  | FG229: HD | FH229: =INDEX(Classes_DATA3!X$5:X$24,FH227,1) -> 0
AG230: =INDEX(Classes_DATA3!O$5:O$24,FH227,1) -> 2700000 | BT230: =IF(AU230="","",FH229) ->  | CD230: =IF(AU230=0,"",FH230) ->  | CI230: =IF(AU230="","",FH231) ->  | FG230: HP Mods | FH230: =INDEX(Classes_DATA3!AR$5:AR$24,FH227,1) -> 0
FG231: HP Total | FH231: =INDEX(Classes_DATA3!AT$5:AT$24,FH227,1) -> 0
AG232: Feature Type | BL232: Feature Selection | CQ232: Feature Selection | DV232: Feature Selection | FG232: Class Prereqs | FH232: =IF(AU230=0,"",VLOOKUP(AU230,table_classesDATA_classesall,Classes_DATA!BJ$4,0)) -> 
AG233: =INDEX(list_levelsDATA_features,FN233,1) ->  | FG233: EXP Met Flag 1=yes | FH233: =INDEX(Classes_DATA3!R$5:R$24,FH227,1) -> 0 | FN233: =FN224+1 -> 73 | FO233: =IF(BL233=0,"",BL233) ->  | FP233: =IF(CQ233=0,"",CQ233) ->  | FQ233: =IF(DV233=0,"",DV233) ->  | FR233: =IF(INDEX(Levels_DATA!E$7:E$90,$FN233,1)=0,"",INDEX(Levels_DATA!E$7:E$90,$FN233,1)) ->  | FS233: =IF(INDEX(list_levelsDATA_source2,$FN233,1)=0,"",INDEX(list_levelsDATA_source2,$FN233,1)) ->  | FT233: =IF(INDEX(list_levelsDATA_source3,$FN233,1)=0,"",INDEX(list_levelsDATA_source3,$FN233,1)) -> 
AG234: =INDEX(list_levelsDATA_features,FN234,1) ->  | FG234: HP Roll Flag | FH234: =IF(cell_classesDATA2_HPprog=1,1,0) -> 1 | FN234: =FN233+1 -> 74 | FO234: =IF(BL234=0,"",BL234) ->  | FP234: =IF(CQ234=0,"",CQ234) ->  | FQ234: =IF(DV234=0,"",DV234) ->  | FR234: =INDEX(Levels_DATA!E$7:E$90,$FN234,1) ->  | FS234: =IF(INDEX(list_levelsDATA_source2,$FN234,1)=0,"",INDEX(list_levelsDATA_source2,$FN234,1)) ->  | FT234: =IF(INDEX(list_levelsDATA_source3,$FN234,1)=0,"",INDEX(list_levelsDATA_source3,$FN234,1)) -> 
AG235: =INDEX(list_levelsDATA_features,FN235,1) ->  | FN235: =FN234+1 -> 75 | FO235: =IF(BL235=0,"",BL235) ->  | FP235: =IF(CQ235=0,"",CQ235) ->  | FQ235: =IF(DV235=0,"",DV235) ->  | FR235: =INDEX(Levels_DATA!E$7:E$90,$FN235,1) ->  | FS235: =IF(INDEX(list_levelsDATA_source2,$FN235,1)=0,"",INDEX(list_levelsDATA_source2,$FN235,1)) ->  | FT235: =IF(INDEX(list_levelsDATA_source3,$FN235,1)=0,"",INDEX(list_levelsDATA_source3,$FN235,1)) -> 
AG236: =INDEX(list_levelsDATA_features,FN236,1) ->  | FN236: =FN235+1 -> 76 | FO236: =IF(BL236=0,"",BL236) ->  | FP236: =IF(CQ236=0,"",CQ236) ->  | FQ236: =IF(DV236=0,"",DV236) ->  | FR236: =INDEX(Levels_DATA!E$7:E$90,$FN236,1) ->  | FS236: =IF(INDEX(list_levelsDATA_source2,$FN236,1)=0,"",INDEX(list_levelsDATA_source2,$FN236,1)) ->  | FT236: =IF(INDEX(list_levelsDATA_source3,$FN236,1)=0,"",INDEX(list_levelsDATA_source3,$FN236,1)) -> 
... 20 more rows

Sheet Levels_DATA (hidden)
D1: =list_levelsDATA_features | F1: =list_levelsDATA_feature1selected | J1: * change feat source table | K1: =list_levelsDATA_feature2selected | O1: * change feat source table
D2: =table_levelsDATA_feature1 | J2: =list_levelsDATA_source2 | O2: =list_levelsDATA_source3
D3: =table_levelsDATA_features
D4: 1 | E4: 2 | F4: 3 | G4: 4 | H4: 5 | I4: 6 | J4: 7 | K4: 8 | L4: 9 | M4: 10 | N4: 11 | O4: 12 | P4: 13 | Q4: 14 | R4: 15 | S4: 16 | V4: =table_levelsDATA_featsubselection | Z4: Rage Powers | AB4: Rogue Talents
E5: Feature 1 | F5: Feature 1 | G5: Feature 1 | H5: Feature 1 | I5: Feature 1 | J5: Feature 2 | K5: Feature 2 | L5: Feature 2 | M5: Feature 2 | N5: Feature 2 | O5: Feature 3 | P5: Feature 3 | Q5: Feature 3 | R5: Feature 3 | S5: Feature 3 | V5: Feats | W5: Sub | X5: Feats & Sub | Z5: =cell_levelsDATA_ragepowers | AB5: =cell_levelsDATA_roguetalents | AD5: Features Selected
D6: Feature | E6: Source | F6: Selected | G6: Feat? | H6: Feat Selected | I6: Feat & Sub | J6: Source | K6: Selected | L6: Feat? | M6: Feat Selected | N6: Feat & Sub | O6: Source | P6: Selected | Q6: Feat? | R6: Feat Selected | S6: Feat & Sub | V6: Selected | W6: Selected | X6: Selected | Z6: =SUM(Z7:Z90) -> 0 | AB6: =SUM(AB7:AB90) -> 0 | AE6: =list_levelsDATA_featuresselectedall
A7: 1 | B7: 1 | C7: 1 | D7: =IF(Features_DATA!W5=0,"",Features_DATA!W5) -> Level 1 bonus feat (any) | E7: =IF($D7<>"",VLOOKUP($D7,table_attributesDATA_all,Attributes_DATA!AF$2,0),"") -> list_featsDATA_feats | F7: =VLOOKUP($A7,table_levels_featuresselected,2,0) -> Improved initiative | G7: =IF(ISERROR(MATCH("*feat*",D7,0)),"no","yes") -> yes | H7: =IF(G7="yes",F7,"") -> Improved initiative | I7: =IF(G7="yes",F7&IF(K7<>""," ("&K7&")",""),"") -> Improved initiative | J7: =IF($D7="","",IF(H7<>"",IF(VLOOKUP($D7,table_attributesDATA_all,Attributes_DATA!$AG$2,0)=0,VLOOKUP(H7,table_featsDATA_feats,Feats_DATA!T$4,0),VLOOKUP($D7,table_attributesDATA_all,Attributes_DATA!$AG$2,0)),VLOOKUP($D7,table_attributesDATA_all,Attributes_DATA!$AG$2,0))) -> 0 | K7: =VLOOKUP($A7,table_levels_featuresselected,3,0) ->  | L7: =IF(ISERROR(MATCH("*feat*",F7,0)),"no","yes") -> no | M7: =IF(L7="yes",K7,"") ->  | N7: =IF(L7="yes",K7&IF(P7<>""," ("&P7&")",""),"") ->  | O7: =IF($D7="","",IF(K7<>"",IF(VLOOKUP($D7,table_attributesDATA_all,Attributes_DATA!$AH$2,0)=0,VLOOKUP(K7,table_featsDATA_feats,Feats_DATA!T$4,0),VLOOKUP($D7,table_attributesDATA_all,Attributes_DATA!$AH$2,0)),VLOOKUP($D7,table_attributesDATA_all,Attributes_DATA!$AH$2,0))) -> 0 | P7: =VLOOKUP($A7,table_levels_featuresselected,4,0) ->  | Q7: =IF(ISERROR(MATCH("*feat*",K7,0)),"no","yes") -> no | R7: =IF(Q7="yes",P7,"") ->  | S7: =IF(Q7="yes",P7&IF(V7<>""," ("&V7&")",""),"") ->  | U7: 1 | V7: =H7 -> Improved initiative | W7: =K7 ->  | X7: =I7 -> Improved initiative | Z7: =IF(ISERROR(MATCH("*Rage power*",D7,0)),0,IF(F7="",0,1)) -> 0 | AB7: =IF(ISERROR(MATCH("Rogue talent*",D7,0)),0,IF(F7="",0,1)) -> 0 | AD7: 1 | AE7: =IF(OR(F7="",F7=0,ISERROR(F7)),"",F7) -> Improved initiative | AF7: 1
A8: 2 | B8: 2 | C8: 1 | D8: =IF(Features_DATA!W6=0,"",Features_DATA!W6) -> Arcane school | E8: =IF($D8<>"",VLOOKUP($D8,table_attributesDATA_all,Attributes_DATA!AF$2,0),"") -> list_schoolsDATA_schools | F8: Conjuration | G8: =IF(ISERROR(MATCH("*feat*",D8,0)),"no","yes") -> no | H8: =IF(G8="yes",F8,"") ->  | I8: =IF(G8="yes",F8&IF(K8<>""," ("&K8&")",""),"") ->  | J8: =IF($D8="","",IF(H8<>"",IF(VLOOKUP($D8,table_attributesDATA_all,Attributes_DATA!$AG$2,0)=0,VLOOKUP(H8,table_featsDATA_feats,Feats_DATA!T$4,0),VLOOKUP($D8,table_attributesDATA_all,Attributes_DATA!$AG$2,0)),VLOOKUP($D8,table_attributesDATA_all,Attributes_DATA!$AG$2,0))) -> list_schoolsDATA_wizardprohib | K8: Divination | L8: =IF(ISERROR(MATCH("*feat*",F8,0)),"no","yes") -> no | M8: =IF(L8="yes",K8,"") ->  | N8: =IF(L8="yes",K8&IF(P8<>""," ("&P8&")",""),"") ->  | O8: =IF($D8="","",IF(K8<>"",IF(VLOOKUP($D8,table_attributesDATA_all,Attributes_DATA!$AH$2,0)=0,VLOOKUP(K8,table_featsDATA_feats,Feats_DATA!T$4,0),VLOOKUP($D8,table_attributesDATA_all,Attributes_DATA!$AH$2,0)),VLOOKUP($D8,table_attributesDATA_all,Attributes_DATA!$AH$2,0))) -> list_schoolsDATA_wizardprohib | P8: Necromancy | Q8: =IF(ISERROR(MATCH("*feat*",K8,0)),"no","yes") -> no | R8: =IF(Q8="yes",P8,"") ->  | S8: =IF(Q8="yes",P8&IF(V8<>""," ("&V8&")",""),"") ->  | U8: 2 | V8: =H8 ->  | W8: =K8 -> Divination | Z8: =IF(ISERROR(MATCH("*Rage power*",D8,0)),0,IF(F8="",0,1)) -> 0 | AB8: =IF(ISERROR(MATCH("Rogue talent*",D8,0)),0,IF(F8="",0,1)) -> 0 | AD8: 2 | AE8: =IF(OR(F8="",F8=0,ISERROR(F8)),"",F8) -> Conjuration | AF8: 1
A9: 3 | B9: 3 | C9: 1 | D9: =IF(Features_DATA!W7=0,"",Features_DATA!W7) -> Wizard arcane bond | E9: =IF($D9<>"",VLOOKUP($D9,table_attributesDATA_all,Attributes_DATA!AF$2,0),"") -> list_classesDATA2_arcanebonds | F9: Familiar | G9: no | J9: =IF($D9="","",IF(H9<>"",IF(VLOOKUP($D9,table_attributesDATA_all,Attributes_DATA!$AG$2,0)=0,VLOOKUP(H9,table_featsDATA_feats,Feats_DATA!T$4,0),VLOOKUP($D9,table_attributesDATA_all,Attributes_DATA!$AG$2,0)),VLOOKUP($D9,table_attributesDATA_all,Attributes_DATA!$AG$2,0))) -> list_familiarsDATA_all | K9: Hawk | L9: no | O9: =IF($D9="","",IF(K9<>"",IF(VLOOKUP($D9,table_attributesDATA_all,Attributes_DATA!$AH$2,0)=0,VLOOKUP(K9,table_featsDATA_feats,Feats_DATA!T$4,0),VLOOKUP($D9,table_attributesDATA_all,Attributes_DATA!$AH$2,0)),VLOOKUP($D9,table_attributesDATA_all,Attributes_DATA!$AH$2,0))) ->  | Q9: no | U9: 3 | W9: Hawk | Z9: 0 | AB9: 0 | AD9: 3 | AE9: Familiar | AF9: 1
A10: 4 | B10: 4 | C10: 1 | D10: =IF(Features_DATA!W8=0,"",Features_DATA!W8) ->  | E10: =IF($D10<>"",VLOOKUP($D10,table_attributesDATA_all,Attributes_DATA!AF$2,0),"") ->  | G10: no | J10: =IF($D10="","",IF(H10<>"",IF(VLOOKUP($D10,table_attributesDATA_all,Attributes_DATA!$AG$2,0)=0,VLOOKUP(H10,table_featsDATA_feats,Feats_DATA!T$4,0),VLOOKUP($D10,table_attributesDATA_all,Attributes_DATA!$AG$2,0)),VLOOKUP($D10,table_attributesDATA_all,Attributes_DATA!$AG$2,0))) ->  | L10: no | O10: =IF($D10="","",IF(K10<>"",IF(VLOOKUP($D10,table_attributesDATA_all,Attributes_DATA!$AH$2,0)=0,VLOOKUP(K10,table_featsDATA_feats,Feats_DATA!T$4,0),VLOOKUP($D10,table_attributesDATA_all,Attributes_DATA!$AH$2,0)),VLOOKUP($D10,table_attributesDATA_all,Attributes_DATA!$AH$2,0))) ->  | Q10: no | U10: 4 | Z10: 0 | AB10: 0 | AD10: 4 | AF10: 1
A11: 5 | B11: 5 | C11: 1 | D11: =IF(Features_DATA!W9=0,"",Features_DATA!W9) ->  | E11: =IF($D11<>"",VLOOKUP($D11,table_attributesDATA_all,Attributes_DATA!AF$2,0),"") ->  | G11: no | J11: =IF($D11="","",IF(H11<>"",IF(VLOOKUP($D11,table_attributesDATA_all,Attributes_DATA!$AG$2,0)=0,VLOOKUP(H11,table_featsDATA_feats,Feats_DATA!T$4,0),VLOOKUP($D11,table_attributesDATA_all,Attributes_DATA!$AG$2,0)),VLOOKUP($D11,table_attributesDATA_all,Attributes_DATA!$AG$2,0))) ->  | L11: no | O11: =IF($D11="","",IF(K11<>"",IF(VLOOKUP($D11,table_attributesDATA_all,Attributes_DATA!$AH$2,0)=0,VLOOKUP(K11,table_featsDATA_feats,Feats_DATA!T$4,0),VLOOKUP($D11,table_attributesDATA_all,Attributes_DATA!$AH$2,0)),VLOOKUP($D11,table_attributesDATA_all,Attributes_DATA!$AH$2,0))) ->  | Q11: no | U11: 5 | Z11: 0 | AB11: 0 | AD11: 5 | AF11: 1
A12: 6 | B12: 6 | C12: 1 | D12: =IF(Features_DATA!W10=0,"",Features_DATA!W10) ->  | E12: =IF($D12<>"",VLOOKUP($D12,table_attributesDATA_all,Attributes_DATA!AF$2,0),"") ->  | G12: no | J12: =IF($D12="","",IF(H12<>"",IF(VLOOKUP($D12,table_attributesDATA_all,Attributes_DATA!$AG$2,0)=0,VLOOKUP(H12,table_featsDATA_feats,Feats_DATA!T$4,0),VLOOKUP($D12,table_attributesDATA_all,Attributes_DATA!$AG$2,0)),VLOOKUP($D12,table_attributesDATA_all,Attributes_DATA!$AG$2,0))) ->  | L12: no | O12: =IF($D12="","",IF(K12<>"",IF(VLOOKUP($D12,table_attributesDATA_all,Attributes_DATA!$AH$2,0)=0,VLOOKUP(K12,table_featsDATA_feats,Feats_DATA!T$4,0),VLOOKUP($D12,table_attributesDATA_all,Attributes_DATA!$AH$2,0)),VLOOKUP($D12,table_attributesDATA_all,Attributes_DATA!$AH$2,0))) ->  | Q12: no | U12: 6 | Z12: 0 | AB12: 0 | AD12: 6 | AF12: 1
A13: 7 | B13: 7 | C13: 1 | D13: =IF(Features_DATA!W11=0,"",Features_DATA!W11) ->  | E13: =IF($D13<>"",VLOOKUP($D13,table_attributesDATA_all,Attributes_DATA!AF$2,0),"") ->  | G13: no | J13: =IF($D13="","",IF(H13<>"",IF(VLOOKUP($D13,table_attributesDATA_all,Attributes_DATA!$AG$2,0)=0,VLOOKUP(H13,table_featsDATA_feats,Feats_DATA!T$4,0),VLOOKUP($D13,table_attributesDATA_all,Attributes_DATA!$AG$2,0)),VLOOKUP($D13,table_attributesDATA_all,Attributes_DATA!$AG$2,0))) ->  | L13: no | O13: =IF($D13="","",IF(K13<>"",IF(VLOOKUP($D13,table_attributesDATA_all,Attributes_DATA!$AH$2,0)=0,VLOOKUP(K13,table_featsDATA_feats,Feats_DATA!T$4,0),VLOOKUP($D13,table_attributesDATA_all,Attributes_DATA!$AH$2,0)),VLOOKUP($D13,table_attributesDATA_all,Attributes_DATA!$AH$2,0))) ->  | Q13: no | U13: 7 | Z13: 0 | AB13: 0 | AD13: 7 | AF13: 1
A14: 8 | B14: 8 | C14: 1 | D14: =IF(Features_DATA!W12=0,"",Features_DATA!W12) ->  | E14: =IF($D14<>"",VLOOKUP($D14,table_attributesDATA_all,Attributes_DATA!AF$2,0),"") ->  | G14: no | J14: =IF($D14="","",IF(H14<>"",IF(VLOOKUP($D14,table_attributesDATA_all,Attributes_DATA!$AG$2,0)=0,VLOOKUP(H14,table_featsDATA_feats,Feats_DATA!T$4,0),VLOOKUP($D14,table_attributesDATA_all,Attributes_DATA!$AG$2,0)),VLOOKUP($D14,table_attributesDATA_all,Attributes_DATA!$AG$2,0))) ->  | L14: no | O14: =IF($D14="","",IF(K14<>"",IF(VLOOKUP($D14,table_attributesDATA_all,Attributes_DATA!$AH$2,0)=0,VLOOKUP(K14,table_featsDATA_feats,Feats_DATA!T$4,0),VLOOKUP($D14,table_attributesDATA_all,Attributes_DATA!$AH$2,0)),VLOOKUP($D14,table_attributesDATA_all,Attributes_DATA!$AH$2,0))) ->  | Q14: no | U14: 8 | Z14: 0 | AB14: 0 | AD14: 8 | AF14: 1
A15: 9 | B15: 1 | C15: 2 | D15: =IF(INDEX(Features_DATA!$AB$5:$DN$8,B15,((C15-1)*5)-4)=0,"",INDEX(Features_DATA!$AB$5:$DN$8,B15,((C15-1)*5)-4)) ->  | E15: =IF($D15<>"",VLOOKUP($D15,table_attributesDATA_all,Attributes_DATA!AF$2,0),"") ->  | G15: no | J15: =IF($D15="","",IF(H15<>"",IF(VLOOKUP($D15,table_attributesDATA_all,Attributes_DATA!$AG$2,0)=0,VLOOKUP(H15,table_featsDATA_feats,Feats_DATA!T$4,0),VLOOKUP($D15,table_attributesDATA_all,Attributes_DATA!$AG$2,0)),VLOOKUP($D15,table_attributesDATA_all,Attributes_DATA!$AG$2,0))) ->  | L15: no | O15: =IF($D15="","",IF(K15<>"",IF(VLOOKUP($D15,table_attributesDATA_all,Attributes_DATA!$AH$2,0)=0,VLOOKUP(K15,table_featsDATA_feats,Feats_DATA!T$4,0),VLOOKUP($D15,table_attributesDATA_all,Attributes_DATA!$AH$2,0)),VLOOKUP($D15,table_attributesDATA_all,Attributes_DATA!$AH$2,0))) ->  | Q15: no | U15: 9 | Z15: 0 | AB15: 0 | AD15: 9 | AF15: 2
A16: 10 | B16: 2 | C16: 2 | D16: =IF(INDEX(Features_DATA!$AB$5:$DN$8,B16,((C16-1)*5)-4)=0,"",INDEX(Features_DATA!$AB$5:$DN$8,B16,((C16-1)*5)-4)) ->  | E16: =IF($D16<>"",VLOOKUP($D16,table_attributesDATA_all,Attributes_DATA!AF$2,0),"") ->  | G16: no | J16: =IF($D16="","",IF(H16<>"",IF(VLOOKUP($D16,table_attributesDATA_all,Attributes_DATA!$AG$2,0)=0,VLOOKUP(H16,table_featsDATA_feats,Feats_DATA!T$4,0),VLOOKUP($D16,table_attributesDATA_all,Attributes_DATA!$AG$2,0)),VLOOKUP($D16,table_attributesDATA_all,Attributes_DATA!$AG$2,0))) ->  | L16: no | O16: =IF($D16="","",IF(K16<>"",IF(VLOOKUP($D16,table_attributesDATA_all,Attributes_DATA!$AH$2,0)=0,VLOOKUP(K16,table_featsDATA_feats,Feats_DATA!T$4,0),VLOOKUP($D16,table_attributesDATA_all,Attributes_DATA!$AH$2,0)),VLOOKUP($D16,table_attributesDATA_all,Attributes_DATA!$AH$2,0))) ->  | Q16: no | U16: 10 | Z16: 0 | AB16: 0 | AD16: 10 | AF16: 2
A17: 11 | B17: 3 | C17: 2 | D17: =IF(INDEX(Features_DATA!$AB$5:$DN$8,B17,((C17-1)*5)-4)=0,"",INDEX(Features_DATA!$AB$5:$DN$8,B17,((C17-1)*5)-4)) ->  | E17: =IF($D17<>"",VLOOKUP($D17,table_attributesDATA_all,Attributes_DATA!AF$2,0),"") ->  | G17: no | J17: =IF($D17="","",IF(H17<>"",IF(VLOOKUP($D17,table_attributesDATA_all,Attributes_DATA!$AG$2,0)=0,VLOOKUP(H17,table_featsDATA_feats,Feats_DATA!T$4,0),VLOOKUP($D17,table_attributesDATA_all,Attributes_DATA!$AG$2,0)),VLOOKUP($D17,table_attributesDATA_all,Attributes_DATA!$AG$2,0))) ->  | L17: no | O17: =IF($D17="","",IF(K17<>"",IF(VLOOKUP($D17,table_attributesDATA_all,Attributes_DATA!$AH$2,0)=0,VLOOKUP(K17,table_featsDATA_feats,Feats_DATA!T$4,0),VLOOKUP($D17,table_attributesDATA_all,Attributes_DATA!$AH$2,0)),VLOOKUP($D17,table_attributesDATA_all,Attributes_DATA!$AH$2,0))) ->  | Q17: no | U17: 11 | Z17: 0 | AB17: 0 | AD17: 11 | AF17: 2
A18: 12 | B18: 4 | C18: 2 | D18: =IF(INDEX(Features_DATA!$AB$5:$DN$8,B18,((C18-1)*5)-4)=0,"",INDEX(Features_DATA!$AB$5:$DN$8,B18,((C18-1)*5)-4)) ->  | E18: =IF($D18<>"",VLOOKUP($D18,table_attributesDATA_all,Attributes_DATA!AF$2,0),"") ->  | G18: no | J18: =IF($D18="","",IF(H18<>"",IF(VLOOKUP($D18,table_attributesDATA_all,Attributes_DATA!$AG$2,0)=0,VLOOKUP(H18,table_featsDATA_feats,Feats_DATA!T$4,0),VLOOKUP($D18,table_attributesDATA_all,Attributes_DATA!$AG$2,0)),VLOOKUP($D18,table_attributesDATA_all,Attributes_DATA!$AG$2,0))) ->  | L18: no | O18: =IF($D18="","",IF(K18<>"",IF(VLOOKUP($D18,table_attributesDATA_all,Attributes_DATA!$AH$2,0)=0,VLOOKUP(K18,table_featsDATA_feats,Feats_DATA!T$4,0),VLOOKUP($D18,table_attributesDATA_all,Attributes_DATA!$AH$2,0)),VLOOKUP($D18,table_attributesDATA_all,Attributes_DATA!$AH$2,0))) ->  | Q18: no | U18: 12 | Z18: 0 | AB18: 0 | AD18: 12 | AF18: 2
A19: 13 | B19: 1 | C19: 3 | D19: =IF(INDEX(Features_DATA!$AB$5:$DN$8,B19,((C19-1)*5)-4)=0,"",INDEX(Features_DATA!$AB$5:$DN$8,B19,((C19-1)*5)-4)) ->  | E19: =IF($D19<>"",VLOOKUP($D19,table_attributesDATA_all,Attributes_DATA!AF$2,0),"") ->  | G19: no | J19: =IF($D19="","",IF(H19<>"",IF(VLOOKUP($D19,table_attributesDATA_all,Attributes_DATA!$AG$2,0)=0,VLOOKUP(H19,table_featsDATA_feats,Feats_DATA!T$4,0),VLOOKUP($D19,table_attributesDATA_all,Attributes_DATA!$AG$2,0)),VLOOKUP($D19,table_attributesDATA_all,Attributes_DATA!$AG$2,0))) ->  | L19: no | O19: =IF($D19="","",IF(K19<>"",IF(VLOOKUP($D19,table_attributesDATA_all,Attributes_DATA!$AH$2,0)=0,VLOOKUP(K19,table_featsDATA_feats,Feats_DATA!T$4,0),VLOOKUP($D19,table_attributesDATA_all,Attributes_DATA!$AH$2,0)),VLOOKUP($D19,table_attributesDATA_all,Attributes_DATA!$AH$2,0))) ->  | Q19: no | U19: 13 | Z19: 0 | AB19: 0 | AD19: 13 | AF19: 3
A20: 14 | B20: 2 | C20: 3 | D20: =IF(INDEX(Features_DATA!$AB$5:$DN$8,B20,((C20-1)*5)-4)=0,"",INDEX(Features_DATA!$AB$5:$DN$8,B20,((C20-1)*5)-4)) ->  | E20: =IF($D20<>"",VLOOKUP($D20,table_attributesDATA_all,Attributes_DATA!AF$2,0),"") ->  | G20: no | J20: =IF($D20="","",IF(H20<>"",IF(VLOOKUP($D20,table_attributesDATA_all,Attributes_DATA!$AG$2,0)=0,VLOOKUP(H20,table_featsDATA_feats,Feats_DATA!T$4,0),VLOOKUP($D20,table_attributesDATA_all,Attributes_DATA!$AG$2,0)),VLOOKUP($D20,table_attributesDATA_all,Attributes_DATA!$AG$2,0))) ->  | L20: no | O20: =IF($D20="","",IF(K20<>"",IF(VLOOKUP($D20,table_attributesDATA_all,Attributes_DATA!$AH$2,0)=0,VLOOKUP(K20,table_featsDATA_feats,Feats_DATA!T$4,0),VLOOKUP($D20,table_attributesDATA_all,Attributes_DATA!$AH$2,0)),VLOOKUP($D20,table_attributesDATA_all,Attributes_DATA!$AH$2,0))) ->  | Q20: no | U20: 14 | Z20: 0 | AB20: 0 | AD20: 14 | AF20: 3
A21: 15 | B21: 3 | C21: 3 | D21: =IF(INDEX(Features_DATA!$AB$5:$DN$8,B21,((C21-1)*5)-4)=0,"",INDEX(Features_DATA!$AB$5:$DN$8,B21,((C21-1)*5)-4)) ->  | E21: =IF($D21<>"",VLOOKUP($D21,table_attributesDATA_all,Attributes_DATA!AF$2,0),"") ->  | G21: no | J21: =IF($D21="","",IF(H21<>"",IF(VLOOKUP($D21,table_attributesDATA_all,Attributes_DATA!$AG$2,0)=0,VLOOKUP(H21,table_featsDATA_feats,Feats_DATA!T$4,0),VLOOKUP($D21,table_attributesDATA_all,Attributes_DATA!$AG$2,0)),VLOOKUP($D21,table_attributesDATA_all,Attributes_DATA!$AG$2,0))) ->  | L21: no | O21: =IF($D21="","",IF(K21<>"",IF(VLOOKUP($D21,table_attributesDATA_all,Attributes_DATA!$AH$2,0)=0,VLOOKUP(K21,table_featsDATA_feats,Feats_DATA!T$4,0),VLOOKUP($D21,table_attributesDATA_all,Attributes_DATA!$AH$2,0)),VLOOKUP($D21,table_attributesDATA_all,Attributes_DATA!$AH$2,0))) ->  | Q21: no | U21: 15 | Z21: 0 | AB21: 0 | AD21: 15 | AF21: 3
A22: 16 | B22: 4 | C22: 3 | D22: =IF(INDEX(Features_DATA!$AB$5:$DN$8,B22,((C22-1)*5)-4)=0,"",INDEX(Features_DATA!$AB$5:$DN$8,B22,((C22-1)*5)-4)) ->  | E22: =IF($D22<>"",VLOOKUP($D22,table_attributesDATA_all,Attributes_DATA!AF$2,0),"") ->  | G22: no | J22: =IF($D22="","",IF(H22<>"",IF(VLOOKUP($D22,table_attributesDATA_all,Attributes_DATA!$AG$2,0)=0,VLOOKUP(H22,table_featsDATA_feats,Feats_DATA!T$4,0),VLOOKUP($D22,table_attributesDATA_all,Attributes_DATA!$AG$2,0)),VLOOKUP($D22,table_attributesDATA_all,Attributes_DATA!$AG$2,0))) ->  | L22: no | O22: =IF($D22="","",IF(K22<>"",IF(VLOOKUP($D22,table_attributesDATA_all,Attributes_DATA!$AH$2,0)=0,VLOOKUP(K22,table_featsDATA_feats,Feats_DATA!T$4,0),VLOOKUP($D22,table_attributesDATA_all,Attributes_DATA!$AH$2,0)),VLOOKUP($D22,table_attributesDATA_all,Attributes_DATA!$AH$2,0))) ->  | Q22: no | U22: 16 | Z22: 0 | AB22: 0 | AD22: 16 | AF22: 3
A23: 17 | B23: 1 | C23: 4 | D23: =IF(INDEX(Features_DATA!$AB$5:$DN$8,B23,((C23-1)*5)-4)=0,"",INDEX(Features_DATA!$AB$5:$DN$8,B23,((C23-1)*5)-4)) ->  | E23: =IF($D23<>"",VLOOKUP($D23,table_attributesDATA_all,Attributes_DATA!AF$2,0),"") ->  | G23: no | J23: =IF($D23="","",IF(H23<>"",IF(VLOOKUP($D23,table_attributesDATA_all,Attributes_DATA!$AG$2,0)=0,VLOOKUP(H23,table_featsDATA_feats,Feats_DATA!T$4,0),VLOOKUP($D23,table_attributesDATA_all,Attributes_DATA!$AG$2,0)),VLOOKUP($D23,table_attributesDATA_all,Attributes_DATA!$AG$2,0))) ->  | L23: no | O23: =IF($D23="","",IF(K23<>"",IF(VLOOKUP($D23,table_attributesDATA_all,Attributes_DATA!$AH$2,0)=0,VLOOKUP(K23,table_featsDATA_feats,Feats_DATA!T$4,0),VLOOKUP($D23,table_attributesDATA_all,Attributes_DATA!$AH$2,0)),VLOOKUP($D23,table_attributesDATA_all,Attributes_DATA!$AH$2,0))) ->  | Q23: no | U23: 17 | Z23: 0 | AB23: 0 | AD23: 17 | AF23: 4
A24: 18 | B24: 2 | C24: 4 | D24: =IF(INDEX(Features_DATA!$AB$5:$DN$8,B24,((C24-1)*5)-4)=0,"",INDEX(Features_DATA!$AB$5:$DN$8,B24,((C24-1)*5)-4)) ->  | E24: =IF($D24<>"",VLOOKUP($D24,table_attributesDATA_all,Attributes_DATA!AF$2,0),"") ->  | G24: no | J24: =IF($D24="","",IF(H24<>"",IF(VLOOKUP($D24,table_attributesDATA_all,Attributes_DATA!$AG$2,0)=0,VLOOKUP(H24,table_featsDATA_feats,Feats_DATA!T$4,0),VLOOKUP($D24,table_attributesDATA_all,Attributes_DATA!$AG$2,0)),VLOOKUP($D24,table_attributesDATA_all,Attributes_DATA!$AG$2,0))) ->  | L24: no | O24: =IF($D24="","",IF(K24<>"",IF(VLOOKUP($D24,table_attributesDATA_all,Attributes_DATA!$AH$2,0)=0,VLOOKUP(K24,table_featsDATA_feats,Feats_DATA!T$4,0),VLOOKUP($D24,table_attributesDATA_all,Attributes_DATA!$AH$2,0)),VLOOKUP($D24,table_attributesDATA_all,Attributes_DATA!$AH$2,0))) ->  | Q24: no | U24: 18 | Z24: 0 | AB24: 0 | AD24: 18 | AF24: 4
A25: 19 | B25: 3 | C25: 4 | D25: =IF(INDEX(Features_DATA!$AB$5:$DN$8,B25,((C25-1)*5)-4)=0,"",INDEX(Features_DATA!$AB$5:$DN$8,B25,((C25-1)*5)-4)) ->  | E25: =IF($D25<>"",VLOOKUP($D25,table_attributesDATA_all,Attributes_DATA!AF$2,0),"") ->  | G25: no | J25: =IF($D25="","",IF(H25<>"",IF(VLOOKUP($D25,table_attributesDATA_all,Attributes_DATA!$AG$2,0)=0,VLOOKUP(H25,table_featsDATA_feats,Feats_DATA!T$4,0),VLOOKUP($D25,table_attributesDATA_all,Attributes_DATA!$AG$2,0)),VLOOKUP($D25,table_attributesDATA_all,Attributes_DATA!$AG$2,0))) ->  | L25: no | O25: =IF($D25="","",IF(K25<>"",IF(VLOOKUP($D25,table_attributesDATA_all,Attributes_DATA!$AH$2,0)=0,VLOOKUP(K25,table_featsDATA_feats,Feats_DATA!T$4,0),VLOOKUP($D25,table_attributesDATA_all,Attributes_DATA!$AH$2,0)),VLOOKUP($D25,table_attributesDATA_all,Attributes_DATA!$AH$2,0))) ->  | Q25: no | U25: 19 | Z25: 0 | AB25: 0 | AD25: 19 | AF25: 4
A26: 20 | B26: 4 | C26: 4 | D26: =IF(INDEX(Features_DATA!$AB$5:$DN$8,B26,((C26-1)*5)-4)=0,"",INDEX(Features_DATA!$AB$5:$DN$8,B26,((C26-1)*5)-4)) ->  | E26: =IF($D26<>"",VLOOKUP($D26,table_attributesDATA_all,Attributes_DATA!AF$2,0),"") ->  | G26: no | J26: =IF($D26="","",IF(H26<>"",IF(VLOOKUP($D26,table_attributesDATA_all,Attributes_DATA!$AG$2,0)=0,VLOOKUP(H26,table_featsDATA_feats,Feats_DATA!T$4,0),VLOOKUP($D26,table_attributesDATA_all,Attributes_DATA!$AG$2,0)),VLOOKUP($D26,table_attributesDATA_all,Attributes_DATA!$AG$2,0))) ->  | L26: no | O26: =IF($D26="","",IF(K26<>"",IF(VLOOKUP($D26,table_attributesDATA_all,Attributes_DATA!$AH$2,0)=0,VLOOKUP(K26,table_featsDATA_feats,Feats_DATA!T$4,0),VLOOKUP($D26,table_attributesDATA_all,Attributes_DATA!$AH$2,0)),VLOOKUP($D26,table_attributesDATA_all,Attributes_DATA!$AH$2,0))) ->  | Q26: no | U26: 20 | Z26: 0 | AB26: 0 | AD26: 20 | AF26: 4
A27: 21 | B27: 1 | C27: 5 | D27: =IF(INDEX(Features_DATA!$AB$5:$DN$8,B27,((C27-1)*5)-4)=0,"",INDEX(Features_DATA!$AB$5:$DN$8,B27,((C27-1)*5)-4)) ->  | E27: =IF($D27<>"",VLOOKUP($D27,table_attributesDATA_all,Attributes_DATA!AF$2,0),"") ->  | G27: no | J27: =IF($D27="","",IF(H27<>"",IF(VLOOKUP($D27,table_attributesDATA_all,Attributes_DATA!$AG$2,0)=0,VLOOKUP(H27,table_featsDATA_feats,Feats_DATA!T$4,0),VLOOKUP($D27,table_attributesDATA_all,Attributes_DATA!$AG$2,0)),VLOOKUP($D27,table_attributesDATA_all,Attributes_DATA!$AG$2,0))) ->  | L27: no | O27: =IF($D27="","",IF(K27<>"",IF(VLOOKUP($D27,table_attributesDATA_all,Attributes_DATA!$AH$2,0)=0,VLOOKUP(K27,table_featsDATA_feats,Feats_DATA!T$4,0),VLOOKUP($D27,table_attributesDATA_all,Attributes_DATA!$AH$2,0)),VLOOKUP($D27,table_attributesDATA_all,Attributes_DATA!$AH$2,0))) ->  | Q27: no | U27: 21 | Z27: 0 | AB27: 0 | AD27: 21 | AF27: 5
A28: 22 | B28: 2 | C28: 5 | D28: =IF(INDEX(Features_DATA!$AB$5:$DN$8,B28,((C28-1)*5)-4)=0,"",INDEX(Features_DATA!$AB$5:$DN$8,B28,((C28-1)*5)-4)) ->  | E28: =IF($D28<>"",VLOOKUP($D28,table_attributesDATA_all,Attributes_DATA!AF$2,0),"") ->  | G28: no | J28: =IF($D28="","",IF(H28<>"",IF(VLOOKUP($D28,table_attributesDATA_all,Attributes_DATA!$AG$2,0)=0,VLOOKUP(H28,table_featsDATA_feats,Feats_DATA!T$4,0),VLOOKUP($D28,table_attributesDATA_all,Attributes_DATA!$AG$2,0)),VLOOKUP($D28,table_attributesDATA_all,Attributes_DATA!$AG$2,0))) ->  | L28: no | O28: =IF($D28="","",IF(K28<>"",IF(VLOOKUP($D28,table_attributesDATA_all,Attributes_DATA!$AH$2,0)=0,VLOOKUP(K28,table_featsDATA_feats,Feats_DATA!T$4,0),VLOOKUP($D28,table_attributesDATA_all,Attributes_DATA!$AH$2,0)),VLOOKUP($D28,table_attributesDATA_all,Attributes_DATA!$AH$2,0))) ->  | Q28: no | U28: 22 | Z28: 0 | AB28: 0 | AD28: 22 | AF28: 5
A29: 23 | B29: 3 | C29: 5 | D29: =IF(INDEX(Features_DATA!$AB$5:$DN$8,B29,((C29-1)*5)-4)=0,"",INDEX(Features_DATA!$AB$5:$DN$8,B29,((C29-1)*5)-4)) ->  | E29: =IF($D29<>"",VLOOKUP($D29,table_attributesDATA_all,Attributes_DATA!AF$2,0),"") ->  | G29: no | J29: =IF($D29="","",IF(H29<>"",IF(VLOOKUP($D29,table_attributesDATA_all,Attributes_DATA!$AG$2,0)=0,VLOOKUP(H29,table_featsDATA_feats,Feats_DATA!T$4,0),VLOOKUP($D29,table_attributesDATA_all,Attributes_DATA!$AG$2,0)),VLOOKUP($D29,table_attributesDATA_all,Attributes_DATA!$AG$2,0))) ->  | L29: no | O29: =IF($D29="","",IF(K29<>"",IF(VLOOKUP($D29,table_attributesDATA_all,Attributes_DATA!$AH$2,0)=0,VLOOKUP(K29,table_featsDATA_feats,Feats_DATA!T$4,0),VLOOKUP($D29,table_attributesDATA_all,Attributes_DATA!$AH$2,0)),VLOOKUP($D29,table_attributesDATA_all,Attributes_DATA!$AH$2,0))) ->  | Q29: no | U29: 23 | Z29: 0 | AB29: 0 | AD29: 23 | AF29: 5
A30: 24 | B30: 4 | C30: 5 | D30: =IF(INDEX(Features_DATA!$AB$5:$DN$8,B30,((C30-1)*5)-4)=0,"",INDEX(Features_DATA!$AB$5:$DN$8,B30,((C30-1)*5)-4)) ->  | E30: =IF($D30<>"",VLOOKUP($D30,table_attributesDATA_all,Attributes_DATA!AF$2,0),"") ->  | G30: no | J30: =IF($D30="","",IF(H30<>"",IF(VLOOKUP($D30,table_attributesDATA_all,Attributes_DATA!$AG$2,0)=0,VLOOKUP(H30,table_featsDATA_feats,Feats_DATA!T$4,0),VLOOKUP($D30,table_attributesDATA_all,Attributes_DATA!$AG$2,0)),VLOOKUP($D30,table_attributesDATA_all,Attributes_DATA!$AG$2,0))) ->  | L30: no | O30: =IF($D30="","",IF(K30<>"",IF(VLOOKUP($D30,table_attributesDATA_all,Attributes_DATA!$AH$2,0)=0,VLOOKUP(K30,table_featsDATA_feats,Feats_DATA!T$4,0),VLOOKUP($D30,table_attributesDATA_all,Attributes_DATA!$AH$2,0)),VLOOKUP($D30,table_attributesDATA_all,Attributes_DATA!$AH$2,0))) ->  | Q30: no | U30: 24 | Z30: 0 | AB30: 0 | AD30: 24 | AF30: 5
A31: 25 | B31: 1 | C31: 6 | D31: =IF(INDEX(Features_DATA!$AB$5:$DN$8,B31,((C31-1)*5)-4)=0,"",INDEX(Features_DATA!$AB$5:$DN$8,B31,((C31-1)*5)-4)) ->  | E31: =IF($D31<>"",VLOOKUP($D31,table_attributesDATA_all,Attributes_DATA!AF$2,0),"") ->  | G31: no | J31: =IF($D31="","",IF(H31<>"",IF(VLOOKUP($D31,table_attributesDATA_all,Attributes_DATA!$AG$2,0)=0,VLOOKUP(H31,table_featsDATA_feats,Feats_DATA!T$4,0),VLOOKUP($D31,table_attributesDATA_all,Attributes_DATA!$AG$2,0)),VLOOKUP($D31,table_attributesDATA_all,Attributes_DATA!$AG$2,0))) ->  | L31: no | O31: =IF($D31="","",IF(K31<>"",IF(VLOOKUP($D31,table_attributesDATA_all,Attributes_DATA!$AH$2,0)=0,VLOOKUP(K31,table_featsDATA_feats,Feats_DATA!T$4,0),VLOOKUP($D31,table_attributesDATA_all,Attributes_DATA!$AH$2,0)),VLOOKUP($D31,table_attributesDATA_all,Attributes_DATA!$AH$2,0))) ->  | Q31: no | U31: 25 | Z31: 0 | AB31: 0 | AD31: 25 | AF31: 6
A32: 26 | B32: 2 | C32: 6 | D32: =IF(INDEX(Features_DATA!$AB$5:$DN$8,B32,((C32-1)*5)-4)=0,"",INDEX(Features_DATA!$AB$5:$DN$8,B32,((C32-1)*5)-4)) ->  | E32: =IF($D32<>"",VLOOKUP($D32,table_attributesDATA_all,Attributes_DATA!AF$2,0),"") ->  | G32: no | J32: =IF($D32="","",IF(H32<>"",IF(VLOOKUP($D32,table_attributesDATA_all,Attributes_DATA!$AG$2,0)=0,VLOOKUP(H32,table_featsDATA_feats,Feats_DATA!T$4,0),VLOOKUP($D32,table_attributesDATA_all,Attributes_DATA!$AG$2,0)),VLOOKUP($D32,table_attributesDATA_all,Attributes_DATA!$AG$2,0))) ->  | L32: no | O32: =IF($D32="","",IF(K32<>"",IF(VLOOKUP($D32,table_attributesDATA_all,Attributes_DATA!$AH$2,0)=0,VLOOKUP(K32,table_featsDATA_feats,Feats_DATA!T$4,0),VLOOKUP($D32,table_attributesDATA_all,Attributes_DATA!$AH$2,0)),VLOOKUP($D32,table_attributesDATA_all,Attributes_DATA!$AH$2,0))) ->  | Q32: no | U32: 26 | Z32: 0 | AB32: 0 | AD32: 26 | AF32: 6
A33: 27 | B33: 3 | C33: 6 | D33: =IF(INDEX(Features_DATA!$AB$5:$DN$8,B33,((C33-1)*5)-4)=0,"",INDEX(Features_DATA!$AB$5:$DN$8,B33,((C33-1)*5)-4)) ->  | E33: =IF($D33<>"",VLOOKUP($D33,table_attributesDATA_all,Attributes_DATA!AF$2,0),"") ->  | G33: no | J33: =IF($D33="","",IF(H33<>"",IF(VLOOKUP($D33,table_attributesDATA_all,Attributes_DATA!$AG$2,0)=0,VLOOKUP(H33,table_featsDATA_feats,Feats_DATA!T$4,0),VLOOKUP($D33,table_attributesDATA_all,Attributes_DATA!$AG$2,0)),VLOOKUP($D33,table_attributesDATA_all,Attributes_DATA!$AG$2,0))) ->  | L33: no | O33: =IF($D33="","",IF(K33<>"",IF(VLOOKUP($D33,table_attributesDATA_all,Attributes_DATA!$AH$2,0)=0,VLOOKUP(K33,table_featsDATA_feats,Feats_DATA!T$4,0),VLOOKUP($D33,table_attributesDATA_all,Attributes_DATA!$AH$2,0)),VLOOKUP($D33,table_attributesDATA_all,Attributes_DATA!$AH$2,0))) ->  | Q33: no | U33: 27 | Z33: 0 | AB33: 0 | AD33: 27 | AF33: 6
A34: 28 | B34: 4 | C34: 6 | D34: =IF(INDEX(Features_DATA!$AB$5:$DN$8,B34,((C34-1)*5)-4)=0,"",INDEX(Features_DATA!$AB$5:$DN$8,B34,((C34-1)*5)-4)) ->  | E34: =IF($D34<>"",VLOOKUP($D34,table_attributesDATA_all,Attributes_DATA!AF$2,0),"") ->  | G34: no | J34: =IF($D34="","",IF(H34<>"",IF(VLOOKUP($D34,table_attributesDATA_all,Attributes_DATA!$AG$2,0)=0,VLOOKUP(H34,table_featsDATA_feats,Feats_DATA!T$4,0),VLOOKUP($D34,table_attributesDATA_all,Attributes_DATA!$AG$2,0)),VLOOKUP($D34,table_attributesDATA_all,Attributes_DATA!$AG$2,0))) ->  | L34: no | O34: =IF($D34="","",IF(K34<>"",IF(VLOOKUP($D34,table_attributesDATA_all,Attributes_DATA!$AH$2,0)=0,VLOOKUP(K34,table_featsDATA_feats,Feats_DATA!T$4,0),VLOOKUP($D34,table_attributesDATA_all,Attributes_DATA!$AH$2,0)),VLOOKUP($D34,table_attributesDATA_all,Attributes_DATA!$AH$2,0))) ->  | Q34: no | U34: 28 | Z34: 0 | AB34: 0 | AD34: 28 | AF34: 6
A35: 29 | B35: 1 | C35: 7 | D35: =IF(INDEX(Features_DATA!$AB$5:$DN$8,B35,((C35-1)*5)-4)=0,"",INDEX(Features_DATA!$AB$5:$DN$8,B35,((C35-1)*5)-4)) ->  | E35: =IF($D35<>"",VLOOKUP($D35,table_attributesDATA_all,Attributes_DATA!AF$2,0),"") ->  | G35: no | J35: =IF($D35="","",IF(H35<>"",IF(VLOOKUP($D35,table_attributesDATA_all,Attributes_DATA!$AG$2,0)=0,VLOOKUP(H35,table_featsDATA_feats,Feats_DATA!T$4,0),VLOOKUP($D35,table_attributesDATA_all,Attributes_DATA!$AG$2,0)),VLOOKUP($D35,table_attributesDATA_all,Attributes_DATA!$AG$2,0))) ->  | L35: no | O35: =IF($D35="","",IF(K35<>"",IF(VLOOKUP($D35,table_attributesDATA_all,Attributes_DATA!$AH$2,0)=0,VLOOKUP(K35,table_featsDATA_feats,Feats_DATA!T$4,0),VLOOKUP($D35,table_attributesDATA_all,Attributes_DATA!$AH$2,0)),VLOOKUP($D35,table_attributesDATA_all,Attributes_DATA!$AH$2,0))) ->  | Q35: no | U35: 29 | Z35: 0 | AB35: 0 | AD35: 29 | AF35: 7
A36: 30 | B36: 2 | C36: 7 | D36: =IF(INDEX(Features_DATA!$AB$5:$DN$8,B36,((C36-1)*5)-4)=0,"",INDEX(Features_DATA!$AB$5:$DN$8,B36,((C36-1)*5)-4)) ->  | E36: =IF($D36<>"",VLOOKUP($D36,table_attributesDATA_all,Attributes_DATA!AF$2,0),"") ->  | G36: no | J36: =IF($D36="","",IF(H36<>"",IF(VLOOKUP($D36,table_attributesDATA_all,Attributes_DATA!$AG$2,0)=0,VLOOKUP(H36,table_featsDATA_feats,Feats_DATA!T$4,0),VLOOKUP($D36,table_attributesDATA_all,Attributes_DATA!$AG$2,0)),VLOOKUP($D36,table_attributesDATA_all,Attributes_DATA!$AG$2,0))) ->  | L36: no | O36: =IF($D36="","",IF(K36<>"",IF(VLOOKUP($D36,table_attributesDATA_all,Attributes_DATA!$AH$2,0)=0,VLOOKUP(K36,table_featsDATA_feats,Feats_DATA!T$4,0),VLOOKUP($D36,table_attributesDATA_all,Attributes_DATA!$AH$2,0)),VLOOKUP($D36,table_attributesDATA_all,Attributes_DATA!$AH$2,0))) ->  | Q36: no | U36: 30 | Z36: 0 | AB36: 0 | AD36: 30 | AF36: 7
A37: 31 | B37: 3 | C37: 7 | D37: =IF(INDEX(Features_DATA!$AB$5:$DN$8,B37,((C37-1)*5)-4)=0,"",INDEX(Features_DATA!$AB$5:$DN$8,B37,((C37-1)*5)-4)) ->  | E37: =IF($D37<>"",VLOOKUP($D37,table_attributesDATA_all,Attributes_DATA!AF$2,0),"") ->  | G37: no | J37: =IF($D37="","",IF(H37<>"",IF(VLOOKUP($D37,table_attributesDATA_all,Attributes_DATA!$AG$2,0)=0,VLOOKUP(H37,table_featsDATA_feats,Feats_DATA!T$4,0),VLOOKUP($D37,table_attributesDATA_all,Attributes_DATA!$AG$2,0)),VLOOKUP($D37,table_attributesDATA_all,Attributes_DATA!$AG$2,0))) ->  | L37: no | O37: =IF($D37="","",IF(K37<>"",IF(VLOOKUP($D37,table_attributesDATA_all,Attributes_DATA!$AH$2,0)=0,VLOOKUP(K37,table_featsDATA_feats,Feats_DATA!T$4,0),VLOOKUP($D37,table_attributesDATA_all,Attributes_DATA!$AH$2,0)),VLOOKUP($D37,table_attributesDATA_all,Attributes_DATA!$AH$2,0))) ->  | Q37: no | U37: 31 | Z37: 0 | AB37: 0 | AD37: 31 | AF37: 7
A38: 32 | B38: 4 | C38: 7 | D38: =IF(INDEX(Features_DATA!$AB$5:$DN$8,B38,((C38-1)*5)-4)=0,"",INDEX(Features_DATA!$AB$5:$DN$8,B38,((C38-1)*5)-4)) ->  | E38: =IF($D38<>"",VLOOKUP($D38,table_attributesDATA_all,Attributes_DATA!AF$2,0),"") ->  | G38: no | J38: =IF($D38="","",IF(H38<>"",IF(VLOOKUP($D38,table_attributesDATA_all,Attributes_DATA!$AG$2,0)=0,VLOOKUP(H38,table_featsDATA_feats,Feats_DATA!T$4,0),VLOOKUP($D38,table_attributesDATA_all,Attributes_DATA!$AG$2,0)),VLOOKUP($D38,table_attributesDATA_all,Attributes_DATA!$AG$2,0))) ->  | L38: no | O38: =IF($D38="","",IF(K38<>"",IF(VLOOKUP($D38,table_attributesDATA_all,Attributes_DATA!$AH$2,0)=0,VLOOKUP(K38,table_featsDATA_feats,Feats_DATA!T$4,0),VLOOKUP($D38,table_attributesDATA_all,Attributes_DATA!$AH$2,0)),VLOOKUP($D38,table_attributesDATA_all,Attributes_DATA!$AH$2,0))) ->  | Q38: no | U38: 32 | Z38: 0 | AB38: 0 | AD38: 32 | AF38: 7
A39: 33 | B39: 1 | C39: 8 | D39: =IF(INDEX(Features_DATA!$AB$5:$DN$8,B39,((C39-1)*5)-4)=0,"",INDEX(Features_DATA!$AB$5:$DN$8,B39,((C39-1)*5)-4)) ->  | E39: =IF($D39<>"",VLOOKUP($D39,table_attributesDATA_all,Attributes_DATA!AF$2,0),"") ->  | F39: =VLOOKUP($A39,table_levels_featuresselected,2,0) ->  | G39: no | J39: =IF($D39="","",IF(H39<>"",IF(VLOOKUP($D39,table_attributesDATA_all,Attributes_DATA!$AG$2,0)=0,VLOOKUP(H39,table_featsDATA_feats,Feats_DATA!T$4,0),VLOOKUP($D39,table_attributesDATA_all,Attributes_DATA!$AG$2,0)),VLOOKUP($D39,table_attributesDATA_all,Attributes_DATA!$AG$2,0))) ->  | K39: =VLOOKUP($A39,table_levels_featuresselected,3,0) ->  | L39: no | O39: =IF($D39="","",IF(K39<>"",IF(VLOOKUP($D39,table_attributesDATA_all,Attributes_DATA!$AH$2,0)=0,VLOOKUP(K39,table_featsDATA_feats,Feats_DATA!T$4,0),VLOOKUP($D39,table_attributesDATA_all,Attributes_DATA!$AH$2,0)),VLOOKUP($D39,table_attributesDATA_all,Attributes_DATA!$AH$2,0))) ->  | P39: =VLOOKUP($A39,table_levels_featuresselected,4,0) ->  | Q39: no | U39: 33 | Z39: 0 | AB39: 0 | AD39: 33 | AF39: 8
A40: 34 | B40: 2 | C40: 8 | D40: =IF(INDEX(Features_DATA!$AB$5:$DN$8,B40,((C40-1)*5)-4)=0,"",INDEX(Features_DATA!$AB$5:$DN$8,B40,((C40-1)*5)-4)) ->  | E40: =IF($D40<>"",VLOOKUP($D40,table_attributesDATA_all,Attributes_DATA!AF$2,0),"") ->  | G40: no | J40: =IF($D40="","",IF(H40<>"",IF(VLOOKUP($D40,table_attributesDATA_all,Attributes_DATA!$AG$2,0)=0,VLOOKUP(H40,table_featsDATA_feats,Feats_DATA!T$4,0),VLOOKUP($D40,table_attributesDATA_all,Attributes_DATA!$AG$2,0)),VLOOKUP($D40,table_attributesDATA_all,Attributes_DATA!$AG$2,0))) ->  | L40: no | O40: =IF($D40="","",IF(K40<>"",IF(VLOOKUP($D40,table_attributesDATA_all,Attributes_DATA!$AH$2,0)=0,VLOOKUP(K40,table_featsDATA_feats,Feats_DATA!T$4,0),VLOOKUP($D40,table_attributesDATA_all,Attributes_DATA!$AH$2,0)),VLOOKUP($D40,table_attributesDATA_all,Attributes_DATA!$AH$2,0))) ->  | Q40: no | U40: 34 | Z40: 0 | AB40: 0 | AD40: 34 | AF40: 8
A41: 35 | B41: 3 | C41: 8 | D41: =IF(INDEX(Features_DATA!$AB$5:$DN$8,B41,((C41-1)*5)-4)=0,"",INDEX(Features_DATA!$AB$5:$DN$8,B41,((C41-1)*5)-4)) ->  | E41: =IF($D41<>"",VLOOKUP($D41,table_attributesDATA_all,Attributes_DATA!AF$2,0),"") ->  | G41: no | J41: =IF($D41="","",IF(H41<>"",IF(VLOOKUP($D41,table_attributesDATA_all,Attributes_DATA!$AG$2,0)=0,VLOOKUP(H41,table_featsDATA_feats,Feats_DATA!T$4,0),VLOOKUP($D41,table_attributesDATA_all,Attributes_DATA!$AG$2,0)),VLOOKUP($D41,table_attributesDATA_all,Attributes_DATA!$AG$2,0))) ->  | L41: no | O41: =IF($D41="","",IF(K41<>"",IF(VLOOKUP($D41,table_attributesDATA_all,Attributes_DATA!$AH$2,0)=0,VLOOKUP(K41,table_featsDATA_feats,Feats_DATA!T$4,0),VLOOKUP($D41,table_attributesDATA_all,Attributes_DATA!$AH$2,0)),VLOOKUP($D41,table_attributesDATA_all,Attributes_DATA!$AH$2,0))) ->  | Q41: no | U41: 35 | Z41: 0 | AB41: 0 | AD41: 35 | AF41: 8
A42: 36 | B42: 4 | C42: 8 | D42: =IF(INDEX(Features_DATA!$AB$5:$DN$8,B42,((C42-1)*5)-4)=0,"",INDEX(Features_DATA!$AB$5:$DN$8,B42,((C42-1)*5)-4)) ->  | E42: =IF($D42<>"",VLOOKUP($D42,table_attributesDATA_all,Attributes_DATA!AF$2,0),"") ->  | G42: no | J42: =IF($D42="","",IF(H42<>"",IF(VLOOKUP($D42,table_attributesDATA_all,Attributes_DATA!$AG$2,0)=0,VLOOKUP(H42,table_featsDATA_feats,Feats_DATA!T$4,0),VLOOKUP($D42,table_attributesDATA_all,Attributes_DATA!$AG$2,0)),VLOOKUP($D42,table_attributesDATA_all,Attributes_DATA!$AG$2,0))) ->  | L42: no | O42: =IF($D42="","",IF(K42<>"",IF(VLOOKUP($D42,table_attributesDATA_all,Attributes_DATA!$AH$2,0)=0,VLOOKUP(K42,table_featsDATA_feats,Feats_DATA!T$4,0),VLOOKUP($D42,table_attributesDATA_all,Attributes_DATA!$AH$2,0)),VLOOKUP($D42,table_attributesDATA_all,Attributes_DATA!$AH$2,0))) ->  | Q42: no | U42: 36 | Z42: 0 | AB42: 0 | AD42: 36 | AF42: 8
A43: 37 | B43: 1 | C43: 9 | D43: =IF(INDEX(Features_DATA!$AB$5:$DN$8,B43,((C43-1)*5)-4)=0,"",INDEX(Features_DATA!$AB$5:$DN$8,B43,((C43-1)*5)-4)) ->  | E43: =IF($D43<>"",VLOOKUP($D43,table_attributesDATA_all,Attributes_DATA!AF$2,0),"") ->  | G43: no | J43: =IF($D43="","",IF(H43<>"",IF(VLOOKUP($D43,table_attributesDATA_all,Attributes_DATA!$AG$2,0)=0,VLOOKUP(H43,table_featsDATA_feats,Feats_DATA!T$4,0),VLOOKUP($D43,table_attributesDATA_all,Attributes_DATA!$AG$2,0)),VLOOKUP($D43,table_attributesDATA_all,Attributes_DATA!$AG$2,0))) ->  | L43: no | O43: =IF($D43="","",IF(K43<>"",IF(VLOOKUP($D43,table_attributesDATA_all,Attributes_DATA!$AH$2,0)=0,VLOOKUP(K43,table_featsDATA_feats,Feats_DATA!T$4,0),VLOOKUP($D43,table_attributesDATA_all,Attributes_DATA!$AH$2,0)),VLOOKUP($D43,table_attributesDATA_all,Attributes_DATA!$AH$2,0))) ->  | Q43: no | U43: 37 | Z43: 0 | AB43: 0 | AD43: 37 | AF43: 9
A44: 38 | B44: 2 | C44: 9 | D44: =IF(INDEX(Features_DATA!$AB$5:$DN$8,B44,((C44-1)*5)-4)=0,"",INDEX(Features_DATA!$AB$5:$DN$8,B44,((C44-1)*5)-4)) ->  | E44: =IF($D44<>"",VLOOKUP($D44,table_attributesDATA_all,Attributes_DATA!AF$2,0),"") ->  | G44: no | J44: =IF($D44="","",IF(H44<>"",IF(VLOOKUP($D44,table_attributesDATA_all,Attributes_DATA!$AG$2,0)=0,VLOOKUP(H44,table_featsDATA_feats,Feats_DATA!T$4,0),VLOOKUP($D44,table_attributesDATA_all,Attributes_DATA!$AG$2,0)),VLOOKUP($D44,table_attributesDATA_all,Attributes_DATA!$AG$2,0))) ->  | L44: no | O44: =IF($D44="","",IF(K44<>"",IF(VLOOKUP($D44,table_attributesDATA_all,Attributes_DATA!$AH$2,0)=0,VLOOKUP(K44,table_featsDATA_feats,Feats_DATA!T$4,0),VLOOKUP($D44,table_attributesDATA_all,Attributes_DATA!$AH$2,0)),VLOOKUP($D44,table_attributesDATA_all,Attributes_DATA!$AH$2,0))) ->  | Q44: no | U44: 38 | Z44: 0 | AB44: 0 | AD44: 38 | AF44: 9
A45: 39 | B45: 3 | C45: 9 | D45: =IF(INDEX(Features_DATA!$AB$5:$DN$8,B45,((C45-1)*5)-4)=0,"",INDEX(Features_DATA!$AB$5:$DN$8,B45,((C45-1)*5)-4)) ->  | E45: =IF($D45<>"",VLOOKUP($D45,table_attributesDATA_all,Attributes_DATA!AF$2,0),"") ->  | G45: no | J45: =IF($D45="","",IF(H45<>"",IF(VLOOKUP($D45,table_attributesDATA_all,Attributes_DATA!$AG$2,0)=0,VLOOKUP(H45,table_featsDATA_feats,Feats_DATA!T$4,0),VLOOKUP($D45,table_attributesDATA_all,Attributes_DATA!$AG$2,0)),VLOOKUP($D45,table_attributesDATA_all,Attributes_DATA!$AG$2,0))) ->  | L45: no | O45: =IF($D45="","",IF(K45<>"",IF(VLOOKUP($D45,table_attributesDATA_all,Attributes_DATA!$AH$2,0)=0,VLOOKUP(K45,table_featsDATA_feats,Feats_DATA!T$4,0),VLOOKUP($D45,table_attributesDATA_all,Attributes_DATA!$AH$2,0)),VLOOKUP($D45,table_attributesDATA_all,Attributes_DATA!$AH$2,0))) ->  | Q45: no | U45: 39 | Z45: 0 | AB45: 0 | AD45: 39 | AF45: 9
A46: 40 | B46: 4 | C46: 9 | D46: =IF(INDEX(Features_DATA!$AB$5:$DN$8,B46,((C46-1)*5)-4)=0,"",INDEX(Features_DATA!$AB$5:$DN$8,B46,((C46-1)*5)-4)) ->  | E46: =IF($D46<>"",VLOOKUP($D46,table_attributesDATA_all,Attributes_DATA!AF$2,0),"") ->  | G46: no | J46: =IF($D46="","",IF(H46<>"",IF(VLOOKUP($D46,table_attributesDATA_all,Attributes_DATA!$AG$2,0)=0,VLOOKUP(H46,table_featsDATA_feats,Feats_DATA!T$4,0),VLOOKUP($D46,table_attributesDATA_all,Attributes_DATA!$AG$2,0)),VLOOKUP($D46,table_attributesDATA_all,Attributes_DATA!$AG$2,0))) ->  | L46: no | O46: =IF($D46="","",IF(K46<>"",IF(VLOOKUP($D46,table_attributesDATA_all,Attributes_DATA!$AH$2,0)=0,VLOOKUP(K46,table_featsDATA_feats,Feats_DATA!T$4,0),VLOOKUP($D46,table_attributesDATA_all,Attributes_DATA!$AH$2,0)),VLOOKUP($D46,table_attributesDATA_all,Attributes_DATA!$AH$2,0))) ->  | Q46: no | U46: 40 | Z46: 0 | AB46: 0 | AD46: 40 | AF46: 9
A47: 41 | B47: 1 | C47: 10 | D47: =IF(INDEX(Features_DATA!$AB$5:$DN$8,B47,((C47-1)*5)-4)=0,"",INDEX(Features_DATA!$AB$5:$DN$8,B47,((C47-1)*5)-4)) ->  | E47: =IF($D47<>"",VLOOKUP($D47,table_attributesDATA_all,Attributes_DATA!AF$2,0),"") ->  | G47: no | J47: =IF($D47="","",IF(H47<>"",IF(VLOOKUP($D47,table_attributesDATA_all,Attributes_DATA!$AG$2,0)=0,VLOOKUP(H47,table_featsDATA_feats,Feats_DATA!T$4,0),VLOOKUP($D47,table_attributesDATA_all,Attributes_DATA!$AG$2,0)),VLOOKUP($D47,table_attributesDATA_all,Attributes_DATA!$AG$2,0))) ->  | L47: no | O47: =IF($D47="","",IF(K47<>"",IF(VLOOKUP($D47,table_attributesDATA_all,Attributes_DATA!$AH$2,0)=0,VLOOKUP(K47,table_featsDATA_feats,Feats_DATA!T$4,0),VLOOKUP($D47,table_attributesDATA_all,Attributes_DATA!$AH$2,0)),VLOOKUP($D47,table_attributesDATA_all,Attributes_DATA!$AH$2,0))) ->  | Q47: no | U47: 41 | Z47: 0 | AB47: 0 | AD47: 41 | AF47: 10
A48: 42 | B48: 2 | C48: 10 | D48: =IF(INDEX(Features_DATA!$AB$5:$DN$8,B48,((C48-1)*5)-4)=0,"",INDEX(Features_DATA!$AB$5:$DN$8,B48,((C48-1)*5)-4)) ->  | E48: =IF($D48<>"",VLOOKUP($D48,table_attributesDATA_all,Attributes_DATA!AF$2,0),"") ->  | G48: no | J48: =IF($D48="","",IF(H48<>"",IF(VLOOKUP($D48,table_attributesDATA_all,Attributes_DATA!$AG$2,0)=0,VLOOKUP(H48,table_featsDATA_feats,Feats_DATA!T$4,0),VLOOKUP($D48,table_attributesDATA_all,Attributes_DATA!$AG$2,0)),VLOOKUP($D48,table_attributesDATA_all,Attributes_DATA!$AG$2,0))) ->  | L48: no | O48: =IF($D48="","",IF(K48<>"",IF(VLOOKUP($D48,table_attributesDATA_all,Attributes_DATA!$AH$2,0)=0,VLOOKUP(K48,table_featsDATA_feats,Feats_DATA!T$4,0),VLOOKUP($D48,table_attributesDATA_all,Attributes_DATA!$AH$2,0)),VLOOKUP($D48,table_attributesDATA_all,Attributes_DATA!$AH$2,0))) ->  | Q48: no | U48: 42 | Z48: 0 | AB48: 0 | AD48: 42 | AF48: 10
A49: 43 | B49: 3 | C49: 10 | D49: =IF(INDEX(Features_DATA!$AB$5:$DN$8,B49,((C49-1)*5)-4)=0,"",INDEX(Features_DATA!$AB$5:$DN$8,B49,((C49-1)*5)-4)) ->  | E49: =IF($D49<>"",VLOOKUP($D49,table_attributesDATA_all,Attributes_DATA!AF$2,0),"") ->  | G49: no | J49: =IF($D49="","",IF(H49<>"",IF(VLOOKUP($D49,table_attributesDATA_all,Attributes_DATA!$AG$2,0)=0,VLOOKUP(H49,table_featsDATA_feats,Feats_DATA!T$4,0),VLOOKUP($D49,table_attributesDATA_all,Attributes_DATA!$AG$2,0)),VLOOKUP($D49,table_attributesDATA_all,Attributes_DATA!$AG$2,0))) ->  | L49: no | O49: =IF($D49="","",IF(K49<>"",IF(VLOOKUP($D49,table_attributesDATA_all,Attributes_DATA!$AH$2,0)=0,VLOOKUP(K49,table_featsDATA_feats,Feats_DATA!T$4,0),VLOOKUP($D49,table_attributesDATA_all,Attributes_DATA!$AH$2,0)),VLOOKUP($D49,table_attributesDATA_all,Attributes_DATA!$AH$2,0))) ->  | Q49: no | U49: 43 | Z49: 0 | AB49: 0 | AD49: 43 | AF49: 10
A50: 44 | B50: 4 | C50: 10 | D50: =IF(INDEX(Features_DATA!$AB$5:$DN$8,B50,((C50-1)*5)-4)=0,"",INDEX(Features_DATA!$AB$5:$DN$8,B50,((C50-1)*5)-4)) ->  | E50: =IF($D50<>"",VLOOKUP($D50,table_attributesDATA_all,Attributes_DATA!AF$2,0),"") ->  | G50: no | J50: =IF($D50="","",IF(H50<>"",IF(VLOOKUP($D50,table_attributesDATA_all,Attributes_DATA!$AG$2,0)=0,VLOOKUP(H50,table_featsDATA_feats,Feats_DATA!T$4,0),VLOOKUP($D50,table_attributesDATA_all,Attributes_DATA!$AG$2,0)),VLOOKUP($D50,table_attributesDATA_all,Attributes_DATA!$AG$2,0))) ->  | L50: no | O50: =IF($D50="","",IF(K50<>"",IF(VLOOKUP($D50,table_attributesDATA_all,Attributes_DATA!$AH$2,0)=0,VLOOKUP(K50,table_featsDATA_feats,Feats_DATA!T$4,0),VLOOKUP($D50,table_attributesDATA_all,Attributes_DATA!$AH$2,0)),VLOOKUP($D50,table_attributesDATA_all,Attributes_DATA!$AH$2,0))) ->  | Q50: no | U50: 44 | Z50: 0 | AB50: 0 | AD50: 44 | AF50: 10
A51: 45 | B51: 1 | C51: 11 | D51: =IF(INDEX(Features_DATA!$AB$5:$DN$8,B51,((C51-1)*5)-4)=0,"",INDEX(Features_DATA!$AB$5:$DN$8,B51,((C51-1)*5)-4)) ->  | E51: =IF($D51<>"",VLOOKUP($D51,table_attributesDATA_all,Attributes_DATA!AF$2,0),"") ->  | G51: no | J51: =IF($D51="","",IF(H51<>"",IF(VLOOKUP($D51,table_attributesDATA_all,Attributes_DATA!$AG$2,0)=0,VLOOKUP(H51,table_featsDATA_feats,Feats_DATA!T$4,0),VLOOKUP($D51,table_attributesDATA_all,Attributes_DATA!$AG$2,0)),VLOOKUP($D51,table_attributesDATA_all,Attributes_DATA!$AG$2,0))) ->  | L51: no | O51: =IF($D51="","",IF(K51<>"",IF(VLOOKUP($D51,table_attributesDATA_all,Attributes_DATA!$AH$2,0)=0,VLOOKUP(K51,table_featsDATA_feats,Feats_DATA!T$4,0),VLOOKUP($D51,table_attributesDATA_all,Attributes_DATA!$AH$2,0)),VLOOKUP($D51,table_attributesDATA_all,Attributes_DATA!$AH$2,0))) ->  | Q51: no | U51: 45 | Z51: 0 | AB51: 0 | AD51: 45 | AF51: 11
A52: 46 | B52: 2 | C52: 11 | D52: =IF(INDEX(Features_DATA!$AB$5:$DN$8,B52,((C52-1)*5)-4)=0,"",INDEX(Features_DATA!$AB$5:$DN$8,B52,((C52-1)*5)-4)) ->  | E52: =IF($D52<>"",VLOOKUP($D52,table_attributesDATA_all,Attributes_DATA!AF$2,0),"") ->  | G52: no | J52: =IF($D52="","",IF(H52<>"",IF(VLOOKUP($D52,table_attributesDATA_all,Attributes_DATA!$AG$2,0)=0,VLOOKUP(H52,table_featsDATA_feats,Feats_DATA!T$4,0),VLOOKUP($D52,table_attributesDATA_all,Attributes_DATA!$AG$2,0)),VLOOKUP($D52,table_attributesDATA_all,Attributes_DATA!$AG$2,0))) ->  | L52: no | O52: =IF($D52="","",IF(K52<>"",IF(VLOOKUP($D52,table_attributesDATA_all,Attributes_DATA!$AH$2,0)=0,VLOOKUP(K52,table_featsDATA_feats,Feats_DATA!T$4,0),VLOOKUP($D52,table_attributesDATA_all,Attributes_DATA!$AH$2,0)),VLOOKUP($D52,table_attributesDATA_all,Attributes_DATA!$AH$2,0))) ->  | Q52: no | U52: 46 | Z52: 0 | AB52: 0 | AD52: 46 | AF52: 11
A53: 47 | B53: 3 | C53: 11 | D53: =IF(INDEX(Features_DATA!$AB$5:$DN$8,B53,((C53-1)*5)-4)=0,"",INDEX(Features_DATA!$AB$5:$DN$8,B53,((C53-1)*5)-4)) ->  | E53: =IF($D53<>"",VLOOKUP($D53,table_attributesDATA_all,Attributes_DATA!AF$2,0),"") ->  | G53: no | J53: =IF($D53="","",IF(H53<>"",IF(VLOOKUP($D53,table_attributesDATA_all,Attributes_DATA!$AG$2,0)=0,VLOOKUP(H53,table_featsDATA_feats,Feats_DATA!T$4,0),VLOOKUP($D53,table_attributesDATA_all,Attributes_DATA!$AG$2,0)),VLOOKUP($D53,table_attributesDATA_all,Attributes_DATA!$AG$2,0))) ->  | L53: no | O53: =IF($D53="","",IF(K53<>"",IF(VLOOKUP($D53,table_attributesDATA_all,Attributes_DATA!$AH$2,0)=0,VLOOKUP(K53,table_featsDATA_feats,Feats_DATA!T$4,0),VLOOKUP($D53,table_attributesDATA_all,Attributes_DATA!$AH$2,0)),VLOOKUP($D53,table_attributesDATA_all,Attributes_DATA!$AH$2,0))) ->  | Q53: no | U53: 47 | Z53: 0 | AB53: 0 | AD53: 47 | AF53: 11
A54: 48 | B54: 4 | C54: 11 | D54: =IF(INDEX(Features_DATA!$AB$5:$DN$8,B54,((C54-1)*5)-4)=0,"",INDEX(Features_DATA!$AB$5:$DN$8,B54,((C54-1)*5)-4)) ->  | E54: =IF($D54<>"",VLOOKUP($D54,table_attributesDATA_all,Attributes_DATA!AF$2,0),"") ->  | G54: no | J54: =IF($D54="","",IF(H54<>"",IF(VLOOKUP($D54,table_attributesDATA_all,Attributes_DATA!$AG$2,0)=0,VLOOKUP(H54,table_featsDATA_feats,Feats_DATA!T$4,0),VLOOKUP($D54,table_attributesDATA_all,Attributes_DATA!$AG$2,0)),VLOOKUP($D54,table_attributesDATA_all,Attributes_DATA!$AG$2,0))) ->  | L54: no | O54: =IF($D54="","",IF(K54<>"",IF(VLOOKUP($D54,table_attributesDATA_all,Attributes_DATA!$AH$2,0)=0,VLOOKUP(K54,table_featsDATA_feats,Feats_DATA!T$4,0),VLOOKUP($D54,table_attributesDATA_all,Attributes_DATA!$AH$2,0)),VLOOKUP($D54,table_attributesDATA_all,Attributes_DATA!$AH$2,0))) ->  | Q54: no | U54: 48 | Z54: 0 | AB54: 0 | AD54: 48 | AF54: 11
A55: 49 | B55: 1 | C55: 12 | D55: =IF(INDEX(Features_DATA!$AB$5:$DN$8,B55,((C55-1)*5)-4)=0,"",INDEX(Features_DATA!$AB$5:$DN$8,B55,((C55-1)*5)-4)) ->  | E55: =IF($D55<>"",VLOOKUP($D55,table_attributesDATA_all,Attributes_DATA!AF$2,0),"") ->  | G55: no | J55: =IF($D55="","",IF(H55<>"",IF(VLOOKUP($D55,table_attributesDATA_all,Attributes_DATA!$AG$2,0)=0,VLOOKUP(H55,table_featsDATA_feats,Feats_DATA!T$4,0),VLOOKUP($D55,table_attributesDATA_all,Attributes_DATA!$AG$2,0)),VLOOKUP($D55,table_attributesDATA_all,Attributes_DATA!$AG$2,0))) ->  | L55: no | O55: =IF($D55="","",IF(K55<>"",IF(VLOOKUP($D55,table_attributesDATA_all,Attributes_DATA!$AH$2,0)=0,VLOOKUP(K55,table_featsDATA_feats,Feats_DATA!T$4,0),VLOOKUP($D55,table_attributesDATA_all,Attributes_DATA!$AH$2,0)),VLOOKUP($D55,table_attributesDATA_all,Attributes_DATA!$AH$2,0))) ->  | Q55: no | U55: 49 | Z55: 0 | AB55: 0 | AD55: 49 | AF55: 12
A56: 50 | B56: 2 | C56: 12 | D56: =IF(INDEX(Features_DATA!$AB$5:$DN$8,B56,((C56-1)*5)-4)=0,"",INDEX(Features_DATA!$AB$5:$DN$8,B56,((C56-1)*5)-4)) ->  | E56: =IF($D56<>"",VLOOKUP($D56,table_attributesDATA_all,Attributes_DATA!AF$2,0),"") ->  | G56: no | J56: =IF($D56="","",IF(H56<>"",IF(VLOOKUP($D56,table_attributesDATA_all,Attributes_DATA!$AG$2,0)=0,VLOOKUP(H56,table_featsDATA_feats,Feats_DATA!T$4,0),VLOOKUP($D56,table_attributesDATA_all,Attributes_DATA!$AG$2,0)),VLOOKUP($D56,table_attributesDATA_all,Attributes_DATA!$AG$2,0))) ->  | L56: no | O56: =IF($D56="","",IF(K56<>"",IF(VLOOKUP($D56,table_attributesDATA_all,Attributes_DATA!$AH$2,0)=0,VLOOKUP(K56,table_featsDATA_feats,Feats_DATA!T$4,0),VLOOKUP($D56,table_attributesDATA_all,Attributes_DATA!$AH$2,0)),VLOOKUP($D56,table_attributesDATA_all,Attributes_DATA!$AH$2,0))) ->  | Q56: no | U56: 50 | Z56: 0 | AB56: 0 | AD56: 50 | AF56: 12
A57: 51 | B57: 3 | C57: 12 | D57: =IF(INDEX(Features_DATA!$AB$5:$DN$8,B57,((C57-1)*5)-4)=0,"",INDEX(Features_DATA!$AB$5:$DN$8,B57,((C57-1)*5)-4)) ->  | E57: =IF($D57<>"",VLOOKUP($D57,table_attributesDATA_all,Attributes_DATA!AF$2,0),"") ->  | G57: no | J57: =IF($D57="","",IF(H57<>"",IF(VLOOKUP($D57,table_attributesDATA_all,Attributes_DATA!$AG$2,0)=0,VLOOKUP(H57,table_featsDATA_feats,Feats_DATA!T$4,0),VLOOKUP($D57,table_attributesDATA_all,Attributes_DATA!$AG$2,0)),VLOOKUP($D57,table_attributesDATA_all,Attributes_DATA!$AG$2,0))) ->  | L57: no | O57: =IF($D57="","",IF(K57<>"",IF(VLOOKUP($D57,table_attributesDATA_all,Attributes_DATA!$AH$2,0)=0,VLOOKUP(K57,table_featsDATA_feats,Feats_DATA!T$4,0),VLOOKUP($D57,table_attributesDATA_all,Attributes_DATA!$AH$2,0)),VLOOKUP($D57,table_attributesDATA_all,Attributes_DATA!$AH$2,0))) ->  | Q57: no | U57: 51 | Z57: 0 | AB57: 0 | AD57: 51 | AF57: 12
A58: 52 | B58: 4 | C58: 12 | D58: =IF(INDEX(Features_DATA!$AB$5:$DN$8,B58,((C58-1)*5)-4)=0,"",INDEX(Features_DATA!$AB$5:$DN$8,B58,((C58-1)*5)-4)) ->  | E58: =IF($D58<>"",VLOOKUP($D58,table_attributesDATA_all,Attributes_DATA!AF$2,0),"") ->  | G58: no | J58: =IF($D58="","",IF(H58<>"",IF(VLOOKUP($D58,table_attributesDATA_all,Attributes_DATA!$AG$2,0)=0,VLOOKUP(H58,table_featsDATA_feats,Feats_DATA!T$4,0),VLOOKUP($D58,table_attributesDATA_all,Attributes_DATA!$AG$2,0)),VLOOKUP($D58,table_attributesDATA_all,Attributes_DATA!$AG$2,0))) ->  | L58: no | O58: =IF($D58="","",IF(K58<>"",IF(VLOOKUP($D58,table_attributesDATA_all,Attributes_DATA!$AH$2,0)=0,VLOOKUP(K58,table_featsDATA_feats,Feats_DATA!T$4,0),VLOOKUP($D58,table_attributesDATA_all,Attributes_DATA!$AH$2,0)),VLOOKUP($D58,table_attributesDATA_all,Attributes_DATA!$AH$2,0))) ->  | Q58: no | U58: 52 | Z58: 0 | AB58: 0 | AD58: 52 | AF58: 12
A59: 53 | B59: 1 | C59: 13 | D59: =IF(INDEX(Features_DATA!$AB$5:$DN$8,B59,((C59-1)*5)-4)=0,"",INDEX(Features_DATA!$AB$5:$DN$8,B59,((C59-1)*5)-4)) ->  | E59: =IF($D59<>"",VLOOKUP($D59,table_attributesDATA_all,Attributes_DATA!AF$2,0),"") ->  | G59: no | J59: =IF($D59="","",IF(H59<>"",IF(VLOOKUP($D59,table_attributesDATA_all,Attributes_DATA!$AG$2,0)=0,VLOOKUP(H59,table_featsDATA_feats,Feats_DATA!T$4,0),VLOOKUP($D59,table_attributesDATA_all,Attributes_DATA!$AG$2,0)),VLOOKUP($D59,table_attributesDATA_all,Attributes_DATA!$AG$2,0))) ->  | L59: no | O59: =IF($D59="","",IF(K59<>"",IF(VLOOKUP($D59,table_attributesDATA_all,Attributes_DATA!$AH$2,0)=0,VLOOKUP(K59,table_featsDATA_feats,Feats_DATA!T$4,0),VLOOKUP($D59,table_attributesDATA_all,Attributes_DATA!$AH$2,0)),VLOOKUP($D59,table_attributesDATA_all,Attributes_DATA!$AH$2,0))) ->  | Q59: no | U59: 53 | Z59: 0 | AB59: 0 | AD59: 53 | AF59: 13
A60: 54 | B60: 2 | C60: 13 | D60: =IF(INDEX(Features_DATA!$AB$5:$DN$8,B60,((C60-1)*5)-4)=0,"",INDEX(Features_DATA!$AB$5:$DN$8,B60,((C60-1)*5)-4)) ->  | E60: =IF($D60<>"",VLOOKUP($D60,table_attributesDATA_all,Attributes_DATA!AF$2,0),"") ->  | G60: no | J60: =IF($D60="","",IF(H60<>"",IF(VLOOKUP($D60,table_attributesDATA_all,Attributes_DATA!$AG$2,0)=0,VLOOKUP(H60,table_featsDATA_feats,Feats_DATA!T$4,0),VLOOKUP($D60,table_attributesDATA_all,Attributes_DATA!$AG$2,0)),VLOOKUP($D60,table_attributesDATA_all,Attributes_DATA!$AG$2,0))) ->  | L60: no | O60: =IF($D60="","",IF(K60<>"",IF(VLOOKUP($D60,table_attributesDATA_all,Attributes_DATA!$AH$2,0)=0,VLOOKUP(K60,table_featsDATA_feats,Feats_DATA!T$4,0),VLOOKUP($D60,table_attributesDATA_all,Attributes_DATA!$AH$2,0)),VLOOKUP($D60,table_attributesDATA_all,Attributes_DATA!$AH$2,0))) ->  | Q60: no | U60: 54 | Z60: 0 | AB60: 0 | AD60: 54 | AF60: 13
A61: 55 | B61: 3 | C61: 13 | D61: =IF(INDEX(Features_DATA!$AB$5:$DN$8,B61,((C61-1)*5)-4)=0,"",INDEX(Features_DATA!$AB$5:$DN$8,B61,((C61-1)*5)-4)) ->  | E61: =IF($D61<>"",VLOOKUP($D61,table_attributesDATA_all,Attributes_DATA!AF$2,0),"") ->  | G61: no | J61: =IF($D61="","",IF(H61<>"",IF(VLOOKUP($D61,table_attributesDATA_all,Attributes_DATA!$AG$2,0)=0,VLOOKUP(H61,table_featsDATA_feats,Feats_DATA!T$4,0),VLOOKUP($D61,table_attributesDATA_all,Attributes_DATA!$AG$2,0)),VLOOKUP($D61,table_attributesDATA_all,Attributes_DATA!$AG$2,0))) ->  | L61: no | O61: =IF($D61="","",IF(K61<>"",IF(VLOOKUP($D61,table_attributesDATA_all,Attributes_DATA!$AH$2,0)=0,VLOOKUP(K61,table_featsDATA_feats,Feats_DATA!T$4,0),VLOOKUP($D61,table_attributesDATA_all,Attributes_DATA!$AH$2,0)),VLOOKUP($D61,table_attributesDATA_all,Attributes_DATA!$AH$2,0))) ->  | Q61: no | U61: 55 | Z61: 0 | AB61: 0 | AD61: 55 | AF61: 13
A62: 56 | B62: 4 | C62: 13 | D62: =IF(INDEX(Features_DATA!$AB$5:$DN$8,B62,((C62-1)*5)-4)=0,"",INDEX(Features_DATA!$AB$5:$DN$8,B62,((C62-1)*5)-4)) ->  | E62: =IF($D62<>"",VLOOKUP($D62,table_attributesDATA_all,Attributes_DATA!AF$2,0),"") ->  | G62: no | J62: =IF($D62="","",IF(H62<>"",IF(VLOOKUP($D62,table_attributesDATA_all,Attributes_DATA!$AG$2,0)=0,VLOOKUP(H62,table_featsDATA_feats,Feats_DATA!T$4,0),VLOOKUP($D62,table_attributesDATA_all,Attributes_DATA!$AG$2,0)),VLOOKUP($D62,table_attributesDATA_all,Attributes_DATA!$AG$2,0))) ->  | L62: no | O62: =IF($D62="","",IF(K62<>"",IF(VLOOKUP($D62,table_attributesDATA_all,Attributes_DATA!$AH$2,0)=0,VLOOKUP(K62,table_featsDATA_feats,Feats_DATA!T$4,0),VLOOKUP($D62,table_attributesDATA_all,Attributes_DATA!$AH$2,0)),VLOOKUP($D62,table_attributesDATA_all,Attributes_DATA!$AH$2,0))) ->  | Q62: no | U62: 56 | Z62: 0 | AB62: 0 | AD62: 56 | AF62: 13
A63: 57 | B63: 1 | C63: 14 | D63: =IF(INDEX(Features_DATA!$AB$5:$DN$8,B63,((C63-1)*5)-4)=0,"",INDEX(Features_DATA!$AB$5:$DN$8,B63,((C63-1)*5)-4)) ->  | E63: =IF($D63<>"",VLOOKUP($D63,table_attributesDATA_all,Attributes_DATA!AF$2,0),"") ->  | G63: no | J63: =IF($D63="","",IF(H63<>"",IF(VLOOKUP($D63,table_attributesDATA_all,Attributes_DATA!$AG$2,0)=0,VLOOKUP(H63,table_featsDATA_feats,Feats_DATA!T$4,0),VLOOKUP($D63,table_attributesDATA_all,Attributes_DATA!$AG$2,0)),VLOOKUP($D63,table_attributesDATA_all,Attributes_DATA!$AG$2,0))) ->  | L63: no | O63: =IF($D63="","",IF(K63<>"",IF(VLOOKUP($D63,table_attributesDATA_all,Attributes_DATA!$AH$2,0)=0,VLOOKUP(K63,table_featsDATA_feats,Feats_DATA!T$4,0),VLOOKUP($D63,table_attributesDATA_all,Attributes_DATA!$AH$2,0)),VLOOKUP($D63,table_attributesDATA_all,Attributes_DATA!$AH$2,0))) ->  | Q63: no | U63: 57 | Z63: 0 | AB63: 0 | AD63: 57 | AF63: 14
A64: 58 | B64: 2 | C64: 14 | D64: =IF(INDEX(Features_DATA!$AB$5:$DN$8,B64,((C64-1)*5)-4)=0,"",INDEX(Features_DATA!$AB$5:$DN$8,B64,((C64-1)*5)-4)) ->  | E64: =IF($D64<>"",VLOOKUP($D64,table_attributesDATA_all,Attributes_DATA!AF$2,0),"") ->  | G64: no | J64: =IF($D64="","",IF(H64<>"",IF(VLOOKUP($D64,table_attributesDATA_all,Attributes_DATA!$AG$2,0)=0,VLOOKUP(H64,table_featsDATA_feats,Feats_DATA!T$4,0),VLOOKUP($D64,table_attributesDATA_all,Attributes_DATA!$AG$2,0)),VLOOKUP($D64,table_attributesDATA_all,Attributes_DATA!$AG$2,0))) ->  | L64: no | O64: =IF($D64="","",IF(K64<>"",IF(VLOOKUP($D64,table_attributesDATA_all,Attributes_DATA!$AH$2,0)=0,VLOOKUP(K64,table_featsDATA_feats,Feats_DATA!T$4,0),VLOOKUP($D64,table_attributesDATA_all,Attributes_DATA!$AH$2,0)),VLOOKUP($D64,table_attributesDATA_all,Attributes_DATA!$AH$2,0))) ->  | Q64: no | U64: 58 | Z64: 0 | AB64: 0 | AD64: 58 | AF64: 14
A65: 59 | B65: 3 | C65: 14 | D65: =IF(INDEX(Features_DATA!$AB$5:$DN$8,B65,((C65-1)*5)-4)=0,"",INDEX(Features_DATA!$AB$5:$DN$8,B65,((C65-1)*5)-4)) ->  | E65: =IF($D65<>"",VLOOKUP($D65,table_attributesDATA_all,Attributes_DATA!AF$2,0),"") ->  | G65: no | J65: =IF($D65="","",IF(H65<>"",IF(VLOOKUP($D65,table_attributesDATA_all,Attributes_DATA!$AG$2,0)=0,VLOOKUP(H65,table_featsDATA_feats,Feats_DATA!T$4,0),VLOOKUP($D65,table_attributesDATA_all,Attributes_DATA!$AG$2,0)),VLOOKUP($D65,table_attributesDATA_all,Attributes_DATA!$AG$2,0))) ->  | L65: no | O65: =IF($D65="","",IF(K65<>"",IF(VLOOKUP($D65,table_attributesDATA_all,Attributes_DATA!$AH$2,0)=0,VLOOKUP(K65,table_featsDATA_feats,Feats_DATA!T$4,0),VLOOKUP($D65,table_attributesDATA_all,Attributes_DATA!$AH$2,0)),VLOOKUP($D65,table_attributesDATA_all,Attributes_DATA!$AH$2,0))) ->  | Q65: no | U65: 59 | Z65: 0 | AB65: 0 | AD65: 59 | AF65: 14
A66: 60 | B66: 4 | C66: 14 | D66: =IF(INDEX(Features_DATA!$AB$5:$DN$8,B66,((C66-1)*5)-4)=0,"",INDEX(Features_DATA!$AB$5:$DN$8,B66,((C66-1)*5)-4)) ->  | E66: =IF($D66<>"",VLOOKUP($D66,table_attributesDATA_all,Attributes_DATA!AF$2,0),"") ->  | G66: no | J66: =IF($D66="","",IF(H66<>"",IF(VLOOKUP($D66,table_attributesDATA_all,Attributes_DATA!$AG$2,0)=0,VLOOKUP(H66,table_featsDATA_feats,Feats_DATA!T$4,0),VLOOKUP($D66,table_attributesDATA_all,Attributes_DATA!$AG$2,0)),VLOOKUP($D66,table_attributesDATA_all,Attributes_DATA!$AG$2,0))) ->  | L66: no | O66: =IF($D66="","",IF(K66<>"",IF(VLOOKUP($D66,table_attributesDATA_all,Attributes_DATA!$AH$2,0)=0,VLOOKUP(K66,table_featsDATA_feats,Feats_DATA!T$4,0),VLOOKUP($D66,table_attributesDATA_all,Attributes_DATA!$AH$2,0)),VLOOKUP($D66,table_attributesDATA_all,Attributes_DATA!$AH$2,0))) ->  | Q66: no | U66: 60 | Z66: 0 | AB66: 0 | AD66: 60 | AF66: 14
A67: 61 | B67: 1 | C67: 15 | D67: =IF(INDEX(Features_DATA!$AB$5:$DN$8,B67,((C67-1)*5)-4)=0,"",INDEX(Features_DATA!$AB$5:$DN$8,B67,((C67-1)*5)-4)) ->  | E67: =IF($D67<>"",VLOOKUP($D67,table_attributesDATA_all,Attributes_DATA!AF$2,0),"") ->  | G67: no | J67: =IF($D67="","",IF(H67<>"",IF(VLOOKUP($D67,table_attributesDATA_all,Attributes_DATA!$AG$2,0)=0,VLOOKUP(H67,table_featsDATA_feats,Feats_DATA!T$4,0),VLOOKUP($D67,table_attributesDATA_all,Attributes_DATA!$AG$2,0)),VLOOKUP($D67,table_attributesDATA_all,Attributes_DATA!$AG$2,0))) ->  | L67: no | O67: =IF($D67="","",IF(K67<>"",IF(VLOOKUP($D67,table_attributesDATA_all,Attributes_DATA!$AH$2,0)=0,VLOOKUP(K67,table_featsDATA_feats,Feats_DATA!T$4,0),VLOOKUP($D67,table_attributesDATA_all,Attributes_DATA!$AH$2,0)),VLOOKUP($D67,table_attributesDATA_all,Attributes_DATA!$AH$2,0))) ->  | Q67: no | U67: 61 | Z67: 0 | AB67: 0 | AD67: 61 | AF67: 15
A68: 62 | B68: 2 | C68: 15 | D68: =IF(INDEX(Features_DATA!$AB$5:$DN$8,B68,((C68-1)*5)-4)=0,"",INDEX(Features_DATA!$AB$5:$DN$8,B68,((C68-1)*5)-4)) ->  | E68: =IF($D68<>"",VLOOKUP($D68,table_attributesDATA_all,Attributes_DATA!AF$2,0),"") ->  | G68: no | J68: =IF($D68="","",IF(H68<>"",IF(VLOOKUP($D68,table_attributesDATA_all,Attributes_DATA!$AG$2,0)=0,VLOOKUP(H68,table_featsDATA_feats,Feats_DATA!T$4,0),VLOOKUP($D68,table_attributesDATA_all,Attributes_DATA!$AG$2,0)),VLOOKUP($D68,table_attributesDATA_all,Attributes_DATA!$AG$2,0))) ->  | L68: no | O68: =IF($D68="","",IF(K68<>"",IF(VLOOKUP($D68,table_attributesDATA_all,Attributes_DATA!$AH$2,0)=0,VLOOKUP(K68,table_featsDATA_feats,Feats_DATA!T$4,0),VLOOKUP($D68,table_attributesDATA_all,Attributes_DATA!$AH$2,0)),VLOOKUP($D68,table_attributesDATA_all,Attributes_DATA!$AH$2,0))) ->  | Q68: no | U68: 62 | Z68: 0 | AB68: 0 | AD68: 62 | AF68: 15
A69: 63 | B69: 3 | C69: 15 | D69: =IF(INDEX(Features_DATA!$AB$5:$DN$8,B69,((C69-1)*5)-4)=0,"",INDEX(Features_DATA!$AB$5:$DN$8,B69,((C69-1)*5)-4)) ->  | E69: =IF($D69<>"",VLOOKUP($D69,table_attributesDATA_all,Attributes_DATA!AF$2,0),"") ->  | G69: no | J69: =IF($D69="","",IF(H69<>"",IF(VLOOKUP($D69,table_attributesDATA_all,Attributes_DATA!$AG$2,0)=0,VLOOKUP(H69,table_featsDATA_feats,Feats_DATA!T$4,0),VLOOKUP($D69,table_attributesDATA_all,Attributes_DATA!$AG$2,0)),VLOOKUP($D69,table_attributesDATA_all,Attributes_DATA!$AG$2,0))) ->  | L69: no | O69: =IF($D69="","",IF(K69<>"",IF(VLOOKUP($D69,table_attributesDATA_all,Attributes_DATA!$AH$2,0)=0,VLOOKUP(K69,table_featsDATA_feats,Feats_DATA!T$4,0),VLOOKUP($D69,table_attributesDATA_all,Attributes_DATA!$AH$2,0)),VLOOKUP($D69,table_attributesDATA_all,Attributes_DATA!$AH$2,0))) ->  | Q69: no | U69: 63 | Z69: 0 | AB69: 0 | AD69: 63 | AF69: 15
A70: 64 | B70: 4 | C70: 15 | D70: =IF(INDEX(Features_DATA!$AB$5:$DN$8,B70,((C70-1)*5)-4)=0,"",INDEX(Features_DATA!$AB$5:$DN$8,B70,((C70-1)*5)-4)) ->  | E70: =IF($D70<>"",VLOOKUP($D70,table_attributesDATA_all,Attributes_DATA!AF$2,0),"") ->  | G70: no | J70: =IF($D70="","",IF(H70<>"",IF(VLOOKUP($D70,table_attributesDATA_all,Attributes_DATA!$AG$2,0)=0,VLOOKUP(H70,table_featsDATA_feats,Feats_DATA!T$4,0),VLOOKUP($D70,table_attributesDATA_all,Attributes_DATA!$AG$2,0)),VLOOKUP($D70,table_attributesDATA_all,Attributes_DATA!$AG$2,0))) ->  | L70: no | O70: =IF($D70="","",IF(K70<>"",IF(VLOOKUP($D70,table_attributesDATA_all,Attributes_DATA!$AH$2,0)=0,VLOOKUP(K70,table_featsDATA_feats,Feats_DATA!T$4,0),VLOOKUP($D70,table_attributesDATA_all,Attributes_DATA!$AH$2,0)),VLOOKUP($D70,table_attributesDATA_all,Attributes_DATA!$AH$2,0))) ->  | Q70: no | U70: 64 | Z70: 0 | AB70: 0 | AD70: 64 | AF70: 15
A71: 65 | B71: 1 | C71: 16 | D71: =IF(INDEX(Features_DATA!$AB$5:$DN$8,B71,((C71-1)*5)-4)=0,"",INDEX(Features_DATA!$AB$5:$DN$8,B71,((C71-1)*5)-4)) ->  | E71: =IF($D71<>"",VLOOKUP($D71,table_attributesDATA_all,Attributes_DATA!AF$2,0),"") ->  | F71: =VLOOKUP($A71,table_levels_featuresselected,2,0) ->  | G71: no | J71: =IF($D71="","",IF(H71<>"",IF(VLOOKUP($D71,table_attributesDATA_all,Attributes_DATA!$AG$2,0)=0,VLOOKUP(H71,table_featsDATA_feats,Feats_DATA!T$4,0),VLOOKUP($D71,table_attributesDATA_all,Attributes_DATA!$AG$2,0)),VLOOKUP($D71,table_attributesDATA_all,Attributes_DATA!$AG$2,0))) ->  | K71: =VLOOKUP($A71,table_levels_featuresselected,3,0) ->  | L71: no | O71: =IF($D71="","",IF(K71<>"",IF(VLOOKUP($D71,table_attributesDATA_all,Attributes_DATA!$AH$2,0)=0,VLOOKUP(K71,table_featsDATA_feats,Feats_DATA!T$4,0),VLOOKUP($D71,table_attributesDATA_all,Attributes_DATA!$AH$2,0)),VLOOKUP($D71,table_attributesDATA_all,Attributes_DATA!$AH$2,0))) ->  | P71: =VLOOKUP($A71,table_levels_featuresselected,4,0) ->  | Q71: no | U71: 65 | Z71: 0 | AB71: 0 | AD71: 65 | AF71: 16
A72: 66 | B72: 2 | C72: 16 | D72: =IF(INDEX(Features_DATA!$AB$5:$DN$8,B72,((C72-1)*5)-4)=0,"",INDEX(Features_DATA!$AB$5:$DN$8,B72,((C72-1)*5)-4)) ->  | E72: =IF($D72<>"",VLOOKUP($D72,table_attributesDATA_all,Attributes_DATA!AF$2,0),"") ->  | G72: =IF(ISERROR(MATCH("*feat*",D72,0)),"no","yes") -> no | H72: =IF(G72="yes",F72,"") ->  | I72: =IF(G72="yes",F72&IF(K72<>""," ("&K72&")",""),"") ->  | J72: =IF($D72="","",IF(H72<>"",IF(VLOOKUP($D72,table_attributesDATA_all,Attributes_DATA!$AG$2,0)=0,VLOOKUP(H72,table_featsDATA_feats,Feats_DATA!T$4,0),VLOOKUP($D72,table_attributesDATA_all,Attributes_DATA!$AG$2,0)),VLOOKUP($D72,table_attributesDATA_all,Attributes_DATA!$AG$2,0))) ->  | L72: =IF(ISERROR(MATCH("*feat*",F72,0)),"no","yes") -> no | M72: =IF(L72="yes",K72,"") ->  | N72: =IF(L72="yes",K72&IF(P72<>""," ("&P72&")",""),"") ->  | O72: =IF($D72="","",IF(K72<>"",IF(VLOOKUP($D72,table_attributesDATA_all,Attributes_DATA!$AH$2,0)=0,VLOOKUP(K72,table_featsDATA_feats,Feats_DATA!T$4,0),VLOOKUP($D72,table_attributesDATA_all,Attributes_DATA!$AH$2,0)),VLOOKUP($D72,table_attributesDATA_all,Attributes_DATA!$AH$2,0))) ->  | Q72: =IF(ISERROR(MATCH("*feat*",K72,0)),"no","yes") -> no | R72: =IF(Q72="yes",P72,"") ->  | S72: =IF(Q72="yes",P72&IF(V72<>""," ("&V72&")",""),"") ->  | U72: 66 | V72: =H72 ->  | W72: =K72 ->  | X72: =I72 ->  | Z72: =IF(ISERROR(MATCH("*Rage power*",D72,0)),0,IF(F72="",0,1)) -> 0 | AB72: =IF(ISERROR(MATCH("Rogue talent*",D72,0)),0,IF(F72="",0,1)) -> 0 | AD72: 66 | AE72: =IF(OR(F72="",F72=0,ISERROR(F72)),"",F72) ->  | AF72: 16
A73: 67 | B73: 3 | C73: 16 | D73: =IF(INDEX(Features_DATA!$AB$5:$DN$8,B73,((C73-1)*5)-4)=0,"",INDEX(Features_DATA!$AB$5:$DN$8,B73,((C73-1)*5)-4)) ->  | E73: =IF($D73<>"",VLOOKUP($D73,table_attributesDATA_all,Attributes_DATA!AF$2,0),"") ->  | G73: no | J73: =IF($D73="","",IF(H73<>"",IF(VLOOKUP($D73,table_attributesDATA_all,Attributes_DATA!$AG$2,0)=0,VLOOKUP(H73,table_featsDATA_feats,Feats_DATA!T$4,0),VLOOKUP($D73,table_attributesDATA_all,Attributes_DATA!$AG$2,0)),VLOOKUP($D73,table_attributesDATA_all,Attributes_DATA!$AG$2,0))) ->  | L73: no | O73: =IF($D73="","",IF(K73<>"",IF(VLOOKUP($D73,table_attributesDATA_all,Attributes_DATA!$AH$2,0)=0,VLOOKUP(K73,table_featsDATA_feats,Feats_DATA!T$4,0),VLOOKUP($D73,table_attributesDATA_all,Attributes_DATA!$AH$2,0)),VLOOKUP($D73,table_attributesDATA_all,Attributes_DATA!$AH$2,0))) ->  | Q73: no | U73: 67 | Z73: 0 | AB73: 0 | AD73: 67 | AF73: 16
A74: 68 | B74: 4 | C74: 16 | D74: =IF(INDEX(Features_DATA!$AB$5:$DN$8,B74,((C74-1)*5)-4)=0,"",INDEX(Features_DATA!$AB$5:$DN$8,B74,((C74-1)*5)-4)) ->  | E74: =IF($D74<>"",VLOOKUP($D74,table_attributesDATA_all,Attributes_DATA!AF$2,0),"") ->  | G74: no | J74: =IF($D74="","",IF(H74<>"",IF(VLOOKUP($D74,table_attributesDATA_all,Attributes_DATA!$AG$2,0)=0,VLOOKUP(H74,table_featsDATA_feats,Feats_DATA!T$4,0),VLOOKUP($D74,table_attributesDATA_all,Attributes_DATA!$AG$2,0)),VLOOKUP($D74,table_attributesDATA_all,Attributes_DATA!$AG$2,0))) ->  | L74: no | O74: =IF($D74="","",IF(K74<>"",IF(VLOOKUP($D74,table_attributesDATA_all,Attributes_DATA!$AH$2,0)=0,VLOOKUP(K74,table_featsDATA_feats,Feats_DATA!T$4,0),VLOOKUP($D74,table_attributesDATA_all,Attributes_DATA!$AH$2,0)),VLOOKUP($D74,table_attributesDATA_all,Attributes_DATA!$AH$2,0))) ->  | Q74: no | U74: 68 | Z74: 0 | AB74: 0 | AD74: 68 | AF74: 16
A75: 69 | B75: 1 | C75: 17 | D75: =IF(INDEX(Features_DATA!$AB$5:$DN$8,B75,((C75-1)*5)-4)=0,"",INDEX(Features_DATA!$AB$5:$DN$8,B75,((C75-1)*5)-4)) ->  | E75: =IF($D75<>"",VLOOKUP($D75,table_attributesDATA_all,Attributes_DATA!AF$2,0),"") ->  | G75: no | J75: =IF($D75="","",IF(H75<>"",IF(VLOOKUP($D75,table_attributesDATA_all,Attributes_DATA!$AG$2,0)=0,VLOOKUP(H75,table_featsDATA_feats,Feats_DATA!T$4,0),VLOOKUP($D75,table_attributesDATA_all,Attributes_DATA!$AG$2,0)),VLOOKUP($D75,table_attributesDATA_all,Attributes_DATA!$AG$2,0))) ->  | L75: no | O75: =IF($D75="","",IF(K75<>"",IF(VLOOKUP($D75,table_attributesDATA_all,Attributes_DATA!$AH$2,0)=0,VLOOKUP(K75,table_featsDATA_feats,Feats_DATA!T$4,0),VLOOKUP($D75,table_attributesDATA_all,Attributes_DATA!$AH$2,0)),VLOOKUP($D75,table_attributesDATA_all,Attributes_DATA!$AH$2,0))) ->  | Q75: no | U75: 69 | Z75: 0 | AB75: 0 | AD75: 69 | AF75: 17
A76: 70 | B76: 2 | C76: 17 | D76: =IF(INDEX(Features_DATA!$AB$5:$DN$8,B76,((C76-1)*5)-4)=0,"",INDEX(Features_DATA!$AB$5:$DN$8,B76,((C76-1)*5)-4)) ->  | E76: =IF($D76<>"",VLOOKUP($D76,table_attributesDATA_all,Attributes_DATA!AF$2,0),"") ->  | G76: no | J76: =IF($D76="","",IF(H76<>"",IF(VLOOKUP($D76,table_attributesDATA_all,Attributes_DATA!$AG$2,0)=0,VLOOKUP(H76,table_featsDATA_feats,Feats_DATA!T$4,0),VLOOKUP($D76,table_attributesDATA_all,Attributes_DATA!$AG$2,0)),VLOOKUP($D76,table_attributesDATA_all,Attributes_DATA!$AG$2,0))) ->  | L76: no | O76: =IF($D76="","",IF(K76<>"",IF(VLOOKUP($D76,table_attributesDATA_all,Attributes_DATA!$AH$2,0)=0,VLOOKUP(K76,table_featsDATA_feats,Feats_DATA!T$4,0),VLOOKUP($D76,table_attributesDATA_all,Attributes_DATA!$AH$2,0)),VLOOKUP($D76,table_attributesDATA_all,Attributes_DATA!$AH$2,0))) ->  | Q76: no | U76: 70 | Z76: 0 | AB76: 0 | AD76: 70 | AF76: 17
A77: 71 | B77: 3 | C77: 17 | D77: =IF(INDEX(Features_DATA!$AB$5:$DN$8,B77,((C77-1)*5)-4)=0,"",INDEX(Features_DATA!$AB$5:$DN$8,B77,((C77-1)*5)-4)) ->  | E77: =IF($D77<>"",VLOOKUP($D77,table_attributesDATA_all,Attributes_DATA!AF$2,0),"") ->  | G77: no | J77: =IF($D77="","",IF(H77<>"",IF(VLOOKUP($D77,table_attributesDATA_all,Attributes_DATA!$AG$2,0)=0,VLOOKUP(H77,table_featsDATA_feats,Feats_DATA!T$4,0),VLOOKUP($D77,table_attributesDATA_all,Attributes_DATA!$AG$2,0)),VLOOKUP($D77,table_attributesDATA_all,Attributes_DATA!$AG$2,0))) ->  | L77: no | O77: =IF($D77="","",IF(K77<>"",IF(VLOOKUP($D77,table_attributesDATA_all,Attributes_DATA!$AH$2,0)=0,VLOOKUP(K77,table_featsDATA_feats,Feats_DATA!T$4,0),VLOOKUP($D77,table_attributesDATA_all,Attributes_DATA!$AH$2,0)),VLOOKUP($D77,table_attributesDATA_all,Attributes_DATA!$AH$2,0))) ->  | Q77: no | U77: 71 | Z77: 0 | AB77: 0 | AD77: 71 | AF77: 17
A78: 72 | B78: 4 | C78: 17 | D78: =IF(INDEX(Features_DATA!$AB$5:$DN$8,B78,((C78-1)*5)-4)=0,"",INDEX(Features_DATA!$AB$5:$DN$8,B78,((C78-1)*5)-4)) ->  | E78: =IF($D78<>"",VLOOKUP($D78,table_attributesDATA_all,Attributes_DATA!AF$2,0),"") ->  | G78: no | J78: =IF($D78="","",IF(H78<>"",IF(VLOOKUP($D78,table_attributesDATA_all,Attributes_DATA!$AG$2,0)=0,VLOOKUP(H78,table_featsDATA_feats,Feats_DATA!T$4,0),VLOOKUP($D78,table_attributesDATA_all,Attributes_DATA!$AG$2,0)),VLOOKUP($D78,table_attributesDATA_all,Attributes_DATA!$AG$2,0))) ->  | L78: no | O78: =IF($D78="","",IF(K78<>"",IF(VLOOKUP($D78,table_attributesDATA_all,Attributes_DATA!$AH$2,0)=0,VLOOKUP(K78,table_featsDATA_feats,Feats_DATA!T$4,0),VLOOKUP($D78,table_attributesDATA_all,Attributes_DATA!$AH$2,0)),VLOOKUP($D78,table_attributesDATA_all,Attributes_DATA!$AH$2,0))) ->  | Q78: no | U78: 72 | Z78: 0 | AB78: 0 | AD78: 72 | AF78: 17
A79: 73 | B79: 1 | C79: 18 | D79: =IF(INDEX(Features_DATA!$AB$5:$DN$8,B79,((C79-1)*5)-4)=0,"",INDEX(Features_DATA!$AB$5:$DN$8,B79,((C79-1)*5)-4)) ->  | E79: =IF($D79<>"",VLOOKUP($D79,table_attributesDATA_all,Attributes_DATA!AF$2,0),"") ->  | G79: no | J79: =IF($D79="","",IF(H79<>"",IF(VLOOKUP($D79,table_attributesDATA_all,Attributes_DATA!$AG$2,0)=0,VLOOKUP(H79,table_featsDATA_feats,Feats_DATA!T$4,0),VLOOKUP($D79,table_attributesDATA_all,Attributes_DATA!$AG$2,0)),VLOOKUP($D79,table_attributesDATA_all,Attributes_DATA!$AG$2,0))) ->  | L79: no | O79: =IF($D79="","",IF(K79<>"",IF(VLOOKUP($D79,table_attributesDATA_all,Attributes_DATA!$AH$2,0)=0,VLOOKUP(K79,table_featsDATA_feats,Feats_DATA!T$4,0),VLOOKUP($D79,table_attributesDATA_all,Attributes_DATA!$AH$2,0)),VLOOKUP($D79,table_attributesDATA_all,Attributes_DATA!$AH$2,0))) ->  | Q79: no | U79: 73 | Z79: 0 | AB79: 0 | AD79: 73 | AF79: 18
A80: 74 | B80: 2 | C80: 18 | D80: =IF(INDEX(Features_DATA!$AB$5:$DN$8,B80,((C80-1)*5)-4)=0,"",INDEX(Features_DATA!$AB$5:$DN$8,B80,((C80-1)*5)-4)) ->  | E80: =IF($D80<>"",VLOOKUP($D80,table_attributesDATA_all,Attributes_DATA!AF$2,0),"") ->  | G80: no | J80: =IF($D80="","",IF(H80<>"",IF(VLOOKUP($D80,table_attributesDATA_all,Attributes_DATA!$AG$2,0)=0,VLOOKUP(H80,table_featsDATA_feats,Feats_DATA!T$4,0),VLOOKUP($D80,table_attributesDATA_all,Attributes_DATA!$AG$2,0)),VLOOKUP($D80,table_attributesDATA_all,Attributes_DATA!$AG$2,0))) ->  | L80: no | O80: =IF($D80="","",IF(K80<>"",IF(VLOOKUP($D80,table_attributesDATA_all,Attributes_DATA!$AH$2,0)=0,VLOOKUP(K80,table_featsDATA_feats,Feats_DATA!T$4,0),VLOOKUP($D80,table_attributesDATA_all,Attributes_DATA!$AH$2,0)),VLOOKUP($D80,table_attributesDATA_all,Attributes_DATA!$AH$2,0))) ->  | Q80: no | U80: 74 | Z80: 0 | AB80: 0 | AD80: 74 | AF80: 18
A81: 75 | B81: 3 | C81: 18 | D81: =IF(INDEX(Features_DATA!$AB$5:$DN$8,B81,((C81-1)*5)-4)=0,"",INDEX(Features_DATA!$AB$5:$DN$8,B81,((C81-1)*5)-4)) ->  | E81: =IF($D81<>"",VLOOKUP($D81,table_attributesDATA_all,Attributes_DATA!AF$2,0),"") ->  | G81: no | J81: =IF($D81="","",IF(H81<>"",IF(VLOOKUP($D81,table_attributesDATA_all,Attributes_DATA!$AG$2,0)=0,VLOOKUP(H81,table_featsDATA_feats,Feats_DATA!T$4,0),VLOOKUP($D81,table_attributesDATA_all,Attributes_DATA!$AG$2,0)),VLOOKUP($D81,table_attributesDATA_all,Attributes_DATA!$AG$2,0))) ->  | L81: no | O81: =IF($D81="","",IF(K81<>"",IF(VLOOKUP($D81,table_attributesDATA_all,Attributes_DATA!$AH$2,0)=0,VLOOKUP(K81,table_featsDATA_feats,Feats_DATA!T$4,0),VLOOKUP($D81,table_attributesDATA_all,Attributes_DATA!$AH$2,0)),VLOOKUP($D81,table_attributesDATA_all,Attributes_DATA!$AH$2,0))) ->  | Q81: no | U81: 75 | Z81: 0 | AB81: 0 | AD81: 75 | AF81: 18
A82: 76 | B82: 4 | C82: 18 | D82: =IF(INDEX(Features_DATA!$AB$5:$DN$8,B82,((C82-1)*5)-4)=0,"",INDEX(Features_DATA!$AB$5:$DN$8,B82,((C82-1)*5)-4)) ->  | E82: =IF($D82<>"",VLOOKUP($D82,table_attributesDATA_all,Attributes_DATA!AF$2,0),"") ->  | G82: no | J82: =IF($D82="","",IF(H82<>"",IF(VLOOKUP($D82,table_attributesDATA_all,Attributes_DATA!$AG$2,0)=0,VLOOKUP(H82,table_featsDATA_feats,Feats_DATA!T$4,0),VLOOKUP($D82,table_attributesDATA_all,Attributes_DATA!$AG$2,0)),VLOOKUP($D82,table_attributesDATA_all,Attributes_DATA!$AG$2,0))) ->  | L82: no | O82: =IF($D82="","",IF(K82<>"",IF(VLOOKUP($D82,table_attributesDATA_all,Attributes_DATA!$AH$2,0)=0,VLOOKUP(K82,table_featsDATA_feats,Feats_DATA!T$4,0),VLOOKUP($D82,table_attributesDATA_all,Attributes_DATA!$AH$2,0)),VLOOKUP($D82,table_attributesDATA_all,Attributes_DATA!$AH$2,0))) ->  | Q82: no | U82: 76 | Z82: 0 | AB82: 0 | AD82: 76 | AF82: 18
A83: 77 | B83: 1 | C83: 19 | D83: =IF(INDEX(Features_DATA!$AB$5:$DN$8,B83,((C83-1)*5)-4)=0,"",INDEX(Features_DATA!$AB$5:$DN$8,B83,((C83-1)*5)-4)) ->  | E83: =IF($D83<>"",VLOOKUP($D83,table_attributesDATA_all,Attributes_DATA!AF$2,0),"") ->  | G83: no | J83: =IF($D83="","",IF(H83<>"",IF(VLOOKUP($D83,table_attributesDATA_all,Attributes_DATA!$AG$2,0)=0,VLOOKUP(H83,table_featsDATA_feats,Feats_DATA!T$4,0),VLOOKUP($D83,table_attributesDATA_all,Attributes_DATA!$AG$2,0)),VLOOKUP($D83,table_attributesDATA_all,Attributes_DATA!$AG$2,0))) ->  | L83: no | O83: =IF($D83="","",IF(K83<>"",IF(VLOOKUP($D83,table_attributesDATA_all,Attributes_DATA!$AH$2,0)=0,VLOOKUP(K83,table_featsDATA_feats,Feats_DATA!T$4,0),VLOOKUP($D83,table_attributesDATA_all,Attributes_DATA!$AH$2,0)),VLOOKUP($D83,table_attributesDATA_all,Attributes_DATA!$AH$2,0))) ->  | Q83: no | U83: 77 | Z83: 0 | AB83: 0 | AD83: 77 | AF83: 19
A84: 78 | B84: 2 | C84: 19 | D84: =IF(INDEX(Features_DATA!$AB$5:$DN$8,B84,((C84-1)*5)-4)=0,"",INDEX(Features_DATA!$AB$5:$DN$8,B84,((C84-1)*5)-4)) ->  | E84: =IF($D84<>"",VLOOKUP($D84,table_attributesDATA_all,Attributes_DATA!AF$2,0),"") ->  | G84: no | J84: =IF($D84="","",IF(H84<>"",IF(VLOOKUP($D84,table_attributesDATA_all,Attributes_DATA!$AG$2,0)=0,VLOOKUP(H84,table_featsDATA_feats,Feats_DATA!T$4,0),VLOOKUP($D84,table_attributesDATA_all,Attributes_DATA!$AG$2,0)),VLOOKUP($D84,table_attributesDATA_all,Attributes_DATA!$AG$2,0))) ->  | L84: no | O84: =IF($D84="","",IF(K84<>"",IF(VLOOKUP($D84,table_attributesDATA_all,Attributes_DATA!$AH$2,0)=0,VLOOKUP(K84,table_featsDATA_feats,Feats_DATA!T$4,0),VLOOKUP($D84,table_attributesDATA_all,Attributes_DATA!$AH$2,0)),VLOOKUP($D84,table_attributesDATA_all,Attributes_DATA!$AH$2,0))) ->  | Q84: no | U84: 78 | Z84: 0 | AB84: 0 | AD84: 78 | AF84: 19
A85: 79 | B85: 3 | C85: 19 | D85: =IF(INDEX(Features_DATA!$AB$5:$DN$8,B85,((C85-1)*5)-4)=0,"",INDEX(Features_DATA!$AB$5:$DN$8,B85,((C85-1)*5)-4)) ->  | E85: =IF($D85<>"",VLOOKUP($D85,table_attributesDATA_all,Attributes_DATA!AF$2,0),"") ->  | G85: no | J85: =IF($D85="","",IF(H85<>"",IF(VLOOKUP($D85,table_attributesDATA_all,Attributes_DATA!$AG$2,0)=0,VLOOKUP(H85,table_featsDATA_feats,Feats_DATA!T$4,0),VLOOKUP($D85,table_attributesDATA_all,Attributes_DATA!$AG$2,0)),VLOOKUP($D85,table_attributesDATA_all,Attributes_DATA!$AG$2,0))) ->  | L85: no | O85: =IF($D85="","",IF(K85<>"",IF(VLOOKUP($D85,table_attributesDATA_all,Attributes_DATA!$AH$2,0)=0,VLOOKUP(K85,table_featsDATA_feats,Feats_DATA!T$4,0),VLOOKUP($D85,table_attributesDATA_all,Attributes_DATA!$AH$2,0)),VLOOKUP($D85,table_attributesDATA_all,Attributes_DATA!$AH$2,0))) ->  | Q85: no | U85: 79 | Z85: 0 | AB85: 0 | AD85: 79 | AF85: 19
A86: 80 | B86: 4 | C86: 19 | D86: =IF(INDEX(Features_DATA!$AB$5:$DN$8,B86,((C86-1)*5)-4)=0,"",INDEX(Features_DATA!$AB$5:$DN$8,B86,((C86-1)*5)-4)) ->  | E86: =IF($D86<>"",VLOOKUP($D86,table_attributesDATA_all,Attributes_DATA!AF$2,0),"") ->  | G86: no | J86: =IF($D86="","",IF(H86<>"",IF(VLOOKUP($D86,table_attributesDATA_all,Attributes_DATA!$AG$2,0)=0,VLOOKUP(H86,table_featsDATA_feats,Feats_DATA!T$4,0),VLOOKUP($D86,table_attributesDATA_all,Attributes_DATA!$AG$2,0)),VLOOKUP($D86,table_attributesDATA_all,Attributes_DATA!$AG$2,0))) ->  | L86: no | O86: =IF($D86="","",IF(K86<>"",IF(VLOOKUP($D86,table_attributesDATA_all,Attributes_DATA!$AH$2,0)=0,VLOOKUP(K86,table_featsDATA_feats,Feats_DATA!T$4,0),VLOOKUP($D86,table_attributesDATA_all,Attributes_DATA!$AH$2,0)),VLOOKUP($D86,table_attributesDATA_all,Attributes_DATA!$AH$2,0))) ->  | Q86: no | U86: 80 | Z86: 0 | AB86: 0 | AD86: 80 | AF86: 19
A87: 81 | B87: 1 | C87: 20 | D87: =IF(INDEX(Features_DATA!$AB$5:$DN$8,B87,((C87-1)*5)-4)=0,"",INDEX(Features_DATA!$AB$5:$DN$8,B87,((C87-1)*5)-4)) ->  | E87: =IF($D87<>"",VLOOKUP($D87,table_attributesDATA_all,Attributes_DATA!AF$2,0),"") ->  | G87: no | J87: =IF($D87="","",IF(H87<>"",IF(VLOOKUP($D87,table_attributesDATA_all,Attributes_DATA!$AG$2,0)=0,VLOOKUP(H87,table_featsDATA_feats,Feats_DATA!T$4,0),VLOOKUP($D87,table_attributesDATA_all,Attributes_DATA!$AG$2,0)),VLOOKUP($D87,table_attributesDATA_all,Attributes_DATA!$AG$2,0))) ->  | L87: no | O87: =IF($D87="","",IF(K87<>"",IF(VLOOKUP($D87,table_attributesDATA_all,Attributes_DATA!$AH$2,0)=0,VLOOKUP(K87,table_featsDATA_feats,Feats_DATA!T$4,0),VLOOKUP($D87,table_attributesDATA_all,Attributes_DATA!$AH$2,0)),VLOOKUP($D87,table_attributesDATA_all,Attributes_DATA!$AH$2,0))) ->  | Q87: no | U87: 81 | Z87: 0 | AB87: 0 | AD87: 81 | AF87: 20
A88: 82 | B88: 2 | C88: 20 | D88: =IF(INDEX(Features_DATA!$AB$5:$DN$8,B88,((C88-1)*5)-4)=0,"",INDEX(Features_DATA!$AB$5:$DN$8,B88,((C88-1)*5)-4)) ->  | E88: =IF($D88<>"",VLOOKUP($D88,table_attributesDATA_all,Attributes_DATA!AF$2,0),"") ->  | G88: no | J88: =IF($D88="","",IF(H88<>"",IF(VLOOKUP($D88,table_attributesDATA_all,Attributes_DATA!$AG$2,0)=0,VLOOKUP(H88,table_featsDATA_feats,Feats_DATA!T$4,0),VLOOKUP($D88,table_attributesDATA_all,Attributes_DATA!$AG$2,0)),VLOOKUP($D88,table_attributesDATA_all,Attributes_DATA!$AG$2,0))) ->  | L88: no | O88: =IF($D88="","",IF(K88<>"",IF(VLOOKUP($D88,table_attributesDATA_all,Attributes_DATA!$AH$2,0)=0,VLOOKUP(K88,table_featsDATA_feats,Feats_DATA!T$4,0),VLOOKUP($D88,table_attributesDATA_all,Attributes_DATA!$AH$2,0)),VLOOKUP($D88,table_attributesDATA_all,Attributes_DATA!$AH$2,0))) ->  | Q88: no | U88: 82 | Z88: 0 | AB88: 0 | AD88: 82 | AF88: 20
A89: 83 | B89: 3 | C89: 20 | D89: =IF(INDEX(Features_DATA!$AB$5:$DN$8,B89,((C89-1)*5)-4)=0,"",INDEX(Features_DATA!$AB$5:$DN$8,B89,((C89-1)*5)-4)) ->  | E89: =IF($D89<>"",VLOOKUP($D89,table_attributesDATA_all,Attributes_DATA!AF$2,0),"") ->  | G89: no | J89: =IF($D89="","",IF(H89<>"",IF(VLOOKUP($D89,table_attributesDATA_all,Attributes_DATA!$AG$2,0)=0,VLOOKUP(H89,table_featsDATA_feats,Feats_DATA!T$4,0),VLOOKUP($D89,table_attributesDATA_all,Attributes_DATA!$AG$2,0)),VLOOKUP($D89,table_attributesDATA_all,Attributes_DATA!$AG$2,0))) ->  | L89: no | O89: =IF($D89="","",IF(K89<>"",IF(VLOOKUP($D89,table_attributesDATA_all,Attributes_DATA!$AH$2,0)=0,VLOOKUP(K89,table_featsDATA_feats,Feats_DATA!T$4,0),VLOOKUP($D89,table_attributesDATA_all,Attributes_DATA!$AH$2,0)),VLOOKUP($D89,table_attributesDATA_all,Attributes_DATA!$AH$2,0))) ->  | Q89: no | U89: 83 | Z89: 0 | AB89: 0 | AD89: 83 | AF89: 20
A90: 84 | B90: 4 | C90: 20 | D90: =IF(INDEX(Features_DATA!$AB$5:$DN$8,B90,((C90-1)*5)-4)=0,"",INDEX(Features_DATA!$AB$5:$DN$8,B90,((C90-1)*5)-4)) ->  | E90: =IF($D90<>"",VLOOKUP($D90,table_attributesDATA_all,Attributes_DATA!AF$2,0),"") ->  | G90: no | J90: =IF($D90="","",IF(H90<>"",IF(VLOOKUP($D90,table_attributesDATA_all,Attributes_DATA!$AG$2,0)=0,VLOOKUP(H90,table_featsDATA_feats,Feats_DATA!T$4,0),VLOOKUP($D90,table_attributesDATA_all,Attributes_DATA!$AG$2,0)),VLOOKUP($D90,table_attributesDATA_all,Attributes_DATA!$AG$2,0))) ->  | L90: no | O90: =IF($D90="","",IF(K90<>"",IF(VLOOKUP($D90,table_attributesDATA_all,Attributes_DATA!$AH$2,0)=0,VLOOKUP(K90,table_featsDATA_feats,Feats_DATA!T$4,0),VLOOKUP($D90,table_attributesDATA_all,Attributes_DATA!$AH$2,0)),VLOOKUP($D90,table_attributesDATA_all,Attributes_DATA!$AH$2,0))) ->  | Q90: no | U90: 84 | Z90: 0 | AB90: 0 | AD90: 84 | AF90: 20
U91: 85 | V91: =M7 ->  | W91: =P7 ->  | X91: =N7 ->  | AD91: 85 | AE91: =IF(OR(K7="",K7=0,ISERROR(K7)),"",K7) ->  | AF91: 1
U92: 86 | V92: =M8 ->  | W92: =P8 -> Necromancy | AD92: 86 | AE92: =IF(OR(K8="",K8=0,ISERROR(K8)),"",K8) -> Divination | AF92: 1
U93: 87 | AD93: 87 | AE93: Hawk | AF93: 1
U94: 88 | AD94: 88 | AF94: 1
U95: 89 | AD95: 89 | AF95: 1
U96: 90 | AD96: 90 | AF96: 1
U97: 91 | AD97: 91 | AF97: 1
U98: 92 | AD98: 92 | AF98: 1
U99: 93 | AD99: 93 | AF99: 2
U100: 94 | AD100: 94 | AF100: 2
U101: 95 | AD101: 95 | AF101: 2
U102: 96 | AD102: 96 | AF102: 2
U103: 97 | AD103: 97 | AF103: 3
U104: 98 | AD104: 98 | AF104: 3
U105: 99 | AD105: 99 | AF105: 3
U106: 100 | AD106: 100 | AF106: 3
U107: 101 | AD107: 101 | AF107: 4
U108: 102 | AD108: 102 | AF108: 4
U109: 103 | AD109: 103 | AF109: 4
U110: 104 | AD110: 104 | AF110: 4
U111: 105 | AD111: 105 | AF111: 5
U112: 106 | AD112: 106 | AF112: 5
U113: 107 | AD113: 107 | AF113: 5
U114: 108 | AD114: 108 | AF114: 5
U115: 109 | AD115: 109 | AF115: 6
U116: 110 | AD116: 110 | AF116: 6
U117: 111 | AD117: 111 | AF117: 6
U118: 112 | AD118: 112 | AF118: 6
U119: 113 | AD119: 113 | AF119: 7
U120: 114 | AD120: 114 | AF120: 7
U121: 115 | AD121: 115 | AF121: 7
U122: 116 | AD122: 116 | AF122: 7
U123: 117 | X123: =N39 ->  | AD123: 117 | AF123: 8
U124: 118 | AD124: 118 | AF124: 8
U125: 119 | AD125: 119 | AF125: 8
U126: 120 | AD126: 120 | AF126: 8
U127: 121 | AD127: 121 | AF127: 9
U128: 122 | AD128: 122 | AF128: 9
U129: 123 | AD129: 123 | AF129: 9
U130: 124 | AD130: 124 | AF130: 9
U131: 125 | AD131: 125 | AF131: 10
U132: 126 | AD132: 126 | AF132: 10
U133: 127 | AD133: 127 | AF133: 10
U134: 128 | AD134: 128 | AF134: 10
U135: 129 | AD135: 129 | AF135: 11
U136: 130 | AD136: 130 | AF136: 11
U137: 131 | AD137: 131 | AF137: 11
U138: 132 | AD138: 132 | AF138: 11
U139: 133 | AD139: 133 | AF139: 12
U140: 134 | AD140: 134 | AF140: 12
U141: 135 | AD141: 135 | AF141: 12
U142: 136 | AD142: 136 | AF142: 12
U143: 137 | AD143: 137 | AF143: 13
U144: 138 | AD144: 138 | AF144: 13
U145: 139 | AD145: 139 | AF145: 13
U146: 140 | AD146: 140 | AF146: 13
U147: 141 | AD147: 141 | AF147: 14
U148: 142 | AD148: 142 | AF148: 14
U149: 143 | AD149: 143 | AF149: 14
U150: 144 | AD150: 144 | AF150: 14
U151: 145 | AD151: 145 | AF151: 15
U152: 146 | AD152: 146 | AF152: 15
U153: 147 | AD153: 147 | AF153: 15
U154: 148 | AD154: 148 | AF154: 15
U155: 149 | X155: =N71 ->  | AD155: 149 | AF155: 16
U156: 150 | V156: =M72 ->  | W156: =P72 ->  | AD156: 150 | AE156: =IF(OR(K72="",K72=0,ISERROR(K72)),"",K72) ->  | AF156: 16
U157: 151 | AD157: 151 | AF157: 16
U158: 152 | AD158: 152 | AF158: 16
U159: 153 | AD159: 153 | AF159: 17
U160: 154 | AD160: 154 | AF160: 17
U161: 155 | AD161: 155 | AF161: 17
U162: 156 | AD162: 156 | AF162: 17
U163: 157 | AD163: 157 | AF163: 18
U164: 158 | AD164: 158 | AF164: 18
U165: 159 | AD165: 159 | AF165: 18
U166: 160 | AD166: 160 | AF166: 18
U167: 161 | AD167: 161 | AF167: 19
U168: 162 | AD168: 162 | AF168: 19
U169: 163 | AD169: 163 | AF169: 19
U170: 164 | AD170: 164 | AF170: 19
U171: 165 | AD171: 165 | AF171: 20
U172: 166 | AD172: 166 | AF172: 20
U173: 167 | AD173: 167 | AF173: 20
U174: 168 | AD174: 168 | AF174: 20
U175: 169 | V175: =R7 ->  | X175: =S7 ->  | AD175: 169 | AE175: =IF(OR(P7="",P7=0,ISERROR(P7)),"",P7) ->  | AF175: 1
U176: 170 | V176: =R8 ->  | AD176: 170 | AE176: =IF(OR(P8="",P8=0,ISERROR(P8)),"",P8) -> Necromancy | AF176: 1
U177: 171 | AD177: 171 | AF177: 1
U178: 172 | AD178: 172 | AF178: 1
U179: 173 | AD179: 173 | AF179: 1
U180: 174 | AD180: 174 | AF180: 1
U181: 175 | AD181: 175 | AF181: 1
U182: 176 | AD182: 176 | AF182: 1
U183: 177 | AD183: 177 | AF183: 2
U184: 178 | AD184: 178 | AF184: 2
U185: 179 | AD185: 179 | AF185: 2
U186: 180 | AD186: 180 | AF186: 2
U187: 181 | AD187: 181 | AF187: 3
U188: 182 | AD188: 182 | AF188: 3
U189: 183 | AD189: 183 | AF189: 3
U190: 184 | AD190: 184 | AF190: 3
U191: 185 | AD191: 185 | AF191: 4
U192: 186 | AD192: 186 | AF192: 4
U193: 187 | AD193: 187 | AF193: 4
U194: 188 | AD194: 188 | AF194: 4
U195: 189 | AD195: 189 | AF195: 5
U196: 190 | AD196: 190 | AF196: 5
U197: 191 | AD197: 191 | AF197: 5
U198: 192 | AD198: 192 | AF198: 5
U199: 193 | AD199: 193 | AF199: 6
U200: 194 | AD200: 194 | AF200: 6
... 58 more rows

Sheet Classes_DATA (hidden)
K2: =list_classesDATA_spelltype | M2: =list_classesDATA_spelllevel
B3: =table_classesDATA_classesall
A4: =index_classesDATA_classes | B4: 1 | C4: 2 | D4: 3 | E4: 4 | F4: 5 | G4: 6 | H4: 7 | I4: 8 | J4: 9 | K4: 10 | L4: 11 | M4: 12 | N4: 13 | O4: 14 | P4: 15 | Q4: 16 | R4: 17 | S4: 18 | T4: 19 | U4: 20 | V4: 21 | W4: 22 | X4: 23 | Y4: 24 | Z4: 25 | AA4: 26 | AB4: 27 | AC4: 28 | AD4: 29 | AE4: 30 | AF4: 31 | AG4: 32 | AH4: 33 | AI4: 34 | AJ4: 35 | AK4: 36 | AL4: 37 | AM4: 38 | AN4: 39 | AO4: 40 | AP4: 41 | AQ4: 42 | AR4: 43 | AS4: 44 | AT4: 45 | AU4: 46 | AV4: 47 | AW4: 48 | AX4: 49 | AY4: 50 | AZ4: 51 | BA4: 52 | BB4: 53 | BC4: 54 | BD4: 55 | BE4: 56 | BF4: 57 | BG4: 58 | BH4: 59 | BI4: 60 | BJ4: 61 | BK4: 62 | BL4: 63 | BM4: 64 | BN4: 65 | BO4: 66 | BP4: 67 | BQ4: 68 | BR4: 69 | BS4: 70 | BT4: 71 | BU4: 72 | BV4: 73 | BW4: 74 | BX4: 75 | BY4: 76 | BZ4: 77 | CA4: 78 | CB4: 79 | CC4: 80 | CD4: 81 | CE4: 82 | CF4: 83 | CG4: 84 | CH4: 85 | DT4: Classes for Class selection | DY4: Classes Qualified (Source & Pre-reqs) | EG4: Favored Class Selection | EL4: Class Spell Levels (Arcane&Divine) | EQ4: Class Spell Levels (Arcane) | EV4: Class Spell Levels (Divine) | FA4: Classes by Source and Selected | FG4: Classes by Alpha and Selected
P5: 1 | Q5: 2 | R5: 3 | S5: 4 | T5: 5 | U5: 6 | V5: 7 | W5: 8 | X5: 9 | Y5: 10 | Z5: 11 | AA5: 12 | AB5: 13 | AC5: 14 | AD5: 15 | AE5: 16 | AF5: 17 | AG5: 18 | AH5: 19 | AI5: 20 | AJ5: 21 | AK5: 22 | AL5: 23 | AM5: 24 | AN5: 25 | AO5: 26 | AP5: 27 | AQ5: 28 | AR5: 29 | AS5: 30 | AT5: 31 | AU5: 32 | AV5: 33 | AW5: 34 | AX5: 35 | AY5: 36 | AZ5: 37 | BA5: 38 | BB5: 39 | BC5: 40 | BD5: 41 | BE5: 42 | BF5: 43 | BK5: Spell Save DC's by Level | CL5: Pre-Requisites | DB5: Pre-Requisites | DT5: =list_classesDATA_available | EB5: =list_classesDATA_qualified | EG5: =list_classesDATA_allclasses | EL5: =list_classesDATA_spelllevels | EQ5: =list_classesDATA_spelllevelsarcane | EV5: =list_classesDATA_spelllevelsdivine | FB5: =list_classesDATA_bysource | FG5: =list_classesDATA_byalpha
A6: Index | B6: Class | C6: Type | D6: Source | E6: HD | F6: Skill | G6: BAB | H6: FORT | I6: REF | J6: WILL | K6: Spells | L6: Spell Caster Level Tag | M6: Spell Caster Level | N6: Spell Prog Cat | O6: Spell Ability | P6: Acrobatics | Q6: Appraise | R6: Bluff | S6: Climb | T6: Craft (untrained) | U6: Diplomacy | V6: Disable Device | W6: Disguise | X6: Escape Artist | Y6: Fly | Z6: Handle Animal | AA6: Heal | AB6: Intimidate | AC6: Knowledge (arcana) | AD6: Knowledge (dungeoneering) | AE6: Knowledge (engineering) | AF6: Knowledge (geography) | AG6: Knowledge (history) | AH6: Knowledge (local) | AI6: Knowledge (nature) | AJ6: Knowledge (nobility) | AK6: Knowledge (planes) | AL6: Knowledge (religion) | AM6: =Skills_DATA!$B54 ->  | AN6: =Skills_DATA!$B55 ->  | AO6: =Skills_DATA!$B56 ->  | AP6: Linguistics | AQ6: Perception | AR6: Perform (untrained) | AS6: Profession (untrained) | AT6: Ride | AU6: Sense Motive | AV6: Sleight of Hand | AW6: Spellcraft | AX6: Stealth | AY6: Survival | AZ6: Swim | BA6: Use Magic Device | BB6: =Skills_DATA!$B89 ->  | BC6: =Skills_DATA!$B90 ->  | BD6: =Skills_DATA!$B91 ->  | BE6: =Skills_DATA!$B92 ->  | BF6: =Skills_DATA!$B93 ->  | BG6: Specific Weapons Prof | BH6: Known Languages | BI6: Bonus Languages | BJ6: Pre-req display | BK6: 0 | BL6: 1 | BM6: 2 | BN6: 3 | BO6: 4 | BP6: 5 | BQ6: 6 | BR6: 7 | BS6: 8 | BT6: 9 | BU6: Highest Castable | BV6: DC Modifiers | BW6: Max Level | BX6: Special Bonus Spells? | BY6: Base spell ability | BZ6: Spell Type | CA6: Class Spell Table Column | CB6: Spells Known Table | CC6: Extra Spells Table | CD6: Extra Spells Gained by Level Table | CE6: Spells and level table | CF6: Extra Spell Type | CG6: Spell Display Table (Known/Prepared) | CH6: Spell Display Table (Available/Spellbook) | CL6: Race | CM6: Alignment | CN6: Feat 1 | CO6: Feat 2 | CP6: Feat 3 | CQ6: Feat 4 | CR6: Stat 1 Name | CS6: Stat 1 Value | CT6: Stat 2 Name | CU6: Stat 2 Value | CV6: Stat 3 Name | CW6: Stat 3 Value | CX6: Class or Race Ability | CY6: Class / Level | CZ6: Other | DB6: Race | DC6: Alignment | DD6: Feat 1 | DE6: Feat 2 | DF6: Feat 3 | DG6: Feat 4 | DH6: Stat 1 | DJ6: Stat 2 | DL6: Stat 3 | DN6: Class Ability | DO6: Class / Level | DP6: Other | DQ6: Meet Pre-reqs? | DR6: Alignment Override | DU6: =MAX(DU7:DU107) -> 19 | DY6: Source Match | DZ6: Pre-req Match | EA6: Qualify | EC6: =MAX(EC7:EC107) -> 20 | EH6: =MAX(EH7:EH107) -> 20 | EM6: =MAX(EM7:EM107) -> 1 | ER6: =MAX(ER7:ER107) -> 1 | EW6: =MAX(EW7:EW107) -> 0 | FC6: =MAX(FC7:FC128) -> 22 | FH6: =MAX(FH7:FH128) -> 19
A7: 1 | B7: =IF(cell_race="","Stats: enter Race","== Classes") -> == Classes | C7: Class | D7: Core | L7: =IF(K7="","",UPPER(LEFT(K7,1))&"CL"&LOWER(B7)) ->  | M7: =IF(K7="select",0,IF(L7="","",SUMIF(list_attributesDATA_bonusstat,L7,list_attributesDATA_bonusamount))) ->  | BJ7: ="" ->  | BK7: =IF($N7=0,"",IF($BU7-BK$6>-1,IF(VLOOKUP($N7,table_spellsDATA_progression,($M7+2),0)>0,10+BK$6+$BV7,""),"")) ->  | BU7: =IF($N7=0,"",IF(VLOOKUP($N7,table_spellsDATA_progression,M7+2,0)=-99,99,VLOOKUP($N7,table_spellsDATA_progression,M7+2,0))) ->  | BV7: =IF(O7="","",INDIRECT("cell_"&O7&"mod")) ->  | BW7: 20 | DB7: =IF(CL7=0,0,IF(ISERROR(MATCH("*#"&cell_race&"#*",CL7,0)),1,0)) -> 0 | DC7: =IF(CM7=0,0,IF(OR(cell_statsDATA_overrideclassalign=TRUE,Stats!$Q$33=""),0,IF(cell_statsDATA_alignmentshort<>"",(VLOOKUP(Classes_DATA!CM7,table_statsDATA_alignprereq,2,0)-1)*-1,1))) -> 0 | DD7: =IF(CN7=0,0,IF(ISERROR(MATCH(CN7,list_featsDATA2_featsselected,0)),1,0)) -> 0 | DE7: =IF(CO7=0,0,IF(ISERROR(MATCH(CO7,list_featsDATA2_featsselected,0)),1,0)) -> 0 | DF7: =IF(CP7=0,0,IF(ISERROR(MATCH(CP7,list_featsDATA2_featsselected,0)),1,0)) -> 0 | DG7: =IF(CQ7=0,0,IF(ISERROR(MATCH(CQ7,list_featsDATA2_featsselected,0)),1,0)) -> 0 | DH7: =IF(CR7=0,0,IF(ISERROR(VLOOKUP(CR7,table_attributesDATA2_prereqs,3,0)),1,IF(VLOOKUP(CR7,table_attributesDATA2_prereqs,3,0)>=CS7,0,1))) -> 0 | DJ7: =IF(CT7=0,0,IF(ISERROR(VLOOKUP(CT7,table_attributesDATA2_prereqs,3,0)),1,IF(VLOOKUP(CT7,table_attributesDATA2_prereqs,3,0)>=CU7,0,1))) -> 0 | DL7: =IF(CV7=0,0,IF(ISERROR(VLOOKUP(CV7,table_attributesDATA2_prereqs,3,0)),1,IF(VLOOKUP(CV7,table_attributesDATA2_prereqs,3,0)>=CW7,0,1))) -> 0 | DN7: =IF(CX7=0,0,IF(ISERROR(MATCH("*"&CX7&"*",list_attributesDATA_summaryall,0)),1,0)) -> 0 | DO7: =IF(CY7=0,0,IF(ISERROR(MATCH(CY7,list_classesDATA3_classlevel,0)),1,0)) -> 0 | DQ7: =IF(SUM(DB7:DP7)>0,FALSE,TRUE) -> TRUE | DR7: =IF(cell_statsDATA_overrideclassalign=TRUE,TRUE,DQ7) -> TRUE | DT7: =IF($A7<=DU$6,VLOOKUP($A7,DU$7:DW$107,3,0),"") -> == Classes | DU7: =IF(DV7=1,SUM(DV$7:DV7),"") -> 1 | DV7: 1 | DW7: =IF(EB7="","",EB7) -> == Classes | DY7: =IF(ISERROR(MATCH(D7,list_optionsDATA_sources,0)),FALSE,TRUE) -> TRUE | DZ7: =IF(cell_optionsDATA_showclasses=TRUE,TRUE,DR7) -> TRUE | EA7: =IF(AND(DY7=TRUE,DZ7=TRUE),TRUE,FALSE) -> TRUE | EB7: =IF($A7<=EC$6,VLOOKUP($A7,EC$7:EE$107,3,0),"") -> == Classes | EC7: =IF(ED7=1,SUM(ED$7:ED7),"") -> 1 | ED7: =IF(EE7="","",1) -> 1 | EE7: =IF(EA7=TRUE,B7,"") -> == Classes | EG7: =IF(A7<=EH$6,VLOOKUP(A7,EH$7:EJ$107,3,0),"") -> == Classes | EH7: =IF(EI7=1,SUM(EI$7:EI7),"") -> 1 | EI7: =IF(EJ7="","",1) -> 1 | EJ7: =IF(AND(C7="Class",DY7=TRUE),B7,"") -> == Classes | EL7: =IF($A7<=EM$6,VLOOKUP($A7,EM$7:EO$107,3,0),"") -> Wizard spells | EM7: =IF(EN7=1,SUM(EN$7:EN7),"") ->  | EN7: =IF(EO7="","",1) ->  | EO7: =IF(OR($K7="arcane",$K7="divine"),IF(ISERROR(MATCH($B7,list_classesDATA3_classesselected,0)),"",$B7&" spells"),"") ->  | EQ7: =IF($A7<=ER$6,VLOOKUP($A7,ER$7:ET$107,3,0),"") -> Wizard spells | ER7: =IF(ES7=1,SUM(ES$7:ES7),"") ->  | ES7: =IF(ET7="","",1) ->  | ET7: =IF($K7="arcane",IF(ISERROR(MATCH($B7,list_classesDATA3_classesselected,0)),"",$B7&" spells"),"") ->  | EV7: =IF($A7<=EW$6,VLOOKUP($A7,EW$7:EY$107,3,0),"") ->  | EW7: =IF(EX7=1,SUM(EX$7:EX7),"") ->  | EX7: =IF(EY7="","",1) ->  | EY7: =IF($K7="divine",IF(ISERROR(MATCH($B7,list_classesDATA3_classesselected,0)),"",$B7&" spells"),"") ->  | FA7: 1 | FB7: =IF(FA7<=FC$6,VLOOKUP(FA7,FC$7:FE$128,3,0),"") -> == Selected Classes | FC7: =IF(FD7=1,SUM(FD$7:FD7),"") -> 1 | FD7: =IF(FE7="","",1) -> 1 | FE7: =IF(FE8="","","== Selected Classes") -> == Selected Classes | FG7: =IF(FA7<=FH$6,VLOOKUP(FA7,FH$7:FJ$128,3,0),"") -> == Selected Classes | FH7: =IF(FI7=1,SUM(FI$7:FI7),"") -> 1 | FI7: =IF(FJ7="","",1) -> 1 | FJ7: =FE7 -> == Selected Classes
A8: 2 | B8: Alchemist | C8: Class | D8: APG | E8: 8 | F8: 4 | G8: Fair | H8: Good | I8: Good | J8: Poor | K8: arcane | L8: =IF(OR(K8="",K8="select"),"",UPPER(LEFT(K8,1))&"CL"&LOWER(B8)) -> ACLalchemist | M8: 0 | N8: 6 | O8: Int | P8: 0 | Q8: 1 | R8: 0 | S8: 0 | T8: 1 | U8: 0 | V8: 1 | W8: 0 | X8: 0 | Y8: 1 | Z8: 0 | AA8: 1 | AB8: 0 | AC8: 1 | AD8: 0 | AE8: 0 | AF8: 0 | AG8: 0 | AH8: 0 | AI8: 1 | AJ8: 0 | AK8: 0 | AL8: 0 | AM8: 0 | AN8: 0 | AO8: 0 | AP8: 0 | AQ8: 1 | AR8: 0 | AS8: 1 | AT8: 0 | AU8: 0 | AV8: 1 | AW8: 1 | AX8: 0 | AY8: 1 | AZ8: 0 | BA8: 1 | BB8: 0 | BC8: 0 | BD8: 0 | BE8: 0 | BF8: 0 | BJ8: ="" ->  | BK8: =IF($N8=0,"",IF($BU8-BK$6>-1,IF(VLOOKUP($N8,table_spellsDATA_progression,($M8+2),0)>0,10+BK$6+$BV8,""),"")) ->  | BU8: =IF($N8=0,"",IF(VLOOKUP($N8,table_spellsDATA_progression,M8+2,0)=-99,99,VLOOKUP($N8,table_spellsDATA_progression,M8+2,0))) -> 99 | BV8: =IF(O8="","",INDIRECT("cell_"&O8&"mod")) -> 4 | BW8: 20 | BY8: 10 | BZ8: Prepared | CA8: 23 | CG8: formulabook | CH8: table_spellsalchemistDATA_available | CM8: ANY | DB8: 0 | DC8: =IF(CM8=0,0,IF(OR(cell_statsDATA_overrideclassalign=TRUE,Stats!$Q$33=""),0,IF(cell_statsDATA_alignmentshort<>"",(VLOOKUP(Classes_DATA!CM8,table_statsDATA_alignprereq,2,0)-1)*-1,1))) -> 0 | DD8: 0 | DE8: 0 | DF8: 0 | DG8: 0 | DH8: 0 | DJ8: 0 | DL8: 0 | DN8: 0 | DO8: 0 | DQ8: =IF(SUM(DB8:DP8)>0,FALSE,TRUE) -> TRUE | DR8: TRUE | DT8: Alchemist | DU8: =IF(DV8=1,SUM(DV$7:DV8),"") -> 2 | DV8: =IF(DW8="","",IF(COUNTIF(list_classesDATA3_classesselected,DW8)<VLOOKUP(DW8,table_classesDATA_classesall,BW$4,0),1,"")) -> 1 | DW8: =IF(EB8="","",EB8) -> Alchemist | DY8: TRUE | DZ8: TRUE | EA8: =IF(AND(DY8=TRUE,DZ8=TRUE),TRUE,FALSE) -> TRUE | EB8: Alchemist | EC8: =IF(ED8=1,SUM(ED$7:ED8),"") -> 2 | ED8: =IF(EE8="","",1) -> 1 | EE8: Alchemist | EG8: Alchemist | EH8: =IF(EI8=1,SUM(EI$7:EI8),"") -> 2 | EI8: =IF(EJ8="","",1) -> 1 | EJ8: Alchemist | EM8: =IF(EN8=1,SUM(EN$7:EN8),"") ->  | EN8: =IF(EO8="","",1) ->  | ER8: =IF(ES8=1,SUM(ES$7:ES8),"") ->  | ES8: =IF(ET8="","",1) ->  | EW8: =IF(EX8=1,SUM(EX$7:EX8),"") ->  | EX8: =IF(EY8="","",1) ->  | FA8: 2 | FB8: Wizard | FC8: =IF(FD8=1,SUM(FD$7:FD8),"") -> 2 | FD8: =IF(FE8="","",1) -> 1 | FE8: =Classes_DATA3!$I5 -> Wizard | FG8: Wizard | FH8: =IF(FI8=1,SUM(FI$7:FI8),"") -> 2 | FI8: =IF(FJ8="","",1) -> 1 | FJ8: =FE8 -> Wizard
A9: 3 | B9: Antipaladin | C9: Class | D9: xxx | E9: 10 | F9: 2 | G9: Good | H9: Good | I9: Poor | J9: Good | K9: divine | L9: DCLantipaladin | M9: 0 | N9: 3 | O9: Cha | P9: 0 | Q9: 0 | R9: 1 | S9: 0 | T9: 1 | U9: 0 | V9: 0 | W9: 1 | X9: 0 | Y9: 0 | Z9: 1 | AA9: 0 | AB9: 1 | AC9: 0 | AD9: 0 | AE9: 0 | AF9: 0 | AG9: 0 | AH9: 0 | AI9: 0 | AJ9: 0 | AK9: 0 | AL9: 1 | AM9: 0 | AN9: 0 | AO9: 0 | AP9: 0 | AQ9: 0 | AR9: 0 | AS9: 1 | AT9: 1 | AU9: 1 | AV9: 0 | AW9: 1 | AX9: 1 | AY9: 0 | AZ9: 0 | BA9: 0 | BB9: 0 | BC9: 0 | BD9: 0 | BE9: 0 | BF9: 0 | CM9: ANY | DB9: 0 | DC9: =IF(CM9=0,0,IF(OR(cell_statsDATA_overrideclassalign=TRUE,Stats!$Q$33=""),0,IF(cell_statsDATA_alignmentshort<>"",(VLOOKUP(Classes_DATA!CM9,table_statsDATA_alignprereq,2,0)-1)*-1,1))) -> 0 | DD9: 0 | DE9: 0 | DF9: 0 | DG9: 0 | DH9: 0 | DJ9: 0 | DL9: 0 | DN9: 0 | DO9: 0 | DQ9: TRUE | DR9: TRUE | DT9: Barbarian | DU9: =IF(DV9=1,SUM(DV$7:DV9),"") -> 3 | DV9: 1 | DW9: =IF(EB9="","",EB9) -> Barbarian | DY9: FALSE | DZ9: TRUE | EA9: =IF(AND(DY9=TRUE,DZ9=TRUE),TRUE,FALSE) -> FALSE | EB9: Barbarian | EC9: =IF(ED9=1,SUM(ED$7:ED9),"") ->  | EG9: Barbarian | EH9: =IF(EI9=1,SUM(EI$7:EI9),"") ->  | EM9: =IF(EN9=1,SUM(EN$7:EN9),"") ->  | ER9: =IF(ES9=1,SUM(ES$7:ES9),"") ->  | EW9: =IF(EX9=1,SUM(EX$7:EX9),"") ->  | FA9: 3 | FB9: == Classes | FC9: =IF(FD9=1,SUM(FD$7:FD9),"") ->  | FE9: =Classes_DATA3!$I6 ->  | FG9: == Alphabetical List | FH9: =IF(FI9=1,SUM(FI$7:FI9),"") ->  | FJ9: =FE9 -> 
A10: 4 | B10: Barbarian | C10: Class | D10: Core | E10: 12 | F10: 4 | G10: Good | H10: Good | I10: Poor | J10: Poor | P10: 1 | Q10: 0 | R10: 0 | S10: 1 | T10: 1 | U10: 0 | V10: 0 | W10: 0 | X10: 0 | Y10: 0 | Z10: 1 | AA10: 0 | AB10: 1 | AC10: 0 | AD10: 0 | AE10: 0 | AF10: 0 | AG10: 0 | AH10: 0 | AI10: 1 | AJ10: 0 | AK10: 0 | AL10: 0 | AM10: 0 | AN10: 0 | AO10: 0 | AP10: 0 | AQ10: 1 | AR10: 0 | AS10: 0 | AT10: 1 | AU10: 0 | AV10: 0 | AW10: 0 | AX10: 0 | AY10: 1 | AZ10: 1 | BA10: 0 | BB10: 0 | BC10: 0 | BD10: 0 | BE10: 0 | BF10: 0 | BJ10: Any non-lawful alignment | BK10: =IF($N10=0,"",IF($BU10-BK$6>-1,IF(VLOOKUP($N10,table_spellsDATA_progression,($M10+2),0)>0,10+BK$6+$BV10,""),"")) ->  | BU10: =IF($N10=0,"",IF(VLOOKUP($N10,table_spellsDATA_progression,M10+2,0)=-99,99,VLOOKUP($N10,table_spellsDATA_progression,M10+2,0))) ->  | BV10: =IF(O10="","",INDIRECT("cell_"&O10&"mod")) ->  | BW10: 20 | CM10: any non-lawful | DB10: 0 | DC10: =IF(CM10=0,0,IF(OR(cell_statsDATA_overrideclassalign=TRUE,Stats!$Q$33=""),0,IF(cell_statsDATA_alignmentshort<>"",(VLOOKUP(Classes_DATA!CM10,table_statsDATA_alignprereq,2,0)-1)*-1,1))) -> 0 | DD10: 0 | DE10: 0 | DF10: 0 | DG10: 0 | DH10: 0 | DJ10: 0 | DL10: 0 | DN10: 0 | DO10: 0 | DQ10: TRUE | DR10: TRUE | DT10: Bard | DU10: =IF(DV10=1,SUM(DV$7:DV10),"") -> 4 | DV10: 1 | DW10: Bard | DY10: TRUE | DZ10: TRUE | EA10: TRUE | EB10: Bard | EC10: =IF(ED10=1,SUM(ED$7:ED10),"") -> 3 | ED10: 1 | EE10: Barbarian | EG10: Bard | EH10: =IF(EI10=1,SUM(EI$7:EI10),"") -> 3 | EI10: 1 | EJ10: Barbarian | EM10: =IF(EN10=1,SUM(EN$7:EN10),"") ->  | ER10: =IF(ES10=1,SUM(ES$7:ES10),"") ->  | EW10: =IF(EX10=1,SUM(EX$7:EX10),"") ->  | FA10: 4 | FB10: Alchemist | FC10: =IF(FD10=1,SUM(FD$7:FD10),"") ->  | FE10: =Classes_DATA3!$I7 ->  | FG10: Adept | FH10: =IF(FI10=1,SUM(FI$7:FI10),"") -> 
A11: 5 | B11: Bard | C11: Class | D11: Core | E11: 8 | F11: 6 | G11: Fair | H11: Poor | I11: Good | J11: Good | K11: arcane | L11: ACLbard | M11: 0 | N11: 4 | O11: Cha | P11: =IF(cell_classesDATA2_bardlevel>15,1,P$109) -> 1 | Q11: 1 | R11: 1 | S11: 1 | T11: 1 | U11: 1 | V11: 0 | W11: 1 | X11: 1 | Y11: 0 | Z11: 0 | AA11: 0 | AB11: 1 | AC11: 1 | AD11: 1 | AE11: 1 | AF11: 1 | AG11: 1 | AH11: 1 | AI11: 1 | AJ11: 1 | AK11: 1 | AL11: 1 | AM11: 1 | AN11: 1 | AO11: 1 | AP11: 1 | AQ11: 1 | AR11: 1 | AS11: 1 | AT11: 0 | AU11: 1 | AV11: 1 | AW11: 1 | AX11: 1 | AY11: 0 | AZ11: 0 | BA11: 1 | BB11: 0 | BC11: 0 | BD11: 0 | BE11: 0 | BF11: 0 | BG11: #Longsword#Rapier#Sap#Short Sword#Shortbow#Whip# | BJ11: ="" ->  | BU11: 0 | BV11: -1 | BW11: 20 | BX11: N | BY11: 10 | BZ11: Known | CA11: =Spells_DATA!$P$410 -> 15 | CB11: 1 | CG11: known bard | CH11: table_spellsbardDATA_available | CM11: ANY | DB11: 0 | DC11: =IF(CM11=0,0,IF(OR(cell_statsDATA_overrideclassalign=TRUE,Stats!$Q$33=""),0,IF(cell_statsDATA_alignmentshort<>"",(VLOOKUP(Classes_DATA!CM11,table_statsDATA_alignprereq,2,0)-1)*-1,1))) -> 0 | DD11: 0 | DE11: 0 | DF11: 0 | DG11: 0 | DH11: 0 | DJ11: 0 | DL11: 0 | DN11: 0 | DO11: 0 | DQ11: TRUE | DR11: TRUE | DT11: Cleric | DU11: =IF(DV11=1,SUM(DV$7:DV11),"") -> 5 | DV11: 1 | DW11: Cleric | DY11: TRUE | DZ11: TRUE | EA11: TRUE | EB11: Cleric | EC11: =IF(ED11=1,SUM(ED$7:ED11),"") -> 4 | ED11: 1 | EE11: Bard | EG11: Cleric | EH11: =IF(EI11=1,SUM(EI$7:EI11),"") -> 4 | EI11: 1 | EJ11: Bard | EM11: =IF(EN11=1,SUM(EN$7:EN11),"") ->  | ER11: =IF(ES11=1,SUM(ES$7:ES11),"") ->  | EW11: =IF(EX11=1,SUM(EX$7:EX11),"") ->  | FA11: 5 | FB11: Barbarian | FC11: =IF(FD11=1,SUM(FD$7:FD11),"") ->  | FE11: =Classes_DATA3!$I8 ->  | FG11: Alchemist | FH11: =IF(FI11=1,SUM(FI$7:FI11),"") -> 
A12: 6 | B12: Cleric | C12: Class | D12: Core | E12: 8 | F12: 2 | G12: Fair | H12: Good | I12: Poor | J12: Good | K12: divine | L12: DCLcleric | M12: 0 | N12: 1 | O12: Wis | P12: 0 | Q12: 1 | R12: 0 | S12: 0 | T12: 1 | U12: 1 | V12: 0 | W12: 0 | X12: 0 | Y12: 0 | Z12: 0 | AA12: 1 | AB12: 0 | AC12: 1 | AD12: 0 | AE12: 0 | AF12: 0 | AG12: 1 | AH12: 0 | AI12: 0 | AJ12: 1 | AK12: 1 | AL12: 1 | AM12: 0 | AN12: 0 | AO12: 0 | AP12: 1 | AQ12: 0 | AR12: 0 | AS12: 1 | AT12: 0 | AU12: 1 | AV12: 0 | AW12: 1 | AX12: 0 | AY12: 0 | AZ12: 0 | BA12: 0 | BB12: 0 | BC12: 0 | BD12: 0 | BE12: 0 | BF12: 0 | BI12: #Celestial#Abyssal#Infernal# | BJ12: ="" ->  | BU12: 0 | BV12: 2 | BW12: 20 | BX12: Y | BY12: 10 | BZ12: Prepared | CA12: =Spells_DATA!$Q$410 -> 16 | CC12: list_domainsDATA_clericspells | CD12: 1 | CE12: table_domainsDATA_clericspellsandlevel | CF12: Domain Spell | CG12: all cleric | CH12: table_spellsclericDATA_available | CM12: ANY | DB12: 0 | DC12: =IF(CM12=0,0,IF(OR(cell_statsDATA_overrideclassalign=TRUE,Stats!$Q$33=""),0,IF(cell_statsDATA_alignmentshort<>"",(VLOOKUP(Classes_DATA!CM12,table_statsDATA_alignprereq,2,0)-1)*-1,1))) -> 0 | DD12: 0 | DE12: 0 | DF12: 0 | DG12: 0 | DH12: 0 | DJ12: 0 | DL12: 0 | DN12: 0 | DO12: 0 | DQ12: TRUE | DR12: TRUE | DT12: Druid | DU12: =IF(DV12=1,SUM(DV$7:DV12),"") -> 6 | DV12: 1 | DW12: Druid | DY12: TRUE | DZ12: TRUE | EA12: TRUE | EB12: Druid | EC12: =IF(ED12=1,SUM(ED$7:ED12),"") -> 5 | ED12: 1 | EE12: Cleric | EG12: Druid | EH12: =IF(EI12=1,SUM(EI$7:EI12),"") -> 5 | EI12: 1 | EJ12: Cleric | EM12: =IF(EN12=1,SUM(EN$7:EN12),"") ->  | ER12: =IF(ES12=1,SUM(ES$7:ES12),"") ->  | EW12: =IF(EX12=1,SUM(EX$7:EX12),"") ->  | FA12: 6 | FB12: Bard | FC12: =IF(FD12=1,SUM(FD$7:FD12),"") ->  | FE12: =Classes_DATA3!$I9 ->  | FG12: Aristocrat | FH12: =IF(FI12=1,SUM(FI$7:FI12),"") -> 
A13: 7 | B13: Druid | C13: Class | D13: Core | E13: 8 | F13: 4 | G13: Fair | H13: Good | I13: Poor | J13: Good | K13: divine | L13: DCLdruid | M13: 0 | N13: 1 | O13: Wis | P13: 0 | Q13: 0 | R13: 0 | S13: 1 | T13: 1 | U13: 0 | V13: 0 | W13: 0 | X13: 0 | Y13: 1 | Z13: 1 | AA13: 1 | AB13: 0 | AC13: 0 | AD13: 0 | AE13: 0 | AF13: 1 | AG13: 0 | AH13: 0 | AI13: 1 | AJ13: 0 | AK13: 0 | AL13: 0 | AM13: 0 | AN13: 0 | AO13: 0 | AP13: 0 | AQ13: 1 | AR13: 0 | AS13: 1 | AT13: 1 | AU13: 0 | AV13: 0 | AW13: 1 | AX13: 0 | AY13: 1 | AZ13: 1 | BA13: 0 | BB13: 0 | BC13: 0 | BD13: 0 | BE13: 0 | BF13: 0 | BG13: #Club#Dagger#Dart#Quarterstaff#Scimitar#Scythe#Sickle#Shortspear#Sling#Spear#Natural Attacks#Ranged Touch Attack#Ray#Touch Attack#Unarmed Strike# | BH13: #Druidic# | BI13: #Sylvan# | BJ13: Any neutral alignment | BU13: 0 | BV13: 2 | BW13: 20 | BX13: =IF(cell_domainsDATA_druid="","N","Y") -> N | BY13: 10 | BZ13: Prepared | CA13: =Spells_DATA!$R$410 -> 17 | CC13: list_domainsDATA_druidspells | CD13: 1 | CE13: table_domainsDATA_druidspellsandlevel | CF13: Domain Spell | CG13: all druid | CH13: table_spellsdruidDATA_available | CM13: any neutral | DB13: 0 | DC13: =IF(CM13=0,0,IF(OR(cell_statsDATA_overrideclassalign=TRUE,Stats!$Q$33=""),0,IF(cell_statsDATA_alignmentshort<>"",(VLOOKUP(Classes_DATA!CM13,table_statsDATA_alignprereq,2,0)-1)*-1,1))) -> 0 | DD13: 0 | DE13: 0 | DF13: 0 | DG13: 0 | DH13: 0 | DJ13: 0 | DL13: 0 | DN13: 0 | DO13: 0 | DQ13: TRUE | DR13: TRUE | DT13: Fighter | DU13: =IF(DV13=1,SUM(DV$7:DV13),"") -> 7 | DV13: 1 | DW13: Fighter | DY13: TRUE | DZ13: TRUE | EA13: TRUE | EB13: Fighter | EC13: =IF(ED13=1,SUM(ED$7:ED13),"") -> 6 | ED13: 1 | EE13: Druid | EG13: Fighter | EH13: =IF(EI13=1,SUM(EI$7:EI13),"") -> 6 | EI13: 1 | EJ13: Druid | EM13: =IF(EN13=1,SUM(EN$7:EN13),"") ->  | ER13: =IF(ES13=1,SUM(ES$7:ES13),"") ->  | EW13: =IF(EX13=1,SUM(EX$7:EX13),"") ->  | FA13: 7 | FB13: Cleric | FC13: =IF(FD13=1,SUM(FD$7:FD13),"") ->  | FE13: =Classes_DATA3!$I10 ->  | FG13: Barbarian | FH13: =IF(FI13=1,SUM(FI$7:FI13),"") -> 
A14: 8 | B14: Fighter | C14: Class | D14: Core | E14: 10 | F14: 2 | G14: Good | H14: Good | I14: Poor | J14: Poor | P14: 0 | Q14: 0 | R14: 0 | S14: 1 | T14: 1 | U14: 0 | V14: 0 | W14: 0 | X14: 0 | Y14: 0 | Z14: 1 | AA14: 0 | AB14: 1 | AC14: 0 | AD14: 1 | AE14: 1 | AF14: 0 | AG14: 0 | AH14: 0 | AI14: 0 | AJ14: 0 | AK14: 0 | AL14: 0 | AM14: 0 | AN14: 0 | AO14: 0 | AP14: 0 | AQ14: 0 | AR14: 0 | AS14: 1 | AT14: 1 | AU14: 0 | AV14: 0 | AW14: 0 | AX14: 0 | AY14: 1 | AZ14: 1 | BA14: 0 | BB14: 0 | BC14: 0 | BD14: 0 | BE14: 0 | BF14: 0 | BJ14: ="" ->  | BW14: 20 | CM14: ANY | DB14: 0 | DC14: =IF(CM14=0,0,IF(OR(cell_statsDATA_overrideclassalign=TRUE,Stats!$Q$33=""),0,IF(cell_statsDATA_alignmentshort<>"",(VLOOKUP(Classes_DATA!CM14,table_statsDATA_alignprereq,2,0)-1)*-1,1))) -> 0 | DD14: 0 | DE14: 0 | DF14: 0 | DG14: 0 | DH14: 0 | DJ14: 0 | DL14: 0 | DN14: 0 | DO14: 0 | DQ14: TRUE | DR14: TRUE | DT14: Ranger | DU14: =IF(DV14=1,SUM(DV$7:DV14),"") -> 8 | DV14: 1 | DW14: Ranger | DY14: TRUE | DZ14: TRUE | EA14: TRUE | EB14: Ranger | EC14: =IF(ED14=1,SUM(ED$7:ED14),"") -> 7 | ED14: 1 | EE14: Fighter | EG14: Inquisitor | EH14: =IF(EI14=1,SUM(EI$7:EI14),"") -> 7 | EI14: 1 | EJ14: Fighter | EM14: =IF(EN14=1,SUM(EN$7:EN14),"") ->  | ER14: =IF(ES14=1,SUM(ES$7:ES14),"") ->  | EW14: =IF(EX14=1,SUM(EX$7:EX14),"") ->  | FA14: 8 | FB14: Druid | FC14: =IF(FD14=1,SUM(FD$7:FD14),"") ->  | FE14: =Classes_DATA3!$I11 ->  | FG14: Bard | FH14: =IF(FI14=1,SUM(FI$7:FI14),"") -> 
A15: 9 | B15: Inquisitor | C15: Class | D15: APG | E15: 8 | F15: 6 | G15: Fair | H15: Good | I15: Poor | J15: Good | K15: divine | L15: DCLinquisitor | M15: 0 | N15: 4 | O15: Wis | P15: 0 | Q15: 0 | R15: 1 | S15: 1 | T15: 1 | U15: 1 | V15: 0 | W15: 1 | X15: 0 | Y15: 0 | Z15: 0 | AA15: 1 | AB15: 1 | AC15: 1 | AD15: 1 | AE15: 0 | AF15: 0 | AG15: 0 | AH15: 0 | AI15: 1 | AJ15: 0 | AK15: 1 | AL15: 1 | AM15: 0 | AN15: 0 | AO15: 0 | AP15: 0 | AQ15: 1 | AR15: 0 | AS15: 1 | AT15: 1 | AU15: 1 | AV15: 0 | AW15: 1 | AX15: 1 | AY15: 1 | AZ15: 1 | BA15: 0 | BB15: 0 | BC15: 0 | BD15: 0 | BE15: 0 | BF15: 0 | BG15: #Hand Crossbow#Longbow#Repeating Crossbow#Shortbow# | BJ15: Any lawful alignment | BU15: 0 | BV15: 2 | BW15: 20 | BX15: N | BY15: 10 | BZ15: Known | CA15: 24 | CB15: 1 | CG15: known | CH15: table_spellsinquisitorDATA_available | CM15: any lawful | DB15: 0 | DC15: =IF(CM15=0,0,IF(OR(cell_statsDATA_overrideclassalign=TRUE,Stats!$Q$33=""),0,IF(cell_statsDATA_alignmentshort<>"",(VLOOKUP(Classes_DATA!CM15,table_statsDATA_alignprereq,2,0)-1)*-1,1))) -> 1 | DD15: 0 | DE15: 0 | DF15: 0 | DG15: 0 | DH15: 0 | DJ15: 0 | DL15: 0 | DN15: 0 | DO15: 0 | DQ15: FALSE | DR15: FALSE | DT15: Rogue | DU15: =IF(DV15=1,SUM(DV$7:DV15),"") -> 9 | DV15: 1 | DW15: Rogue | DY15: TRUE | DZ15: FALSE | EA15: FALSE | EB15: Rogue | EC15: =IF(ED15=1,SUM(ED$7:ED15),"") ->  | EG15: Monk | EH15: =IF(EI15=1,SUM(EI$7:EI15),"") -> 8 | EI15: 1 | EJ15: Inquisitor | EM15: =IF(EN15=1,SUM(EN$7:EN15),"") ->  | ER15: =IF(ES15=1,SUM(ES$7:ES15),"") ->  | EW15: =IF(EX15=1,SUM(EX$7:EX15),"") ->  | FA15: 9 | FB15: Fighter | FC15: =IF(FD15=1,SUM(FD$7:FD15),"") ->  | FE15: =Classes_DATA3!$I12 ->  | FG15: Cleric | FH15: =IF(FI15=1,SUM(FI$7:FI15),"") -> 
A16: 10 | B16: Monk | C16: Class | D16: Core | E16: 8 | F16: 4 | G16: Fair | H16: Good | I16: Good | J16: Good | P16: 1 | Q16: 0 | R16: 0 | S16: 1 | T16: 1 | U16: 0 | V16: 0 | W16: 0 | X16: 1 | Y16: 0 | Z16: 0 | AA16: 0 | AB16: 1 | AC16: 0 | AD16: 0 | AE16: 0 | AF16: 0 | AG16: 1 | AH16: 0 | AI16: 0 | AJ16: 0 | AK16: 0 | AL16: 1 | AM16: 0 | AN16: 0 | AO16: 0 | AP16: 0 | AQ16: 1 | AR16: 1 | AS16: 1 | AT16: 1 | AU16: 1 | AV16: 0 | AW16: 0 | AX16: 1 | AY16: 0 | AZ16: 1 | BA16: 0 | BB16: 0 | BC16: 0 | BD16: 0 | BE16: 0 | BF16: 0 | BG16: #Bich'hwa#Club#Light Crossbow#Heavy Crossbow#Dagger#Handaxe#Flurry of Blows#Javelin#Kama#Nunchaku#Quarterstaff#Sai#Shuriken#Siangham#Sling#Temple Sword#Unarmed Strike#Ranged Touch Attack#Ray#Touch Attack# | BJ16: Any lawful alignment | BW16: 20 | CM16: any lawful | DB16: 0 | DC16: =IF(CM16=0,0,IF(OR(cell_statsDATA_overrideclassalign=TRUE,Stats!$Q$33=""),0,IF(cell_statsDATA_alignmentshort<>"",(VLOOKUP(Classes_DATA!CM16,table_statsDATA_alignprereq,2,0)-1)*-1,1))) -> 1 | DD16: 0 | DE16: 0 | DF16: 0 | DG16: 0 | DH16: 0 | DJ16: 0 | DL16: 0 | DN16: 0 | DO16: 0 | DQ16: FALSE | DR16: FALSE | DT16: Sorcerer | DU16: =IF(DV16=1,SUM(DV$7:DV16),"") -> 10 | DV16: 1 | DW16: Sorcerer | DY16: TRUE | DZ16: FALSE | EA16: FALSE | EB16: Sorcerer | EC16: =IF(ED16=1,SUM(ED$7:ED16),"") ->  | EG16: Paladin | EH16: =IF(EI16=1,SUM(EI$7:EI16),"") -> 9 | EI16: 1 | EJ16: Monk | EM16: =IF(EN16=1,SUM(EN$7:EN16),"") ->  | ER16: =IF(ES16=1,SUM(ES$7:ES16),"") ->  | EW16: =IF(EX16=1,SUM(EX$7:EX16),"") ->  | FA16: 10 | FB16: Ranger | FC16: =IF(FD16=1,SUM(FD$7:FD16),"") ->  | FE16: =Classes_DATA3!$I13 ->  | FG16: Commoner | FH16: =IF(FI16=1,SUM(FI$7:FI16),"") -> 
A17: 11 | B17: Oracle | C17: Class | D17: xxx | E17: 8 | F17: 4 | G17: Fair | H17: Poor | I17: Poor | J17: Good | K17: divine | L17: DCLoracle | M17: 0 | N17: 2 | O17: Cha | P17: 0 | Q17: 0 | R17: 0 | S17: 0 | T17: 1 | U17: 1 | V17: 0 | W17: 0 | X17: 0 | Y17: 0 | Z17: 0 | AA17: 1 | AB17: 0 | AC17: 0 | AD17: 0 | AE17: 0 | AF17: 0 | AG17: 1 | AH17: 0 | AI17: 0 | AJ17: 0 | AK17: 1 | AL17: 1 | AM17: 0 | AN17: 0 | AO17: 0 | AP17: 0 | AQ17: 0 | AR17: 0 | AS17: 1 | AT17: 0 | AU17: 1 | AV17: 0 | AW17: 1 | AX17: 0 | AY17: 0 | AZ17: 0 | BA17: 0 | BB17: 0 | BC17: 0 | BD17: 0 | BE17: 0 | BF17: 0 | BJ17: ="" ->  | BU17: =IF($N17=0,"",IF(VLOOKUP($N17,table_spellsDATA_progression,M17+2,0)=-99,99,VLOOKUP($N17,table_spellsDATA_progression,M17+2,0))) -> 0 | BV17: =IF(O17="","",INDIRECT("cell_"&O17&"mod")) -> -1 | BW17: 20 | BX17: N | BY17: 10 | BZ17: Known | CA17: 25 | CB17: 2 | CC17: cell_classesDATA2_oraclebonusspell | CD17: 2 | CM17: ANY | DB17: 0 | DC17: =IF(CM17=0,0,IF(OR(cell_statsDATA_overrideclassalign=TRUE,Stats!$Q$33=""),0,IF(cell_statsDATA_alignmentshort<>"",(VLOOKUP(Classes_DATA!CM17,table_statsDATA_alignprereq,2,0)-1)*-1,1))) -> 0 | DD17: 0 | DE17: 0 | DF17: 0 | DG17: 0 | DH17: 0 | DJ17: 0 | DL17: 0 | DN17: 0 | DO17: 0 | DQ17: TRUE | DR17: TRUE | DT17: Wizard | DU17: =IF(DV17=1,SUM(DV$7:DV17),"") -> 11 | DV17: 1 | DW17: Wizard | DY17: FALSE | DZ17: TRUE | EA17: FALSE | EB17: Wizard | EC17: =IF(ED17=1,SUM(ED$7:ED17),"") ->  | EG17: Ranger | EH17: =IF(EI17=1,SUM(EI$7:EI17),"") ->  | EM17: =IF(EN17=1,SUM(EN$7:EN17),"") ->  | ER17: =IF(ES17=1,SUM(ES$7:ES17),"") ->  | EW17: =IF(EX17=1,SUM(EX$7:EX17),"") ->  | FA17: 11 | FB17: Rogue | FC17: =IF(FD17=1,SUM(FD$7:FD17),"") ->  | FE17: =Classes_DATA3!$I14 ->  | FG17: Druid | FH17: =IF(FI17=1,SUM(FI$7:FI17),"") -> 
A18: 12 | B18: Paladin | C18: Class | D18: Core | E18: 10 | F18: 2 | G18: Good | H18: Good | I18: Poor | J18: Good | K18: divine | L18: DCLpaladin | M18: 0 | N18: 3 | O18: Cha | P18: 0 | Q18: 0 | R18: 0 | S18: 0 | T18: 1 | U18: 1 | V18: 0 | W18: 0 | X18: 0 | Y18: 0 | Z18: 1 | AA18: 1 | AB18: 0 | AC18: 0 | AD18: 0 | AE18: 0 | AF18: 0 | AG18: 0 | AH18: 0 | AI18: 0 | AJ18: 1 | AK18: 0 | AL18: 1 | AM18: 0 | AN18: 0 | AO18: 0 | AP18: 0 | AQ18: 0 | AR18: 0 | AS18: 1 | AT18: 1 | AU18: 1 | AV18: 0 | AW18: 1 | AX18: 0 | AY18: 0 | AZ18: 0 | BA18: 0 | BB18: 0 | BC18: 0 | BD18: 0 | BE18: 0 | BF18: 0 | BJ18: Lawful good alignment | BK18: =IF($N18=0,"",IF($BU18-BK$6>-1,IF(VLOOKUP($N18,table_spellsDATA_progression,($M18+2),0)>0,10+BK$6+$BV18,""),"")) ->  | BU18: =IF($N18=0,"",IF(VLOOKUP($N18,table_spellsDATA_progression,M18+2,0)=-99,99,VLOOKUP($N18,table_spellsDATA_progression,M18+2,0))) -> 99 | BV18: =IF(O18="","",INDIRECT("cell_"&O18&"mod")) -> -1 | BW18: 20 | BX18: N | BY18: 11 | BZ18: Prepared | CA18: =Spells_DATA!$S$410 -> 18 | CG18: all paladin | CH18: table_spellspaladinDATA_available | CM18: lawful good | DB18: 0 | DC18: =IF(CM18=0,0,IF(OR(cell_statsDATA_overrideclassalign=TRUE,Stats!$Q$33=""),0,IF(cell_statsDATA_alignmentshort<>"",(VLOOKUP(Classes_DATA!CM18,table_statsDATA_alignprereq,2,0)-1)*-1,1))) -> 1 | DD18: 0 | DE18: 0 | DF18: 0 | DG18: 0 | DH18: 0 | DJ18: 0 | DL18: 0 | DN18: 0 | DO18: 0 | DQ18: FALSE | DR18: FALSE | DT18: == Prestige Classes | DU18: =IF(DV18=1,SUM(DV$7:DV18),"") -> 12 | DV18: 1 | DW18: == Prestige Classes | DY18: TRUE | DZ18: FALSE | EA18: FALSE | EB18: == Prestige Classes | EC18: =IF(ED18=1,SUM(ED$7:ED18),"") ->  | EG18: Rogue | EH18: =IF(EI18=1,SUM(EI$7:EI18),"") -> 10 | EI18: 1 | EJ18: Paladin | EM18: =IF(EN18=1,SUM(EN$7:EN18),"") ->  | ER18: =IF(ES18=1,SUM(ES$7:ES18),"") ->  | EW18: =IF(EX18=1,SUM(EX$7:EX18),"") ->  | FA18: 12 | FB18: Sorcerer | FC18: =IF(FD18=1,SUM(FD$7:FD18),"") ->  | FE18: =Classes_DATA3!$I15 ->  | FG18: Expert | FH18: =IF(FI18=1,SUM(FI$7:FI18),"") -> 
A19: 13 | B19: Ranger | C19: Class | D19: Core | E19: 10 | F19: 6 | G19: Good | H19: Good | I19: Good | J19: Poor | K19: divine | L19: DCLranger | M19: 0 | N19: 3 | O19: Wis | P19: 0 | Q19: 0 | R19: 0 | S19: 1 | T19: 1 | U19: 0 | V19: 0 | W19: 0 | X19: 0 | Y19: 0 | Z19: 1 | AA19: 1 | AB19: 1 | AC19: 0 | AD19: 1 | AE19: 0 | AF19: 1 | AG19: 0 | AH19: 0 | AI19: 1 | AJ19: 0 | AK19: 0 | AL19: 0 | AM19: 0 | AN19: 0 | AO19: 0 | AP19: 0 | AQ19: 1 | AR19: 0 | AS19: 1 | AT19: 1 | AU19: 0 | AV19: 0 | AW19: 1 | AX19: 1 | AY19: 1 | AZ19: 1 | BA19: 0 | BB19: 0 | BC19: 0 | BD19: 0 | BE19: 0 | BF19: 0 | BJ19: ="" ->  | BU19: =IF($N19=0,"",IF(VLOOKUP($N19,table_spellsDATA_progression,M19+2,0)=-99,99,VLOOKUP($N19,table_spellsDATA_progression,M19+2,0))) -> 99 | BV19: =IF(O19="","",INDIRECT("cell_"&O19&"mod")) -> 2 | BW19: 20 | BX19: N | BY19: 11 | BZ19: Prepared | CA19: =Spells_DATA!$T$410 -> 19 | CG19: all ranger | CH19: table_spellsrangerDATA_available | CM19: ANY | DB19: 0 | DC19: =IF(CM19=0,0,IF(OR(cell_statsDATA_overrideclassalign=TRUE,Stats!$Q$33=""),0,IF(cell_statsDATA_alignmentshort<>"",(VLOOKUP(Classes_DATA!CM19,table_statsDATA_alignprereq,2,0)-1)*-1,1))) -> 0 | DD19: 0 | DE19: 0 | DF19: 0 | DG19: 0 | DH19: 0 | DJ19: 0 | DL19: 0 | DN19: 0 | DO19: 0 | DQ19: TRUE | DR19: TRUE | DT19: Loremaster | DU19: =IF(DV19=1,SUM(DV$7:DV19),"") -> 13 | DV19: 1 | DW19: =IF(EB19="","",EB19) -> Loremaster | DY19: TRUE | DZ19: TRUE | EA19: TRUE | EB19: Loremaster | EC19: =IF(ED19=1,SUM(ED$7:ED19),"") -> 8 | ED19: 1 | EE19: Ranger | EG19: Sorcerer | EH19: =IF(EI19=1,SUM(EI$7:EI19),"") -> 11 | EI19: 1 | EJ19: Ranger | EM19: =IF(EN19=1,SUM(EN$7:EN19),"") ->  | ER19: =IF(ES19=1,SUM(ES$7:ES19),"") ->  | EW19: =IF(EX19=1,SUM(EX$7:EX19),"") ->  | FA19: 13 | FB19: Wizard | FC19: =IF(FD19=1,SUM(FD$7:FD19),"") ->  | FE19: =Classes_DATA3!$I16 ->  | FG19: Fighter | FH19: =IF(FI19=1,SUM(FI$7:FI19),"") -> 
A20: 14 | B20: Rogue | C20: Class | D20: Core | E20: 8 | F20: 8 | G20: Fair | H20: Poor | I20: Good | J20: Poor | P20: 1 | Q20: 1 | R20: 1 | S20: 1 | T20: 1 | U20: 1 | V20: 1 | W20: 1 | X20: 1 | Y20: 0 | Z20: 0 | AA20: 0 | AB20: 1 | AC20: 0 | AD20: 1 | AE20: 0 | AF20: 0 | AG20: 0 | AH20: 1 | AI20: 0 | AJ20: 0 | AK20: 0 | AL20: 0 | AM20: 0 | AN20: 0 | AO20: 0 | AP20: 1 | AQ20: 1 | AR20: 1 | AS20: 1 | AT20: 0 | AU20: 1 | AV20: 1 | AW20: 0 | AX20: 1 | AY20: 0 | AZ20: 1 | BA20: 1 | BB20: 0 | BC20: 0 | BD20: 0 | BE20: 0 | BF20: 0 | BG20: #Hand Crossbow#Rapier#Sap#Shortbow#Short Sword# | BJ20: ="" ->  | BU20: =IF($N20=0,"",IF(VLOOKUP($N20,table_spellsDATA_progression,M20+2,0)=-99,99,VLOOKUP($N20,table_spellsDATA_progression,M20+2,0))) ->  | BV20: =IF(O20="","",INDIRECT("cell_"&O20&"mod")) ->  | BW20: 20 | CM20: ANY | DB20: 0 | DC20: =IF(CM20=0,0,IF(OR(cell_statsDATA_overrideclassalign=TRUE,Stats!$Q$33=""),0,IF(cell_statsDATA_alignmentshort<>"",(VLOOKUP(Classes_DATA!CM20,table_statsDATA_alignprereq,2,0)-1)*-1,1))) -> 0 | DD20: 0 | DE20: 0 | DF20: 0 | DG20: 0 | DH20: 0 | DJ20: 0 | DL20: 0 | DN20: 0 | DO20: 0 | DP20: =CZ20 -> 0 | DQ20: TRUE | DR20: TRUE | DT20: Adept | DU20: =IF(DV20=1,SUM(DV$7:DV20),"") ->  | DW20: == NPC Classes | DY20: TRUE | DZ20: TRUE | EA20: TRUE | EB20: == NPC Classes | EC20: =IF(ED20=1,SUM(ED$7:ED20),"") -> 9 | ED20: 1 | EE20: Rogue | EG20: Wizard | EH20: =IF(EI20=1,SUM(EI$7:EI20),"") -> 12 | EI20: 1 | EJ20: Rogue | EM20: =IF(EN20=1,SUM(EN$7:EN20),"") ->  | ER20: =IF(ES20=1,SUM(ES$7:ES20),"") ->  | EW20: =IF(EX20=1,SUM(EX$7:EX20),"") ->  | FA20: 14 | FB20: == Prestige Classes | FC20: =IF(FD20=1,SUM(FD$7:FD20),"") ->  | FE20: =Classes_DATA3!$I17 ->  | FG20: Loremaster | FH20: =IF(FI20=1,SUM(FI$7:FI20),"") -> 
A21: 15 | B21: Sorcerer | C21: Class | D21: Core | E21: 6 | F21: 2 | G21: Poor | H21: Poor | I21: Poor | J21: Good | K21: arcane | L21: ACLsorcerer | M21: 0 | N21: 2 | O21: Cha | P21: 0 | Q21: 1 | R21: 1 | S21: 0 | T21: 1 | U21: 0 | V21: 0 | W21: 0 | X21: 0 | Y21: 1 | Z21: 0 | AA21: 0 | AB21: 1 | AC21: 1 | AD21: 0 | AE21: 0 | AF21: 0 | AG21: 0 | AH21: 0 | AI21: 0 | AJ21: 0 | AK21: 0 | AL21: 0 | AM21: 0 | AN21: 0 | AO21: 0 | AP21: 0 | AQ21: 0 | AR21: 0 | AS21: 1 | AT21: 0 | AU21: 0 | AV21: 0 | AW21: 1 | AX21: 0 | AY21: 0 | AZ21: 0 | BA21: 1 | BB21: 0 | BC21: 0 | BD21: 0 | BE21: 0 | BF21: 0 | BJ21: ="" ->  | BU21: =IF($N21=0,"",IF(VLOOKUP($N21,table_spellsDATA_progression,M21+2,0)=-99,99,VLOOKUP($N21,table_spellsDATA_progression,M21+2,0))) -> 0 | BV21: =IF(O21="","",INDIRECT("cell_"&O21&"mod")) -> -1 | BW21: 20 | BX21: =IF(cell_classesDATA2_sorcererlevel>2,"Y","N") -> N | BY21: 10 | BZ21: Known | CA21: =Spells_DATA!$U$410 -> 20 | CB21: 2 | CC21: cell_classesDATA2_bloodlinespell | CD21: 2 | CE21: table_classesDATA2_bloodlinespellandlevel | CF21: Bloodline Spell | CG21: known sorcerer | CH21: table_spellssorcererDATA_available | CM21: ANY | DB21: 0 | DC21: =IF(CM21=0,0,IF(OR(cell_statsDATA_overrideclassalign=TRUE,Stats!$Q$33=""),0,IF(cell_statsDATA_alignmentshort<>"",(VLOOKUP(Classes_DATA!CM21,table_statsDATA_alignprereq,2,0)-1)*-1,1))) -> 0 | DD21: 0 | DE21: 0 | DF21: 0 | DG21: 0 | DH21: 0 | DJ21: 0 | DL21: 0 | DN21: 0 | DO21: 0 | DQ21: TRUE | DR21: TRUE | DT21: Aristocrat | DU21: =IF(DV21=1,SUM(DV$7:DV21),"") -> 14 | DV21: 1 | DW21: Adept | DY21: TRUE | DZ21: TRUE | EA21: TRUE | EB21: Adept | EC21: =IF(ED21=1,SUM(ED$7:ED21),"") -> 10 | ED21: 1 | EE21: Sorcerer | EG21: Adept | EH21: =IF(EI21=1,SUM(EI$7:EI21),"") -> 13 | EI21: 1 | EJ21: Sorcerer | EM21: =IF(EN21=1,SUM(EN$7:EN21),"") ->  | ER21: =IF(ES21=1,SUM(ES$7:ES21),"") ->  | EW21: =IF(EX21=1,SUM(EX$7:EX21),"") ->  | FA21: 15 | FB21: Loremaster | FC21: =IF(FD21=1,SUM(FD$7:FD21),"") ->  | FE21: =Classes_DATA3!$I18 ->  | FG21: Ranger | FH21: =IF(FI21=1,SUM(FI$7:FI21),"") -> 
A22: 16 | B22: Summoner | C22: Class | D22: xxx | E22: 8 | F22: 2 | G22: Fair | H22: Poor | I22: Poor | J22: Good | K22: arcane | L22: ACLsummoner | M22: 0 | N22: 4 | O22: Cha | P22: 0 | Q22: 0 | R22: 0 | S22: 0 | T22: 1 | U22: 0 | V22: 0 | W22: 0 | X22: 0 | Y22: 1 | Z22: 1 | AA22: 0 | AB22: 0 | AC22: 1 | AD22: 1 | AE22: 1 | AF22: 1 | AG22: 1 | AH22: 1 | AI22: 1 | AJ22: 1 | AK22: 1 | AL22: 1 | AM22: 1 | AN22: 1 | AO22: 1 | AP22: 1 | AQ22: 0 | AR22: 0 | AS22: 1 | AT22: 1 | AU22: 0 | AV22: 0 | AW22: 1 | AX22: 0 | AY22: 0 | AZ22: 0 | BA22: 1 | BB22: 0 | BC22: 0 | BD22: 0 | BE22: 0 | BF22: 0 | BJ22: ="" ->  | BW22: 20 | CM22: ANY | DB22: 0 | DC22: =IF(CM22=0,0,IF(OR(cell_statsDATA_overrideclassalign=TRUE,Stats!$Q$33=""),0,IF(cell_statsDATA_alignmentshort<>"",(VLOOKUP(Classes_DATA!CM22,table_statsDATA_alignprereq,2,0)-1)*-1,1))) -> 0 | DD22: 0 | DE22: 0 | DF22: 0 | DG22: 0 | DH22: 0 | DJ22: 0 | DL22: 0 | DN22: 0 | DO22: 0 | DQ22: TRUE | DR22: TRUE | DT22: Commoner | DU22: =IF(DV22=1,SUM(DV$7:DV22),"") -> 15 | DV22: 1 | DW22: Aristocrat | DY22: FALSE | DZ22: TRUE | EA22: FALSE | EB22: Aristocrat | EC22: =IF(ED22=1,SUM(ED$7:ED22),"") ->  | EG22: Aristocrat | EH22: =IF(EI22=1,SUM(EI$7:EI22),"") ->  | EM22: =IF(EN22=1,SUM(EN$7:EN22),"") ->  | ER22: =IF(ES22=1,SUM(ES$7:ES22),"") ->  | EW22: =IF(EX22=1,SUM(EX$7:EX22),"") ->  | FA22: 16 | FB22: == NPC Classes | FC22: =IF(FD22=1,SUM(FD$7:FD22),"") ->  | FE22: =Classes_DATA3!$I19 ->  | FG22: Rogue | FH22: =IF(FI22=1,SUM(FI$7:FI22),"") -> 
A23: 17 | B23: Witch | C23: Class | D23: xxx | E23: 6 | F23: 2 | G23: Poor | H23: Poor | I23: Poor | J23: Good | K23: arcane | L23: ACLwitch | M23: 0 | N23: 1 | O23: Int | P23: 0 | Q23: 0 | R23: 0 | S23: 0 | T23: 1 | U23: 0 | V23: 0 | W23: 0 | X23: 0 | Y23: 1 | Z23: 0 | AA23: 1 | AB23: 1 | AC23: 1 | AD23: 0 | AE23: 0 | AF23: 0 | AG23: 1 | AH23: 0 | AI23: 1 | AJ23: 0 | AK23: 1 | AL23: 0 | AM23: 0 | AN23: 0 | AO23: 0 | AP23: 0 | AQ23: 0 | AR23: 1 | AS23: 0 | AT23: 0 | AU23: 0 | AV23: 0 | AW23: 1 | AX23: 0 | AY23: 0 | AZ23: 0 | BA23: 1 | BB23: 0 | BC23: 0 | BD23: 0 | BE23: 0 | BF23: 0 | BJ23: ="" ->  | BW23: 20 | CM23: ANY | DB23: 0 | DC23: =IF(CM23=0,0,IF(OR(cell_statsDATA_overrideclassalign=TRUE,Stats!$Q$33=""),0,IF(cell_statsDATA_alignmentshort<>"",(VLOOKUP(Classes_DATA!CM23,table_statsDATA_alignprereq,2,0)-1)*-1,1))) -> 0 | DD23: 0 | DE23: 0 | DF23: 0 | DG23: 0 | DH23: 0 | DJ23: 0 | DL23: 0 | DN23: 0 | DO23: 0 | DQ23: TRUE | DR23: TRUE | DT23: Expert | DU23: =IF(DV23=1,SUM(DV$7:DV23),"") -> 16 | DV23: 1 | DW23: Commoner | DY23: FALSE | DZ23: TRUE | EA23: FALSE | EB23: Commoner | EC23: =IF(ED23=1,SUM(ED$7:ED23),"") ->  | EG23: Commoner | EH23: =IF(EI23=1,SUM(EI$7:EI23),"") ->  | EM23: =IF(EN23=1,SUM(EN$7:EN23),"") ->  | ER23: =IF(ES23=1,SUM(ES$7:ES23),"") ->  | EW23: =IF(EX23=1,SUM(EX$7:EX23),"") ->  | FA23: 17 | FB23: Adept | FC23: =IF(FD23=1,SUM(FD$7:FD23),"") ->  | FE23: =Classes_DATA3!$I20 ->  | FG23: Sorcerer | FH23: =IF(FI23=1,SUM(FI$7:FI23),"") -> 
A24: 18 | B24: Wizard | C24: Class | D24: Core | E24: 6 | F24: 2 | G24: Poor | H24: Poor | I24: Poor | J24: Good | K24: arcane | L24: ACLwizard | M24: 1 | N24: 1 | O24: Int | P24: 0 | Q24: 1 | R24: 0 | S24: 0 | T24: 1 | U24: 0 | V24: 0 | W24: 0 | X24: 0 | Y24: 1 | Z24: 0 | AA24: 0 | AB24: 0 | AC24: 1 | AD24: 1 | AE24: 1 | AF24: 1 | AG24: 1 | AH24: 1 | AI24: 1 | AJ24: 1 | AK24: 1 | AL24: 1 | AM24: 1 | AN24: 1 | AO24: 1 | AP24: 1 | AQ24: 0 | AR24: 0 | AS24: 1 | AT24: 0 | AU24: 0 | AV24: 0 | AW24: 1 | AX24: 0 | AY24: 0 | AZ24: 0 | BA24: 0 | BB24: 0 | BC24: 0 | BD24: 0 | BE24: 0 | BF24: 0 | BG24: #Club#Dagger#Heavy Crossbow#Light Crossbow#Quarterstaff#Ranged Touch Attack#Ray#Touch Attack#Unarmed Strike# | BI24: #Draconic# | BJ24: ="" ->  | BK24: =IF($N24=0,"",IF($BU24-BK$6>-1,IF(VLOOKUP($N24,table_spellsDATA_progression,($M24+2),0)>0,10+BK$6+$BV24,""),"")) -> 14 | BL24: 15 | BU24: =IF($N24=0,"",IF(VLOOKUP($N24,table_spellsDATA_progression,M24+2,0)=-99,99,VLOOKUP($N24,table_spellsDATA_progression,M24+2,0))) -> 1 | BV24: =IF(O24="","",INDIRECT("cell_"&O24&"mod")) -> 4 | BW24: 20 | BX24: =IF(OR(cell_classesDATA2_wizardschool="Universal",cell_classesDATA2_wizardschool=""),"N","Y") -> Y | BY24: 10 | BZ24: Prepared | CA24: =Spells_DATA!$V$410 -> 21 | CC24: list_spellswizardDATA_spec | CD24: 1 | CE24: table_spellswizardDATA_specandlevel | CF24: Specialist Spell | CG24: spellbook | CH24: table_spellswizardDATA_available | CM24: ANY | DB24: 0 | DC24: =IF(CM24=0,0,IF(OR(cell_statsDATA_overrideclassalign=TRUE,Stats!$Q$33=""),0,IF(cell_statsDATA_alignmentshort<>"",(VLOOKUP(Classes_DATA!CM24,table_statsDATA_alignprereq,2,0)-1)*-1,1))) -> 0 | DD24: 0 | DE24: 0 | DF24: 0 | DG24: 0 | DH24: 0 | DJ24: 0 | DL24: 0 | DN24: 0 | DO24: 0 | DQ24: TRUE | DR24: TRUE | DT24: Warrior | DU24: =IF(DV24=1,SUM(DV$7:DV24),"") -> 17 | DV24: 1 | DW24: Expert | DY24: TRUE | DZ24: TRUE | EA24: TRUE | EB24: Expert | EC24: =IF(ED24=1,SUM(ED$7:ED24),"") -> 11 | ED24: 1 | EE24: Wizard | EG24: Expert | EH24: =IF(EI24=1,SUM(EI$7:EI24),"") -> 14 | EI24: 1 | EJ24: Wizard | EM24: =IF(EN24=1,SUM(EN$7:EN24),"") -> 1 | EN24: 1 | EO24: Wizard spells | ER24: =IF(ES24=1,SUM(ES$7:ES24),"") -> 1 | ES24: 1 | ET24: Wizard spells | EW24: =IF(EX24=1,SUM(EX$7:EX24),"") ->  | FA24: 18 | FB24: Aristocrat | FC24: =IF(FD24=1,SUM(FD$7:FD24),"") ->  | FE24: =Classes_DATA3!$I21 ->  | FG24: Warrior | FH24: =IF(FI24=1,SUM(FI$7:FI24),"") -> 
A25: 19 | B25: == Prestige Classes | C25: Header | D25: Core | L25: =IF(OR(K25="",K25="select"),"",UPPER(LEFT(K25,1))&"CL"&LOWER(B25)) ->  | M25: =IF(K25="select",0,IF(L25="","",SUMIF(list_attributesDATA_bonusstat,L25,list_attributesDATA_bonusamount))) ->  | BJ25: ="" ->  | BW25: 20 | CM25: ANY | DB25: 0 | DC25: =IF(CM25=0,0,IF(OR(cell_statsDATA_overrideclassalign=TRUE,Stats!$Q$33=""),0,IF(cell_statsDATA_alignmentshort<>"",(VLOOKUP(Classes_DATA!CM25,table_statsDATA_alignprereq,2,0)-1)*-1,1))) -> 0 | DD25: 0 | DE25: 0 | DF25: 0 | DG25: 0 | DH25: 0 | DJ25: 0 | DL25: 0 | DN25: 0 | DO25: 0 | DQ25: TRUE | DR25: TRUE | DT25: == Custom | DU25: =IF(DV25=1,SUM(DV$7:DV25),"") -> 18 | DV25: 1 | DW25: Warrior | DY25: TRUE | DZ25: TRUE | EA25: TRUE | EB25: Warrior | EC25: =IF(ED25=1,SUM(ED$7:ED25),"") -> 12 | ED25: 1 | EE25: == Prestige Classes | EG25: Warrior | EH25: =IF(EI25=1,SUM(EI$7:EI25),"") ->  | EM25: =IF(EN25=1,SUM(EN$7:EN25),"") ->  | ER25: =IF(ES25=1,SUM(ES$7:ES25),"") ->  | EW25: =IF(EX25=1,SUM(EX$7:EX25),"") ->  | FA25: 19 | FB25: Commoner | FC25: =IF(FD25=1,SUM(FD$7:FD25),"") ->  | FE25: =Classes_DATA3!$I22 ->  | FG25: Wizard | FH25: =IF(FI25=1,SUM(FI$7:FI25),"") -> 
A26: 20 | B26: Arcane Archer | C26: PRC | D26: Core | E26: 10 | F26: 4 | G26: Good | H26: Fair | I26: Fair | J26: Low | K26: select | M26: 0 | P26: 0 | Q26: 0 | R26: 0 | S26: 0 | T26: 0 | U26: 0 | V26: 0 | W26: 0 | X26: 0 | Y26: 0 | Z26: 0 | AA26: 0 | AB26: 0 | AC26: 0 | AD26: 0 | AE26: 0 | AF26: 0 | AG26: 0 | AH26: 0 | AI26: 0 | AJ26: 0 | AK26: 0 | AL26: 0 | AM26: 0 | AN26: 0 | AO26: 0 | AP26: 0 | AQ26: 1 | AR26: 0 | AS26: 0 | AT26: 1 | AU26: 0 | AV26: 0 | AW26: 0 | AX26: 1 | AY26: 1 | AZ26: 0 | BA26: 0 | BB26: 0 | BC26: 0 | BD26: 0 | BE26: 0 | BF26: 0 | BJ26: Elf or Half-elf; Point blank shot; Precise shot; Weapon focus (longbow or shortbow); BAB+6; 1st level arcane spells | BW26: 10 | CL26: #Elf#Half-Elf# | CM26: ANY | CN26: Point Blank Shot | CO26: Precise Shot | CR26: BAB | CS26: 6 | CT26: ACL | CU26: 1 | CZ26: =IF(ISERROR(MATCH("Weapon focus (shortbow)",list_featsDATA2_featsselected,0)),IF(ISERROR(MATCH("Weapon focus (longbow)",list_featsDATA2_featsselected,0)),1,0),0) -> 1 | DB26: 0 | DC26: =IF(CM26=0,0,IF(OR(cell_statsDATA_overrideclassalign=TRUE,Stats!$Q$33=""),0,IF(cell_statsDATA_alignmentshort<>"",(VLOOKUP(Classes_DATA!CM26,table_statsDATA_alignprereq,2,0)-1)*-1,1))) -> 0 | DD26: 1 | DE26: 1 | DF26: 0 | DG26: 0 | DH26: 1 | DJ26: 0 | DL26: 0 | DN26: 0 | DO26: 0 | DQ26: FALSE | DR26: FALSE | DU26: =IF(DV26=1,SUM(DV$7:DV26),"") -> 19 | DV26: 1 | DW26: == Custom | DY26: TRUE | DZ26: FALSE | EA26: FALSE | EB26: == Custom | EC26: =IF(ED26=1,SUM(ED$7:ED26),"") ->  | EG26: == Custom | EH26: =IF(EI26=1,SUM(EI$7:EI26),"") ->  | EM26: =IF(EN26=1,SUM(EN$7:EN26),"") ->  | ER26: =IF(ES26=1,SUM(ES$7:ES26),"") ->  | EW26: =IF(EX26=1,SUM(EX$7:EX26),"") ->  | FA26: 20 | FB26: Expert | FC26: =IF(FD26=1,SUM(FD$7:FD26),"") ->  | FE26: =Classes_DATA3!$I23 ->  | FH26: =IF(FI26=1,SUM(FI$7:FI26),"") -> 
A27: 21 | B27: Arcane Trickster | C27: PRC | D27: Core | E27: 6 | F27: 4 | G27: Poor | H27: Low | I27: Fair | J27: Fair | K27: select | M27: 0 | P27: 1 | Q27: 1 | R27: 1 | S27: 1 | T27: 0 | U27: 1 | V27: 1 | W27: 1 | X27: 1 | Y27: 0 | Z27: 0 | AA27: 0 | AB27: 0 | AC27: 1 | AD27: 1 | AE27: 1 | AF27: 1 | AG27: 1 | AH27: 1 | AI27: 1 | AJ27: 1 | AK27: 1 | AL27: 1 | AM27: 1 | AN27: 1 | AO27: 1 | AP27: 0 | AQ27: 1 | AR27: 0 | AS27: 0 | AT27: 0 | AU27: 1 | AV27: 1 | AW27: 1 | AX27: 1 | AY27: 0 | AZ27: 1 | BA27: 0 | BB27: 0 | BC27: 0 | BD27: 0 | BE27: 0 | BF27: 0 | BJ27: Any non-lawful alignment; Disable device (4 ranks); Escape artist (4 ranks); Knowledge (arcana) (4 ranks); can cast Mage Hand; can cast 2nd level arcane spells | BW27: 10 | CM27: any non-lawful | CR27: Disable Device | CS27: 4 | CT27: Escape Artist | CU27: 4 | CV27: Knowledge (Arcana) | CW27: 4 | DB27: 0 | DC27: =IF(CM27=0,0,IF(OR(cell_statsDATA_overrideclassalign=TRUE,Stats!$Q$33=""),0,IF(cell_statsDATA_alignmentshort<>"",(VLOOKUP(Classes_DATA!CM27,table_statsDATA_alignprereq,2,0)-1)*-1,1))) -> 0 | DD27: 0 | DE27: 0 | DF27: 0 | DG27: 0 | DH27: 1 | DJ27: 1 | DL27: 1 | DN27: 0 | DO27: 0 | DP27: =CZ27 -> 0 | DQ27: FALSE | DR27: FALSE | DU27: =IF(DV27=1,SUM(DV$7:DV27),"") ->  | DY27: TRUE | DZ27: FALSE | EA27: FALSE | EC27: =IF(ED27=1,SUM(ED$7:ED27),"") ->  | EH27: =IF(EI27=1,SUM(EI$7:EI27),"") ->  | EM27: =IF(EN27=1,SUM(EN$7:EN27),"") ->  | ER27: =IF(ES27=1,SUM(ES$7:ES27),"") ->  | EW27: =IF(EX27=1,SUM(EX$7:EX27),"") ->  | FA27: 21 | FB27: Warrior | FC27: =IF(FD27=1,SUM(FD$7:FD27),"") ->  | FE27: =Classes_DATA3!$I24 ->  | FH27: =IF(FI27=1,SUM(FI$7:FI27),"") -> 
A28: 22 | B28: Assassin | C28: PRC | D28: Core | E28: 8 | F28: 4 | G28: Fair | H28: Low | I28: Fair | J28: Low | P28: 0 | Q28: 0 | R28: 0 | S28: 0 | T28: 0 | U28: 0 | V28: 0 | W28: 0 | X28: 0 | Y28: 0 | Z28: 0 | AA28: 0 | AB28: 0 | AC28: 0 | AD28: 0 | AE28: 0 | AF28: 0 | AG28: 0 | AH28: 0 | AI28: 0 | AJ28: 0 | AK28: 0 | AL28: 0 | AM28: 0 | AN28: 0 | AO28: 0 | AP28: 0 | AQ28: 0 | AR28: 0 | AS28: 0 | AT28: 0 | AU28: 0 | AV28: 0 | AW28: 0 | AX28: 0 | AY28: 0 | AZ28: 0 | BA28: 0 | BB28: 0 | BC28: 0 | BD28: 0 | BE28: 0 | BF28: 0 | BJ28: Any evil alignment; Disguise (2 ranks); Stealth (5 ranks); Have killed someone solely to become an assassin | BW28: 10 | CM28: any evil | CR28: Disguise | CS28: 2 | CT28: Stealth | CU28: 5 | DB28: 0 | DC28: =IF(CM28=0,0,IF(OR(cell_statsDATA_overrideclassalign=TRUE,Stats!$Q$33=""),0,IF(cell_statsDATA_alignmentshort<>"",(VLOOKUP(Classes_DATA!CM28,table_statsDATA_alignprereq,2,0)-1)*-1,1))) -> 1 | DD28: 0 | DE28: 0 | DF28: 0 | DG28: 0 | DH28: 1 | DJ28: 1 | DL28: 0 | DN28: 0 | DO28: 0 | DQ28: FALSE | DR28: FALSE | DU28: =IF(DV28=1,SUM(DV$7:DV28),"") ->  | DY28: TRUE | DZ28: FALSE | EA28: FALSE | EC28: =IF(ED28=1,SUM(ED$7:ED28),"") ->  | EH28: =IF(EI28=1,SUM(EI$7:EI28),"") ->  | EM28: =IF(EN28=1,SUM(EN$7:EN28),"") ->  | ER28: =IF(ES28=1,SUM(ES$7:ES28),"") ->  | EW28: =IF(EX28=1,SUM(EX$7:EX28),"") ->  | FA28: 22 | FB28: == Custom | FC28: =IF(FD28=1,SUM(FD$7:FD28),"") -> 3 | FD28: 1 | FE28: =EE7 -> == Classes | FH28: =IF(FI28=1,SUM(FI$7:FI28),"") -> 3 | FI28: 1 | FJ28: ="== Alphabetical List" -> == Alphabetical List
A29: 23 | B29: Dragon Disciple | C29: PRC | D29: Core | E29: 12 | F29: 2 | G29: Fair | H29: Fair | I29: Low | J29: Fair | K29: select | M29: 0 | P29: 0 | Q29: 0 | R29: 0 | S29: 0 | T29: 0 | U29: 1 | V29: 0 | W29: 0 | X29: 1 | Y29: 0 | Z29: 0 | AA29: 0 | AB29: 0 | AC29: 1 | AD29: 1 | AE29: 1 | AF29: 1 | AG29: 1 | AH29: 1 | AI29: 1 | AJ29: 1 | AK29: 1 | AL29: 1 | AM29: 1 | AN29: 1 | AO29: 1 | AP29: 0 | AQ29: 1 | AR29: 0 | AS29: 0 | AT29: 0 | AU29: 0 | AV29: 0 | AW29: 1 | AX29: 0 | AY29: 0 | AZ29: 0 | BA29: 0 | BB29: 0 | BC29: 0 | BD29: 0 | BE29: 0 | BF29: 0 | BJ29: Any non-dragon race; Knowledge (arcana) (5 ranks); Can speak draconic; Can cast 1st level arcane spells without preparation; must have/take draconic bloodline if a sorcerer | BW29: 10 | CM29: ANY | CR29: Knowledge (arcana) | CS29: 5 | CZ29: =IF(ISERROR(MATCH("*Draconic*",cell_languagesDATA_chosen,0)),1,0) -> 0 | DB29: 0 | DC29: =IF(CM29=0,0,IF(OR(cell_statsDATA_overrideclassalign=TRUE,Stats!$Q$33=""),0,IF(cell_statsDATA_alignmentshort<>"",(VLOOKUP(Classes_DATA!CM29,table_statsDATA_alignprereq,2,0)-1)*-1,1))) -> 0 | DD29: 0 | DE29: 0 | DF29: 0 | DG29: 0 | DH29: 1 | DJ29: 0 | DL29: 0 | DN29: 0 | DO29: 0 | DQ29: FALSE | DR29: FALSE | DU29: =IF(DV29=1,SUM(DV$7:DV29),"") ->  | DY29: TRUE | DZ29: FALSE | EA29: FALSE | EC29: =IF(ED29=1,SUM(ED$7:ED29),"") ->  | EH29: =IF(EI29=1,SUM(EI$7:EI29),"") ->  | EM29: =IF(EN29=1,SUM(EN$7:EN29),"") ->  | ER29: =IF(ES29=1,SUM(ES$7:ES29),"") ->  | EW29: =IF(EX29=1,SUM(EX$7:EX29),"") ->  | FA29: 23 | FC29: =IF(FD29=1,SUM(FD$7:FD29),"") -> 4 | FD29: 1 | FE29: Alchemist | FH29: =IF(FI29=1,SUM(FI$7:FI29),"") -> 4 | FI29: 1 | FJ29: =IF(FN29>9999998,"",VLOOKUP(FN29,$FL$29:$FM$128,2,0)) -> Adept | FK29: =IF(OR(FE29="",MID(FE29,1,2)="=="),9999999,256^2*CODE(MID(FE29,1,1))+256*CODE(MID(FE29,2,1))+CODE(MID(FE29,3,1))) -> 4287587 | FL29: =IF(COUNTIF(FK$29:FK29,FK29)>1,FK29+COUNTIF(FK$29:FK29,FK29)-1,FK29) -> 4287587 | FM29: =FE29 -> Alchemist | FN29: =SMALL(FL$29:FL$128,FO29) -> 4285541 | FO29: 1
A30: 24 | B30: Duelist | C30: PRC | D30: Core | E30: 10 | F30: 4 | G30: Good | H30: Low | I30: Fair | J30: Low | P30: 1 | Q30: 0 | R30: 1 | S30: 0 | T30: 0 | U30: 0 | V30: 0 | W30: 0 | X30: 1 | Y30: 0 | Z30: 0 | AA30: 0 | AB30: 0 | AC30: 0 | AD30: 0 | AE30: 0 | AF30: 0 | AG30: 0 | AH30: 0 | AI30: 0 | AJ30: 0 | AK30: 0 | AL30: 0 | AM30: 0 | AN30: 0 | AO30: 0 | AP30: 0 | AQ30: 1 | AR30: 1 | AS30: 0 | AT30: 0 | AU30: 1 | AV30: 0 | AW30: 0 | AX30: 0 | AY30: 0 | AZ30: 0 | BA30: 0 | BB30: 0 | BC30: 0 | BD30: 0 | BE30: 0 | BF30: 0 | BJ30: Dodge; Mobility; Weapon finesse; BAB +6; Acrobatics (2 ranks); Perform (any) (2 ranks) | BW30: 10 | CM30: ANY | CN30: Dodge | CO30: Mobility | CP30: Weapon Finesse | CR30: BAB | CS30: 6 | CT30: Acrobatics | CU30: 2 | DB30: 0 | DC30: =IF(CM30=0,0,IF(OR(cell_statsDATA_overrideclassalign=TRUE,Stats!$Q$33=""),0,IF(cell_statsDATA_alignmentshort<>"",(VLOOKUP(Classes_DATA!CM30,table_statsDATA_alignprereq,2,0)-1)*-1,1))) -> 0 | DD30: 1 | DE30: 1 | DF30: 1 | DG30: 0 | DH30: 1 | DJ30: 1 | DL30: 0 | DN30: 0 | DO30: 0 | DQ30: FALSE | DR30: FALSE | DU30: =IF(DV30=1,SUM(DV$7:DV30),"") ->  | DY30: TRUE | DZ30: FALSE | EA30: FALSE | EC30: =IF(ED30=1,SUM(ED$7:ED30),"") ->  | EH30: =IF(EI30=1,SUM(EI$7:EI30),"") ->  | EM30: =IF(EN30=1,SUM(EN$7:EN30),"") ->  | ER30: =IF(ES30=1,SUM(ES$7:ES30),"") ->  | EW30: =IF(EX30=1,SUM(EX$7:EX30),"") ->  | FA30: 24 | FC30: =IF(FD30=1,SUM(FD$7:FD30),"") ->  | FH30: =IF(FI30=1,SUM(FI$7:FI30),"") -> 5 | FI30: 1 | FJ30: =IF(FN30>9999998,"",VLOOKUP(FN30,$FL$29:$FM$128,2,0)) -> Alchemist | FK30: =IF(OR(FE30="",MID(FE30,1,2)="=="),9999999,256^2*CODE(MID(FE30,1,1))+256*CODE(MID(FE30,2,1))+CODE(MID(FE30,3,1))) -> 9999999 | FL30: =IF(COUNTIF(FK$29:FK30,FK30)>1,FK30+COUNTIF(FK$29:FK30,FK30)-1,FK30) -> 9999999 | FM30: =FE30 ->  | FN30: =SMALL(FL$29:FL$128,FO30) -> 4287587 | FO30: 2
A31: 25 | B31: Eldritch Knight | C31: PRC | D31: Core | E31: 10 | F31: 2 | G31: Good | H31: Fair | I31: Low | J31: Low | K31: select | M31: 0 | P31: 0 | Q31: 0 | R31: 0 | S31: 1 | T31: 0 | U31: 0 | V31: 0 | W31: 0 | X31: 0 | Y31: 0 | Z31: 0 | AA31: 0 | AB31: 0 | AC31: 1 | AD31: 0 | AE31: 0 | AF31: 0 | AG31: 0 | AH31: 0 | AI31: 0 | AJ31: 1 | AK31: 0 | AL31: 0 | AM31: 0 | AN31: 0 | AO31: 0 | AP31: 1 | AQ31: 0 | AR31: 0 | AS31: 0 | AT31: 1 | AU31: 1 | AV31: 0 | AW31: 1 | AX31: 0 | AY31: 0 | AZ31: 1 | BA31: 0 | BB31: 0 | BC31: 0 | BD31: 0 | BE31: 0 | BF31: 0 | BJ31: Martial weapon proficiency (all); Can cast 3rd level arcane spells | BW31: 10 | CM31: ANY | CN31: Martial weapon proficiency [all] | DB31: 0 | DC31: =IF(CM31=0,0,IF(OR(cell_statsDATA_overrideclassalign=TRUE,Stats!$Q$33=""),0,IF(cell_statsDATA_alignmentshort<>"",(VLOOKUP(Classes_DATA!CM31,table_statsDATA_alignprereq,2,0)-1)*-1,1))) -> 0 | DD31: 1 | DE31: 0 | DF31: 0 | DG31: 0 | DH31: 0 | DJ31: 0 | DL31: 0 | DN31: 0 | DO31: 0 | DQ31: FALSE | DR31: FALSE | DU31: =IF(DV31=1,SUM(DV$7:DV31),"") ->  | DY31: TRUE | DZ31: FALSE | EA31: FALSE | EC31: =IF(ED31=1,SUM(ED$7:ED31),"") ->  | EH31: =IF(EI31=1,SUM(EI$7:EI31),"") ->  | EM31: =IF(EN31=1,SUM(EN$7:EN31),"") ->  | ER31: =IF(ES31=1,SUM(ES$7:ES31),"") ->  | EW31: =IF(EX31=1,SUM(EX$7:EX31),"") ->  | FA31: 25 | FC31: =IF(FD31=1,SUM(FD$7:FD31),"") -> 5 | FD31: 1 | FE31: Barbarian | FH31: =IF(FI31=1,SUM(FI$7:FI31),"") -> 6 | FI31: 1 | FJ31: Aristocrat | FK31: 4350322 | FL31: =IF(COUNTIF(FK$29:FK31,FK31)>1,FK31+COUNTIF(FK$29:FK31,FK31)-1,FK31) -> 4350322 | FM31: Barbarian | FN31: 4289129 | FO31: 3
A32: 26 | B32: Hellknight | C32: PRC | D32: Council of Thieves | E32: 10 | F32: 2 | G32: Good | H32: Fair | I32: Low | J32: Low | K32: select | M32: 0 | P32: 0 | Q32: 0 | R32: 0 | S32: 0 | T32: 0 | U32: 0 | V32: 0 | W32: 0 | X32: 0 | Y32: 0 | Z32: 0 | AA32: 0 | AB32: 1 | AC32: 0 | AD32: 0 | AE32: 0 | AF32: 0 | AG32: 0 | AH32: 1 | AI32: 0 | AJ32: 0 | AK32: 0 | AL32: 0 | AM32: 0 | AN32: 0 | AO32: 0 | AP32: 0 | AQ32: 1 | AR32: 0 | AS32: 0 | AT32: 1 | AU32: 1 | AV32: 0 | AW32: 0 | AX32: 0 | AY32: 0 | AZ32: 0 | BA32: 0 | BB32: 0 | BC32: 0 | BD32: 0 | BE32: 0 | BF32: 0 | BJ32: Any lawful alignment; BAB +5; Martial weapon proficiency [all]; Armor proficiency (heavy); slain a devil | BW32: 15 | CM32: any lawful | CN32: Martial weapon proficiency [all] | CO32: Armor proficiency (heavy) | CR32: BAB | CS32: 5 | DB32: 0 | DC32: =IF(CM32=0,0,IF(OR(cell_statsDATA_overrideclassalign=TRUE,Stats!$Q$33=""),0,IF(cell_statsDATA_alignmentshort<>"",(VLOOKUP(Classes_DATA!CM32,table_statsDATA_alignprereq,2,0)-1)*-1,1))) -> 1 | DD32: 1 | DE32: 1 | DF32: 0 | DG32: 0 | DH32: 1 | DJ32: 0 | DL32: 0 | DN32: 0 | DO32: 0 | DQ32: FALSE | DR32: FALSE | DU32: =IF(DV32=1,SUM(DV$7:DV32),"") ->  | DY32: TRUE | DZ32: FALSE | EA32: FALSE | EC32: =IF(ED32=1,SUM(ED$7:ED32),"") ->  | EH32: =IF(EI32=1,SUM(EI$7:EI32),"") ->  | EM32: =IF(EN32=1,SUM(EN$7:EN32),"") ->  | ER32: =IF(ES32=1,SUM(ES$7:ES32),"") ->  | EW32: =IF(EX32=1,SUM(EX$7:EX32),"") ->  | FA32: 26 | FC32: =IF(FD32=1,SUM(FD$7:FD32),"") -> 6 | FD32: 1 | FE32: Bard | FH32: =IF(FI32=1,SUM(FI$7:FI32),"") -> 7 | FI32: 1 | FJ32: Barbarian | FK32: 4350322 | FL32: =IF(COUNTIF(FK$29:FK32,FK32)>1,FK32+COUNTIF(FK$29:FK32,FK32)-1,FK32) -> 4350323 | FM32: Bard | FN32: 4350322 | FO32: 4
A33: 27 | B33: Loremaster | C33: PRC | D33: Core | E33: 6 | F33: 4 | G33: Poor | H33: Low | I33: Low | J33: Fair | K33: select | M33: 0 | P33: 0 | Q33: 1 | R33: 0 | S33: 0 | T33: 0 | U33: 1 | V33: 0 | W33: 0 | X33: 0 | Y33: 0 | Z33: 1 | AA33: 1 | AB33: 0 | AC33: 1 | AD33: 1 | AE33: 1 | AF33: 1 | AG33: 1 | AH33: 1 | AI33: 1 | AJ33: 1 | AK33: 1 | AL33: 1 | AM33: 1 | AN33: 1 | AO33: 1 | AP33: 1 | AQ33: 0 | AR33: 1 | AS33: 0 | AT33: 0 | AU33: 0 | AV33: 0 | AW33: 1 | AX33: 0 | AY33: 0 | AZ33: 0 | BA33: 1 | BB33: 0 | BC33: 0 | BD33: 0 | BE33: 0 | BF33: 0 | BH33: ="#"&IF(cell_classesDATA2_loremasterbonuslang1="","",cell_classesDATA2_loremasterbonuslang1)&"#"&IF(cell_classesDATA2_loremasterbonuslang2="","",cell_classesDATA2_loremasterbonuslang2)&"#" -> ### | BJ33: 2 Knowledge skills (rank 7) each; 3 metamagic or item creation feats; Skill focus (1 knowledge skill) | BW33: 10 | CM33: ANY | CZ33: =IF(ISERROR(MATCH("Skill focus (Knowledge*",list_featsDATA2_featsselected,0)),1,0) -> 1 | DB33: 0 | DC33: =IF(CM33=0,0,IF(OR(cell_statsDATA_overrideclassalign=TRUE,Stats!$Q$33=""),0,IF(cell_statsDATA_alignmentshort<>"",(VLOOKUP(Classes_DATA!CM33,table_statsDATA_alignprereq,2,0)-1)*-1,1))) -> 0 | DD33: 0 | DE33: 0 | DF33: 0 | DG33: 0 | DH33: 0 | DJ33: 0 | DL33: 0 | DN33: 0 | DO33: 0 | DQ33: TRUE | DR33: TRUE | DU33: =IF(DV33=1,SUM(DV$7:DV33),"") ->  | DY33: TRUE | DZ33: TRUE | EA33: TRUE | EC33: =IF(ED33=1,SUM(ED$7:ED33),"") -> 13 | ED33: 1 | EE33: Loremaster | EH33: =IF(EI33=1,SUM(EI$7:EI33),"") ->  | EM33: =IF(EN33=1,SUM(EN$7:EN33),"") ->  | ER33: =IF(ES33=1,SUM(ES$7:ES33),"") ->  | EW33: =IF(EX33=1,SUM(EX$7:EX33),"") ->  | FA33: 27 | FC33: =IF(FD33=1,SUM(FD$7:FD33),"") -> 7 | FD33: 1 | FE33: Cleric | FH33: =IF(FI33=1,SUM(FI$7:FI33),"") -> 8 | FI33: 1 | FJ33: Bard | FK33: 4418661 | FL33: =IF(COUNTIF(FK$29:FK33,FK33)>1,FK33+COUNTIF(FK$29:FK33,FK33)-1,FK33) -> 4418661 | FM33: Cleric | FN33: 4350323 | FO33: 5
A34: 28 | B34: Mystic Theurge | C34: PRC | D34: Core | E34: 6 | F34: 2 | G34: Poor | H34: Low | I34: Low | J34: Fair | K34: select | M34: 0 | P34: 0 | Q34: 0 | R34: 0 | S34: 0 | T34: 0 | U34: 0 | V34: 0 | W34: 0 | X34: 0 | Y34: 0 | Z34: 0 | AA34: 0 | AB34: 0 | AC34: 1 | AD34: 0 | AE34: 0 | AF34: 0 | AG34: 0 | AH34: 0 | AI34: 0 | AJ34: 0 | AK34: 0 | AL34: 1 | AM34: 0 | AN34: 0 | AO34: 0 | AP34: 0 | AQ34: 0 | AR34: 0 | AS34: 0 | AT34: 0 | AU34: 1 | AV34: 0 | AW34: 1 | AX34: 0 | AY34: 0 | AZ34: 0 | BA34: 0 | BB34: 0 | BC34: 0 | BD34: 0 | BE34: 0 | BF34: 0 | BJ34: Knowledge (arcana) (3 ranks); Knowledge (divine) (3 ranks); Can cast 2nd level arcane and 2nd level divine spells | BW34: 10 | CM34: ANY | CR34: Knowledge (arcana) | CS34: 3 | CT34: Knowledge (Religion) | CU34: 3 | DB34: 0 | DC34: =IF(CM34=0,0,IF(OR(cell_statsDATA_overrideclassalign=TRUE,Stats!$Q$33=""),0,IF(cell_statsDATA_alignmentshort<>"",(VLOOKUP(Classes_DATA!CM34,table_statsDATA_alignprereq,2,0)-1)*-1,1))) -> 0 | DD34: 0 | DE34: 0 | DF34: 0 | DG34: 0 | DH34: 1 | DJ34: 1 | DL34: 0 | DN34: 0 | DO34: 0 | DQ34: FALSE | DR34: FALSE | DU34: =IF(DV34=1,SUM(DV$7:DV34),"") ->  | DY34: TRUE | DZ34: FALSE | EA34: FALSE | EC34: =IF(ED34=1,SUM(ED$7:ED34),"") ->  | EH34: =IF(EI34=1,SUM(EI$7:EI34),"") ->  | EM34: =IF(EN34=1,SUM(EN$7:EN34),"") ->  | ER34: =IF(ES34=1,SUM(ES$7:ES34),"") ->  | EW34: =IF(EX34=1,SUM(EX$7:EX34),"") ->  | FA34: 28 | FC34: =IF(FD34=1,SUM(FD$7:FD34),"") -> 8 | FD34: 1 | FE34: Druid | FH34: =IF(FI34=1,SUM(FI$7:FI34),"") -> 9 | FI34: 1 | FJ34: Cleric | FK34: 4485749 | FL34: =IF(COUNTIF(FK$29:FK34,FK34)>1,FK34+COUNTIF(FK$29:FK34,FK34)-1,FK34) -> 4485749 | FM34: Druid | FN34: 4418661 | FO34: 6
A35: 29 | B35: Pathfinder Chronicler | C35: PRC | D35: Core | E35: 8 | F35: 8 | G35: Fair | H35: Low | I35: Fair | J35: Fair | P35: 0 | Q35: 1 | R35: 1 | S35: 0 | T35: 0 | U35: 1 | V35: 0 | W35: 1 | X35: 1 | Y35: 0 | Z35: 0 | AA35: 0 | AB35: 1 | AC35: 1 | AD35: 1 | AE35: 1 | AF35: 1 | AG35: 1 | AH35: 1 | AI35: 1 | AJ35: 1 | AK35: 1 | AL35: 1 | AM35: 1 | AN35: 1 | AO35: 1 | AP35: 1 | AQ35: 1 | AR35: 1 | AS35: 0 | AT35: 1 | AU35: 1 | AV35: 1 | AW35: 0 | AX35: 0 | AY35: 1 | AZ35: 0 | BA35: 1 | BB35: 0 | BC35: 0 | BD35: 0 | BE35: 0 | BF35: 0 | BJ35: Linguistics (3 ranks); Perform (oratory) (5 ranks); Profession (scribe) (5 ranks) | BW35: 10 | CM35: ANY | CR35: Linguistics | CS35: 3 | CT35: Perform (oratory) | CU35: 5 | CV35: Profession (scribe) | CW35: 5 | DB35: 0 | DC35: =IF(CM35=0,0,IF(OR(cell_statsDATA_overrideclassalign=TRUE,Stats!$Q$33=""),0,IF(cell_statsDATA_alignmentshort<>"",(VLOOKUP(Classes_DATA!CM35,table_statsDATA_alignprereq,2,0)-1)*-1,1))) -> 0 | DD35: 0 | DE35: 0 | DF35: 0 | DG35: 0 | DH35: 1 | DJ35: 1 | DL35: 1 | DN35: 0 | DO35: 0 | DQ35: FALSE | DR35: FALSE | DU35: =IF(DV35=1,SUM(DV$7:DV35),"") ->  | DY35: TRUE | DZ35: FALSE | EA35: FALSE | EC35: =IF(ED35=1,SUM(ED$7:ED35),"") ->  | EH35: =IF(EI35=1,SUM(EI$7:EI35),"") ->  | EM35: =IF(EN35=1,SUM(EN$7:EN35),"") ->  | ER35: =IF(ES35=1,SUM(ES$7:ES35),"") ->  | EW35: =IF(EX35=1,SUM(EX$7:EX35),"") ->  | FA35: 29 | FC35: =IF(FD35=1,SUM(FD$7:FD35),"") -> 9 | FD35: 1 | FE35: Fighter | FH35: =IF(FI35=1,SUM(FI$7:FI35),"") -> 10 | FI35: 1 | FJ35: Commoner | FK35: 4614503 | FL35: =IF(COUNTIF(FK$29:FK35,FK35)>1,FK35+COUNTIF(FK$29:FK35,FK35)-1,FK35) -> 4614503 | FM35: Fighter | FN35: 4419437 | FO35: 7
A36: 30 | B36: Shadowdancer | C36: PRC | D36: Core | E36: 8 | F36: 6 | G36: Fair | H36: Low | I36: Fair | J36: Low | P36: 1 | Q36: 0 | R36: 1 | S36: 0 | T36: 0 | U36: 1 | V36: 0 | W36: 1 | X36: 1 | Y36: 0 | Z36: 0 | AA36: 0 | AB36: 0 | AC36: 0 | AD36: 0 | AE36: 0 | AF36: 0 | AG36: 0 | AH36: 0 | AI36: 0 | AJ36: 0 | AK36: 0 | AL36: 0 | AM36: 0 | AN36: 0 | AO36: 0 | AP36: 0 | AQ36: 1 | AR36: 1 | AS36: 0 | AT36: 0 | AU36: 0 | AV36: 1 | AW36: 0 | AX36: 1 | AY36: 0 | AZ36: 0 | BA36: 0 | BB36: 0 | BC36: 0 | BD36: 0 | BE36: 0 | BF36: 0 | BJ36: Combat reflexes; Dodge; Mobility; Stealth (5 ranks); Perform (dance) (2 ranks) | BW36: 10 | CM36: ANY | CN36: Dodge | CO36: Mobility | CP36: Combat Reflexes | CR36: Stealth | CS36: 5 | CT36: Perform (dance) | CU36: 2 | DB36: 0 | DC36: =IF(CM36=0,0,IF(OR(cell_statsDATA_overrideclassalign=TRUE,Stats!$Q$33=""),0,IF(cell_statsDATA_alignmentshort<>"",(VLOOKUP(Classes_DATA!CM36,table_statsDATA_alignprereq,2,0)-1)*-1,1))) -> 0 | DD36: 1 | DE36: 1 | DF36: 1 | DG36: 0 | DH36: 1 | DJ36: 1 | DL36: 0 | DN36: 0 | DO36: 0 | DQ36: FALSE | DR36: FALSE | DU36: =IF(DV36=1,SUM(DV$7:DV36),"") ->  | DY36: TRUE | DZ36: FALSE | EA36: FALSE | EC36: =IF(ED36=1,SUM(ED$7:ED36),"") ->  | EH36: =IF(EI36=1,SUM(EI$7:EI36),"") ->  | EM36: =IF(EN36=1,SUM(EN$7:EN36),"") ->  | ER36: =IF(ES36=1,SUM(ES$7:ES36),"") ->  | EW36: =IF(EX36=1,SUM(EX$7:EX36),"") ->  | FA36: 30 | FC36: =IF(FD36=1,SUM(FD$7:FD36),"") ->  | FH36: =IF(FI36=1,SUM(FI$7:FI36),"") -> 11 | FI36: 1 | FJ36: Druid | FK36: 9999999 | FL36: =IF(COUNTIF(FK$29:FK36,FK36)>1,FK36+COUNTIF(FK$29:FK36,FK36)-1,FK36) -> 10000000 | FN36: 4485749 | FO36: 8
A37: 31 | B37: Steel Faclon | C37: PRC | D37: Andoran | E37: 10 | F37: 4 | G37: Good | H37: Fair | I37: Low | J37: Low | P37: 0 | Q37: 0 | R37: 1 | S37: 0 | T37: 0 | U37: 1 | V37: 0 | W37: 0 | X37: 0 | Y37: 0 | Z37: 0 | AA37: 0 | AB37: 1 | AC37: 0 | AD37: 0 | AE37: 0 | AF37: 0 | AG37: 1 | AH37: 1 | AI37: 0 | AJ37: 1 | AK37: 0 | AL37: 0 | AM37: 0 | AN37: 0 | AO37: 0 | AP37: 1 | AQ37: 1 | AR37: 0 | AS37: 0 | AT37: 0 | AU37: 1 | AV37: 0 | AW37: 0 | AX37: 1 | AY37: 1 | AZ37: 1 | BA37: 0 | BB37: 0 | BC37: 0 | BD37: 0 | BE37: 0 | BF37: 0 | BJ37: Any lawful alignment; BAB +5; Martial weapon proficiency [all]; Armor proficiency (heavy); slain a devil | BW37: 15 | CM37: any lawful | CN37: Martial weapon proficiency [all] | CO37: Armor proficiency (heavy) | CR37: BAB | CS37: 5 | DB37: 0 | DC37: =IF(CM37=0,0,IF(OR(cell_statsDATA_overrideclassalign=TRUE,Stats!$Q$33=""),0,IF(cell_statsDATA_alignmentshort<>"",(VLOOKUP(Classes_DATA!CM37,table_statsDATA_alignprereq,2,0)-1)*-1,1))) -> 1 | DD37: 1 | DE37: 1 | DF37: 0 | DG37: 0 | DH37: 1 | DJ37: 0 | DL37: 0 | DN37: 0 | DO37: 0 | DQ37: FALSE | DR37: FALSE | DU37: =IF(DV37=1,SUM(DV$7:DV37),"") ->  | DY37: TRUE | DZ37: FALSE | EA37: FALSE | EC37: =IF(ED37=1,SUM(ED$7:ED37),"") ->  | EH37: =IF(EI37=1,SUM(EI$7:EI37),"") ->  | EM37: =IF(EN37=1,SUM(EN$7:EN37),"") ->  | ER37: =IF(ES37=1,SUM(ES$7:ES37),"") ->  | EW37: =IF(EX37=1,SUM(EX$7:EX37),"") ->  | FA37: 31 | FC37: =IF(FD37=1,SUM(FD$7:FD37),"") ->  | FH37: =IF(FI37=1,SUM(FI$7:FI37),"") -> 12 | FI37: 1 | FJ37: Expert | FK37: 9999999 | FL37: =IF(COUNTIF(FK$29:FK37,FK37)>1,FK37+COUNTIF(FK$29:FK37,FK37)-1,FK37) -> 10000001 | FN37: 4552816 | FO37: 9
A38: 32 | B38: == NPC Classes | C38: Header | D38: Core | DB38: 0 | DC38: =IF(CM38=0,0,IF(OR(cell_statsDATA_overrideclassalign=TRUE,Stats!$Q$33=""),0,IF(cell_statsDATA_alignmentshort<>"",(VLOOKUP(Classes_DATA!CM38,table_statsDATA_alignprereq,2,0)-1)*-1,1))) -> 0 | DD38: 0 | DE38: 0 | DF38: 0 | DG38: 0 | DH38: 0 | DJ38: 0 | DL38: 0 | DN38: 0 | DO38: 0 | DQ38: TRUE | DR38: TRUE | DU38: =IF(DV38=1,SUM(DV$7:DV38),"") ->  | DY38: TRUE | DZ38: TRUE | EA38: TRUE | EC38: =IF(ED38=1,SUM(ED$7:ED38),"") -> 14 | ED38: 1 | EE38: == NPC Classes | EH38: =IF(EI38=1,SUM(EI$7:EI38),"") ->  | EM38: =IF(EN38=1,SUM(EN$7:EN38),"") ->  | ER38: =IF(ES38=1,SUM(ES$7:ES38),"") ->  | EW38: =IF(EX38=1,SUM(EX$7:EX38),"") ->  | FA38: 32 | FC38: =IF(FD38=1,SUM(FD$7:FD38),"") ->  | FH38: =IF(FI38=1,SUM(FI$7:FI38),"") -> 13 | FI38: 1 | FJ38: Fighter | FK38: 9999999 | FL38: =IF(COUNTIF(FK$29:FK38,FK38)>1,FK38+COUNTIF(FK$29:FK38,FK38)-1,FK38) -> 10000002 | FN38: 4614503 | FO38: 10
A39: 33 | B39: Adept | C39: Class | D39: Core | E39: 6 | F39: 2 | G39: Poor | H39: Poor | I39: Poor | J39: Good | K39: divine | L39: DCLadept | M39: 0 | N39: 5 | O39: Wis | P39: 0 | Q39: 0 | R39: 0 | S39: 0 | T39: 1 | U39: 0 | V39: 0 | W39: 0 | X39: 0 | Y39: 0 | Z39: 1 | AA39: 1 | AB39: 0 | AC39: 1 | AD39: 1 | AE39: 1 | AF39: 1 | AG39: 1 | AH39: 1 | AI39: 1 | AJ39: 1 | AK39: 1 | AL39: 1 | AM39: 1 | AN39: 1 | AO39: 1 | AP39: 0 | AQ39: 0 | AR39: 0 | AS39: 1 | AT39: 0 | AU39: 0 | AV39: 0 | AW39: 1 | AX39: 0 | AY39: 1 | AZ39: 0 | BA39: 0 | BB39: 0 | BC39: 0 | BD39: 0 | BE39: 0 | BF39: 0 | BJ39: ="" ->  | BK39: =IF($N39=0,"",IF($BU39-BK$6>-1,IF(VLOOKUP($N39,table_spellsDATA_progression,($M39+2),0)>0,10+BK$6+$BV39,""),"")) ->  | BU39: =IF($N39=0,"",IF(VLOOKUP($N39,table_spellsDATA_progression,M39+2,0)=-99,99,VLOOKUP($N39,table_spellsDATA_progression,M39+2,0))) -> 0 | BV39: =IF(O39="","",INDIRECT("cell_"&O39&"mod")) -> 2 | BW39: 20 | BX39: N | BY39: 10 | BZ39: Prepared | CA39: =Spells_DATA!$W$410 -> 22 | CM39: ANY | DB39: =IF(CL39=0,0,IF(ISERROR(MATCH("*#"&cell_race&"#*",CL39,0)),1,0)) -> 0 | DC39: =IF(CM39=0,0,IF(OR(cell_statsDATA_overrideclassalign=TRUE,Stats!$Q$33=""),0,IF(cell_statsDATA_alignmentshort<>"",(VLOOKUP(Classes_DATA!CM39,table_statsDATA_alignprereq,2,0)-1)*-1,1))) -> 0 | DD39: =IF(CN39=0,0,IF(ISERROR(MATCH(CN39,list_featsDATA2_featsselected,0)),1,0)) -> 0 | DE39: =IF(CO39=0,0,IF(ISERROR(MATCH(CO39,list_featsDATA2_featsselected,0)),1,0)) -> 0 | DF39: =IF(CP39=0,0,IF(ISERROR(MATCH(CP39,list_featsDATA2_featsselected,0)),1,0)) -> 0 | DG39: =IF(CQ39=0,0,IF(ISERROR(MATCH(CQ39,list_featsDATA2_featsselected,0)),1,0)) -> 0 | DH39: =IF(CR39=0,0,IF(ISERROR(VLOOKUP(CR39,table_attributesDATA2_prereqs,3,0)),1,IF(VLOOKUP(CR39,table_attributesDATA2_prereqs,3,0)>=CS39,0,1))) -> 0 | DJ39: =IF(CT39=0,0,IF(ISERROR(VLOOKUP(CT39,table_attributesDATA2_prereqs,3,0)),1,IF(VLOOKUP(CT39,table_attributesDATA2_prereqs,3,0)>=CU39,0,1))) -> 0 | DL39: =IF(CV39=0,0,IF(ISERROR(VLOOKUP(CV39,table_attributesDATA2_prereqs,3,0)),1,IF(VLOOKUP(CV39,table_attributesDATA2_prereqs,3,0)>=CW39,0,1))) -> 0 | DN39: =IF(CX39=0,0,IF(ISERROR(MATCH("*"&CX39&"*",list_attributesDATA_summaryall,0)),1,0)) -> 0 | DO39: =IF(CY39=0,0,IF(ISERROR(MATCH(CY39,list_classesDATA3_classlevel,0)),1,0)) -> 0 | DQ39: TRUE | DR39: =IF(cell_statsDATA_overrideclassalign=TRUE,TRUE,DQ39) -> TRUE | DT39: =IF($A39<=DU$6,VLOOKUP($A39,DU$7:DW$107,3,0),"") ->  | DU39: =IF(DV39=1,SUM(DV$7:DV39),"") ->  | DY39: TRUE | DZ39: =IF(cell_optionsDATA_showclasses=TRUE,TRUE,DR39) -> TRUE | EA39: TRUE | EB39: =IF($A39<=EC$6,VLOOKUP($A39,EC$7:EE$107,3,0),"") ->  | EC39: =IF(ED39=1,SUM(ED$7:ED39),"") -> 15 | ED39: 1 | EE39: =IF(EA39=TRUE,B39,"") -> Adept | EH39: =IF(EI39=1,SUM(EI$7:EI39),"") -> 15 | EI39: 1 | EJ39: =IF(AND(C39="Class",DY39=TRUE),B39,"") -> Adept | EM39: =IF(EN39=1,SUM(EN$7:EN39),"") ->  | EO39: =IF(OR($K39="arcane",$K39="divine"),IF(ISERROR(MATCH($B39,list_classesDATA3_classesselected,0)),"",$B39&" spells"),"") ->  | ER39: =IF(ES39=1,SUM(ES$7:ES39),"") ->  | ET39: =IF($K39="arcane",IF(ISERROR(MATCH($B39,list_classesDATA3_classesselected,0)),"",$B39&" spells"),"") ->  | EW39: =IF(EX39=1,SUM(EX$7:EX39),"") ->  | EY39: =IF($K39="divine",IF(ISERROR(MATCH($B39,list_classesDATA3_classesselected,0)),"",$B39&" spells"),"") ->  | FA39: 33 | FB39: =IF(FA39<=FC$6,VLOOKUP(FA39,FC$7:FE$128,3,0),"") ->  | FC39: =IF(FD39=1,SUM(FD$7:FD39),"") ->  | FG39: =IF(FA39<=FH$6,VLOOKUP(FA39,FH$7:FJ$128,3,0),"") ->  | FH39: =IF(FI39=1,SUM(FI$7:FI39),"") -> 14 | FI39: 1 | FJ39: Loremaster | FK39: 9999999 | FL39: =IF(COUNTIF(FK$29:FK39,FK39)>1,FK39+COUNTIF(FK$29:FK39,FK39)-1,FK39) -> 10000003 | FN39: 5009266 | FO39: 11
A40: 34 | B40: Aristocrat | C40: Class | D40: Core | E40: 8 | F40: 4 | G40: Fair | H40: Poor | I40: Poor | J40: Good | P40: 0 | Q40: 1 | R40: 1 | S40: 0 | T40: 1 | U40: 1 | V40: 0 | W40: 1 | X40: 0 | Y40: 0 | Z40: 1 | AA40: 0 | AB40: 1 | AC40: 1 | AD40: 1 | AE40: 1 | AF40: 1 | AG40: 1 | AH40: 1 | AI40: 1 | AJ40: 1 | AK40: 1 | AL40: 1 | AM40: 1 | AN40: 1 | AO40: 1 | AP40: 1 | AQ40: 1 | AR40: 1 | AS40: 1 | AT40: 1 | AU40: 1 | AV40: 0 | AW40: 0 | AX40: 0 | AY40: 1 | AZ40: 1 | BA40: 0 | BB40: 0 | BC40: 0 | BD40: 0 | BE40: 0 | BF40: 0 | BJ40: ="" ->  | BU40: =IF($N40=0,"",IF(VLOOKUP($N40,table_spellsDATA_progression,M40+2,0)=-99,99,VLOOKUP($N40,table_spellsDATA_progression,M40+2,0))) ->  | BV40: =IF(O40="","",INDIRECT("cell_"&O40&"mod")) ->  | BW40: 20 | CM40: ANY | DB40: 0 | DC40: =IF(CM40=0,0,IF(OR(cell_statsDATA_overrideclassalign=TRUE,Stats!$Q$33=""),0,IF(cell_statsDATA_alignmentshort<>"",(VLOOKUP(Classes_DATA!CM40,table_statsDATA_alignprereq,2,0)-1)*-1,1))) -> 0 | DD40: 0 | DE40: 0 | DF40: 0 | DG40: 0 | DH40: 0 | DJ40: 0 | DL40: 0 | DN40: 0 | DO40: 0 | DQ40: TRUE | DR40: TRUE | DU40: =IF(DV40=1,SUM(DV$7:DV40),"") ->  | DV40: =IF(DW40="","",IF(COUNTIF(list_classesDATA3_classesselected,DW40)<VLOOKUP(DW40,table_classesDATA_classesall,BW$4,0),1,"")) ->  | DY40: TRUE | DZ40: TRUE | EA40: TRUE | EC40: =IF(ED40=1,SUM(ED$7:ED40),"") -> 16 | ED40: 1 | EE40: Aristocrat | EH40: =IF(EI40=1,SUM(EI$7:EI40),"") -> 16 | EI40: 1 | EJ40: Aristocrat | EM40: =IF(EN40=1,SUM(EN$7:EN40),"") ->  | ER40: =IF(ES40=1,SUM(ES$7:ES40),"") ->  | EW40: =IF(EX40=1,SUM(EX$7:EX40),"") ->  | FA40: 34 | FC40: =IF(FD40=1,SUM(FD$7:FD40),"") -> 10 | FD40: 1 | FE40: Ranger | FH40: =IF(FI40=1,SUM(FI$7:FI40),"") -> 15 | FI40: 1 | FJ40: Ranger | FK40: 5398894 | FL40: =IF(COUNTIF(FK$29:FK40,FK40)>1,FK40+COUNTIF(FK$29:FK40,FK40)-1,FK40) -> 5398894 | FM40: Ranger | FN40: 5398894 | FO40: 12
A41: 35 | B41: Commoner | C41: Class | D41: Core | E41: 6 | F41: 2 | G41: Poor | H41: Poor | I41: Poor | J41: Poor | P41: 0 | Q41: 0 | R41: 0 | S41: 1 | T41: 1 | U41: 0 | V41: 0 | W41: 0 | X41: 0 | Y41: 0 | Z41: 1 | AA41: 0 | AB41: 0 | AC41: 0 | AD41: 0 | AE41: 0 | AF41: 0 | AG41: 0 | AH41: 0 | AI41: 0 | AJ41: 0 | AK41: 0 | AL41: 0 | AM41: 0 | AN41: 0 | AO41: 0 | AP41: 0 | AQ41: 1 | AR41: 0 | AS41: 1 | AT41: 1 | AU41: 0 | AV41: 0 | AW41: 0 | AX41: 0 | AY41: 0 | AZ41: 1 | BA41: 0 | BB41: 0 | BC41: 0 | BD41: 0 | BE41: 0 | BF41: 0 | BJ41: ="" ->  | BU41: =IF($N41=0,"",IF(VLOOKUP($N41,table_spellsDATA_progression,M41+2,0)=-99,99,VLOOKUP($N41,table_spellsDATA_progression,M41+2,0))) ->  | BV41: =IF(O41="","",INDIRECT("cell_"&O41&"mod")) ->  | BW41: 20 | CM41: ANY | DB41: 0 | DC41: =IF(CM41=0,0,IF(OR(cell_statsDATA_overrideclassalign=TRUE,Stats!$Q$33=""),0,IF(cell_statsDATA_alignmentshort<>"",(VLOOKUP(Classes_DATA!CM41,table_statsDATA_alignprereq,2,0)-1)*-1,1))) -> 0 | DD41: 0 | DE41: 0 | DF41: 0 | DG41: 0 | DH41: 0 | DJ41: 0 | DL41: 0 | DN41: 0 | DO41: 0 | DQ41: TRUE | DR41: TRUE | DU41: =IF(DV41=1,SUM(DV$7:DV41),"") ->  | DY41: TRUE | DZ41: TRUE | EA41: TRUE | EC41: =IF(ED41=1,SUM(ED$7:ED41),"") -> 17 | ED41: 1 | EE41: Commoner | EH41: =IF(EI41=1,SUM(EI$7:EI41),"") -> 17 | EI41: 1 | EJ41: Commoner | EM41: =IF(EN41=1,SUM(EN$7:EN41),"") ->  | ER41: =IF(ES41=1,SUM(ES$7:ES41),"") ->  | EW41: =IF(EX41=1,SUM(EX$7:EX41),"") ->  | FA41: 35 | FC41: =IF(FD41=1,SUM(FD$7:FD41),"") -> 11 | FD41: 1 | FE41: Rogue | FH41: =IF(FI41=1,SUM(FI$7:FI41),"") -> 16 | FI41: 1 | FJ41: Rogue | FK41: 5402471 | FL41: =IF(COUNTIF(FK$29:FK41,FK41)>1,FK41+COUNTIF(FK$29:FK41,FK41)-1,FK41) -> 5402471 | FM41: Rogue | FN41: 5402471 | FO41: 13
A42: 36 | B42: Expert | C42: Class | D42: Core | E42: 8 | F42: 6 | G42: Fair | H42: Poor | I42: Poor | J42: Good | P42: 0 | Q42: 0 | R42: 0 | S42: 0 | T42: 0 | U42: 0 | V42: 0 | W42: 0 | X42: 0 | Y42: 0 | Z42: 0 | AA42: 0 | AB42: 0 | AC42: 0 | AD42: 0 | AE42: 0 | AF42: 0 | AG42: 0 | AH42: 0 | AI42: 0 | AJ42: 0 | AK42: 0 | AL42: 0 | AM42: 0 | AN42: 0 | AO42: 0 | AP42: 0 | AQ42: 0 | AR42: 0 | AS42: 0 | AT42: 0 | AU42: 0 | AV42: 0 | AW42: 0 | AX42: 0 | AY42: 0 | AZ42: 0 | BA42: 0 | BB42: 0 | BC42: 0 | BD42: 0 | BE42: 0 | BF42: 0 | BJ42: ="" ->  | BU42: =IF($N42=0,"",IF(VLOOKUP($N42,table_spellsDATA_progression,M42+2,0)=-99,99,VLOOKUP($N42,table_spellsDATA_progression,M42+2,0))) ->  | BV42: =IF(O42="","",INDIRECT("cell_"&O42&"mod")) ->  | BW42: 20 | CM42: ANY | DB42: 0 | DC42: =IF(CM42=0,0,IF(OR(cell_statsDATA_overrideclassalign=TRUE,Stats!$Q$33=""),0,IF(cell_statsDATA_alignmentshort<>"",(VLOOKUP(Classes_DATA!CM42,table_statsDATA_alignprereq,2,0)-1)*-1,1))) -> 0 | DD42: 0 | DE42: 0 | DF42: 0 | DG42: 0 | DH42: 0 | DJ42: 0 | DL42: 0 | DN42: 0 | DO42: 0 | DQ42: TRUE | DR42: TRUE | DU42: =IF(DV42=1,SUM(DV$7:DV42),"") ->  | DY42: TRUE | DZ42: TRUE | EA42: TRUE | EC42: =IF(ED42=1,SUM(ED$7:ED42),"") -> 18 | ED42: 1 | EE42: Expert | EH42: =IF(EI42=1,SUM(EI$7:EI42),"") -> 18 | EI42: 1 | EJ42: Expert | EM42: =IF(EN42=1,SUM(EN$7:EN42),"") ->  | ER42: =IF(ES42=1,SUM(ES$7:ES42),"") ->  | EW42: =IF(EX42=1,SUM(EX$7:EX42),"") ->  | FA42: 36 | FC42: =IF(FD42=1,SUM(FD$7:FD42),"") -> 12 | FD42: 1 | FE42: =EE21 -> Sorcerer | FH42: =IF(FI42=1,SUM(FI$7:FI42),"") -> 17 | FI42: 1 | FJ42: Sorcerer | FK42: 5468018 | FL42: =IF(COUNTIF(FK$29:FK42,FK42)>1,FK42+COUNTIF(FK$29:FK42,FK42)-1,FK42) -> 5468018 | FM42: Sorcerer | FN42: 5468018 | FO42: 14
A43: 37 | B43: Warrior | C43: Class | D43: Core | E43: 10 | F43: 2 | G43: Good | H43: Good | I43: Poor | J43: Poor | P43: 0 | Q43: 0 | R43: 0 | S43: 1 | T43: 1 | U43: 0 | V43: 0 | W43: 0 | X43: 0 | Y43: 0 | Z43: 1 | AA43: 0 | AB43: 1 | AC43: 0 | AD43: 0 | AE43: 0 | AF43: 0 | AG43: 0 | AH43: 0 | AI43: 0 | AJ43: 0 | AK43: 0 | AL43: 0 | AM43: 0 | AN43: 0 | AO43: 0 | AP43: 0 | AQ43: 0 | AR43: 0 | AS43: 1 | AT43: 1 | AU43: 0 | AV43: 0 | AW43: 0 | AX43: 0 | AY43: 0 | AZ43: 1 | BA43: 0 | BB43: 0 | BC43: 0 | BD43: 0 | BE43: 0 | BF43: 0 | BJ43: ="" ->  | BU43: =IF($N43=0,"",IF(VLOOKUP($N43,table_spellsDATA_progression,M43+2,0)=-99,99,VLOOKUP($N43,table_spellsDATA_progression,M43+2,0))) ->  | BV43: =IF(O43="","",INDIRECT("cell_"&O43&"mod")) ->  | BW43: 20 | CM43: ANY | DB43: 0 | DC43: =IF(CM43=0,0,IF(OR(cell_statsDATA_overrideclassalign=TRUE,Stats!$Q$33=""),0,IF(cell_statsDATA_alignmentshort<>"",(VLOOKUP(Classes_DATA!CM43,table_statsDATA_alignprereq,2,0)-1)*-1,1))) -> 0 | DD43: 0 | DE43: 0 | DF43: 0 | DG43: 0 | DH43: 0 | DJ43: 0 | DL43: 0 | DN43: 0 | DO43: 0 | DQ43: TRUE | DR43: TRUE | DU43: =IF(DV43=1,SUM(DV$7:DV43),"") ->  | DY43: TRUE | DZ43: TRUE | EA43: TRUE | EC43: =IF(ED43=1,SUM(ED$7:ED43),"") -> 19 | ED43: 1 | EE43: Warrior | EH43: =IF(EI43=1,SUM(EI$7:EI43),"") -> 19 | EI43: 1 | EJ43: Warrior | EM43: =IF(EN43=1,SUM(EN$7:EN43),"") ->  | ER43: =IF(ES43=1,SUM(ES$7:ES43),"") ->  | EW43: =IF(EX43=1,SUM(EX$7:EX43),"") ->  | FA43: 37 | FC43: =IF(FD43=1,SUM(FD$7:FD43),"") ->  | FH43: =IF(FI43=1,SUM(FI$7:FI43),"") -> 18 | FI43: 1 | FJ43: Warrior | FK43: 9999999 | FL43: =IF(COUNTIF(FK$29:FK43,FK43)>1,FK43+COUNTIF(FK$29:FK43,FK43)-1,FK43) -> 10000004 | FN43: 5726578 | FO43: 15
A44: 38 | L44: =IF(OR(K44="",K44="select"),"",UPPER(LEFT(K44,1))&"CL"&LOWER(B44)) ->  | M44: =IF(K44="select",0,IF(L44="","",SUMIF(list_attributesDATA_bonusstat,L44,list_attributesDATA_bonusamount))) ->  | BJ44: Any good alignment; BAB +2; Iron Will; Diplomacy (2 ranks); Knowledge (history) (2 ranks); Knowledge (local) (2 ranks); Sense Motive (5 ranks) | BW44: 5 | CM44: any good | CN44: Iron Will | CR44: BAB | CS44: 2 | CT44: Diplomacy | CU44: 5 | CV44: Sense Motive | CW44: 5 | DB44: 0 | DC44: =IF(CM44=0,0,IF(OR(cell_statsDATA_overrideclassalign=TRUE,Stats!$Q$33=""),0,IF(cell_statsDATA_alignmentshort<>"",(VLOOKUP(Classes_DATA!CM44,table_statsDATA_alignprereq,2,0)-1)*-1,1))) -> 1 | DD44: 1 | DE44: 0 | DF44: 0 | DG44: 0 | DH44: 1 | DJ44: 1 | DL44: 1 | DN44: 0 | DO44: 0 | DQ44: FALSE | DR44: FALSE | DU44: =IF(DV44=1,SUM(DV$7:DV44),"") ->  | DY44: FALSE | DZ44: FALSE | EA44: FALSE | EC44: =IF(ED44=1,SUM(ED$7:ED44),"") ->  | EH44: =IF(EI44=1,SUM(EI$7:EI44),"") ->  | EM44: =IF(EN44=1,SUM(EN$7:EN44),"") ->  | ER44: =IF(ES44=1,SUM(ES$7:ES44),"") ->  | EW44: =IF(EX44=1,SUM(EX$7:EX44),"") ->  | FA44: 38 | FC44: =IF(FD44=1,SUM(FD$7:FD44),"") ->  | FH44: =IF(FI44=1,SUM(FI$7:FI44),"") -> 19 | FI44: 1 | FJ44: Wizard | FK44: 9999999 | FL44: =IF(COUNTIF(FK$29:FK44,FK44)>1,FK44+COUNTIF(FK$29:FK44,FK44)-1,FK44) -> 10000005 | FN44: 5728634 | FO44: 16
A45: 39 | L45: =IF(OR(K45="",K45="select"),"",UPPER(LEFT(K45,1))&"CL"&LOWER(B45)) ->  | M45: =IF(K45="select",0,IF(L45="","",SUMIF(list_attributesDATA_bonusstat,L45,list_attributesDATA_bonusamount))) ->  | BJ45: ="" ->  | CM45: ANY | DB45: 0 | DC45: =IF(CM45=0,0,IF(OR(cell_statsDATA_overrideclassalign=TRUE,Stats!$Q$33=""),0,IF(cell_statsDATA_alignmentshort<>"",(VLOOKUP(Classes_DATA!CM45,table_statsDATA_alignprereq,2,0)-1)*-1,1))) -> 0 | DD45: 0 | DE45: 0 | DF45: 0 | DG45: 0 | DH45: 0 | DJ45: 0 | DL45: 0 | DN45: 0 | DO45: 0 | DQ45: TRUE | DR45: TRUE | DU45: =IF(DV45=1,SUM(DV$7:DV45),"") ->  | DY45: FALSE | DZ45: TRUE | EA45: FALSE | EC45: =IF(ED45=1,SUM(ED$7:ED45),"") ->  | EH45: =IF(EI45=1,SUM(EI$7:EI45),"") ->  | EM45: =IF(EN45=1,SUM(EN$7:EN45),"") ->  | ER45: =IF(ES45=1,SUM(ES$7:ES45),"") ->  | EW45: =IF(EX45=1,SUM(EX$7:EX45),"") ->  | FA45: 39 | FC45: =IF(FD45=1,SUM(FD$7:FD45),"") -> 13 | FD45: 1 | FE45: Wizard | FH45: =IF(FI45=1,SUM(FI$7:FI45),"") ->  | FK45: 5728634 | FL45: =IF(COUNTIF(FK$29:FK45,FK45)>1,FK45+COUNTIF(FK$29:FK45,FK45)-1,FK45) -> 5728634 | FM45: Wizard | FN45: 9999999 | FO45: 17
A46: 40 | L46: =IF(OR(K46="",K46="select"),"",UPPER(LEFT(K46,1))&"CL"&LOWER(B46)) ->  | M46: =IF(K46="select",0,IF(L46="","",SUMIF(list_attributesDATA_bonusstat,L46,list_attributesDATA_bonusamount))) ->  | BJ46: ="" ->  | CM46: ANY | DB46: 0 | DC46: =IF(CM46=0,0,IF(OR(cell_statsDATA_overrideclassalign=TRUE,Stats!$Q$33=""),0,IF(cell_statsDATA_alignmentshort<>"",(VLOOKUP(Classes_DATA!CM46,table_statsDATA_alignprereq,2,0)-1)*-1,1))) -> 0 | DD46: 0 | DE46: 0 | DF46: 0 | DG46: 0 | DH46: 0 | DJ46: 0 | DL46: 0 | DN46: 0 | DO46: 0 | DQ46: TRUE | DR46: TRUE | DU46: =IF(DV46=1,SUM(DV$7:DV46),"") ->  | DY46: FALSE | DZ46: TRUE | EA46: FALSE | EC46: =IF(ED46=1,SUM(ED$7:ED46),"") ->  | EH46: =IF(EI46=1,SUM(EI$7:EI46),"") ->  | EM46: =IF(EN46=1,SUM(EN$7:EN46),"") ->  | ER46: =IF(ES46=1,SUM(ES$7:ES46),"") ->  | EW46: =IF(EX46=1,SUM(EX$7:EX46),"") ->  | FA46: 40 | FC46: =IF(FD46=1,SUM(FD$7:FD46),"") -> 14 | FD46: 1 | FE46: == Prestige Classes | FH46: =IF(FI46=1,SUM(FI$7:FI46),"") ->  | FK46: 9999999 | FL46: =IF(COUNTIF(FK$29:FK46,FK46)>1,FK46+COUNTIF(FK$29:FK46,FK46)-1,FK46) -> 10000006 | FM46: == Prestige Classes | FN46: 10000000 | FO46: 18
A47: 41 | BJ47: ="" ->  | CM47: ANY | DB47: 0 | DC47: =IF(CM47=0,0,IF(OR(cell_statsDATA_overrideclassalign=TRUE,Stats!$Q$33=""),0,IF(cell_statsDATA_alignmentshort<>"",(VLOOKUP(Classes_DATA!CM47,table_statsDATA_alignprereq,2,0)-1)*-1,1))) -> 0 | DD47: 0 | DE47: 0 | DF47: 0 | DG47: 0 | DH47: 0 | DJ47: 0 | DL47: 0 | DN47: 0 | DO47: 0 | DQ47: TRUE | DR47: TRUE | DU47: =IF(DV47=1,SUM(DV$7:DV47),"") ->  | DY47: FALSE | DZ47: TRUE | EA47: FALSE | EC47: =IF(ED47=1,SUM(ED$7:ED47),"") ->  | EH47: =IF(EI47=1,SUM(EI$7:EI47),"") ->  | EM47: =IF(EN47=1,SUM(EN$7:EN47),"") ->  | ER47: =IF(ES47=1,SUM(ES$7:ES47),"") ->  | EW47: =IF(EX47=1,SUM(EX$7:EX47),"") ->  | FA47: 41 | FC47: =IF(FD47=1,SUM(FD$7:FD47),"") ->  | FH47: =IF(FI47=1,SUM(FI$7:FI47),"") ->  | FK47: 9999999 | FL47: =IF(COUNTIF(FK$29:FK47,FK47)>1,FK47+COUNTIF(FK$29:FK47,FK47)-1,FK47) -> 10000007 | FN47: 10000001 | FO47: 19
A48: 42 | BJ48: ="" ->  | CM48: ANY | DB48: 0 | DC48: =IF(CM48=0,0,IF(OR(cell_statsDATA_overrideclassalign=TRUE,Stats!$Q$33=""),0,IF(cell_statsDATA_alignmentshort<>"",(VLOOKUP(Classes_DATA!CM48,table_statsDATA_alignprereq,2,0)-1)*-1,1))) -> 0 | DD48: 0 | DE48: 0 | DF48: 0 | DG48: 0 | DH48: 0 | DJ48: 0 | DL48: 0 | DN48: 0 | DO48: 0 | DQ48: TRUE | DR48: TRUE | DU48: =IF(DV48=1,SUM(DV$7:DV48),"") ->  | DY48: FALSE | DZ48: TRUE | EA48: FALSE | EC48: =IF(ED48=1,SUM(ED$7:ED48),"") ->  | EH48: =IF(EI48=1,SUM(EI$7:EI48),"") ->  | EM48: =IF(EN48=1,SUM(EN$7:EN48),"") ->  | ER48: =IF(ES48=1,SUM(ES$7:ES48),"") ->  | EW48: =IF(EX48=1,SUM(EX$7:EX48),"") ->  | FA48: 42 | FC48: =IF(FD48=1,SUM(FD$7:FD48),"") ->  | FH48: =IF(FI48=1,SUM(FI$7:FI48),"") ->  | FK48: 9999999 | FL48: =IF(COUNTIF(FK$29:FK48,FK48)>1,FK48+COUNTIF(FK$29:FK48,FK48)-1,FK48) -> 10000008 | FN48: 10000002 | FO48: 20
A49: 43 | BJ49: ="" ->  | CM49: ANY | DB49: 0 | DC49: =IF(CM49=0,0,IF(OR(cell_statsDATA_overrideclassalign=TRUE,Stats!$Q$33=""),0,IF(cell_statsDATA_alignmentshort<>"",(VLOOKUP(Classes_DATA!CM49,table_statsDATA_alignprereq,2,0)-1)*-1,1))) -> 0 | DD49: 0 | DE49: 0 | DF49: 0 | DG49: 0 | DH49: 0 | DJ49: 0 | DL49: 0 | DN49: 0 | DO49: 0 | DQ49: TRUE | DR49: TRUE | DU49: =IF(DV49=1,SUM(DV$7:DV49),"") ->  | DY49: FALSE | DZ49: TRUE | EA49: FALSE | EC49: =IF(ED49=1,SUM(ED$7:ED49),"") ->  | EH49: =IF(EI49=1,SUM(EI$7:EI49),"") ->  | EM49: =IF(EN49=1,SUM(EN$7:EN49),"") ->  | ER49: =IF(ES49=1,SUM(ES$7:ES49),"") ->  | EW49: =IF(EX49=1,SUM(EX$7:EX49),"") ->  | FA49: 43 | FC49: =IF(FD49=1,SUM(FD$7:FD49),"") ->  | FH49: =IF(FI49=1,SUM(FI$7:FI49),"") ->  | FK49: 9999999 | FL49: =IF(COUNTIF(FK$29:FK49,FK49)>1,FK49+COUNTIF(FK$29:FK49,FK49)-1,FK49) -> 10000009 | FN49: 10000003 | FO49: 21
A50: 44 | BJ50: ="" ->  | CM50: ANY | DB50: 0 | DC50: =IF(CM50=0,0,IF(OR(cell_statsDATA_overrideclassalign=TRUE,Stats!$Q$33=""),0,IF(cell_statsDATA_alignmentshort<>"",(VLOOKUP(Classes_DATA!CM50,table_statsDATA_alignprereq,2,0)-1)*-1,1))) -> 0 | DD50: 0 | DE50: 0 | DF50: 0 | DG50: 0 | DH50: 0 | DJ50: 0 | DL50: 0 | DN50: 0 | DO50: 0 | DQ50: TRUE | DR50: TRUE | DU50: =IF(DV50=1,SUM(DV$7:DV50),"") ->  | DY50: FALSE | DZ50: TRUE | EA50: FALSE | EC50: =IF(ED50=1,SUM(ED$7:ED50),"") ->  | EH50: =IF(EI50=1,SUM(EI$7:EI50),"") ->  | EM50: =IF(EN50=1,SUM(EN$7:EN50),"") ->  | ER50: =IF(ES50=1,SUM(ES$7:ES50),"") ->  | EW50: =IF(EX50=1,SUM(EX$7:EX50),"") ->  | FA50: 44 | FC50: =IF(FD50=1,SUM(FD$7:FD50),"") ->  | FH50: =IF(FI50=1,SUM(FI$7:FI50),"") ->  | FK50: 9999999 | FL50: =IF(COUNTIF(FK$29:FK50,FK50)>1,FK50+COUNTIF(FK$29:FK50,FK50)-1,FK50) -> 10000010 | FN50: 10000004 | FO50: 22
A51: 45 | BJ51: ="" ->  | CM51: ANY | DB51: 0 | DC51: =IF(CM51=0,0,IF(OR(cell_statsDATA_overrideclassalign=TRUE,Stats!$Q$33=""),0,IF(cell_statsDATA_alignmentshort<>"",(VLOOKUP(Classes_DATA!CM51,table_statsDATA_alignprereq,2,0)-1)*-1,1))) -> 0 | DD51: 0 | DE51: 0 | DF51: 0 | DG51: 0 | DH51: 0 | DJ51: 0 | DL51: 0 | DN51: 0 | DO51: 0 | DQ51: TRUE | DR51: TRUE | DU51: =IF(DV51=1,SUM(DV$7:DV51),"") ->  | DY51: FALSE | DZ51: TRUE | EA51: FALSE | EC51: =IF(ED51=1,SUM(ED$7:ED51),"") ->  | EH51: =IF(EI51=1,SUM(EI$7:EI51),"") ->  | EM51: =IF(EN51=1,SUM(EN$7:EN51),"") ->  | ER51: =IF(ES51=1,SUM(ES$7:ES51),"") ->  | EW51: =IF(EX51=1,SUM(EX$7:EX51),"") ->  | FA51: 45 | FC51: =IF(FD51=1,SUM(FD$7:FD51),"") ->  | FH51: =IF(FI51=1,SUM(FI$7:FI51),"") ->  | FK51: 9999999 | FL51: =IF(COUNTIF(FK$29:FK51,FK51)>1,FK51+COUNTIF(FK$29:FK51,FK51)-1,FK51) -> 10000011 | FN51: 10000005 | FO51: 23
A52: 46 | BJ52: ="" ->  | CM52: ANY | DB52: 0 | DC52: =IF(CM52=0,0,IF(OR(cell_statsDATA_overrideclassalign=TRUE,Stats!$Q$33=""),0,IF(cell_statsDATA_alignmentshort<>"",(VLOOKUP(Classes_DATA!CM52,table_statsDATA_alignprereq,2,0)-1)*-1,1))) -> 0 | DD52: 0 | DE52: 0 | DF52: 0 | DG52: 0 | DH52: 0 | DJ52: 0 | DL52: 0 | DN52: 0 | DO52: 0 | DQ52: TRUE | DR52: TRUE | DU52: =IF(DV52=1,SUM(DV$7:DV52),"") ->  | DY52: FALSE | DZ52: TRUE | EA52: FALSE | EC52: =IF(ED52=1,SUM(ED$7:ED52),"") ->  | EH52: =IF(EI52=1,SUM(EI$7:EI52),"") ->  | EM52: =IF(EN52=1,SUM(EN$7:EN52),"") ->  | ER52: =IF(ES52=1,SUM(ES$7:ES52),"") ->  | EW52: =IF(EX52=1,SUM(EX$7:EX52),"") ->  | FA52: 46 | FC52: =IF(FD52=1,SUM(FD$7:FD52),"") ->  | FH52: =IF(FI52=1,SUM(FI$7:FI52),"") ->  | FK52: 9999999 | FL52: =IF(COUNTIF(FK$29:FK52,FK52)>1,FK52+COUNTIF(FK$29:FK52,FK52)-1,FK52) -> 10000012 | FN52: 10000006 | FO52: 24
A53: 47 | BJ53: ="" ->  | CM53: ANY | DB53: 0 | DC53: =IF(CM53=0,0,IF(OR(cell_statsDATA_overrideclassalign=TRUE,Stats!$Q$33=""),0,IF(cell_statsDATA_alignmentshort<>"",(VLOOKUP(Classes_DATA!CM53,table_statsDATA_alignprereq,2,0)-1)*-1,1))) -> 0 | DD53: 0 | DE53: 0 | DF53: 0 | DG53: 0 | DH53: 0 | DJ53: 0 | DL53: 0 | DN53: 0 | DO53: 0 | DQ53: TRUE | DR53: TRUE | DU53: =IF(DV53=1,SUM(DV$7:DV53),"") ->  | DY53: FALSE | DZ53: TRUE | EA53: FALSE | EC53: =IF(ED53=1,SUM(ED$7:ED53),"") ->  | EH53: =IF(EI53=1,SUM(EI$7:EI53),"") ->  | EM53: =IF(EN53=1,SUM(EN$7:EN53),"") ->  | ER53: =IF(ES53=1,SUM(ES$7:ES53),"") ->  | EW53: =IF(EX53=1,SUM(EX$7:EX53),"") ->  | FA53: 47 | FC53: =IF(FD53=1,SUM(FD$7:FD53),"") ->  | FH53: =IF(FI53=1,SUM(FI$7:FI53),"") ->  | FK53: 9999999 | FL53: =IF(COUNTIF(FK$29:FK53,FK53)>1,FK53+COUNTIF(FK$29:FK53,FK53)-1,FK53) -> 10000013 | FN53: 10000007 | FO53: 25
A54: 48 | BJ54: ="" ->  | CM54: ANY | DB54: 0 | DC54: =IF(CM54=0,0,IF(OR(cell_statsDATA_overrideclassalign=TRUE,Stats!$Q$33=""),0,IF(cell_statsDATA_alignmentshort<>"",(VLOOKUP(Classes_DATA!CM54,table_statsDATA_alignprereq,2,0)-1)*-1,1))) -> 0 | DD54: 0 | DE54: 0 | DF54: 0 | DG54: 0 | DH54: 0 | DJ54: 0 | DL54: 0 | DN54: 0 | DO54: 0 | DQ54: TRUE | DR54: TRUE | DU54: =IF(DV54=1,SUM(DV$7:DV54),"") ->  | DY54: FALSE | DZ54: TRUE | EA54: FALSE | EC54: =IF(ED54=1,SUM(ED$7:ED54),"") ->  | EH54: =IF(EI54=1,SUM(EI$7:EI54),"") ->  | EM54: =IF(EN54=1,SUM(EN$7:EN54),"") ->  | ER54: =IF(ES54=1,SUM(ES$7:ES54),"") ->  | EW54: =IF(EX54=1,SUM(EX$7:EX54),"") ->  | FA54: 48 | FC54: =IF(FD54=1,SUM(FD$7:FD54),"") -> 15 | FD54: 1 | FE54: Loremaster | FH54: =IF(FI54=1,SUM(FI$7:FI54),"") ->  | FK54: 5009266 | FL54: =IF(COUNTIF(FK$29:FK54,FK54)>1,FK54+COUNTIF(FK$29:FK54,FK54)-1,FK54) -> 5009266 | FM54: Loremaster | FN54: 10000008 | FO54: 26
A55: 49 | BJ55: ="" ->  | CM55: ANY | DB55: 0 | DC55: =IF(CM55=0,0,IF(OR(cell_statsDATA_overrideclassalign=TRUE,Stats!$Q$33=""),0,IF(cell_statsDATA_alignmentshort<>"",(VLOOKUP(Classes_DATA!CM55,table_statsDATA_alignprereq,2,0)-1)*-1,1))) -> 0 | DD55: 0 | DE55: 0 | DF55: 0 | DG55: 0 | DH55: 0 | DJ55: 0 | DL55: 0 | DN55: 0 | DO55: 0 | DQ55: TRUE | DR55: TRUE | DU55: =IF(DV55=1,SUM(DV$7:DV55),"") ->  | DY55: FALSE | DZ55: TRUE | EA55: FALSE | EC55: =IF(ED55=1,SUM(ED$7:ED55),"") ->  | EH55: =IF(EI55=1,SUM(EI$7:EI55),"") ->  | EM55: =IF(EN55=1,SUM(EN$7:EN55),"") ->  | ER55: =IF(ES55=1,SUM(ES$7:ES55),"") ->  | EW55: =IF(EX55=1,SUM(EX$7:EX55),"") ->  | FA55: 49 | FC55: =IF(FD55=1,SUM(FD$7:FD55),"") ->  | FH55: =IF(FI55=1,SUM(FI$7:FI55),"") ->  | FK55: 9999999 | FL55: =IF(COUNTIF(FK$29:FK55,FK55)>1,FK55+COUNTIF(FK$29:FK55,FK55)-1,FK55) -> 10000014 | FN55: 10000009 | FO55: 27
A56: 50 | BJ56: ="" ->  | CM56: ANY | DB56: 0 | DC56: =IF(CM56=0,0,IF(OR(cell_statsDATA_overrideclassalign=TRUE,Stats!$Q$33=""),0,IF(cell_statsDATA_alignmentshort<>"",(VLOOKUP(Classes_DATA!CM56,table_statsDATA_alignprereq,2,0)-1)*-1,1))) -> 0 | DD56: 0 | DE56: 0 | DF56: 0 | DG56: 0 | DH56: 0 | DJ56: 0 | DL56: 0 | DN56: 0 | DO56: 0 | DQ56: TRUE | DR56: TRUE | DU56: =IF(DV56=1,SUM(DV$7:DV56),"") ->  | DY56: FALSE | DZ56: TRUE | EA56: FALSE | EC56: =IF(ED56=1,SUM(ED$7:ED56),"") ->  | EH56: =IF(EI56=1,SUM(EI$7:EI56),"") ->  | EM56: =IF(EN56=1,SUM(EN$7:EN56),"") ->  | ER56: =IF(ES56=1,SUM(ES$7:ES56),"") ->  | EW56: =IF(EX56=1,SUM(EX$7:EX56),"") ->  | FA56: 50 | FC56: =IF(FD56=1,SUM(FD$7:FD56),"") ->  | FH56: =IF(FI56=1,SUM(FI$7:FI56),"") ->  | FK56: 9999999 | FL56: =IF(COUNTIF(FK$29:FK56,FK56)>1,FK56+COUNTIF(FK$29:FK56,FK56)-1,FK56) -> 10000015 | FN56: 10000010 | FO56: 28
A57: 51 | BJ57: ="" ->  | CM57: ANY | DB57: 0 | DC57: =IF(CM57=0,0,IF(OR(cell_statsDATA_overrideclassalign=TRUE,Stats!$Q$33=""),0,IF(cell_statsDATA_alignmentshort<>"",(VLOOKUP(Classes_DATA!CM57,table_statsDATA_alignprereq,2,0)-1)*-1,1))) -> 0 | DD57: 0 | DE57: 0 | DF57: 0 | DG57: 0 | DH57: 0 | DJ57: 0 | DL57: 0 | DN57: 0 | DO57: 0 | DQ57: TRUE | DR57: TRUE | DU57: =IF(DV57=1,SUM(DV$7:DV57),"") ->  | DY57: FALSE | DZ57: TRUE | EA57: FALSE | EC57: =IF(ED57=1,SUM(ED$7:ED57),"") ->  | EH57: =IF(EI57=1,SUM(EI$7:EI57),"") ->  | EM57: =IF(EN57=1,SUM(EN$7:EN57),"") ->  | ER57: =IF(ES57=1,SUM(ES$7:ES57),"") ->  | EW57: =IF(EX57=1,SUM(EX$7:EX57),"") ->  | FA57: 51 | FC57: =IF(FD57=1,SUM(FD$7:FD57),"") ->  | FH57: =IF(FI57=1,SUM(FI$7:FI57),"") ->  | FK57: 9999999 | FL57: =IF(COUNTIF(FK$29:FK57,FK57)>1,FK57+COUNTIF(FK$29:FK57,FK57)-1,FK57) -> 10000016 | FN57: 10000011 | FO57: 29
A58: 52 | BJ58: ="" ->  | CM58: ANY | DB58: 0 | DC58: =IF(CM58=0,0,IF(OR(cell_statsDATA_overrideclassalign=TRUE,Stats!$Q$33=""),0,IF(cell_statsDATA_alignmentshort<>"",(VLOOKUP(Classes_DATA!CM58,table_statsDATA_alignprereq,2,0)-1)*-1,1))) -> 0 | DD58: 0 | DE58: 0 | DF58: 0 | DG58: 0 | DH58: 0 | DJ58: 0 | DL58: 0 | DN58: 0 | DO58: 0 | DQ58: TRUE | DR58: TRUE | DU58: =IF(DV58=1,SUM(DV$7:DV58),"") ->  | DY58: FALSE | DZ58: TRUE | EA58: FALSE | EC58: =IF(ED58=1,SUM(ED$7:ED58),"") ->  | EH58: =IF(EI58=1,SUM(EI$7:EI58),"") ->  | EM58: =IF(EN58=1,SUM(EN$7:EN58),"") ->  | ER58: =IF(ES58=1,SUM(ES$7:ES58),"") ->  | EW58: =IF(EX58=1,SUM(EX$7:EX58),"") ->  | FA58: 52 | FC58: =IF(FD58=1,SUM(FD$7:FD58),"") ->  | FH58: =IF(FI58=1,SUM(FI$7:FI58),"") ->  | FK58: 9999999 | FL58: =IF(COUNTIF(FK$29:FK58,FK58)>1,FK58+COUNTIF(FK$29:FK58,FK58)-1,FK58) -> 10000017 | FN58: 10000012 | FO58: 30
A59: 53 | BJ59: ="" ->  | CM59: ANY | DB59: 0 | DC59: =IF(CM59=0,0,IF(OR(cell_statsDATA_overrideclassalign=TRUE,Stats!$Q$33=""),0,IF(cell_statsDATA_alignmentshort<>"",(VLOOKUP(Classes_DATA!CM59,table_statsDATA_alignprereq,2,0)-1)*-1,1))) -> 0 | DD59: 0 | DE59: 0 | DF59: 0 | DG59: 0 | DH59: 0 | DJ59: 0 | DL59: 0 | DN59: 0 | DO59: 0 | DQ59: TRUE | DR59: TRUE | DU59: =IF(DV59=1,SUM(DV$7:DV59),"") ->  | DY59: FALSE | DZ59: TRUE | EA59: FALSE | EC59: =IF(ED59=1,SUM(ED$7:ED59),"") ->  | EH59: =IF(EI59=1,SUM(EI$7:EI59),"") ->  | EM59: =IF(EN59=1,SUM(EN$7:EN59),"") ->  | ER59: =IF(ES59=1,SUM(ES$7:ES59),"") ->  | EW59: =IF(EX59=1,SUM(EX$7:EX59),"") ->  | FA59: 53 | FC59: =IF(FD59=1,SUM(FD$7:FD59),"") -> 16 | FD59: 1 | FE59: == NPC Classes | FH59: =IF(FI59=1,SUM(FI$7:FI59),"") ->  | FK59: 9999999 | FL59: =IF(COUNTIF(FK$29:FK59,FK59)>1,FK59+COUNTIF(FK$29:FK59,FK59)-1,FK59) -> 10000018 | FM59: == NPC Classes | FN59: 10000013 | FO59: 31
A60: 54 | BJ60: ="" ->  | CM60: ANY | DB60: 0 | DC60: =IF(CM60=0,0,IF(OR(cell_statsDATA_overrideclassalign=TRUE,Stats!$Q$33=""),0,IF(cell_statsDATA_alignmentshort<>"",(VLOOKUP(Classes_DATA!CM60,table_statsDATA_alignprereq,2,0)-1)*-1,1))) -> 0 | DD60: 0 | DE60: 0 | DF60: 0 | DG60: 0 | DH60: 0 | DJ60: 0 | DL60: 0 | DN60: 0 | DO60: 0 | DQ60: TRUE | DR60: TRUE | DU60: =IF(DV60=1,SUM(DV$7:DV60),"") ->  | DY60: FALSE | DZ60: TRUE | EA60: FALSE | EC60: =IF(ED60=1,SUM(ED$7:ED60),"") ->  | EH60: =IF(EI60=1,SUM(EI$7:EI60),"") ->  | EM60: =IF(EN60=1,SUM(EN$7:EN60),"") ->  | ER60: =IF(ES60=1,SUM(ES$7:ES60),"") ->  | EW60: =IF(EX60=1,SUM(EX$7:EX60),"") ->  | FA60: 54 | FC60: =IF(FD60=1,SUM(FD$7:FD60),"") -> 17 | FD60: 1 | FE60: Adept | FH60: =IF(FI60=1,SUM(FI$7:FI60),"") ->  | FK60: 4285541 | FL60: =IF(COUNTIF(FK$29:FK60,FK60)>1,FK60+COUNTIF(FK$29:FK60,FK60)-1,FK60) -> 4285541 | FM60: Adept | FN60: 10000014 | FO60: 32
A61: 55 | BJ61: ="" ->  | CM61: ANY | DB61: 0 | DC61: =IF(CM61=0,0,IF(OR(cell_statsDATA_overrideclassalign=TRUE,Stats!$Q$33=""),0,IF(cell_statsDATA_alignmentshort<>"",(VLOOKUP(Classes_DATA!CM61,table_statsDATA_alignprereq,2,0)-1)*-1,1))) -> 0 | DD61: 0 | DE61: 0 | DF61: 0 | DG61: 0 | DH61: 0 | DJ61: 0 | DL61: 0 | DN61: 0 | DO61: 0 | DQ61: TRUE | DR61: TRUE | DU61: =IF(DV61=1,SUM(DV$7:DV61),"") ->  | DY61: FALSE | DZ61: TRUE | EA61: FALSE | EC61: =IF(ED61=1,SUM(ED$7:ED61),"") ->  | EH61: =IF(EI61=1,SUM(EI$7:EI61),"") ->  | EM61: =IF(EN61=1,SUM(EN$7:EN61),"") ->  | ER61: =IF(ES61=1,SUM(ES$7:ES61),"") ->  | EW61: =IF(EX61=1,SUM(EX$7:EX61),"") ->  | FA61: 55 | FC61: =IF(FD61=1,SUM(FD$7:FD61),"") -> 18 | FD61: 1 | FE61: Aristocrat | FH61: =IF(FI61=1,SUM(FI$7:FI61),"") ->  | FK61: 4289129 | FL61: =IF(COUNTIF(FK$29:FK61,FK61)>1,FK61+COUNTIF(FK$29:FK61,FK61)-1,FK61) -> 4289129 | FM61: Aristocrat | FN61: 10000015 | FO61: 33
A62: 56 | BJ62: ="" ->  | CM62: ANY | DB62: 0 | DC62: =IF(CM62=0,0,IF(OR(cell_statsDATA_overrideclassalign=TRUE,Stats!$Q$33=""),0,IF(cell_statsDATA_alignmentshort<>"",(VLOOKUP(Classes_DATA!CM62,table_statsDATA_alignprereq,2,0)-1)*-1,1))) -> 0 | DD62: 0 | DE62: 0 | DF62: 0 | DG62: 0 | DH62: 0 | DJ62: 0 | DL62: 0 | DN62: 0 | DO62: 0 | DQ62: TRUE | DR62: TRUE | DU62: =IF(DV62=1,SUM(DV$7:DV62),"") ->  | DY62: FALSE | DZ62: TRUE | EA62: FALSE | EC62: =IF(ED62=1,SUM(ED$7:ED62),"") ->  | EH62: =IF(EI62=1,SUM(EI$7:EI62),"") ->  | EM62: =IF(EN62=1,SUM(EN$7:EN62),"") ->  | ER62: =IF(ES62=1,SUM(ES$7:ES62),"") ->  | EW62: =IF(EX62=1,SUM(EX$7:EX62),"") ->  | FA62: 56 | FC62: =IF(FD62=1,SUM(FD$7:FD62),"") -> 19 | FD62: 1 | FE62: Commoner | FH62: =IF(FI62=1,SUM(FI$7:FI62),"") ->  | FK62: 4419437 | FL62: =IF(COUNTIF(FK$29:FK62,FK62)>1,FK62+COUNTIF(FK$29:FK62,FK62)-1,FK62) -> 4419437 | FM62: Commoner | FN62: 10000016 | FO62: 34
A63: 57 | BJ63: ="" ->  | CM63: ANY | DB63: 0 | DC63: =IF(CM63=0,0,IF(OR(cell_statsDATA_overrideclassalign=TRUE,Stats!$Q$33=""),0,IF(cell_statsDATA_alignmentshort<>"",(VLOOKUP(Classes_DATA!CM63,table_statsDATA_alignprereq,2,0)-1)*-1,1))) -> 0 | DD63: 0 | DE63: 0 | DF63: 0 | DG63: 0 | DH63: 0 | DJ63: 0 | DL63: 0 | DN63: 0 | DO63: 0 | DQ63: TRUE | DR63: TRUE | DU63: =IF(DV63=1,SUM(DV$7:DV63),"") ->  | DY63: FALSE | DZ63: TRUE | EA63: FALSE | EC63: =IF(ED63=1,SUM(ED$7:ED63),"") ->  | EH63: =IF(EI63=1,SUM(EI$7:EI63),"") ->  | EM63: =IF(EN63=1,SUM(EN$7:EN63),"") ->  | ER63: =IF(ES63=1,SUM(ES$7:ES63),"") ->  | EW63: =IF(EX63=1,SUM(EX$7:EX63),"") ->  | FA63: 57 | FC63: =IF(FD63=1,SUM(FD$7:FD63),"") -> 20 | FD63: 1 | FE63: Expert | FH63: =IF(FI63=1,SUM(FI$7:FI63),"") ->  | FK63: 4552816 | FL63: =IF(COUNTIF(FK$29:FK63,FK63)>1,FK63+COUNTIF(FK$29:FK63,FK63)-1,FK63) -> 4552816 | FM63: Expert | FN63: 10000017 | FO63: 35
A64: 58 | BJ64: ="" ->  | CM64: ANY | DB64: 0 | DC64: =IF(CM64=0,0,IF(OR(cell_statsDATA_overrideclassalign=TRUE,Stats!$Q$33=""),0,IF(cell_statsDATA_alignmentshort<>"",(VLOOKUP(Classes_DATA!CM64,table_statsDATA_alignprereq,2,0)-1)*-1,1))) -> 0 | DD64: 0 | DE64: 0 | DF64: 0 | DG64: 0 | DH64: 0 | DJ64: 0 | DL64: 0 | DN64: 0 | DO64: 0 | DQ64: TRUE | DR64: TRUE | DU64: =IF(DV64=1,SUM(DV$7:DV64),"") ->  | DY64: FALSE | DZ64: TRUE | EA64: FALSE | EC64: =IF(ED64=1,SUM(ED$7:ED64),"") ->  | EH64: =IF(EI64=1,SUM(EI$7:EI64),"") ->  | EM64: =IF(EN64=1,SUM(EN$7:EN64),"") ->  | ER64: =IF(ES64=1,SUM(ES$7:ES64),"") ->  | EW64: =IF(EX64=1,SUM(EX$7:EX64),"") ->  | FA64: 58 | FC64: =IF(FD64=1,SUM(FD$7:FD64),"") -> 21 | FD64: 1 | FE64: Warrior | FH64: =IF(FI64=1,SUM(FI$7:FI64),"") ->  | FK64: 5726578 | FL64: =IF(COUNTIF(FK$29:FK64,FK64)>1,FK64+COUNTIF(FK$29:FK64,FK64)-1,FK64) -> 5726578 | FM64: Warrior | FN64: 10000018 | FO64: 36
A65: 59 | L65: =IF(OR(K65="",K65="select"),"",UPPER(LEFT(K65,1))&"CL"&LOWER(B65)) ->  | M65: =IF(K65="select",0,IF(L65="","",SUMIF(list_attributesDATA_bonusstat,L65,list_attributesDATA_bonusamount))) ->  | BJ65: ="" ->  | CM65: ANY | DB65: 0 | DC65: =IF(CM65=0,0,IF(OR(cell_statsDATA_overrideclassalign=TRUE,Stats!$Q$33=""),0,IF(cell_statsDATA_alignmentshort<>"",(VLOOKUP(Classes_DATA!CM65,table_statsDATA_alignprereq,2,0)-1)*-1,1))) -> 0 | DD65: 0 | DE65: 0 | DF65: 0 | DG65: 0 | DH65: 0 | DJ65: 0 | DL65: 0 | DN65: 0 | DO65: 0 | DQ65: TRUE | DR65: TRUE | DU65: =IF(DV65=1,SUM(DV$7:DV65),"") ->  | DY65: FALSE | DZ65: TRUE | EA65: FALSE | EC65: =IF(ED65=1,SUM(ED$7:ED65),"") ->  | EH65: =IF(EI65=1,SUM(EI$7:EI65),"") ->  | EM65: =IF(EN65=1,SUM(EN$7:EN65),"") ->  | ER65: =IF(ES65=1,SUM(ES$7:ES65),"") ->  | EW65: =IF(EX65=1,SUM(EX$7:EX65),"") ->  | FA65: 59 | FC65: =IF(FD65=1,SUM(FD$7:FD65),"") ->  | FH65: =IF(FI65=1,SUM(FI$7:FI65),"") ->  | FK65: 9999999 | FL65: =IF(COUNTIF(FK$29:FK65,FK65)>1,FK65+COUNTIF(FK$29:FK65,FK65)-1,FK65) -> 10000019 | FN65: 10000019 | FO65: 37
A66: 60 | BJ66: ="" ->  | CM66: ANY | DB66: 0 | DC66: =IF(CM66=0,0,IF(OR(cell_statsDATA_overrideclassalign=TRUE,Stats!$Q$33=""),0,IF(cell_statsDATA_alignmentshort<>"",(VLOOKUP(Classes_DATA!CM66,table_statsDATA_alignprereq,2,0)-1)*-1,1))) -> 0 | DD66: 0 | DE66: 0 | DF66: 0 | DG66: 0 | DH66: 0 | DJ66: 0 | DL66: 0 | DN66: 0 | DO66: 0 | DQ66: TRUE | DR66: TRUE | DU66: =IF(DV66=1,SUM(DV$7:DV66),"") ->  | DY66: FALSE | DZ66: TRUE | EA66: FALSE | EC66: =IF(ED66=1,SUM(ED$7:ED66),"") ->  | EH66: =IF(EI66=1,SUM(EI$7:EI66),"") ->  | EM66: =IF(EN66=1,SUM(EN$7:EN66),"") ->  | ER66: =IF(ES66=1,SUM(ES$7:ES66),"") ->  | EW66: =IF(EX66=1,SUM(EX$7:EX66),"") ->  | FA66: 60 | FC66: =IF(FD66=1,SUM(FD$7:FD66),"") ->  | FH66: =IF(FI66=1,SUM(FI$7:FI66),"") ->  | FK66: 9999999 | FL66: =IF(COUNTIF(FK$29:FK66,FK66)>1,FK66+COUNTIF(FK$29:FK66,FK66)-1,FK66) -> 10000020 | FN66: 10000020 | FO66: 38
A67: 61 | BJ67: ="" ->  | CM67: ANY | DB67: 0 | DC67: =IF(CM67=0,0,IF(OR(cell_statsDATA_overrideclassalign=TRUE,Stats!$Q$33=""),0,IF(cell_statsDATA_alignmentshort<>"",(VLOOKUP(Classes_DATA!CM67,table_statsDATA_alignprereq,2,0)-1)*-1,1))) -> 0 | DD67: 0 | DE67: 0 | DF67: 0 | DG67: 0 | DH67: 0 | DJ67: 0 | DL67: 0 | DN67: 0 | DO67: 0 | DQ67: TRUE | DR67: TRUE | DU67: =IF(DV67=1,SUM(DV$7:DV67),"") ->  | DY67: FALSE | DZ67: TRUE | EA67: FALSE | EC67: =IF(ED67=1,SUM(ED$7:ED67),"") ->  | EH67: =IF(EI67=1,SUM(EI$7:EI67),"") ->  | EM67: =IF(EN67=1,SUM(EN$7:EN67),"") ->  | ER67: =IF(ES67=1,SUM(ES$7:ES67),"") ->  | EW67: =IF(EX67=1,SUM(EX$7:EX67),"") ->  | FA67: 61 | FC67: =IF(FD67=1,SUM(FD$7:FD67),"") ->  | FH67: =IF(FI67=1,SUM(FI$7:FI67),"") ->  | FK67: 9999999 | FL67: =IF(COUNTIF(FK$29:FK67,FK67)>1,FK67+COUNTIF(FK$29:FK67,FK67)-1,FK67) -> 10000021 | FN67: 10000021 | FO67: 39
A68: 62 | BJ68: ="" ->  | CM68: ANY | DB68: 0 | DC68: =IF(CM68=0,0,IF(OR(cell_statsDATA_overrideclassalign=TRUE,Stats!$Q$33=""),0,IF(cell_statsDATA_alignmentshort<>"",(VLOOKUP(Classes_DATA!CM68,table_statsDATA_alignprereq,2,0)-1)*-1,1))) -> 0 | DD68: 0 | DE68: 0 | DF68: 0 | DG68: 0 | DH68: 0 | DJ68: 0 | DL68: 0 | DN68: 0 | DO68: 0 | DQ68: TRUE | DR68: TRUE | DU68: =IF(DV68=1,SUM(DV$7:DV68),"") ->  | DY68: FALSE | DZ68: TRUE | EA68: FALSE | EC68: =IF(ED68=1,SUM(ED$7:ED68),"") ->  | EH68: =IF(EI68=1,SUM(EI$7:EI68),"") ->  | EM68: =IF(EN68=1,SUM(EN$7:EN68),"") ->  | ER68: =IF(ES68=1,SUM(ES$7:ES68),"") ->  | EW68: =IF(EX68=1,SUM(EX$7:EX68),"") ->  | FA68: 62 | FC68: =IF(FD68=1,SUM(FD$7:FD68),"") ->  | FH68: =IF(FI68=1,SUM(FI$7:FI68),"") ->  | FK68: 9999999 | FL68: =IF(COUNTIF(FK$29:FK68,FK68)>1,FK68+COUNTIF(FK$29:FK68,FK68)-1,FK68) -> 10000022 | FN68: 10000022 | FO68: 40
A69: 63 | BJ69: ="" ->  | CM69: ANY | DB69: 0 | DC69: =IF(CM69=0,0,IF(OR(cell_statsDATA_overrideclassalign=TRUE,Stats!$Q$33=""),0,IF(cell_statsDATA_alignmentshort<>"",(VLOOKUP(Classes_DATA!CM69,table_statsDATA_alignprereq,2,0)-1)*-1,1))) -> 0 | DD69: 0 | DE69: 0 | DF69: 0 | DG69: 0 | DH69: 0 | DJ69: 0 | DL69: 0 | DN69: 0 | DO69: 0 | DQ69: TRUE | DR69: TRUE | DU69: =IF(DV69=1,SUM(DV$7:DV69),"") ->  | DY69: FALSE | DZ69: TRUE | EA69: FALSE | EC69: =IF(ED69=1,SUM(ED$7:ED69),"") ->  | EH69: =IF(EI69=1,SUM(EI$7:EI69),"") ->  | EM69: =IF(EN69=1,SUM(EN$7:EN69),"") ->  | ER69: =IF(ES69=1,SUM(ES$7:ES69),"") ->  | EW69: =IF(EX69=1,SUM(EX$7:EX69),"") ->  | FA69: 63 | FC69: =IF(FD69=1,SUM(FD$7:FD69),"") ->  | FH69: =IF(FI69=1,SUM(FI$7:FI69),"") ->  | FK69: 9999999 | FL69: =IF(COUNTIF(FK$29:FK69,FK69)>1,FK69+COUNTIF(FK$29:FK69,FK69)-1,FK69) -> 10000023 | FN69: 10000023 | FO69: 41
A70: 64 | BJ70: ="" ->  | CM70: ANY | DB70: 0 | DC70: =IF(CM70=0,0,IF(OR(cell_statsDATA_overrideclassalign=TRUE,Stats!$Q$33=""),0,IF(cell_statsDATA_alignmentshort<>"",(VLOOKUP(Classes_DATA!CM70,table_statsDATA_alignprereq,2,0)-1)*-1,1))) -> 0 | DD70: 0 | DE70: 0 | DF70: 0 | DG70: 0 | DH70: 0 | DJ70: 0 | DL70: 0 | DN70: 0 | DO70: 0 | DQ70: TRUE | DR70: TRUE | DU70: =IF(DV70=1,SUM(DV$7:DV70),"") ->  | DY70: FALSE | DZ70: TRUE | EA70: FALSE | EC70: =IF(ED70=1,SUM(ED$7:ED70),"") ->  | EH70: =IF(EI70=1,SUM(EI$7:EI70),"") ->  | EM70: =IF(EN70=1,SUM(EN$7:EN70),"") ->  | ER70: =IF(ES70=1,SUM(ES$7:ES70),"") ->  | EW70: =IF(EX70=1,SUM(EX$7:EX70),"") ->  | FA70: 64 | FC70: =IF(FD70=1,SUM(FD$7:FD70),"") ->  | FH70: =IF(FI70=1,SUM(FI$7:FI70),"") ->  | FK70: 9999999 | FL70: =IF(COUNTIF(FK$29:FK70,FK70)>1,FK70+COUNTIF(FK$29:FK70,FK70)-1,FK70) -> 10000024 | FN70: 10000024 | FO70: 42
A71: 65 | M71: =IF(K71="select",0,IF(L71="","",SUMIF(list_attributesDATA_bonusstat,L71,list_attributesDATA_bonusamount))) ->  | BJ71: ="" ->  | CM71: ANY | DB71: =IF(CL71=0,0,IF(ISERROR(MATCH("*#"&cell_race&"#*",CL71,0)),1,0)) -> 0 | DC71: =IF(CM71=0,0,IF(OR(cell_statsDATA_overrideclassalign=TRUE,Stats!$Q$33=""),0,IF(cell_statsDATA_alignmentshort<>"",(VLOOKUP(Classes_DATA!CM71,table_statsDATA_alignprereq,2,0)-1)*-1,1))) -> 0 | DD71: =IF(CN71=0,0,IF(ISERROR(MATCH(CN71,list_featsDATA2_featsselected,0)),1,0)) -> 0 | DE71: =IF(CO71=0,0,IF(ISERROR(MATCH(CO71,list_featsDATA2_featsselected,0)),1,0)) -> 0 | DF71: =IF(CP71=0,0,IF(ISERROR(MATCH(CP71,list_featsDATA2_featsselected,0)),1,0)) -> 0 | DG71: =IF(CQ71=0,0,IF(ISERROR(MATCH(CQ71,list_featsDATA2_featsselected,0)),1,0)) -> 0 | DH71: =IF(CR71=0,0,IF(ISERROR(VLOOKUP(CR71,table_attributesDATA2_prereqs,3,0)),1,IF(VLOOKUP(CR71,table_attributesDATA2_prereqs,3,0)>=CS71,0,1))) -> 0 | DJ71: =IF(CT71=0,0,IF(ISERROR(VLOOKUP(CT71,table_attributesDATA2_prereqs,3,0)),1,IF(VLOOKUP(CT71,table_attributesDATA2_prereqs,3,0)>=CU71,0,1))) -> 0 | DL71: =IF(CV71=0,0,IF(ISERROR(VLOOKUP(CV71,table_attributesDATA2_prereqs,3,0)),1,IF(VLOOKUP(CV71,table_attributesDATA2_prereqs,3,0)>=CW71,0,1))) -> 0 | DN71: =IF(CX71=0,0,IF(ISERROR(MATCH("*"&CX71&"*",list_attributesDATA_summaryall,0)),1,0)) -> 0 | DO71: =IF(CY71=0,0,IF(ISERROR(MATCH(CY71,list_classesDATA3_classlevel,0)),1,0)) -> 0 | DQ71: TRUE | DR71: =IF(cell_statsDATA_overrideclassalign=TRUE,TRUE,DQ71) -> TRUE | DT71: =IF($A71<=DU$6,VLOOKUP($A71,DU$7:DW$107,3,0),"") ->  | DU71: =IF(DV71=1,SUM(DV$7:DV71),"") ->  | DY71: =IF(ISERROR(MATCH(D71,list_optionsDATA_sources,0)),FALSE,TRUE) -> FALSE | DZ71: =IF(cell_optionsDATA_showclasses=TRUE,TRUE,DR71) -> TRUE | EA71: FALSE | EB71: =IF($A71<=EC$6,VLOOKUP($A71,EC$7:EE$107,3,0),"") ->  | EC71: =IF(ED71=1,SUM(ED$7:ED71),"") ->  | EE71: =IF(EA71=TRUE,B71,"") ->  | EH71: =IF(EI71=1,SUM(EI$7:EI71),"") ->  | EJ71: =IF(AND(C71="Class",DY71=TRUE),B71,"") ->  | EM71: =IF(EN71=1,SUM(EN$7:EN71),"") ->  | EO71: =IF(OR($K71="arcane",$K71="divine"),IF(ISERROR(MATCH($B71,list_classesDATA3_classesselected,0)),"",$B71&" spells"),"") ->  | ER71: =IF(ES71=1,SUM(ES$7:ES71),"") ->  | ET71: =IF($K71="arcane",IF(ISERROR(MATCH($B71,list_classesDATA3_classesselected,0)),"",$B71&" spells"),"") ->  | EW71: =IF(EX71=1,SUM(EX$7:EX71),"") ->  | EY71: =IF($K71="divine",IF(ISERROR(MATCH($B71,list_classesDATA3_classesselected,0)),"",$B71&" spells"),"") ->  | FA71: 65 | FB71: =IF(FA71<=FC$6,VLOOKUP(FA71,FC$7:FE$128,3,0),"") ->  | FC71: =IF(FD71=1,SUM(FD$7:FD71),"") ->  | FG71: =IF(FA71<=FH$6,VLOOKUP(FA71,FH$7:FJ$128,3,0),"") ->  | FH71: =IF(FI71=1,SUM(FI$7:FI71),"") ->  | FK71: 9999999 | FL71: =IF(COUNTIF(FK$29:FK71,FK71)>1,FK71+COUNTIF(FK$29:FK71,FK71)-1,FK71) -> 10000025 | FN71: 10000025 | FO71: 43
A72: 66 | L72: =IF(OR(K72="",K72="select"),"",UPPER(LEFT(K72,1))&"CL"&LOWER(B72)) ->  | BJ72: ="" ->  | CM72: ANY | DB72: 0 | DC72: =IF(CM72=0,0,IF(OR(cell_statsDATA_overrideclassalign=TRUE,Stats!$Q$33=""),0,IF(cell_statsDATA_alignmentshort<>"",(VLOOKUP(Classes_DATA!CM72,table_statsDATA_alignprereq,2,0)-1)*-1,1))) -> 0 | DD72: 0 | DE72: 0 | DF72: 0 | DG72: 0 | DH72: 0 | DJ72: 0 | DL72: 0 | DN72: 0 | DO72: 0 | DQ72: =IF(SUM(DB72:DP72)>0,FALSE,TRUE) -> TRUE | DR72: TRUE | DU72: =IF(DV72=1,SUM(DV$7:DV72),"") ->  | DV72: =IF(DW72="","",IF(COUNTIF(list_classesDATA3_classesselected,DW72)<VLOOKUP(DW72,table_classesDATA_classesall,BW$4,0),1,"")) ->  | DY72: FALSE | DZ72: TRUE | EA72: FALSE | EC72: =IF(ED72=1,SUM(ED$7:ED72),"") ->  | ED72: =IF(EE72="","",1) ->  | EH72: =IF(EI72=1,SUM(EI$7:EI72),"") ->  | EI72: =IF(EJ72="","",1) ->  | EM72: =IF(EN72=1,SUM(EN$7:EN72),"") ->  | EN72: =IF(EO72="","",1) ->  | ER72: =IF(ES72=1,SUM(ES$7:ES72),"") ->  | ES72: =IF(ET72="","",1) ->  | EW72: =IF(EX72=1,SUM(EX$7:EX72),"") ->  | EX72: =IF(EY72="","",1) ->  | FA72: 66 | FC72: =IF(FD72=1,SUM(FD$7:FD72),"") ->  | FD72: =IF(FE72="","",1) ->  | FH72: =IF(FI72=1,SUM(FI$7:FI72),"") ->  | FI72: =IF(FJ72="","",1) ->  | FK72: 9999999 | FL72: =IF(COUNTIF(FK$29:FK72,FK72)>1,FK72+COUNTIF(FK$29:FK72,FK72)-1,FK72) -> 10000026 | FN72: 10000026 | FO72: 44
A73: 67 | BJ73: ="" ->  | CM73: ANY | DB73: 0 | DC73: =IF(CM73=0,0,IF(OR(cell_statsDATA_overrideclassalign=TRUE,Stats!$Q$33=""),0,IF(cell_statsDATA_alignmentshort<>"",(VLOOKUP(Classes_DATA!CM73,table_statsDATA_alignprereq,2,0)-1)*-1,1))) -> 0 | DD73: 0 | DE73: 0 | DF73: 0 | DG73: 0 | DH73: 0 | DJ73: 0 | DL73: 0 | DN73: 0 | DO73: 0 | DQ73: TRUE | DR73: TRUE | DU73: =IF(DV73=1,SUM(DV$7:DV73),"") ->  | DY73: FALSE | DZ73: TRUE | EA73: =IF(AND(DY73=TRUE,DZ73=TRUE),TRUE,FALSE) -> FALSE | EC73: =IF(ED73=1,SUM(ED$7:ED73),"") ->  | EH73: =IF(EI73=1,SUM(EI$7:EI73),"") ->  | EM73: =IF(EN73=1,SUM(EN$7:EN73),"") ->  | ER73: =IF(ES73=1,SUM(ES$7:ES73),"") ->  | EW73: =IF(EX73=1,SUM(EX$7:EX73),"") ->  | FA73: 67 | FC73: =IF(FD73=1,SUM(FD$7:FD73),"") ->  | FH73: =IF(FI73=1,SUM(FI$7:FI73),"") ->  | FK73: 9999999 | FL73: =IF(COUNTIF(FK$29:FK73,FK73)>1,FK73+COUNTIF(FK$29:FK73,FK73)-1,FK73) -> 10000027 | FN73: 10000027 | FO73: 45
A74: 68 | BJ74: ="" ->  | CM74: ANY | DB74: 0 | DC74: =IF(CM74=0,0,IF(OR(cell_statsDATA_overrideclassalign=TRUE,Stats!$Q$33=""),0,IF(cell_statsDATA_alignmentshort<>"",(VLOOKUP(Classes_DATA!CM74,table_statsDATA_alignprereq,2,0)-1)*-1,1))) -> 0 | DD74: 0 | DE74: 0 | DF74: 0 | DG74: 0 | DH74: 0 | DJ74: 0 | DL74: 0 | DN74: 0 | DO74: 0 | DQ74: TRUE | DR74: TRUE | DU74: =IF(DV74=1,SUM(DV$7:DV74),"") ->  | DY74: FALSE | DZ74: TRUE | EA74: FALSE | EC74: =IF(ED74=1,SUM(ED$7:ED74),"") ->  | EH74: =IF(EI74=1,SUM(EI$7:EI74),"") ->  | EM74: =IF(EN74=1,SUM(EN$7:EN74),"") ->  | ER74: =IF(ES74=1,SUM(ES$7:ES74),"") ->  | EW74: =IF(EX74=1,SUM(EX$7:EX74),"") ->  | FA74: 68 | FC74: =IF(FD74=1,SUM(FD$7:FD74),"") ->  | FH74: =IF(FI74=1,SUM(FI$7:FI74),"") ->  | FK74: 9999999 | FL74: =IF(COUNTIF(FK$29:FK74,FK74)>1,FK74+COUNTIF(FK$29:FK74,FK74)-1,FK74) -> 10000028 | FN74: 10000028 | FO74: 46
A75: 69 | BJ75: ="" ->  | CM75: ANY | DB75: 0 | DC75: =IF(CM75=0,0,IF(OR(cell_statsDATA_overrideclassalign=TRUE,Stats!$Q$33=""),0,IF(cell_statsDATA_alignmentshort<>"",(VLOOKUP(Classes_DATA!CM75,table_statsDATA_alignprereq,2,0)-1)*-1,1))) -> 0 | DD75: 0 | DE75: 0 | DF75: 0 | DG75: 0 | DH75: 0 | DJ75: 0 | DL75: 0 | DN75: 0 | DO75: 0 | DQ75: TRUE | DR75: TRUE | DU75: =IF(DV75=1,SUM(DV$7:DV75),"") ->  | DY75: FALSE | DZ75: TRUE | EA75: FALSE | EC75: =IF(ED75=1,SUM(ED$7:ED75),"") ->  | EH75: =IF(EI75=1,SUM(EI$7:EI75),"") ->  | EM75: =IF(EN75=1,SUM(EN$7:EN75),"") ->  | ER75: =IF(ES75=1,SUM(ES$7:ES75),"") ->  | EW75: =IF(EX75=1,SUM(EX$7:EX75),"") ->  | FA75: 69 | FC75: =IF(FD75=1,SUM(FD$7:FD75),"") ->  | FH75: =IF(FI75=1,SUM(FI$7:FI75),"") ->  | FK75: 9999999 | FL75: =IF(COUNTIF(FK$29:FK75,FK75)>1,FK75+COUNTIF(FK$29:FK75,FK75)-1,FK75) -> 10000029 | FN75: 10000029 | FO75: 47
A76: 70 | BJ76: ="" ->  | CM76: ANY | DB76: 0 | DC76: =IF(CM76=0,0,IF(OR(cell_statsDATA_overrideclassalign=TRUE,Stats!$Q$33=""),0,IF(cell_statsDATA_alignmentshort<>"",(VLOOKUP(Classes_DATA!CM76,table_statsDATA_alignprereq,2,0)-1)*-1,1))) -> 0 | DD76: 0 | DE76: 0 | DF76: 0 | DG76: 0 | DH76: 0 | DJ76: 0 | DL76: 0 | DN76: 0 | DO76: 0 | DQ76: TRUE | DR76: TRUE | DU76: =IF(DV76=1,SUM(DV$7:DV76),"") ->  | DY76: FALSE | DZ76: TRUE | EA76: FALSE | EC76: =IF(ED76=1,SUM(ED$7:ED76),"") ->  | EH76: =IF(EI76=1,SUM(EI$7:EI76),"") ->  | EM76: =IF(EN76=1,SUM(EN$7:EN76),"") ->  | ER76: =IF(ES76=1,SUM(ES$7:ES76),"") ->  | EW76: =IF(EX76=1,SUM(EX$7:EX76),"") ->  | FA76: 70 | FC76: =IF(FD76=1,SUM(FD$7:FD76),"") ->  | FH76: =IF(FI76=1,SUM(FI$7:FI76),"") ->  | FK76: 9999999 | FL76: =IF(COUNTIF(FK$29:FK76,FK76)>1,FK76+COUNTIF(FK$29:FK76,FK76)-1,FK76) -> 10000030 | FN76: 10000030 | FO76: 48
A77: 71 | BJ77: ="" ->  | CM77: ANY | DB77: 0 | DC77: =IF(CM77=0,0,IF(OR(cell_statsDATA_overrideclassalign=TRUE,Stats!$Q$33=""),0,IF(cell_statsDATA_alignmentshort<>"",(VLOOKUP(Classes_DATA!CM77,table_statsDATA_alignprereq,2,0)-1)*-1,1))) -> 0 | DD77: 0 | DE77: 0 | DF77: 0 | DG77: 0 | DH77: 0 | DJ77: 0 | DL77: 0 | DN77: 0 | DO77: 0 | DQ77: TRUE | DR77: TRUE | DU77: =IF(DV77=1,SUM(DV$7:DV77),"") ->  | DY77: FALSE | DZ77: TRUE | EA77: FALSE | EC77: =IF(ED77=1,SUM(ED$7:ED77),"") ->  | EH77: =IF(EI77=1,SUM(EI$7:EI77),"") ->  | EM77: =IF(EN77=1,SUM(EN$7:EN77),"") ->  | ER77: =IF(ES77=1,SUM(ES$7:ES77),"") ->  | EW77: =IF(EX77=1,SUM(EX$7:EX77),"") ->  | FA77: 71 | FC77: =IF(FD77=1,SUM(FD$7:FD77),"") ->  | FH77: =IF(FI77=1,SUM(FI$7:FI77),"") ->  | FK77: 9999999 | FL77: =IF(COUNTIF(FK$29:FK77,FK77)>1,FK77+COUNTIF(FK$29:FK77,FK77)-1,FK77) -> 10000031 | FN77: 10000031 | FO77: 49
A78: 72 | BJ78: ="" ->  | CM78: ANY | DB78: 0 | DC78: =IF(CM78=0,0,IF(OR(cell_statsDATA_overrideclassalign=TRUE,Stats!$Q$33=""),0,IF(cell_statsDATA_alignmentshort<>"",(VLOOKUP(Classes_DATA!CM78,table_statsDATA_alignprereq,2,0)-1)*-1,1))) -> 0 | DD78: 0 | DE78: 0 | DF78: 0 | DG78: 0 | DH78: 0 | DJ78: 0 | DL78: 0 | DN78: 0 | DO78: 0 | DQ78: TRUE | DR78: TRUE | DU78: =IF(DV78=1,SUM(DV$7:DV78),"") ->  | DY78: FALSE | DZ78: TRUE | EA78: FALSE | EC78: =IF(ED78=1,SUM(ED$7:ED78),"") ->  | EH78: =IF(EI78=1,SUM(EI$7:EI78),"") ->  | EM78: =IF(EN78=1,SUM(EN$7:EN78),"") ->  | ER78: =IF(ES78=1,SUM(ES$7:ES78),"") ->  | EW78: =IF(EX78=1,SUM(EX$7:EX78),"") ->  | FA78: 72 | FC78: =IF(FD78=1,SUM(FD$7:FD78),"") ->  | FH78: =IF(FI78=1,SUM(FI$7:FI78),"") ->  | FK78: 9999999 | FL78: =IF(COUNTIF(FK$29:FK78,FK78)>1,FK78+COUNTIF(FK$29:FK78,FK78)-1,FK78) -> 10000032 | FN78: 10000032 | FO78: 50
A79: 73 | BJ79: ="" ->  | CM79: ANY | DB79: 0 | DC79: =IF(CM79=0,0,IF(OR(cell_statsDATA_overrideclassalign=TRUE,Stats!$Q$33=""),0,IF(cell_statsDATA_alignmentshort<>"",(VLOOKUP(Classes_DATA!CM79,table_statsDATA_alignprereq,2,0)-1)*-1,1))) -> 0 | DD79: 0 | DE79: 0 | DF79: 0 | DG79: 0 | DH79: 0 | DJ79: 0 | DL79: 0 | DN79: 0 | DO79: 0 | DQ79: TRUE | DR79: TRUE | DU79: =IF(DV79=1,SUM(DV$7:DV79),"") ->  | DY79: FALSE | DZ79: TRUE | EA79: FALSE | EC79: =IF(ED79=1,SUM(ED$7:ED79),"") ->  | EH79: =IF(EI79=1,SUM(EI$7:EI79),"") ->  | EM79: =IF(EN79=1,SUM(EN$7:EN79),"") ->  | ER79: =IF(ES79=1,SUM(ES$7:ES79),"") ->  | EW79: =IF(EX79=1,SUM(EX$7:EX79),"") ->  | FA79: 73 | FC79: =IF(FD79=1,SUM(FD$7:FD79),"") ->  | FH79: =IF(FI79=1,SUM(FI$7:FI79),"") ->  | FK79: 9999999 | FL79: =IF(COUNTIF(FK$29:FK79,FK79)>1,FK79+COUNTIF(FK$29:FK79,FK79)-1,FK79) -> 10000033 | FN79: 10000033 | FO79: 51
A80: 74 | BJ80: ="" ->  | CM80: ANY | DB80: 0 | DC80: =IF(CM80=0,0,IF(OR(cell_statsDATA_overrideclassalign=TRUE,Stats!$Q$33=""),0,IF(cell_statsDATA_alignmentshort<>"",(VLOOKUP(Classes_DATA!CM80,table_statsDATA_alignprereq,2,0)-1)*-1,1))) -> 0 | DD80: 0 | DE80: 0 | DF80: 0 | DG80: 0 | DH80: 0 | DJ80: 0 | DL80: 0 | DN80: 0 | DO80: 0 | DQ80: TRUE | DR80: TRUE | DU80: =IF(DV80=1,SUM(DV$7:DV80),"") ->  | DY80: FALSE | DZ80: TRUE | EA80: FALSE | EC80: =IF(ED80=1,SUM(ED$7:ED80),"") ->  | EH80: =IF(EI80=1,SUM(EI$7:EI80),"") ->  | EM80: =IF(EN80=1,SUM(EN$7:EN80),"") ->  | ER80: =IF(ES80=1,SUM(ES$7:ES80),"") ->  | EW80: =IF(EX80=1,SUM(EX$7:EX80),"") ->  | FA80: 74 | FC80: =IF(FD80=1,SUM(FD$7:FD80),"") ->  | FH80: =IF(FI80=1,SUM(FI$7:FI80),"") ->  | FK80: 9999999 | FL80: =IF(COUNTIF(FK$29:FK80,FK80)>1,FK80+COUNTIF(FK$29:FK80,FK80)-1,FK80) -> 10000034 | FN80: 10000034 | FO80: 52
A81: 75 | BJ81: ="" ->  | CM81: ANY | DB81: 0 | DC81: =IF(CM81=0,0,IF(OR(cell_statsDATA_overrideclassalign=TRUE,Stats!$Q$33=""),0,IF(cell_statsDATA_alignmentshort<>"",(VLOOKUP(Classes_DATA!CM81,table_statsDATA_alignprereq,2,0)-1)*-1,1))) -> 0 | DD81: 0 | DE81: 0 | DF81: 0 | DG81: 0 | DH81: 0 | DJ81: 0 | DL81: 0 | DN81: 0 | DO81: 0 | DQ81: TRUE | DR81: TRUE | DU81: =IF(DV81=1,SUM(DV$7:DV81),"") ->  | DY81: FALSE | DZ81: TRUE | EA81: FALSE | EC81: =IF(ED81=1,SUM(ED$7:ED81),"") ->  | EH81: =IF(EI81=1,SUM(EI$7:EI81),"") ->  | EM81: =IF(EN81=1,SUM(EN$7:EN81),"") ->  | ER81: =IF(ES81=1,SUM(ES$7:ES81),"") ->  | EW81: =IF(EX81=1,SUM(EX$7:EX81),"") ->  | FA81: 75 | FC81: =IF(FD81=1,SUM(FD$7:FD81),"") ->  | FH81: =IF(FI81=1,SUM(FI$7:FI81),"") ->  | FK81: 9999999 | FL81: =IF(COUNTIF(FK$29:FK81,FK81)>1,FK81+COUNTIF(FK$29:FK81,FK81)-1,FK81) -> 10000035 | FN81: 10000035 | FO81: 53
A82: 76 | BJ82: ="" ->  | CM82: ANY | DB82: 0 | DC82: =IF(CM82=0,0,IF(OR(cell_statsDATA_overrideclassalign=TRUE,Stats!$Q$33=""),0,IF(cell_statsDATA_alignmentshort<>"",(VLOOKUP(Classes_DATA!CM82,table_statsDATA_alignprereq,2,0)-1)*-1,1))) -> 0 | DD82: 0 | DE82: 0 | DF82: 0 | DG82: 0 | DH82: 0 | DJ82: 0 | DL82: 0 | DN82: 0 | DO82: 0 | DQ82: TRUE | DR82: TRUE | DU82: =IF(DV82=1,SUM(DV$7:DV82),"") ->  | DY82: FALSE | DZ82: TRUE | EA82: FALSE | EC82: =IF(ED82=1,SUM(ED$7:ED82),"") ->  | EH82: =IF(EI82=1,SUM(EI$7:EI82),"") ->  | EM82: =IF(EN82=1,SUM(EN$7:EN82),"") ->  | ER82: =IF(ES82=1,SUM(ES$7:ES82),"") ->  | EW82: =IF(EX82=1,SUM(EX$7:EX82),"") ->  | FA82: 76 | FC82: =IF(FD82=1,SUM(FD$7:FD82),"") ->  | FH82: =IF(FI82=1,SUM(FI$7:FI82),"") ->  | FK82: 9999999 | FL82: =IF(COUNTIF(FK$29:FK82,FK82)>1,FK82+COUNTIF(FK$29:FK82,FK82)-1,FK82) -> 10000036 | FN82: 10000036 | FO82: 54
A83: 77 | BJ83: ="" ->  | CM83: ANY | DB83: 0 | DC83: =IF(CM83=0,0,IF(OR(cell_statsDATA_overrideclassalign=TRUE,Stats!$Q$33=""),0,IF(cell_statsDATA_alignmentshort<>"",(VLOOKUP(Classes_DATA!CM83,table_statsDATA_alignprereq,2,0)-1)*-1,1))) -> 0 | DD83: 0 | DE83: 0 | DF83: 0 | DG83: 0 | DH83: 0 | DJ83: 0 | DL83: 0 | DN83: 0 | DO83: 0 | DQ83: TRUE | DR83: TRUE | DU83: =IF(DV83=1,SUM(DV$7:DV83),"") ->  | DW83: =IF(EB83="","",EB83) ->  | DY83: FALSE | DZ83: TRUE | EA83: FALSE | EC83: =IF(ED83=1,SUM(ED$7:ED83),"") ->  | EH83: =IF(EI83=1,SUM(EI$7:EI83),"") ->  | EM83: =IF(EN83=1,SUM(EN$7:EN83),"") ->  | ER83: =IF(ES83=1,SUM(ES$7:ES83),"") ->  | EW83: =IF(EX83=1,SUM(EX$7:EX83),"") ->  | FA83: 77 | FC83: =IF(FD83=1,SUM(FD$7:FD83),"") ->  | FH83: =IF(FI83=1,SUM(FI$7:FI83),"") ->  | FK83: 9999999 | FL83: =IF(COUNTIF(FK$29:FK83,FK83)>1,FK83+COUNTIF(FK$29:FK83,FK83)-1,FK83) -> 10000037 | FN83: 10000037 | FO83: 55
A84: 78 | BJ84: ="" ->  | CM84: ANY | DB84: 0 | DC84: =IF(CM84=0,0,IF(OR(cell_statsDATA_overrideclassalign=TRUE,Stats!$Q$33=""),0,IF(cell_statsDATA_alignmentshort<>"",(VLOOKUP(Classes_DATA!CM84,table_statsDATA_alignprereq,2,0)-1)*-1,1))) -> 0 | DD84: 0 | DE84: 0 | DF84: 0 | DG84: 0 | DH84: 0 | DJ84: 0 | DL84: 0 | DN84: 0 | DO84: 0 | DQ84: TRUE | DR84: TRUE | DU84: =IF(DV84=1,SUM(DV$7:DV84),"") ->  | DY84: FALSE | DZ84: TRUE | EA84: FALSE | EC84: =IF(ED84=1,SUM(ED$7:ED84),"") ->  | EH84: =IF(EI84=1,SUM(EI$7:EI84),"") ->  | EM84: =IF(EN84=1,SUM(EN$7:EN84),"") ->  | ER84: =IF(ES84=1,SUM(ES$7:ES84),"") ->  | EW84: =IF(EX84=1,SUM(EX$7:EX84),"") ->  | FA84: 78 | FC84: =IF(FD84=1,SUM(FD$7:FD84),"") ->  | FH84: =IF(FI84=1,SUM(FI$7:FI84),"") ->  | FK84: 9999999 | FL84: =IF(COUNTIF(FK$29:FK84,FK84)>1,FK84+COUNTIF(FK$29:FK84,FK84)-1,FK84) -> 10000038 | FN84: 10000038 | FO84: 56
A85: 79 | BJ85: ="" ->  | CM85: ANY | DB85: 0 | DC85: =IF(CM85=0,0,IF(OR(cell_statsDATA_overrideclassalign=TRUE,Stats!$Q$33=""),0,IF(cell_statsDATA_alignmentshort<>"",(VLOOKUP(Classes_DATA!CM85,table_statsDATA_alignprereq,2,0)-1)*-1,1))) -> 0 | DD85: 0 | DE85: 0 | DF85: 0 | DG85: 0 | DH85: 0 | DJ85: 0 | DL85: 0 | DN85: 0 | DO85: 0 | DQ85: TRUE | DR85: TRUE | DU85: =IF(DV85=1,SUM(DV$7:DV85),"") ->  | DY85: FALSE | DZ85: TRUE | EA85: FALSE | EC85: =IF(ED85=1,SUM(ED$7:ED85),"") ->  | EH85: =IF(EI85=1,SUM(EI$7:EI85),"") ->  | EM85: =IF(EN85=1,SUM(EN$7:EN85),"") ->  | ER85: =IF(ES85=1,SUM(ES$7:ES85),"") ->  | EW85: =IF(EX85=1,SUM(EX$7:EX85),"") ->  | FA85: 79 | FC85: =IF(FD85=1,SUM(FD$7:FD85),"") ->  | FH85: =IF(FI85=1,SUM(FI$7:FI85),"") ->  | FK85: 9999999 | FL85: =IF(COUNTIF(FK$29:FK85,FK85)>1,FK85+COUNTIF(FK$29:FK85,FK85)-1,FK85) -> 10000039 | FN85: 10000039 | FO85: 57
A86: 80 | BJ86: ="" ->  | CM86: ANY | DB86: 0 | DC86: =IF(CM86=0,0,IF(OR(cell_statsDATA_overrideclassalign=TRUE,Stats!$Q$33=""),0,IF(cell_statsDATA_alignmentshort<>"",(VLOOKUP(Classes_DATA!CM86,table_statsDATA_alignprereq,2,0)-1)*-1,1))) -> 0 | DD86: 0 | DE86: 0 | DF86: 0 | DG86: 0 | DH86: 0 | DJ86: 0 | DL86: 0 | DN86: 0 | DO86: 0 | DQ86: TRUE | DR86: TRUE | DU86: =IF(DV86=1,SUM(DV$7:DV86),"") ->  | DY86: FALSE | DZ86: TRUE | EA86: FALSE | EC86: =IF(ED86=1,SUM(ED$7:ED86),"") ->  | EH86: =IF(EI86=1,SUM(EI$7:EI86),"") ->  | EM86: =IF(EN86=1,SUM(EN$7:EN86),"") ->  | ER86: =IF(ES86=1,SUM(ES$7:ES86),"") ->  | EW86: =IF(EX86=1,SUM(EX$7:EX86),"") ->  | FA86: 80 | FC86: =IF(FD86=1,SUM(FD$7:FD86),"") ->  | FH86: =IF(FI86=1,SUM(FI$7:FI86),"") ->  | FK86: 9999999 | FL86: =IF(COUNTIF(FK$29:FK86,FK86)>1,FK86+COUNTIF(FK$29:FK86,FK86)-1,FK86) -> 10000040 | FN86: 10000040 | FO86: 58
A87: 81 | BJ87: ="" ->  | CM87: ANY | DB87: 0 | DC87: =IF(CM87=0,0,IF(OR(cell_statsDATA_overrideclassalign=TRUE,Stats!$Q$33=""),0,IF(cell_statsDATA_alignmentshort<>"",(VLOOKUP(Classes_DATA!CM87,table_statsDATA_alignprereq,2,0)-1)*-1,1))) -> 0 | DD87: 0 | DE87: 0 | DF87: 0 | DG87: 0 | DH87: 0 | DJ87: 0 | DL87: 0 | DN87: 0 | DO87: 0 | DQ87: TRUE | DR87: TRUE | DU87: =IF(DV87=1,SUM(DV$7:DV87),"") ->  | DY87: FALSE | DZ87: TRUE | EA87: FALSE | EC87: =IF(ED87=1,SUM(ED$7:ED87),"") ->  | EH87: =IF(EI87=1,SUM(EI$7:EI87),"") ->  | EM87: =IF(EN87=1,SUM(EN$7:EN87),"") ->  | ER87: =IF(ES87=1,SUM(ES$7:ES87),"") ->  | EW87: =IF(EX87=1,SUM(EX$7:EX87),"") ->  | FA87: 81 | FC87: =IF(FD87=1,SUM(FD$7:FD87),"") ->  | FH87: =IF(FI87=1,SUM(FI$7:FI87),"") ->  | FK87: 9999999 | FL87: =IF(COUNTIF(FK$29:FK87,FK87)>1,FK87+COUNTIF(FK$29:FK87,FK87)-1,FK87) -> 10000041 | FN87: 10000041 | FO87: 59
A88: 82 | BJ88: ="" ->  | CM88: ANY | DB88: 0 | DC88: =IF(CM88=0,0,IF(OR(cell_statsDATA_overrideclassalign=TRUE,Stats!$Q$33=""),0,IF(cell_statsDATA_alignmentshort<>"",(VLOOKUP(Classes_DATA!CM88,table_statsDATA_alignprereq,2,0)-1)*-1,1))) -> 0 | DD88: 0 | DE88: 0 | DF88: 0 | DG88: 0 | DH88: 0 | DJ88: 0 | DL88: 0 | DN88: 0 | DO88: 0 | DQ88: TRUE | DR88: TRUE | DU88: =IF(DV88=1,SUM(DV$7:DV88),"") ->  | DY88: FALSE | DZ88: TRUE | EA88: FALSE | EC88: =IF(ED88=1,SUM(ED$7:ED88),"") ->  | EH88: =IF(EI88=1,SUM(EI$7:EI88),"") ->  | EM88: =IF(EN88=1,SUM(EN$7:EN88),"") ->  | ER88: =IF(ES88=1,SUM(ES$7:ES88),"") ->  | EW88: =IF(EX88=1,SUM(EX$7:EX88),"") ->  | FA88: 82 | FC88: =IF(FD88=1,SUM(FD$7:FD88),"") ->  | FH88: =IF(FI88=1,SUM(FI$7:FI88),"") ->  | FK88: 9999999 | FL88: =IF(COUNTIF(FK$29:FK88,FK88)>1,FK88+COUNTIF(FK$29:FK88,FK88)-1,FK88) -> 10000042 | FN88: 10000042 | FO88: 60
A89: 83 | BJ89: ="" ->  | CM89: ANY | DB89: 0 | DC89: =IF(CM89=0,0,IF(OR(cell_statsDATA_overrideclassalign=TRUE,Stats!$Q$33=""),0,IF(cell_statsDATA_alignmentshort<>"",(VLOOKUP(Classes_DATA!CM89,table_statsDATA_alignprereq,2,0)-1)*-1,1))) -> 0 | DD89: 0 | DE89: 0 | DF89: 0 | DG89: 0 | DH89: 0 | DJ89: 0 | DL89: 0 | DN89: 0 | DO89: 0 | DQ89: TRUE | DR89: TRUE | DU89: =IF(DV89=1,SUM(DV$7:DV89),"") ->  | DY89: FALSE | DZ89: TRUE | EA89: FALSE | EC89: =IF(ED89=1,SUM(ED$7:ED89),"") ->  | EH89: =IF(EI89=1,SUM(EI$7:EI89),"") ->  | EM89: =IF(EN89=1,SUM(EN$7:EN89),"") ->  | ER89: =IF(ES89=1,SUM(ES$7:ES89),"") ->  | EW89: =IF(EX89=1,SUM(EX$7:EX89),"") ->  | FA89: 83 | FC89: =IF(FD89=1,SUM(FD$7:FD89),"") ->  | FH89: =IF(FI89=1,SUM(FI$7:FI89),"") ->  | FK89: 9999999 | FL89: =IF(COUNTIF(FK$29:FK89,FK89)>1,FK89+COUNTIF(FK$29:FK89,FK89)-1,FK89) -> 10000043 | FN89: 10000043 | FO89: 61
A90: 84 | BJ90: ="" ->  | CM90: ANY | DB90: 0 | DC90: =IF(CM90=0,0,IF(OR(cell_statsDATA_overrideclassalign=TRUE,Stats!$Q$33=""),0,IF(cell_statsDATA_alignmentshort<>"",(VLOOKUP(Classes_DATA!CM90,table_statsDATA_alignprereq,2,0)-1)*-1,1))) -> 0 | DD90: 0 | DE90: 0 | DF90: 0 | DG90: 0 | DH90: 0 | DJ90: 0 | DL90: 0 | DN90: 0 | DO90: 0 | DQ90: TRUE | DR90: TRUE | DU90: =IF(DV90=1,SUM(DV$7:DV90),"") ->  | DY90: FALSE | DZ90: TRUE | EA90: FALSE | EC90: =IF(ED90=1,SUM(ED$7:ED90),"") ->  | EH90: =IF(EI90=1,SUM(EI$7:EI90),"") ->  | EM90: =IF(EN90=1,SUM(EN$7:EN90),"") ->  | ER90: =IF(ES90=1,SUM(ES$7:ES90),"") ->  | EW90: =IF(EX90=1,SUM(EX$7:EX90),"") ->  | FA90: 84 | FC90: =IF(FD90=1,SUM(FD$7:FD90),"") ->  | FH90: =IF(FI90=1,SUM(FI$7:FI90),"") ->  | FK90: 9999999 | FL90: =IF(COUNTIF(FK$29:FK90,FK90)>1,FK90+COUNTIF(FK$29:FK90,FK90)-1,FK90) -> 10000044 | FN90: 10000044 | FO90: 62
A91: 85 | BJ91: ="" ->  | CM91: ANY | DB91: 0 | DC91: =IF(CM91=0,0,IF(OR(cell_statsDATA_overrideclassalign=TRUE,Stats!$Q$33=""),0,IF(cell_statsDATA_alignmentshort<>"",(VLOOKUP(Classes_DATA!CM91,table_statsDATA_alignprereq,2,0)-1)*-1,1))) -> 0 | DD91: 0 | DE91: 0 | DF91: 0 | DG91: 0 | DH91: 0 | DJ91: 0 | DL91: 0 | DN91: 0 | DO91: 0 | DQ91: TRUE | DR91: TRUE | DU91: =IF(DV91=1,SUM(DV$7:DV91),"") ->  | DY91: FALSE | DZ91: TRUE | EA91: FALSE | EC91: =IF(ED91=1,SUM(ED$7:ED91),"") ->  | EH91: =IF(EI91=1,SUM(EI$7:EI91),"") ->  | EM91: =IF(EN91=1,SUM(EN$7:EN91),"") ->  | ER91: =IF(ES91=1,SUM(ES$7:ES91),"") ->  | EW91: =IF(EX91=1,SUM(EX$7:EX91),"") ->  | FA91: 85 | FC91: =IF(FD91=1,SUM(FD$7:FD91),"") ->  | FH91: =IF(FI91=1,SUM(FI$7:FI91),"") ->  | FK91: 9999999 | FL91: =IF(COUNTIF(FK$29:FK91,FK91)>1,FK91+COUNTIF(FK$29:FK91,FK91)-1,FK91) -> 10000045 | FN91: 10000045 | FO91: 63
A92: 86 | BJ92: ="" ->  | CM92: ANY | DB92: 0 | DC92: =IF(CM92=0,0,IF(OR(cell_statsDATA_overrideclassalign=TRUE,Stats!$Q$33=""),0,IF(cell_statsDATA_alignmentshort<>"",(VLOOKUP(Classes_DATA!CM92,table_statsDATA_alignprereq,2,0)-1)*-1,1))) -> 0 | DD92: 0 | DE92: 0 | DF92: 0 | DG92: 0 | DH92: 0 | DJ92: 0 | DL92: 0 | DN92: 0 | DO92: 0 | DQ92: TRUE | DR92: TRUE | DU92: =IF(DV92=1,SUM(DV$7:DV92),"") ->  | DY92: FALSE | DZ92: TRUE | EA92: FALSE | EC92: =IF(ED92=1,SUM(ED$7:ED92),"") ->  | EH92: =IF(EI92=1,SUM(EI$7:EI92),"") ->  | EM92: =IF(EN92=1,SUM(EN$7:EN92),"") ->  | ER92: =IF(ES92=1,SUM(ES$7:ES92),"") ->  | EW92: =IF(EX92=1,SUM(EX$7:EX92),"") ->  | FA92: 86 | FC92: =IF(FD92=1,SUM(FD$7:FD92),"") ->  | FH92: =IF(FI92=1,SUM(FI$7:FI92),"") ->  | FK92: 9999999 | FL92: =IF(COUNTIF(FK$29:FK92,FK92)>1,FK92+COUNTIF(FK$29:FK92,FK92)-1,FK92) -> 10000046 | FN92: 10000046 | FO92: 64
A93: 87 | BJ93: ="" ->  | CM93: ANY | DB93: 0 | DC93: =IF(CM93=0,0,IF(OR(cell_statsDATA_overrideclassalign=TRUE,Stats!$Q$33=""),0,IF(cell_statsDATA_alignmentshort<>"",(VLOOKUP(Classes_DATA!CM93,table_statsDATA_alignprereq,2,0)-1)*-1,1))) -> 0 | DD93: 0 | DE93: 0 | DF93: 0 | DG93: 0 | DH93: 0 | DJ93: 0 | DL93: 0 | DN93: 0 | DO93: 0 | DQ93: TRUE | DR93: TRUE | DU93: =IF(DV93=1,SUM(DV$7:DV93),"") ->  | DY93: FALSE | DZ93: TRUE | EA93: FALSE | EC93: =IF(ED93=1,SUM(ED$7:ED93),"") ->  | EH93: =IF(EI93=1,SUM(EI$7:EI93),"") ->  | EM93: =IF(EN93=1,SUM(EN$7:EN93),"") ->  | ER93: =IF(ES93=1,SUM(ES$7:ES93),"") ->  | EW93: =IF(EX93=1,SUM(EX$7:EX93),"") ->  | FA93: 87 | FC93: =IF(FD93=1,SUM(FD$7:FD93),"") ->  | FE93: =EE72 ->  | FH93: =IF(FI93=1,SUM(FI$7:FI93),"") ->  | FK93: 9999999 | FL93: =IF(COUNTIF(FK$29:FK93,FK93)>1,FK93+COUNTIF(FK$29:FK93,FK93)-1,FK93) -> 10000047 | FN93: 10000047 | FO93: 65
A94: 88 | BJ94: ="" ->  | CM94: ANY | DB94: 0 | DC94: =IF(CM94=0,0,IF(OR(cell_statsDATA_overrideclassalign=TRUE,Stats!$Q$33=""),0,IF(cell_statsDATA_alignmentshort<>"",(VLOOKUP(Classes_DATA!CM94,table_statsDATA_alignprereq,2,0)-1)*-1,1))) -> 0 | DD94: 0 | DE94: 0 | DF94: 0 | DG94: 0 | DH94: 0 | DJ94: 0 | DL94: 0 | DN94: 0 | DO94: 0 | DQ94: TRUE | DR94: TRUE | DU94: =IF(DV94=1,SUM(DV$7:DV94),"") ->  | DY94: FALSE | DZ94: TRUE | EA94: FALSE | EC94: =IF(ED94=1,SUM(ED$7:ED94),"") ->  | EH94: =IF(EI94=1,SUM(EI$7:EI94),"") ->  | EM94: =IF(EN94=1,SUM(EN$7:EN94),"") ->  | ER94: =IF(ES94=1,SUM(ES$7:ES94),"") ->  | EW94: =IF(EX94=1,SUM(EX$7:EX94),"") ->  | FA94: 88 | FC94: =IF(FD94=1,SUM(FD$7:FD94),"") ->  | FH94: =IF(FI94=1,SUM(FI$7:FI94),"") ->  | FJ94: =IF(FN94>9999998,"",VLOOKUP(FN94,$FL$29:$FM$128,2,0)) ->  | FK94: =IF(OR(FE94="",MID(FE94,1,2)="=="),9999999,256^2*CODE(MID(FE94,1,1))+256*CODE(MID(FE94,2,1))+CODE(MID(FE94,3,1))) -> 9999999 | FL94: =IF(COUNTIF(FK$29:FK94,FK94)>1,FK94+COUNTIF(FK$29:FK94,FK94)-1,FK94) -> 10000048 | FM94: =FE94 ->  | FN94: =SMALL(FL$29:FL$128,FO94) -> 10000048 | FO94: 66
A95: 89 | BJ95: ="" ->  | CM95: ANY | DB95: 0 | DC95: =IF(CM95=0,0,IF(OR(cell_statsDATA_overrideclassalign=TRUE,Stats!$Q$33=""),0,IF(cell_statsDATA_alignmentshort<>"",(VLOOKUP(Classes_DATA!CM95,table_statsDATA_alignprereq,2,0)-1)*-1,1))) -> 0 | DD95: 0 | DE95: 0 | DF95: 0 | DG95: 0 | DH95: 0 | DJ95: 0 | DL95: 0 | DN95: 0 | DO95: 0 | DQ95: TRUE | DR95: TRUE | DU95: =IF(DV95=1,SUM(DV$7:DV95),"") ->  | DY95: FALSE | DZ95: TRUE | EA95: FALSE | EC95: =IF(ED95=1,SUM(ED$7:ED95),"") ->  | EH95: =IF(EI95=1,SUM(EI$7:EI95),"") ->  | EM95: =IF(EN95=1,SUM(EN$7:EN95),"") ->  | ER95: =IF(ES95=1,SUM(ES$7:ES95),"") ->  | EW95: =IF(EX95=1,SUM(EX$7:EX95),"") ->  | FA95: 89 | FC95: =IF(FD95=1,SUM(FD$7:FD95),"") ->  | FH95: =IF(FI95=1,SUM(FI$7:FI95),"") ->  | FK95: 9999999 | FL95: =IF(COUNTIF(FK$29:FK95,FK95)>1,FK95+COUNTIF(FK$29:FK95,FK95)-1,FK95) -> 10000049 | FN95: 10000049 | FO95: 67
A96: 90 | BJ96: ="" ->  | CM96: ANY | DB96: 0 | DC96: =IF(CM96=0,0,IF(OR(cell_statsDATA_overrideclassalign=TRUE,Stats!$Q$33=""),0,IF(cell_statsDATA_alignmentshort<>"",(VLOOKUP(Classes_DATA!CM96,table_statsDATA_alignprereq,2,0)-1)*-1,1))) -> 0 | DD96: 0 | DE96: 0 | DF96: 0 | DG96: 0 | DH96: 0 | DJ96: 0 | DL96: 0 | DN96: 0 | DO96: 0 | DQ96: TRUE | DR96: TRUE | DU96: =IF(DV96=1,SUM(DV$7:DV96),"") ->  | DY96: FALSE | DZ96: TRUE | EA96: FALSE | EC96: =IF(ED96=1,SUM(ED$7:ED96),"") ->  | EH96: =IF(EI96=1,SUM(EI$7:EI96),"") ->  | EM96: =IF(EN96=1,SUM(EN$7:EN96),"") ->  | ER96: =IF(ES96=1,SUM(ES$7:ES96),"") ->  | EW96: =IF(EX96=1,SUM(EX$7:EX96),"") ->  | FA96: 90 | FC96: =IF(FD96=1,SUM(FD$7:FD96),"") ->  | FH96: =IF(FI96=1,SUM(FI$7:FI96),"") ->  | FK96: 9999999 | FL96: =IF(COUNTIF(FK$29:FK96,FK96)>1,FK96+COUNTIF(FK$29:FK96,FK96)-1,FK96) -> 10000050 | FN96: 10000050 | FO96: 68
A97: 91 | BJ97: ="" ->  | CM97: ANY | DB97: 0 | DC97: =IF(CM97=0,0,IF(OR(cell_statsDATA_overrideclassalign=TRUE,Stats!$Q$33=""),0,IF(cell_statsDATA_alignmentshort<>"",(VLOOKUP(Classes_DATA!CM97,table_statsDATA_alignprereq,2,0)-1)*-1,1))) -> 0 | DD97: 0 | DE97: 0 | DF97: 0 | DG97: 0 | DH97: 0 | DJ97: 0 | DL97: 0 | DN97: 0 | DO97: 0 | DQ97: TRUE | DR97: TRUE | DU97: =IF(DV97=1,SUM(DV$7:DV97),"") ->  | DY97: FALSE | DZ97: TRUE | EA97: FALSE | EC97: =IF(ED97=1,SUM(ED$7:ED97),"") ->  | EH97: =IF(EI97=1,SUM(EI$7:EI97),"") ->  | EM97: =IF(EN97=1,SUM(EN$7:EN97),"") ->  | ER97: =IF(ES97=1,SUM(ES$7:ES97),"") ->  | EW97: =IF(EX97=1,SUM(EX$7:EX97),"") ->  | FA97: 91 | FC97: =IF(FD97=1,SUM(FD$7:FD97),"") ->  | FH97: =IF(FI97=1,SUM(FI$7:FI97),"") ->  | FK97: 9999999 | FL97: =IF(COUNTIF(FK$29:FK97,FK97)>1,FK97+COUNTIF(FK$29:FK97,FK97)-1,FK97) -> 10000051 | FN97: 10000051 | FO97: 69
A98: 92 | BJ98: ="" ->  | CM98: ANY | DB98: 0 | DC98: =IF(CM98=0,0,IF(OR(cell_statsDATA_overrideclassalign=TRUE,Stats!$Q$33=""),0,IF(cell_statsDATA_alignmentshort<>"",(VLOOKUP(Classes_DATA!CM98,table_statsDATA_alignprereq,2,0)-1)*-1,1))) -> 0 | DD98: 0 | DE98: 0 | DF98: 0 | DG98: 0 | DH98: 0 | DJ98: 0 | DL98: 0 | DN98: 0 | DO98: 0 | DQ98: TRUE | DR98: TRUE | DU98: =IF(DV98=1,SUM(DV$7:DV98),"") ->  | DY98: FALSE | DZ98: TRUE | EA98: FALSE | EC98: =IF(ED98=1,SUM(ED$7:ED98),"") ->  | EH98: =IF(EI98=1,SUM(EI$7:EI98),"") ->  | EM98: =IF(EN98=1,SUM(EN$7:EN98),"") ->  | ER98: =IF(ES98=1,SUM(ES$7:ES98),"") ->  | EW98: =IF(EX98=1,SUM(EX$7:EX98),"") ->  | FA98: 92 | FC98: =IF(FD98=1,SUM(FD$7:FD98),"") ->  | FH98: =IF(FI98=1,SUM(FI$7:FI98),"") ->  | FK98: 9999999 | FL98: =IF(COUNTIF(FK$29:FK98,FK98)>1,FK98+COUNTIF(FK$29:FK98,FK98)-1,FK98) -> 10000052 | FN98: 10000052 | FO98: 70
A99: 93 | BJ99: ="" ->  | CM99: ANY | DB99: 0 | DC99: =IF(CM99=0,0,IF(OR(cell_statsDATA_overrideclassalign=TRUE,Stats!$Q$33=""),0,IF(cell_statsDATA_alignmentshort<>"",(VLOOKUP(Classes_DATA!CM99,table_statsDATA_alignprereq,2,0)-1)*-1,1))) -> 0 | DD99: 0 | DE99: 0 | DF99: 0 | DG99: 0 | DH99: 0 | DJ99: 0 | DL99: 0 | DN99: 0 | DO99: 0 | DQ99: TRUE | DR99: TRUE | DU99: =IF(DV99=1,SUM(DV$7:DV99),"") ->  | DY99: FALSE | DZ99: TRUE | EA99: FALSE | EC99: =IF(ED99=1,SUM(ED$7:ED99),"") ->  | EH99: =IF(EI99=1,SUM(EI$7:EI99),"") ->  | EM99: =IF(EN99=1,SUM(EN$7:EN99),"") ->  | ER99: =IF(ES99=1,SUM(ES$7:ES99),"") ->  | EW99: =IF(EX99=1,SUM(EX$7:EX99),"") ->  | FA99: 93 | FC99: =IF(FD99=1,SUM(FD$7:FD99),"") ->  | FH99: =IF(FI99=1,SUM(FI$7:FI99),"") ->  | FK99: 9999999 | FL99: =IF(COUNTIF(FK$29:FK99,FK99)>1,FK99+COUNTIF(FK$29:FK99,FK99)-1,FK99) -> 10000053 | FN99: 10000053 | FO99: 71
A100: 94 | BJ100: ="" ->  | CM100: ANY | DB100: 0 | DC100: =IF(CM100=0,0,IF(OR(cell_statsDATA_overrideclassalign=TRUE,Stats!$Q$33=""),0,IF(cell_statsDATA_alignmentshort<>"",(VLOOKUP(Classes_DATA!CM100,table_statsDATA_alignprereq,2,0)-1)*-1,1))) -> 0 | DD100: 0 | DE100: 0 | DF100: 0 | DG100: 0 | DH100: 0 | DJ100: 0 | DL100: 0 | DN100: 0 | DO100: 0 | DQ100: TRUE | DR100: TRUE | DU100: =IF(DV100=1,SUM(DV$7:DV100),"") ->  | DY100: FALSE | DZ100: TRUE | EA100: FALSE | EC100: =IF(ED100=1,SUM(ED$7:ED100),"") ->  | EH100: =IF(EI100=1,SUM(EI$7:EI100),"") ->  | EM100: =IF(EN100=1,SUM(EN$7:EN100),"") ->  | ER100: =IF(ES100=1,SUM(ES$7:ES100),"") ->  | EW100: =IF(EX100=1,SUM(EX$7:EX100),"") ->  | FA100: 94 | FC100: =IF(FD100=1,SUM(FD$7:FD100),"") ->  | FH100: =IF(FI100=1,SUM(FI$7:FI100),"") ->  | FK100: 9999999 | FL100: =IF(COUNTIF(FK$29:FK100,FK100)>1,FK100+COUNTIF(FK$29:FK100,FK100)-1,FK100) -> 10000054 | FN100: 10000054 | FO100: 72
A101: 95 | BJ101: ="" ->  | CM101: ANY | DB101: 0 | DC101: =IF(CM101=0,0,IF(OR(cell_statsDATA_overrideclassalign=TRUE,Stats!$Q$33=""),0,IF(cell_statsDATA_alignmentshort<>"",(VLOOKUP(Classes_DATA!CM101,table_statsDATA_alignprereq,2,0)-1)*-1,1))) -> 0 | DD101: 0 | DE101: 0 | DF101: 0 | DG101: 0 | DH101: 0 | DJ101: 0 | DL101: 0 | DN101: 0 | DO101: 0 | DQ101: TRUE | DR101: TRUE | DU101: =IF(DV101=1,SUM(DV$7:DV101),"") ->  | DY101: FALSE | DZ101: TRUE | EA101: FALSE | EC101: =IF(ED101=1,SUM(ED$7:ED101),"") ->  | EH101: =IF(EI101=1,SUM(EI$7:EI101),"") ->  | EM101: =IF(EN101=1,SUM(EN$7:EN101),"") ->  | ER101: =IF(ES101=1,SUM(ES$7:ES101),"") ->  | EW101: =IF(EX101=1,SUM(EX$7:EX101),"") ->  | FA101: 95 | FC101: =IF(FD101=1,SUM(FD$7:FD101),"") ->  | FH101: =IF(FI101=1,SUM(FI$7:FI101),"") ->  | FK101: 9999999 | FL101: =IF(COUNTIF(FK$29:FK101,FK101)>1,FK101+COUNTIF(FK$29:FK101,FK101)-1,FK101) -> 10000055 | FN101: 10000055 | FO101: 73
A102: 96 | B102: == Custom | C102: Class | D102: Custom | BJ102: ="" ->  | BW102: 20 | CM102: ANY | DB102: 0 | DC102: =IF(CM102=0,0,IF(OR(cell_statsDATA_overrideclassalign=TRUE,Stats!$Q$33=""),0,IF(cell_statsDATA_alignmentshort<>"",(VLOOKUP(Classes_DATA!CM102,table_statsDATA_alignprereq,2,0)-1)*-1,1))) -> 0 | DD102: 0 | DE102: 0 | DF102: 0 | DG102: 0 | DH102: 0 | DJ102: 0 | DL102: 0 | DN102: 0 | DO102: 0 | DQ102: TRUE | DR102: TRUE | DU102: =IF(DV102=1,SUM(DV$7:DV102),"") ->  | DY102: TRUE | DZ102: TRUE | EA102: TRUE | EC102: =IF(ED102=1,SUM(ED$7:ED102),"") -> 20 | ED102: 1 | EE102: == Custom | EH102: =IF(EI102=1,SUM(EI$7:EI102),"") -> 20 | EI102: 1 | EJ102: == Custom | EM102: =IF(EN102=1,SUM(EN$7:EN102),"") ->  | ER102: =IF(ES102=1,SUM(ES$7:ES102),"") ->  | EW102: =IF(EX102=1,SUM(EX$7:EX102),"") ->  | FA102: 96 | FC102: =IF(FD102=1,SUM(FD$7:FD102),"") ->  | FH102: =IF(FI102=1,SUM(FI$7:FI102),"") ->  | FK102: 9999999 | FL102: =IF(COUNTIF(FK$29:FK102,FK102)>1,FK102+COUNTIF(FK$29:FK102,FK102)-1,FK102) -> 10000056 | FN102: 10000056 | FO102: 74
A103: 97 | B103: =IF(Custom_DATA!B81=0,"",Custom_DATA!B81) ->  | C103: =Custom_DATA!C81 ->  | D103: =IF(B103="","","Custom") ->  | E103: =Custom_DATA!D81 ->  | F103: =Custom_DATA!E81 ->  | G103: =Custom_DATA!F81 ->  | H103: =Custom_DATA!G81 ->  | I103: =Custom_DATA!H81 ->  | J103: =Custom_DATA!I81 ->  | K103: =Custom_DATA!J81 ->  | M103: =IF(K103="select",0,IF(L103="","",SUMIF(list_attributesDATA_bonusstat,L103,list_attributesDATA_bonusamount))) ->  | BJ103: ="" ->  | BW103: 20 | CM103: ANY | DB103: 0 | DC103: =IF(CM103=0,0,IF(OR(cell_statsDATA_overrideclassalign=TRUE,Stats!$Q$33=""),0,IF(cell_statsDATA_alignmentshort<>"",(VLOOKUP(Classes_DATA!CM103,table_statsDATA_alignprereq,2,0)-1)*-1,1))) -> 0 | DD103: 0 | DE103: 0 | DF103: 0 | DG103: 0 | DH103: 0 | DJ103: 0 | DL103: 0 | DN103: 0 | DO103: 0 | DQ103: TRUE | DR103: =IF(cell_statsDATA_overrideclassalign=TRUE,TRUE,DQ103) -> TRUE | DT103: =IF($A103<=DU$6,VLOOKUP($A103,DU$7:DW$107,3,0),"") ->  | DU103: =IF(DV103=1,SUM(DV$7:DV103),"") ->  | DY103: TRUE | DZ103: TRUE | EA103: TRUE | EB103: =IF($A103<=EC$6,VLOOKUP($A103,EC$7:EE$107,3,0),"") ->  | EC103: =IF(ED103=1,SUM(ED$7:ED103),"") ->  | EH103: =IF(EI103=1,SUM(EI$7:EI103),"") ->  | EM103: =IF(EN103=1,SUM(EN$7:EN103),"") ->  | ER103: =IF(ES103=1,SUM(ES$7:ES103),"") ->  | EW103: =IF(EX103=1,SUM(EX$7:EX103),"") ->  | FA103: 97 | FB103: =IF(FA103<=FC$6,VLOOKUP(FA103,FC$7:FE$128,3,0),"") ->  | FC103: =IF(FD103=1,SUM(FD$7:FD103),"") ->  | FG103: =IF(FA103<=FH$6,VLOOKUP(FA103,FH$7:FJ$128,3,0),"") ->  | FH103: =IF(FI103=1,SUM(FI$7:FI103),"") ->  | FK103: 9999999 | FL103: =IF(COUNTIF(FK$29:FK103,FK103)>1,FK103+COUNTIF(FK$29:FK103,FK103)-1,FK103) -> 10000057 | FN103: 10000057 | FO103: 75
A104: 98 | B104: =IF(Custom_DATA!B82=0,"",Custom_DATA!B82) ->  | C104: =Custom_DATA!C82 ->  | D104: =IF(B104="","","Custom") ->  | E104: =Custom_DATA!D82 ->  | F104: =Custom_DATA!E82 ->  | G104: =Custom_DATA!F82 ->  | H104: =Custom_DATA!G82 ->  | I104: =Custom_DATA!H82 ->  | J104: =Custom_DATA!I82 ->  | K104: =Custom_DATA!J82 ->  | M104: =IF(K104="select",0,IF(L104="","",SUMIF(list_attributesDATA_bonusstat,L104,list_attributesDATA_bonusamount))) ->  | BJ104: ="" ->  | BW104: 20 | CM104: ANY | DB104: 0 | DC104: =IF(CM104=0,0,IF(OR(cell_statsDATA_overrideclassalign=TRUE,Stats!$Q$33=""),0,IF(cell_statsDATA_alignmentshort<>"",(VLOOKUP(Classes_DATA!CM104,table_statsDATA_alignprereq,2,0)-1)*-1,1))) -> 0 | DD104: 0 | DE104: 0 | DF104: 0 | DG104: 0 | DH104: 0 | DJ104: 0 | DL104: 0 | DN104: 0 | DO104: 0 | DQ104: TRUE | DR104: =IF(cell_statsDATA_overrideclassalign=TRUE,TRUE,DQ104) -> TRUE | DT104: =IF($A104<=DU$6,VLOOKUP($A104,DU$7:DW$107,3,0),"") ->  | DU104: =IF(DV104=1,SUM(DV$7:DV104),"") ->  | DV104: =IF(DW104="","",IF(COUNTIF(list_classesDATA3_classesselected,DW104)<VLOOKUP(DW104,table_classesDATA_classesall,BW$4,0),1,"")) ->  | DY104: TRUE | DZ104: TRUE | EA104: TRUE | EB104: =IF($A104<=EC$6,VLOOKUP($A104,EC$7:EE$107,3,0),"") ->  | EC104: =IF(ED104=1,SUM(ED$7:ED104),"") ->  | EH104: =IF(EI104=1,SUM(EI$7:EI104),"") ->  | EM104: =IF(EN104=1,SUM(EN$7:EN104),"") ->  | ER104: =IF(ES104=1,SUM(ES$7:ES104),"") ->  | EW104: =IF(EX104=1,SUM(EX$7:EX104),"") ->  | FA104: 98 | FC104: =IF(FD104=1,SUM(FD$7:FD104),"") ->  | FH104: =IF(FI104=1,SUM(FI$7:FI104),"") ->  | FK104: 9999999 | FL104: =IF(COUNTIF(FK$29:FK104,FK104)>1,FK104+COUNTIF(FK$29:FK104,FK104)-1,FK104) -> 10000058 | FN104: 10000058 | FO104: 76
A105: 99 | B105: =IF(Custom_DATA!B83=0,"",Custom_DATA!B83) ->  | C105: =Custom_DATA!C83 ->  | D105: =IF(B105="","","Custom") ->  | E105: =Custom_DATA!D83 ->  | F105: =Custom_DATA!E83 ->  | G105: =Custom_DATA!F83 ->  | H105: =Custom_DATA!G83 ->  | I105: =Custom_DATA!H83 ->  | J105: =Custom_DATA!I83 ->  | K105: =Custom_DATA!J83 ->  | M105: =IF(K105="select",0,IF(L105="","",SUMIF(list_attributesDATA_bonusstat,L105,list_attributesDATA_bonusamount))) ->  | BJ105: ="" ->  | BW105: 20 | CM105: ANY | DB105: 0 | DC105: =IF(CM105=0,0,IF(OR(cell_statsDATA_overrideclassalign=TRUE,Stats!$Q$33=""),0,IF(cell_statsDATA_alignmentshort<>"",(VLOOKUP(Classes_DATA!CM105,table_statsDATA_alignprereq,2,0)-1)*-1,1))) -> 0 | DD105: 0 | DE105: 0 | DF105: 0 | DG105: 0 | DH105: 0 | DJ105: 0 | DL105: 0 | DN105: 0 | DO105: 0 | DQ105: TRUE | DR105: =IF(cell_statsDATA_overrideclassalign=TRUE,TRUE,DQ105) -> TRUE | DT105: =IF($A105<=DU$6,VLOOKUP($A105,DU$7:DW$107,3,0),"") ->  | DU105: =IF(DV105=1,SUM(DV$7:DV105),"") ->  | DV105: =IF(DW105="","",IF(COUNTIF(list_classesDATA3_classesselected,DW105)<VLOOKUP(DW105,table_classesDATA_classesall,BW$4,0),1,"")) ->  | DY105: TRUE | DZ105: TRUE | EA105: TRUE | EB105: =IF($A105<=EC$6,VLOOKUP($A105,EC$7:EE$107,3,0),"") ->  | EC105: =IF(ED105=1,SUM(ED$7:ED105),"") ->  | EH105: =IF(EI105=1,SUM(EI$7:EI105),"") ->  | EM105: =IF(EN105=1,SUM(EN$7:EN105),"") ->  | ER105: =IF(ES105=1,SUM(ES$7:ES105),"") ->  | EW105: =IF(EX105=1,SUM(EX$7:EX105),"") ->  | FA105: 99 | FC105: =IF(FD105=1,SUM(FD$7:FD105),"") ->  | FH105: =IF(FI105=1,SUM(FI$7:FI105),"") ->  | FK105: 9999999 | FL105: =IF(COUNTIF(FK$29:FK105,FK105)>1,FK105+COUNTIF(FK$29:FK105,FK105)-1,FK105) -> 10000059 | FN105: 10000059 | FO105: 77
A106: 100 | B106: =IF(Custom_DATA!B84=0,"",Custom_DATA!B84) ->  | C106: =Custom_DATA!C84 ->  | D106: =IF(B106="","","Custom") ->  | E106: =Custom_DATA!D84 ->  | F106: =Custom_DATA!E84 ->  | G106: =Custom_DATA!F84 ->  | H106: =Custom_DATA!G84 ->  | I106: =Custom_DATA!H84 ->  | J106: =Custom_DATA!I84 ->  | K106: =Custom_DATA!J84 ->  | M106: =IF(K106="select",0,IF(L106="","",SUMIF(list_attributesDATA_bonusstat,L106,list_attributesDATA_bonusamount))) ->  | BJ106: ="" ->  | BW106: 20 | CM106: ANY | DB106: 0 | DC106: =IF(CM106=0,0,IF(OR(cell_statsDATA_overrideclassalign=TRUE,Stats!$Q$33=""),0,IF(cell_statsDATA_alignmentshort<>"",(VLOOKUP(Classes_DATA!CM106,table_statsDATA_alignprereq,2,0)-1)*-1,1))) -> 0 | DD106: 0 | DE106: 0 | DF106: 0 | DG106: 0 | DH106: 0 | DJ106: 0 | DL106: 0 | DN106: 0 | DO106: 0 | DQ106: TRUE | DR106: =IF(cell_statsDATA_overrideclassalign=TRUE,TRUE,DQ106) -> TRUE | DT106: =IF($A106<=DU$6,VLOOKUP($A106,DU$7:DW$107,3,0),"") ->  | DU106: =IF(DV106=1,SUM(DV$7:DV106),"") ->  | DV106: =IF(DW106="","",IF(COUNTIF(list_classesDATA3_classesselected,DW106)<VLOOKUP(DW106,table_classesDATA_classesall,BW$4,0),1,"")) ->  | DY106: TRUE | DZ106: TRUE | EA106: TRUE | EB106: =IF($A106<=EC$6,VLOOKUP($A106,EC$7:EE$107,3,0),"") ->  | EC106: =IF(ED106=1,SUM(ED$7:ED106),"") ->  | EH106: =IF(EI106=1,SUM(EI$7:EI106),"") ->  | EM106: =IF(EN106=1,SUM(EN$7:EN106),"") ->  | ER106: =IF(ES106=1,SUM(ES$7:ES106),"") ->  | EW106: =IF(EX106=1,SUM(EX$7:EX106),"") ->  | FA106: 100 | FC106: =IF(FD106=1,SUM(FD$7:FD106),"") ->  | FH106: =IF(FI106=1,SUM(FI$7:FI106),"") ->  | FK106: 9999999 | FL106: =IF(COUNTIF(FK$29:FK106,FK106)>1,FK106+COUNTIF(FK$29:FK106,FK106)-1,FK106) -> 10000060 | FN106: 10000060 | FO106: 78
